Workbook

Sheet Guide to tool
I1: National Cardiovascular Intelligence Network
B3: Variation in Inpatient Activity (VIA): Diabetes - Guide to tool
B8: Contents:
B9: Methodology | E9: Calculation of Indicators | K9: Standardisation
B10: Next Steps | E10:  | F10: Day Cases | K10: Summary of exclusion criteria
B11: Data sources | E11:  | F11: Emergency, Elective and All Bed Days | K11: Disclosure Control
E12:  | F12: Emergency Readmissions | K12: Geographies
B15: Methodology
B17: The indicators in this tool allow the user to compare the number of day cases/emergency bed days/elective bed days/total bed days/emergency readmissions which have taken place annually at a Clinical Commissioning Group (CCG) level.
B19: For all indicators in the tool, the 'observed' number of day cases/bed days/emergency readmissions are presented for spells of care of people defined as having diabetes (based on the recording of the condition in any episode of care within the spell).
B21: There are two 'expected' values used for comparison with the 'observed' value for those with diabetes:
B22: 1. Expected value if the CCG's population with diabetes attending hospital had the same rate/length of stay as a similar population in the CCG without diabetes attending hospital (standardised for the potential difference in the age profiles of the populations with and without diabetes, and the differences in activity between Healthcare Resource Groups).
B24: 2. Expected value if the CCG's population with diabetes attending hospital had the same rate/length of stay as England's total population with diabetes attending hospital (standardised for the potential difference in the age profiles of the populations, and the differences in activity between Healthcare Resource Groups).
B26: This data then allows the funnel plots and trend graphs to be produced representing each CCG's observed number of days cases/bed days/emergency readmissions as a percentage difference of the number expected.
B29: The funnel plots used in the tool have been adapted from templates produced by Public Health England's Data Science Team. The funnel plot template and technical guidance on interpreting the plot can be found by using the link below:
B31: https://fingertips.phe.org.uk/profile/guidance
B33: Further information about the methodology used including exclusion criteria, standardisation, significance, disclosure control and geographies used in the tool can be found in the 'Further Methodological Information' section below. More technical information regarding Hospital Episode Statistics (HES) data is provided in the associated methodology document.
B35: Next Steps
B36: The VIA tool aims to provide an overview of inpatient activity for those with and without diabetes to provide evidence on differing care patterns. It can be used by those at a local or strategic level wishing to understand the local and national variation in inpatient service usage by those with diabetes.
B37: More detailed local analysis or knowledge of services related to diabetes care may help to explain a CCG's relative position and trends that are presented in the tool.
B38: The tool can help stimulate conversation about the variation in inpatient activity, both locally and between CCGs, in order to gain a better understanding of differing care patterns and explore opportunities to minimise differences in care of patients with diabetes.
B40: Further Methodological Information
B42: Data Sources
B43: The data used in this tool is taken from Hospital Episode Statistics (HES). This database contains details of every hospital admission, day case admission and outpatient appointment in hospitals across England.
B45: The information used in this tool relates to the whole inpatient stay (a spell of care). Patients were classed as having diabetes if there was a diagnosis code for diabetes (ICD-10 codes E10-E14) in any of the diagnosis fields during the spell. Healthcare Resource Groups (HRGs) were allocated using HRG version 4.
B47: A spell of care is deemed to fall within a given financial year if the first episode of the spell ended in that year. For example, a spell of care where the first episode ended on 3 April 2016 would be included in the data for the year 2016-17, even is the date of admission for this spell of care was prior to 1 April 2017 and hence in the previous financial year.
B50: Calculation of Indicators
B51: For the complete methodology used please see the associated methodology document.
B53: 1. Day Cases
B54: This indicator shows the relative risk of a patient with diabetes in the chosen CCG being admitted as an elective day case compared to other patients of a similar age admitted under the same HRG without diabetes in the CCG, or compared to the average national value of patients with diabetes of a similar age admitted under the same HRG. It is calculated by dividing the actual number of day case admissions by the expected number of day case admissions if patients with diabetes attending hospital had the same day case admission rate as patients of a similar age admitted under the same HRG without diabetes in the CCG, or if they had the national day case admission rate of similar patients with diabetes.
B59: Three figures are presented in relation to this indicator;
B60: i. the actual number of spells of care for patients with diabetes in the CCG that are admitted as an elective day case (referred to as the 'observed' number)
B61: ii. the number of spells of care for patients with diabetes in the CCG that would be admitted as an elective day case if they had the same day case rate as similar patients without diabetes in the CCG, or the same rate as the England average value for similar patients with diabetes (referred to as the 'expected' number)
B63: iii. the relative risk of patients attending hospital with diabetes in the CCG being admitted for an elective day case procedure compared to similar patients attending hospital without diabetes in the CCG, or similar patients with diabetes attending hospital across England, shown as a percentage difference.
B66: The relative risk of being admitted as a day case is the indicator that is shown on the funnel plots and trend charts. It shows the relative risk of a patient with diabetes in the CCG being admitted as a day case compared to other similar patients without diabetes in the CCG, or to similar patients with diabetes nationally. For example, using patients without diabetes as the compator, a value of +20% indicates that patients with diabetes were 20% more likely to be admitted as a day case than similar patients without diabetes. A value of -60% indicates that patients with diabetes were 60% less likely to be admitted as a day case compared to other similar patients without diabetes. A value of 0% indicates that patients with diabetes had the same likelihood of being admitted as a day case as similar patients without diabetes.
B72: 2. Emergency, Elective and All Bed Days
B73: These indicators compare the total number of bed days for patients with diabetes in the CCG to the total number of bed days that they would have experienced if they had the same average length of stay as patients of a similar age admitted under the same HRG without diabetes in the CCG, or compared to the average national value of patients with diabetes of a similar age admitted under the same HRG.
B77: Three figures are presented in relation to this indicator;
B78: i. total actual number of bed days for patients with diabetes in the CCG (referred to as the 'observed' number)
B79: ii. expected number of total bed days if patients with diabetes in the CCG had the same length of stay as similar patients without diabetes in the CCG, or the same length of stay as the England average value for similar patients with diabetes (referred to as the 'expected' number)
B81: iii. excess bed days of patients with diabetes in the CCG, shown as a percentage difference.
B83: The percentage of excess bed days is the indicator that is shown on the funnel plots and trend charts. It shows the additional length of stay experienced by patients with diabetes in the CCG compared to similar patients without diabetes in the CCG, or to similar patients with diabetes nationally. For example, using patients without diabetes as the comparator, a value of +50% indicates that patients with diabetes had 50% more bed days than would be expected if they had the same length of stay as patients without diabetes. A value of -20% indicates that patients with diabetes had 20% fewer bed days than would be expected if they had the same length of stay as similar patients without diabetes.
B87: Any spells of care where the length of stay was longer than 90 days were ‘trimmed’ to 90 days to prevent a small number of patients with very long lengths of stay skewing the analysis, therefore the bed days indicators presented in the VIA tool do not always represent the true total bed days values. Any spells of care where the patient died were excluded from the analysis as these lengths of stay were beyond clinical control.
B89: Wirral University Teaching Hospital
B90: Due to a coding issue among patients undergoing haemodialysis (procedure code X403) at Wirral University Teaching Hospital that impacted their length of stay for all years presented in the VIA tool, these admissions were excluded from the analysis for the three bed day indicators (around 1,000-1,500 admissions per year).
B92: 3. Emergency Readmissions
B93: This indicator compares the chances of a patient with diabetes in the CCG being readmitted as an emergency within 28 days of discharge compared to patients of a similar age admitted under the same HRG without diabetes in the CCG or compared to the average national value of patients with diabetes of a similar age admitted under the same HRG.
B96: Three figures are presented in relation to this indicator;
B97: i. the actual number of patients with diabetes in the CCG that are readmitted as an emergency within 28 days (referred to as the 'observed' number)
B98: ii. the number of patients with diabetes in the CCG that would be readmitted as an emergency within 28 days if they had the same emergency readmission rates as similar patients without diabetes in the CCG, or the England average emergency readmission rate for similar patients with diabetes (referred to as the 'expected' number)
B100: iii. the relative risk of patients with diabetes in the CCG being readmitted as an emergency within 28 days compared to similar patients without diabetes in the CCG, or similar patients with diabetes across England.
B103: The relative risk of patients with diabetes in the CCG being readmitted as an emergency within 28 days is the indicator that is shown on the funnel plots and trend charts. It shows the chances of a patient with diabetes in the CCG being readmitted as an emergency within 28 days compared to other similar patients without diabetes in the CCG, or to similar patients with diabetes nationally. For example, using patients without diabetes as the comparator, a value of +20% indicates that patients with diabetes were 20% more likely to be readmitted as an emergency than similar patients without diabetes. A value of 0% indicates that patients with diabetes have the same likelihood of being readmitted as an emergency within 28 days as those without diabetes.
B107: Admissions are excluded if they relate to maternity care, pregnancy, childbirth, mental health, cancer or chemotherapy as these conditions may legitimately require emergency readmission, and hence should not be being used within a marker of quality of care. Admissions were also excluded if the main specialty was unknown or the patient died during the initial spell of care.
B110: Standardisation
B111: The indicators presented in the tool have been indirectly standardised by 10 year age bands and HRGs. This process adjusts for the potential difference in the age profiles of the populations with and without diabetes, and the differences in activity between HRGs.
B114: Age bands
B115: Ten year age bands up to aged 90+ were used for standardisation of the indicators presented in the tool. This process adjusts for the potential difference in the age profiles of the populations with and without diabetes in the CCG, and between the CCGs diabetic population compared to England. Age standardisation is required as patients with diabetes tend to be older than patients without diabetes, and older patients are less likely to be listed for day case procedures, more likely to have longer lengths of stay and are more likely to be readmitted as an emergency. The age of a patient is defined as their age at the start of the episode of care. Patients with no age available were excluded from the analysis.
B120: Healthcare Resource Groups (HRGs)
B121: Healthcare Resource Groups (HRGs) are groupings of clinically similar activities that consume similar levels of National Health Service (NHS) resources. The indicators presented in the tool have been standardised by the HRGs listed in Table 1 to adjust for the potential difference in HRG profile of the populations with and without diabetes in the CCG, and between the CCGs population with diabetes compared to England. Three HRG chapters (N - Obstetrics and Neonatal Care, T - Mental Health and U - Undefined Groups) were excluded from the analysis due to differing care patterns. Standardisation by HRG is required as inpatient activity differs between HRGs.
B126: Table 1 - Healthcare Resource Groups Presented in the VIA Tool
B127: A | C127: The Nervous System
B128: B | C128: Eyes and Periorbita
B129: C | C129: Mouth, Head, Neck & Ears
B130: D | C130: Respiratory System
B131: E | C131: Cardiac Surgery and Primary Cardiac Conditions
B132: F | C132: Digestive System
B133: G | C133: Hepato-biliary and Pancreatic System
B134: H | C134: Musculoskeletal System
B135: J | C135: Skin, Breast and Burns
B136: K | C136: Endocrine and Metabolic System
B137: L | C137: Urinary Tract and Male Reproductive System
B138: M | C138: Female Reproductive System and Assisted Reproduction
B139: P | C139: Diseases of Childhood and Neonates
B140: Q | C140: Vascular System
B141: R | C141: Diagnostic Imaging and Interventional Radiology
B142: S | C142: Haematology, Chemotherapy, Radiotherapy and Specialist Palliative Care
B143: V | C143: Multiple Trauma, Emergency and Urgent Care, and Rehabilitation
B144: W | C144: Immunology, Infectious Diseases and other contacts with health services
B145: X | C145: Critical Care, High-Cost Drugs and Devices
B146: Y | C146: Imaging
B148: Summary of exclusion criteria
B150: Patients were not included in the VIA tool analysis if they met one or more of the following criteria:
B151: ∙ their CCG of responsibility was unknown or was a commissioning hub
B152: ∙ they did not have a valid age
B153: ∙ their HRG was ‘N’ (Neonatal Care), ‘T’ (Mental Health), ‘U’ (Undefined groups) or null
B154: Indicator specific exclusion criteria:
B155: ∙ Bed days -
B156: ∙ the patient died during the spell of care
B157: ∙ the patient underwent haemodialysis at Wirral University Teaching Hospital (due to coding issues impacting their length of stay)
B158: ∙ spells of care with a length of stay longer than 90 days were capped at 90 days to prevent skewfor example, a spell lasting 152 days would be included in the VIA tool as lasting 90 days
B159: ∙ Emergency readmissions -
B160: ∙ the patient died during the initial spell of care
B161: ∙ the spell was coded as maternity, mental health or there was a mention of cancer or chemotherapy in any diagnosis field during the spell
B162: ∙ the main specialty was unknown
B163: Significance
B164: Significance was calculated using Byar's method to find the 95% confidence intervals around the observed value and dividing this by the expected value. A difference between observed and expected values was deemed to be 'significant' if the lower 95% confidence limit was greater than one or the higher 95% confidence limit was less than one. Further information about the methodology used can be found here:
B165: https://fingertips.phe.org.uk/documents/PHDS%20Guidance%20-%20Confidence%20Intervals.pdf
B167: Disclosure Control
B168: In accordance with the latest HES disclosure control and suppression guidance, the observed number of day cases/ bed days/ emergency readmissions for all sub-national indicators presented in the VIA tool have been rounded to the nearest 5, and these values have been used to calculate the percentages presented in the tool. Disclosure control is not applied to expected numbers and confidence intervals as these are created using complex calculations. No values in the tool are between 1-7 so suppression does not need to occur.
B170: Geographies
B171: Clinical Commissioning Groups (CCGs)
B172: The indicators are presented at a Clinical Commissioning Group (CCG) level, using the 'CCG of Responsibility' field from the HES data. Post April 2018 CCGs were used, meaning CCGs that have merged since 2014/15 are presented as their new merged CCG throughout the tool. For example, North, South and Central Manchester CCGs merged to form Manchester CCG in 2017, so all data is combined into and presented as Manchester CCG throughout the tool for all years. Patients who belonged to GPs that moved CCG between 2014/15 to 2017/18 were assigned to the relevant CCG for the year specified. For example, patients from the 32 GPs that moved from North Cumbria CCG to Morecambe Bay CCG in 2016/17 will belong to North Cumbria CCG in 2014/15 and 2015/16, then Morecambe Bay CCG in 2016/17 and 2017/18.
B176: Sustainability and Transformation Partnerships (STPs)
B177: There are 42 STPs covering all of England, where local NHS organisations and councils have drawn up proposals to improve health and care in the areas they serve, working together since 2016. They aim to help meet a 'triple challenge' set out in the NHS Five Year Forward view - better health, transformed quality of care delivery, and sustainable finances. STPs are a way for the NHS to develop its own, locally appropriate proposals to improve health and care for patients. More information can be found at:
B180: https://www.england.nhs.uk/integratedcare/stps/
B182: 10 most similar CCGs
B183: Developed by NHS RightCare who use a group of standardised variables to calculate the most similar CCGs for use as comparators. More information on the methodology for the creation of the classification and the full list of CCGs and their groups can be found at:
B185: https://www.england.nhs.uk/publication/similar-10-ccg-explorer-tool/
B188: The National Cardiovascular Health Intelligence network (NCVIN) is hosted within Public Health England.
B189: Please send your feedback about the tool to ncvin@phe.gov.uk

Sheet Menu
I1: National Cardiovascular Intelligence Network
B3: Variation in Inpatient Activity (VIA): Diabetes - Menu
B7: This tool uses information on inpatient activity for those with and without diabetes to provide evidence on differing care patterns. The tool present information at a Clincal Comissioning Group (CCG) level on the actual and expected numbers of days cases, bed days and emergency readmissions for those with diabetes. Data is presented as funnel plots, trend charts and summary tables. Figures are provided for 2014/15 to 2017/18.
B11: To use the tool, select a CCG from the drop down list below, along with the indicator and year you wish to view. Then click on one of the 'Go to data' buttons. More information on the data and methodology used within this tool is available on the 'Guide to tool' page.
B13: Please note: the tool may be slow to load due to the volume of data being processed.
A15: 1 | B15: CCG | K15: 1
A17: 2 | B17: Indicator | K17: 1
A19: 3 | B19: Year | K19: 4
A21: 4 | B21: Go to data

Sheet Funnel Plot
H1: National Cardiovascular Intelligence Network
B3: Variation in Inpatient Activity (VIA): Diabetes - Comparison plots
B7: CCG | J7: Indicator | M7: Year
B9: Comparison to patients without diabetes | L9: Comparison to the England average
B11: =IF(ISERROR('Calc trends'!B48),"Inpatient activity data cannot be displayed for "&'Calc vs non diab'!H4&" during "&'Calc vs non diab'!H3&".","In "&'Calc vs non diab'!H4&" during "&'Calc vs non diab'!H3&", the number of "&'Calc trends'!B62&" for patients with diabetes ("&'Calc trends'!B46&" "&'Calc trends'!B63&") was "&'Calc trends'!B48&"% "&'Calc trends'!B50&" than would be expected had those patients with diabetes had the same "&'Calc trends'!B64&" as patients without diabetes of a similar age and admitted for the same Healthcare Resource grouping ("&'Calc trends'!B47&" "&'Calc trends'!B63&")"&'Calc trends'!B51&". This is "&'Calc trends'!B52&" "&'Calc trends'!C45&" STP's overall percentage difference of "&'Calc trends'!C49&"%, and "&'Calc trends'!B53&" the national average percentage difference of "&'Calc trends'!D49&"%.") -> In NHS Airedale, Wharfedale and Craven CCG during 2014/15, the number of day cases for patients with diabetes (2,580 day cases) was 0.6% LESS than would be expected had those patients with diabetes had the same day case rate as patients without diabetes of a similar age and admitted for the same Healthcare Resource grouping (2,596 day cases), but this difference is not deemed to be significant. This is smaller than West Yorkshire STP's overall percentage difference of -4.3%, and smaller than the national average percentage difference of -4.3%. | L11: =IF(ISERROR('Calc trends'!B48),"Inpatient activity data cannot be displayed for "&'Calc vs Eng'!H4&" during "&'Calc vs Eng'!H3&".","In "&'Calc vs Eng'!H4&" during "&'Calc vs Eng'!H3&", the number of "&'Calc trends'!B62&" for patients with diabetes ("&'Calc trends'!B46&" "&'Calc trends'!B63&") was "&'Calc trends'!B56&"% "&'Calc trends'!B58&" than would be expected had those patients with diabetes had the same "&'Calc trends'!B64&" as all patients with diabetes in England of a similar age and admitted for the same Healthcare Resource grouping ("&'Calc trends'!B55&" "&'Calc trends'!B63&")"&'Calc trends'!B59&". This is "&'Calc trends'!B54&" "&'Calc trends'!C45&" STP's overall percentage difference of "&'Calc trends'!C57&"%.") -> In NHS Airedale, Wharfedale and Craven CCG during 2017/18, the number of day cases for patients with diabetes (2,580 day cases) was 4% MORE than would be expected had those patients with diabetes had the same day case rate as all patients with diabetes in England of a similar age and admitted for the same Healthcare Resource grouping (2,573 day cases), a significantly higher difference. This is larger than West Yorkshire STP's overall percentage difference of 0.7%.
B16: ="In "&'Calc trends'!C45&" STP during "&'Calc vs non diab'!H3&", the number of "&'Calc trends'!B62&" for patients with diabetes ("&'Calc trends'!C46&" "&'Calc trends'!B63&") was "&'Calc trends'!C48&"% "&'Calc trends'!C50&" than would be expected had those patients with diabetes had the same "&'Calc trends'!B64&" as patients without diabetes of a similar age and admitted for the same Healthcare Resource grouping ("&'Calc trends'!C47&" "&'Calc trends'!B63&")"&'Calc trends'!C51&"." -> In West Yorkshire STP during 2014/15, the number of day cases for patients with diabetes (25,630 day cases) was 4.3% LESS than would be expected had those patients with diabetes had the same day case rate as patients without diabetes of a similar age and admitted for the same Healthcare Resource grouping (26,774 day cases), a significantly lower difference. | L16: ="In "&'Calc trends'!C45&" STP during "&'Calc vs Eng'!H3&", the number of "&'Calc trends'!B62&" for patients with diabetes ("&'Calc trends'!C46&" "&'Calc trends'!B63&") was "&'Calc trends'!C56&"% "&'Calc trends'!C58&" than would be expected had those patients with diabetes had the same "&'Calc trends'!B64&" as all patients with diabetes in England of a similar age and admitted for the same Healthcare Resource grouping ("&'Calc trends'!C55&" "&'Calc trends'!B63&")"&'Calc trends'!C59&"." -> In West Yorkshire STP during 2017/18, the number of day cases for patients with diabetes (25,630 day cases) was 0.7% MORE than would be expected had those patients with diabetes had the same day case rate as all patients with diabetes in England of a similar age and admitted for the same Healthcare Resource grouping (31,421 day cases), but this difference is not deemed to be significant.
B19: ="In England during "&'Calc vs non diab'!H3&", the number of "&'Calc trends'!B62&" for patients with diabetes ("&'Calc trends'!D46&" "&'Calc trends'!B63&") was "&'Calc trends'!D48&"% "&'Calc trends'!D50&" than would be expected had those patients with diabetes had the same "&'Calc trends'!B64&" as patients without diabetes of a similar age and admitted for the same Healthcare Resource grouping ("&'Calc trends'!D47&" "&'Calc trends'!B63&")"&'Calc trends'!D51&"." -> In England during 2014/15, the number of day cases for patients with diabetes (582,858 day cases) was 4.3% LESS than would be expected had those patients with diabetes had the same day case rate as patients without diabetes of a similar age and admitted for the same Healthcare Resource grouping (609,307 day cases), a significantly lower difference.
B45: ="A list of the CCGs in "&'Calc vs non diab'!H5&" STP and similar CCGs to "&'Calc vs non diab'!H4&" are presented on the 'Comparison table' page." -> A list of the CCGs in West Yorkshire STP and similar CCGs to NHS Airedale, Wharfedale and Craven CCG are presented on the 'Comparison table' page.
B46: To find out the CCG name of a point on the plots, click on the point of interest.
B47: For guidance on how to interpret the funnel plots, please see the 'Guide to tool' page.

Sheet Table
H1: National Cardiovascular Intelligence Network
B3: Variation in Inpatient Activity (VIA): Diabetes - Comparison table
B7: CCG | J7: Indicator | M7: Year
B8: ="Comparison table with similar CCGs to "&'Calc vs non diab'!H4&" and other CCGs in "&'Calc vs non diab'!H5&" STP" -> Comparison table with similar CCGs to NHS Airedale, Wharfedale and Craven CCG and other CCGs in West Yorkshire STP
B9: ='Calc vs non diab'!H2&" ("&'Calc vs non diab'!H3&")" -> Day case (2014/15)
B10: CCG | I10: Observed count | J10: Expected count vs those without diabetes | K10: % difference vs those without diabetes | L10: Expected count vs England average | M10: % difference vs England average | N10: Green % values indicate a significant difference
B11: ='Calc vs non diab'!H4 -> NHS Airedale, Wharfedale and Craven CCG | I11: =IFERROR(VLOOKUP($B11,'Calc vs non diab'!$C$8:$G$228,3,FALSE),"") -> 2580 | J11: =IFERROR(VLOOKUP($B11,'Calc vs non diab'!$C$8:$G$228,4,FALSE),"") -> 2596.469208 | K11: =IFERROR(VLOOKUP($B11,'Calc vs non diab'!$C$8:$G$228,5,FALSE),"") -> -0.006342924365 | L11: =IFERROR(VLOOKUP($B11,'Calc vs Eng'!$C$8:$G$228,4,FALSE),"") -> 2572.592811 | M11: =IFERROR(VLOOKUP($B11,'Calc vs Eng'!$C$8:$G$228,5,FALSE),"") -> 0.03980699491 | N11: =IFERROR(VLOOKUP($B11,'Calc vs non diab'!$C$8:$H$228,6,FALSE),"") ->  | O11: =IFERROR(VLOOKUP($B11,'Calc vs Eng'!$C$8:$H$228,6,FALSE),"") -> high
B12: =Lookup!Q3 -> NHS Newark and Sherwood CCG | I12: =IFERROR(VLOOKUP($B12,'Calc vs non diab'!$C$8:$G$228,3,FALSE),"") -> 1595 | J12: =IFERROR(VLOOKUP($B12,'Calc vs non diab'!$C$8:$G$228,4,FALSE),"") -> 1629.430366 | K12: =IFERROR(VLOOKUP($B12,'Calc vs non diab'!$C$8:$G$228,5,FALSE),"") -> -0.02113030858 | L12: =IFERROR(VLOOKUP($B12,'Calc vs Eng'!$C$8:$G$228,4,FALSE),"") -> 2107.993387 | M12: =IFERROR(VLOOKUP($B12,'Calc vs Eng'!$C$8:$G$228,5,FALSE),"") -> 0.03178691805 | N12: =IFERROR(VLOOKUP($B12,'Calc vs non diab'!$C$8:$H$228,6,FALSE),"") ->  | O12: =IFERROR(VLOOKUP($B12,'Calc vs Eng'!$C$8:$H$228,6,FALSE),"") -> 
B13: =Lookup!Q4 -> NHS North Lincolnshire CCG | I13: =IFERROR(VLOOKUP($B13,'Calc vs non diab'!$C$8:$G$228,3,FALSE),"") -> 3255 | J13: =IFERROR(VLOOKUP($B13,'Calc vs non diab'!$C$8:$G$228,4,FALSE),"") -> 3376.272792 | K13: =IFERROR(VLOOKUP($B13,'Calc vs non diab'!$C$8:$G$228,5,FALSE),"") -> -0.03591913326 | L13: =IFERROR(VLOOKUP($B13,'Calc vs Eng'!$C$8:$G$228,4,FALSE),"") -> 3259.202152 | M13: =IFERROR(VLOOKUP($B13,'Calc vs Eng'!$C$8:$G$228,5,FALSE),"") -> -0.008959908056 | N13: =IFERROR(VLOOKUP($B13,'Calc vs non diab'!$C$8:$H$228,6,FALSE),"") -> low | O13: =IFERROR(VLOOKUP($B13,'Calc vs Eng'!$C$8:$H$228,6,FALSE),"") -> 
B14: =Lookup!Q5 -> NHS South Kent Coast CCG | I14: =IFERROR(VLOOKUP($B14,'Calc vs non diab'!$C$8:$G$228,3,FALSE),"") -> 1670 | J14: =IFERROR(VLOOKUP($B14,'Calc vs non diab'!$C$8:$G$228,4,FALSE),"") -> 1898.905454 | K14: =IFERROR(VLOOKUP($B14,'Calc vs non diab'!$C$8:$G$228,5,FALSE),"") -> -0.1205459986 | L14: =IFERROR(VLOOKUP($B14,'Calc vs Eng'!$C$8:$G$228,4,FALSE),"") -> 2744.503654 | M14: =IFERROR(VLOOKUP($B14,'Calc vs Eng'!$C$8:$G$228,5,FALSE),"") -> -0.04354290228 | N14: =IFERROR(VLOOKUP($B14,'Calc vs non diab'!$C$8:$H$228,6,FALSE),"") -> low | O14: =IFERROR(VLOOKUP($B14,'Calc vs Eng'!$C$8:$H$228,6,FALSE),"") -> low
B15: =Lookup!Q6 -> NHS North Staffordshire CCG | I15: =IFERROR(VLOOKUP($B15,'Calc vs non diab'!$C$8:$G$228,3,FALSE),"") -> 2370 | J15: =IFERROR(VLOOKUP($B15,'Calc vs non diab'!$C$8:$G$228,4,FALSE),"") -> 2523.829789 | K15: =IFERROR(VLOOKUP($B15,'Calc vs non diab'!$C$8:$G$228,5,FALSE),"") -> -0.06095093641 | L15: =IFERROR(VLOOKUP($B15,'Calc vs Eng'!$C$8:$G$228,4,FALSE),"") -> 3310.067082 | M15: =IFERROR(VLOOKUP($B15,'Calc vs Eng'!$C$8:$G$228,5,FALSE),"") -> 0.04076440588 | N15: =IFERROR(VLOOKUP($B15,'Calc vs non diab'!$C$8:$H$228,6,FALSE),"") -> low | O15: =IFERROR(VLOOKUP($B15,'Calc vs Eng'!$C$8:$H$228,6,FALSE),"") -> high
B16: =Lookup!Q7 -> NHS East Staffordshire CCG | I16: =IFERROR(VLOOKUP($B16,'Calc vs non diab'!$C$8:$G$228,3,FALSE),"") -> 1450 | J16: =IFERROR(VLOOKUP($B16,'Calc vs non diab'!$C$8:$G$228,4,FALSE),"") -> 1513.999833 | K16: =IFERROR(VLOOKUP($B16,'Calc vs non diab'!$C$8:$G$228,5,FALSE),"") -> -0.04227202108 | L16: =IFERROR(VLOOKUP($B16,'Calc vs Eng'!$C$8:$G$228,4,FALSE),"") -> 1749.225336 | M16: =IFERROR(VLOOKUP($B16,'Calc vs Eng'!$C$8:$G$228,5,FALSE),"") -> -0.01099077159 | N16: =IFERROR(VLOOKUP($B16,'Calc vs non diab'!$C$8:$H$228,6,FALSE),"") ->  | O16: =IFERROR(VLOOKUP($B16,'Calc vs Eng'!$C$8:$H$228,6,FALSE),"") -> 
B17: =Lookup!Q8 -> NHS South Cheshire CCG | I17: =IFERROR(VLOOKUP($B17,'Calc vs non diab'!$C$8:$G$228,3,FALSE),"") -> 2425 | J17: =IFERROR(VLOOKUP($B17,'Calc vs non diab'!$C$8:$G$228,4,FALSE),"") -> 2499.64915 | K17: =IFERROR(VLOOKUP($B17,'Calc vs non diab'!$C$8:$G$228,5,FALSE),"") -> -0.02986385123 | L17: =IFERROR(VLOOKUP($B17,'Calc vs Eng'!$C$8:$G$228,4,FALSE),"") -> 2783.583969 | M17: =IFERROR(VLOOKUP($B17,'Calc vs Eng'!$C$8:$G$228,5,FALSE),"") -> 0.0310448804 | N17: =IFERROR(VLOOKUP($B17,'Calc vs non diab'!$C$8:$H$228,6,FALSE),"") ->  | O17: =IFERROR(VLOOKUP($B17,'Calc vs Eng'!$C$8:$H$228,6,FALSE),"") -> 
B18: =Lookup!Q9 -> NHS West Lancashire CCG | I18: =IFERROR(VLOOKUP($B18,'Calc vs non diab'!$C$8:$G$228,3,FALSE),"") -> 1650 | J18: =IFERROR(VLOOKUP($B18,'Calc vs non diab'!$C$8:$G$228,4,FALSE),"") -> 1655.446358 | K18: =IFERROR(VLOOKUP($B18,'Calc vs non diab'!$C$8:$G$228,5,FALSE),"") -> -0.003289963403 | L18: =IFERROR(VLOOKUP($B18,'Calc vs Eng'!$C$8:$G$228,4,FALSE),"") -> 1880.933197 | M18: =IFERROR(VLOOKUP($B18,'Calc vs Eng'!$C$8:$G$228,5,FALSE),"") -> 0.03140292459 | N18: =IFERROR(VLOOKUP($B18,'Calc vs non diab'!$C$8:$H$228,6,FALSE),"") ->  | O18: =IFERROR(VLOOKUP($B18,'Calc vs Eng'!$C$8:$H$228,6,FALSE),"") -> 
B19: =Lookup!Q10 -> NHS Wyre Forest CCG | I19: =IFERROR(VLOOKUP($B19,'Calc vs non diab'!$C$8:$G$228,3,FALSE),"") -> 1485 | J19: =IFERROR(VLOOKUP($B19,'Calc vs non diab'!$C$8:$G$228,4,FALSE),"") -> 1581.258177 | K19: =IFERROR(VLOOKUP($B19,'Calc vs non diab'!$C$8:$G$228,5,FALSE),"") -> -0.06087442183 | L19: =IFERROR(VLOOKUP($B19,'Calc vs Eng'!$C$8:$G$228,4,FALSE),"") -> 2611.503464 | M19: =IFERROR(VLOOKUP($B19,'Calc vs Eng'!$C$8:$G$228,5,FALSE),"") -> 0.06835010512 | N19: =IFERROR(VLOOKUP($B19,'Calc vs non diab'!$C$8:$H$228,6,FALSE),"") -> low | O19: =IFERROR(VLOOKUP($B19,'Calc vs Eng'!$C$8:$H$228,6,FALSE),"") -> high
B20: =Lookup!Q11 -> NHS South Eastern Hampshire CCG | I20: =IFERROR(VLOOKUP($B20,'Calc vs non diab'!$C$8:$G$228,3,FALSE),"") -> 1805 | J20: =IFERROR(VLOOKUP($B20,'Calc vs non diab'!$C$8:$G$228,4,FALSE),"") -> 1947.645552 | K20: =IFERROR(VLOOKUP($B20,'Calc vs non diab'!$C$8:$G$228,5,FALSE),"") -> -0.07323999571 | L20: =IFERROR(VLOOKUP($B20,'Calc vs Eng'!$C$8:$G$228,4,FALSE),"") -> 2720.04196 | M20: =IFERROR(VLOOKUP($B20,'Calc vs Eng'!$C$8:$G$228,5,FALSE),"") -> 0.007337401372 | N20: =IFERROR(VLOOKUP($B20,'Calc vs non diab'!$C$8:$H$228,6,FALSE),"") -> low | O20: =IFERROR(VLOOKUP($B20,'Calc vs Eng'!$C$8:$H$228,6,FALSE),"") -> 
B21: =Lookup!Q12 -> NHS Warwickshire North CCG | I21: =IFERROR(VLOOKUP($B21,'Calc vs non diab'!$C$8:$G$228,3,FALSE),"") -> 1805 | J21: =IFERROR(VLOOKUP($B21,'Calc vs non diab'!$C$8:$G$228,4,FALSE),"") -> 1818.709446 | K21: =IFERROR(VLOOKUP($B21,'Calc vs non diab'!$C$8:$G$228,5,FALSE),"") -> -0.007538007946 | L21: =IFERROR(VLOOKUP($B21,'Calc vs Eng'!$C$8:$G$228,4,FALSE),"") -> 2333.667721 | M21: =IFERROR(VLOOKUP($B21,'Calc vs Eng'!$C$8:$G$228,5,FALSE),"") -> 0.03699424676 | N21: =IFERROR(VLOOKUP($B21,'Calc vs non diab'!$C$8:$H$228,6,FALSE),"") ->  | O21: =IFERROR(VLOOKUP($B21,'Calc vs Eng'!$C$8:$H$228,6,FALSE),"") -> 
B22: =Lookup!G3 -> NHS Bradford City CCG | I22: =IFERROR(VLOOKUP($B22,'Calc vs non diab'!$C$8:$G$228,3,FALSE),"") -> 1460 | J22: =IFERROR(VLOOKUP($B22,'Calc vs non diab'!$C$8:$G$228,4,FALSE),"") -> 1495.311479 | K22: =IFERROR(VLOOKUP($B22,'Calc vs non diab'!$C$8:$G$228,5,FALSE),"") -> -0.02361479856 | L22: =IFERROR(VLOOKUP($B22,'Calc vs Eng'!$C$8:$G$228,4,FALSE),"") -> 1667.813578 | M22: =IFERROR(VLOOKUP($B22,'Calc vs Eng'!$C$8:$G$228,5,FALSE),"") -> 0.03728619504 | N22: =IFERROR(VLOOKUP($B22,'Calc vs non diab'!$C$8:$H$228,6,FALSE),"") ->  | O22: =IFERROR(VLOOKUP($B22,'Calc vs Eng'!$C$8:$H$228,6,FALSE),"") -> 
B23: =Lookup!G4 -> NHS Bradford Districts CCG | I23: =IFERROR(VLOOKUP($B23,'Calc vs non diab'!$C$8:$G$228,3,FALSE),"") -> 4470 | J23: =IFERROR(VLOOKUP($B23,'Calc vs non diab'!$C$8:$G$228,4,FALSE),"") -> 4552.807694 | K23: =IFERROR(VLOOKUP($B23,'Calc vs non diab'!$C$8:$G$228,5,FALSE),"") -> -0.01818826962 | L23: =IFERROR(VLOOKUP($B23,'Calc vs Eng'!$C$8:$G$228,4,FALSE),"") -> 4296.194618 | M23: =IFERROR(VLOOKUP($B23,'Calc vs Eng'!$C$8:$G$228,5,FALSE),"") -> 0.01485160415 | N23: =IFERROR(VLOOKUP($B23,'Calc vs non diab'!$C$8:$H$228,6,FALSE),"") ->  | O23: =IFERROR(VLOOKUP($B23,'Calc vs Eng'!$C$8:$H$228,6,FALSE),"") -> 
B24: =Lookup!G5 -> NHS Calderdale CCG | I24: =IFERROR(VLOOKUP($B24,'Calc vs non diab'!$C$8:$G$228,3,FALSE),"") -> 2105 | J24: =IFERROR(VLOOKUP($B24,'Calc vs non diab'!$C$8:$G$228,4,FALSE),"") -> 2228.278603 | K24: =IFERROR(VLOOKUP($B24,'Calc vs non diab'!$C$8:$G$228,5,FALSE),"") -> -0.05532459112 | L24: =IFERROR(VLOOKUP($B24,'Calc vs Eng'!$C$8:$G$228,4,FALSE),"") -> 2654.255658 | M24: =IFERROR(VLOOKUP($B24,'Calc vs Eng'!$C$8:$G$228,5,FALSE),"") -> 0.01723433912 | N24: =IFERROR(VLOOKUP($B24,'Calc vs non diab'!$C$8:$H$228,6,FALSE),"") -> low | O24: =IFERROR(VLOOKUP($B24,'Calc vs Eng'!$C$8:$H$228,6,FALSE),"") -> 
B25: =Lookup!G6 -> NHS Greater Huddersfield CCG | I25: =IFERROR(VLOOKUP($B25,'Calc vs non diab'!$C$8:$G$228,3,FALSE),"") -> 2230 | J25: =IFERROR(VLOOKUP($B25,'Calc vs non diab'!$C$8:$G$228,4,FALSE),"") -> 2312.002149 | K25: =IFERROR(VLOOKUP($B25,'Calc vs non diab'!$C$8:$G$228,5,FALSE),"") -> -0.03546802443 | L25: =IFERROR(VLOOKUP($B25,'Calc vs Eng'!$C$8:$G$228,4,FALSE),"") -> 2767.9148 | M25: =IFERROR(VLOOKUP($B25,'Calc vs Eng'!$C$8:$G$228,5,FALSE),"") -> 0.007979002945 | N25: =IFERROR(VLOOKUP($B25,'Calc vs non diab'!$C$8:$H$228,6,FALSE),"") ->  | O25: =IFERROR(VLOOKUP($B25,'Calc vs Eng'!$C$8:$H$228,6,FALSE),"") -> 
B26: =Lookup!G7 -> NHS Harrogate and Rural District CCG | I26: =IFERROR(VLOOKUP($B26,'Calc vs non diab'!$C$8:$G$228,3,FALSE),"") -> 1990 | J26: =IFERROR(VLOOKUP($B26,'Calc vs non diab'!$C$8:$G$228,4,FALSE),"") -> 2102.654847 | K26: =IFERROR(VLOOKUP($B26,'Calc vs non diab'!$C$8:$G$228,5,FALSE),"") -> -0.05357743206 | L26: =IFERROR(VLOOKUP($B26,'Calc vs Eng'!$C$8:$G$228,4,FALSE),"") -> 2130.654889 | M26: =IFERROR(VLOOKUP($B26,'Calc vs Eng'!$C$8:$G$228,5,FALSE),"") -> 0.01846620528 | N26: =IFERROR(VLOOKUP($B26,'Calc vs non diab'!$C$8:$H$228,6,FALSE),"") -> low | O26: =IFERROR(VLOOKUP($B26,'Calc vs Eng'!$C$8:$H$228,6,FALSE),"") -> 
B27: =Lookup!G8 -> NHS Leeds CCG | I27: =IFERROR(VLOOKUP($B27,'Calc vs non diab'!$C$8:$G$228,3,FALSE),"") -> 5610 | J27: =IFERROR(VLOOKUP($B27,'Calc vs non diab'!$C$8:$G$228,4,FALSE),"") -> 6171.423397 | K27: =IFERROR(VLOOKUP($B27,'Calc vs non diab'!$C$8:$G$228,5,FALSE),"") -> -0.09097146 | L27: =IFERROR(VLOOKUP($B27,'Calc vs Eng'!$C$8:$G$228,4,FALSE),"") -> 7197.183544 | M27: =IFERROR(VLOOKUP($B27,'Calc vs Eng'!$C$8:$G$228,5,FALSE),"") -> -0.043375793 | N27: =IFERROR(VLOOKUP($B27,'Calc vs non diab'!$C$8:$H$228,6,FALSE),"") -> low | O27: =IFERROR(VLOOKUP($B27,'Calc vs Eng'!$C$8:$H$228,6,FALSE),"") -> low
B28: =Lookup!G9 -> NHS North Kirklees CCG | I28: =IFERROR(VLOOKUP($B28,'Calc vs non diab'!$C$8:$G$228,3,FALSE),"") -> 1735 | J28: =IFERROR(VLOOKUP($B28,'Calc vs non diab'!$C$8:$G$228,4,FALSE),"") -> 1799.464392 | K28: =IFERROR(VLOOKUP($B28,'Calc vs non diab'!$C$8:$G$228,5,FALSE),"") -> -0.03582421082 | L28: =IFERROR(VLOOKUP($B28,'Calc vs Eng'!$C$8:$G$228,4,FALSE),"") -> 2564.54965 | M28: =IFERROR(VLOOKUP($B28,'Calc vs Eng'!$C$8:$G$228,5,FALSE),"") -> 0.006024585928 | N28: =IFERROR(VLOOKUP($B28,'Calc vs non diab'!$C$8:$H$228,6,FALSE),"") ->  | O28: =IFERROR(VLOOKUP($B28,'Calc vs Eng'!$C$8:$H$228,6,FALSE),"") -> 
B29: =Lookup!G10 -> NHS Wakefield CCG | I29: =IFERROR(VLOOKUP($B29,'Calc vs non diab'!$C$8:$G$228,3,FALSE),"") -> 3445 | J29: =IFERROR(VLOOKUP($B29,'Calc vs non diab'!$C$8:$G$228,4,FALSE),"") -> 3476.414232 | K29: =IFERROR(VLOOKUP($B29,'Calc vs non diab'!$C$8:$G$228,5,FALSE),"") -> -0.009036389325 | L29: =IFERROR(VLOOKUP($B29,'Calc vs Eng'!$C$8:$G$228,4,FALSE),"") -> 5570.066271 | M29: =IFERROR(VLOOKUP($B29,'Calc vs Eng'!$C$8:$G$228,5,FALSE),"") -> 0.03320135166 | N29: =IFERROR(VLOOKUP($B29,'Calc vs non diab'!$C$8:$H$228,6,FALSE),"") ->  | O29: =IFERROR(VLOOKUP($B29,'Calc vs Eng'!$C$8:$H$228,6,FALSE),"") -> high
B30: =Lookup!G11 ->  | I30: =IFERROR(VLOOKUP($B30,'Calc vs non diab'!$C$8:$G$228,3,FALSE),"") ->  | J30: =IFERROR(VLOOKUP($B30,'Calc vs non diab'!$C$8:$G$228,4,FALSE),"") ->  | K30: =IFERROR(VLOOKUP($B30,'Calc vs non diab'!$C$8:$G$228,5,FALSE),"") ->  | L30: =IFERROR(VLOOKUP($B30,'Calc vs Eng'!$C$8:$G$228,4,FALSE),"") ->  | M30: =IFERROR(VLOOKUP($B30,'Calc vs Eng'!$C$8:$G$228,5,FALSE),"") ->  | N30: =IFERROR(VLOOKUP($B30,'Calc vs non diab'!$C$8:$H$228,6,FALSE),"") ->  | O30: =IFERROR(VLOOKUP($B30,'Calc vs Eng'!$C$8:$H$228,6,FALSE),"") -> 
B31: =Lookup!G12 ->  | I31: =IFERROR(VLOOKUP($B31,'Calc vs non diab'!$C$8:$G$228,3,FALSE),"") ->  | J31: =IFERROR(VLOOKUP($B31,'Calc vs non diab'!$C$8:$G$228,4,FALSE),"") ->  | K31: =IFERROR(VLOOKUP($B31,'Calc vs non diab'!$C$8:$G$228,5,FALSE),"") ->  | L31: =IFERROR(VLOOKUP($B31,'Calc vs Eng'!$C$8:$G$228,4,FALSE),"") ->  | M31: =IFERROR(VLOOKUP($B31,'Calc vs Eng'!$C$8:$G$228,5,FALSE),"") ->  | N31: =IFERROR(VLOOKUP($B31,'Calc vs non diab'!$C$8:$H$228,6,FALSE),"") ->  | O31: =IFERROR(VLOOKUP($B31,'Calc vs Eng'!$C$8:$H$228,6,FALSE),"") -> 
B32: =Lookup!G13 ->  | I32: =IFERROR(VLOOKUP($B32,'Calc vs non diab'!$C$8:$G$228,3,FALSE),"") ->  | J32: =IFERROR(VLOOKUP($B32,'Calc vs non diab'!$C$8:$G$228,4,FALSE),"") ->  | K32: =IFERROR(VLOOKUP($B32,'Calc vs non diab'!$C$8:$G$228,5,FALSE),"") ->  | L32: =IFERROR(VLOOKUP($B32,'Calc vs Eng'!$C$8:$G$228,4,FALSE),"") ->  | M32: =IFERROR(VLOOKUP($B32,'Calc vs Eng'!$C$8:$G$228,5,FALSE),"") ->  | N32: =IFERROR(VLOOKUP($B32,'Calc vs non diab'!$C$8:$H$228,6,FALSE),"") ->  | O32: =IFERROR(VLOOKUP($B32,'Calc vs Eng'!$C$8:$H$228,6,FALSE),"") -> 
B33: =Lookup!G14 ->  | I33: =IFERROR(VLOOKUP($B33,'Calc vs non diab'!$C$8:$G$228,3,FALSE),"") ->  | J33: =IFERROR(VLOOKUP($B33,'Calc vs non diab'!$C$8:$G$228,4,FALSE),"") ->  | K33: =IFERROR(VLOOKUP($B33,'Calc vs non diab'!$C$8:$G$228,5,FALSE),"") ->  | L33: =IFERROR(VLOOKUP($B33,'Calc vs Eng'!$C$8:$G$228,4,FALSE),"") ->  | M33: =IFERROR(VLOOKUP($B33,'Calc vs Eng'!$C$8:$G$228,5,FALSE),"") ->  | N33: =IFERROR(VLOOKUP($B33,'Calc vs non diab'!$C$8:$H$228,6,FALSE),"") ->  | O33: =IFERROR(VLOOKUP($B33,'Calc vs Eng'!$C$8:$H$228,6,FALSE),"") -> 
B34: =Lookup!G15 ->  | I34: =IFERROR(VLOOKUP($B34,'Calc vs non diab'!$C$8:$G$228,3,FALSE),"") ->  | J34: =IFERROR(VLOOKUP($B34,'Calc vs non diab'!$C$8:$G$228,4,FALSE),"") ->  | K34: =IFERROR(VLOOKUP($B34,'Calc vs non diab'!$C$8:$G$228,5,FALSE),"") ->  | L34: =IFERROR(VLOOKUP($B34,'Calc vs Eng'!$C$8:$G$228,4,FALSE),"") ->  | M34: =IFERROR(VLOOKUP($B34,'Calc vs Eng'!$C$8:$G$228,5,FALSE),"") ->  | N34: =IFERROR(VLOOKUP($B34,'Calc vs non diab'!$C$8:$H$228,6,FALSE),"") ->  | O34: =IFERROR(VLOOKUP($B34,'Calc vs Eng'!$C$8:$H$228,6,FALSE),"") -> 
B35: =Lookup!G16 ->  | I35: =IFERROR(VLOOKUP($B35,'Calc vs non diab'!$C$8:$G$228,3,FALSE),"") ->  | J35: =IFERROR(VLOOKUP($B35,'Calc vs non diab'!$C$8:$G$228,4,FALSE),"") ->  | K35: =IFERROR(VLOOKUP($B35,'Calc vs non diab'!$C$8:$G$228,5,FALSE),"") ->  | L35: =IFERROR(VLOOKUP($B35,'Calc vs Eng'!$C$8:$G$228,4,FALSE),"") ->  | M35: =IFERROR(VLOOKUP($B35,'Calc vs Eng'!$C$8:$G$228,5,FALSE),"") ->  | N35: =IFERROR(VLOOKUP($B35,'Calc vs non diab'!$C$8:$H$228,6,FALSE),"") ->  | O35: =IFERROR(VLOOKUP($B35,'Calc vs Eng'!$C$8:$H$228,6,FALSE),"") -> 
B36: =Lookup!G17 ->  | I36: =IFERROR(VLOOKUP($B36,'Calc vs non diab'!$C$8:$G$228,3,FALSE),"") ->  | J36: =IFERROR(VLOOKUP($B36,'Calc vs non diab'!$C$8:$G$228,4,FALSE),"") ->  | K36: =IFERROR(VLOOKUP($B36,'Calc vs non diab'!$C$8:$G$228,5,FALSE),"") ->  | L36: =IFERROR(VLOOKUP($B36,'Calc vs Eng'!$C$8:$G$228,4,FALSE),"") ->  | M36: =IFERROR(VLOOKUP($B36,'Calc vs Eng'!$C$8:$G$228,5,FALSE),"") ->  | N36: =IFERROR(VLOOKUP($B36,'Calc vs non diab'!$C$8:$H$228,6,FALSE),"") ->  | O36: =IFERROR(VLOOKUP($B36,'Calc vs Eng'!$C$8:$H$228,6,FALSE),"") -> 
B37: =Lookup!G18 ->  | I37: =IFERROR(VLOOKUP($B37,'Calc vs non diab'!$C$8:$G$228,3,FALSE),"") ->  | J37: =IFERROR(VLOOKUP($B37,'Calc vs non diab'!$C$8:$G$228,4,FALSE),"") ->  | K37: =IFERROR(VLOOKUP($B37,'Calc vs non diab'!$C$8:$G$228,5,FALSE),"") ->  | L37: =IFERROR(VLOOKUP($B37,'Calc vs Eng'!$C$8:$G$228,4,FALSE),"") ->  | M37: =IFERROR(VLOOKUP($B37,'Calc vs Eng'!$C$8:$G$228,5,FALSE),"") ->  | N37: =IFERROR(VLOOKUP($B37,'Calc vs non diab'!$C$8:$H$228,6,FALSE),"") ->  | O37: =IFERROR(VLOOKUP($B37,'Calc vs Eng'!$C$8:$H$228,6,FALSE),"") -> 
B38: =Lookup!G19 ->  | I38: =IFERROR(VLOOKUP($B38,'Calc vs non diab'!$C$8:$G$228,3,FALSE),"") ->  | J38: =IFERROR(VLOOKUP($B38,'Calc vs non diab'!$C$8:$G$228,4,FALSE),"") ->  | K38: =IFERROR(VLOOKUP($B38,'Calc vs non diab'!$C$8:$G$228,5,FALSE),"") ->  | L38: =IFERROR(VLOOKUP($B38,'Calc vs Eng'!$C$8:$G$228,4,FALSE),"") ->  | M38: =IFERROR(VLOOKUP($B38,'Calc vs Eng'!$C$8:$G$228,5,FALSE),"") ->  | N38: =IFERROR(VLOOKUP($B38,'Calc vs non diab'!$C$8:$H$228,6,FALSE),"") ->  | O38: =IFERROR(VLOOKUP($B38,'Calc vs Eng'!$C$8:$H$228,6,FALSE),"") -> 
B39: =Lookup!G20 ->  | I39: =IFERROR(VLOOKUP($B39,'Calc vs non diab'!$C$8:$G$228,3,FALSE),"") ->  | J39: =IFERROR(VLOOKUP($B39,'Calc vs non diab'!$C$8:$G$228,4,FALSE),"") ->  | K39: =IFERROR(VLOOKUP($B39,'Calc vs non diab'!$C$8:$G$228,5,FALSE),"") ->  | L39: =IFERROR(VLOOKUP($B39,'Calc vs Eng'!$C$8:$G$228,4,FALSE),"") ->  | M39: =IFERROR(VLOOKUP($B39,'Calc vs Eng'!$C$8:$G$228,5,FALSE),"") ->  | N39: =IFERROR(VLOOKUP($B39,'Calc vs non diab'!$C$8:$H$228,6,FALSE),"") ->  | O39: =IFERROR(VLOOKUP($B39,'Calc vs Eng'!$C$8:$H$228,6,FALSE),"") -> 
B40: =Lookup!G21 ->  | I40: =IFERROR(VLOOKUP($B40,'Calc vs non diab'!$C$8:$G$228,3,FALSE),"") ->  | J40: =IFERROR(VLOOKUP($B40,'Calc vs non diab'!$C$8:$G$228,4,FALSE),"") ->  | K40: =IFERROR(VLOOKUP($B40,'Calc vs non diab'!$C$8:$G$228,5,FALSE),"") ->  | L40: =IFERROR(VLOOKUP($B40,'Calc vs Eng'!$C$8:$G$228,4,FALSE),"") ->  | M40: =IFERROR(VLOOKUP($B40,'Calc vs Eng'!$C$8:$G$228,5,FALSE),"") ->  | N40: =IFERROR(VLOOKUP($B40,'Calc vs non diab'!$C$8:$H$228,6,FALSE),"") ->  | O40: =IFERROR(VLOOKUP($B40,'Calc vs Eng'!$C$8:$H$228,6,FALSE),"") -> 
B41: =Lookup!G22 ->  | I41: =IFERROR(VLOOKUP($B41,'Calc vs non diab'!$C$8:$G$228,3,FALSE),"") ->  | J41: =IFERROR(VLOOKUP($B41,'Calc vs non diab'!$C$8:$G$228,4,FALSE),"") ->  | K41: =IFERROR(VLOOKUP($B41,'Calc vs non diab'!$C$8:$G$228,5,FALSE),"") ->  | L41: =IFERROR(VLOOKUP($B41,'Calc vs Eng'!$C$8:$G$228,4,FALSE),"") ->  | M41: =IFERROR(VLOOKUP($B41,'Calc vs Eng'!$C$8:$G$228,5,FALSE),"") ->  | N41: =IFERROR(VLOOKUP($B41,'Calc vs non diab'!$C$8:$H$228,6,FALSE),"") ->  | O41: =IFERROR(VLOOKUP($B41,'Calc vs Eng'!$C$8:$H$228,6,FALSE),"") -> 

Sheet Trends
H1: National Cardiovascular Intelligence Network
B3: Variation in Inpatient Activity (VIA): Diabetes - Trends
B7: CCG | I7: Indicator
B8: ="Trends of diabetic inpatient activity compared to patients without diabetes for "&'Calc vs non diab'!H4&", 2014/15 to 2017/18" -> Trends of diabetic inpatient activity compared to patients without diabetes for NHS Airedale, Wharfedale and Craven CCG, 2014/15 to 2017/18
J9: ="Selected indicator: "&'Calc vs non diab'!H2 -> Selected indicator: Day case
B11: Indicator | E11: Year | F11: Observed count | G11: Expected count vs those without diabetes | H11: % difference vs those without diabetes
B12: Day case | E12: 2014/15 | F12: =IFERROR(INDEX(INDIRECT("Ind1_Obs"),Menu!$K$15), "") -> 2580 | G12: =IFERROR(INDEX(INDIRECT("Ind1_Exp"),Menu!$K$15), "") -> 2596.469208 | H12: =IFERROR((INDEX(INDIRECT("Ind1_OE"),Menu!$K$15))-1, "") -> -0.006342924365 | I12: =INDEX(INDIRECT("Ind1_Sig_non_diab"),Menu!$K$15) -> 0
E13: 2015/16 | F13: =IFERROR(INDEX(INDIRECT("Ind6_Obs"),Menu!$K$15), "") -> 2585 | G13: =IFERROR(INDEX(INDIRECT("Ind6_Exp"),Menu!$K$15), "") -> 2623.11049 | H13: =IFERROR((INDEX(INDIRECT("Ind6_OE"),Menu!$K$15))-1, "") -> -0.01452874005 | I13: =INDEX(INDIRECT("Ind6_Sig_non_diab"),Menu!$K$15) -> 0
E14: 2016/17 | F14: =IFERROR(INDEX(INDIRECT("Ind11_Obs"),Menu!$K$15), "") -> 2685 | G14: =IFERROR(INDEX(INDIRECT("Ind11_Exp"),Menu!$K$15), "") -> 2744.959705 | H14: =IFERROR((INDEX(INDIRECT("Ind11_OE"),Menu!$K$15))-1, "") -> -0.02184356459 | I14: =INDEX(INDIRECT("Ind11_Sig_non_diab"),Menu!$K$15) -> 0
E15: 2017/18 | F15: =IFERROR(INDEX(INDIRECT("Ind16_Obs"),Menu!$K$15), "") -> 2675 | G15: =IFERROR(INDEX(INDIRECT("Ind16_Exp"),Menu!$K$15), "") -> 2724.695184 | H15: =IFERROR((INDEX(INDIRECT("Ind16_OE"),Menu!$K$15))-1, "") -> -0.01823880508 | I15: =INDEX(INDIRECT("Ind16_Sig_non_diab"),Menu!$K$15) -> 0
B16: Bed days - all | E16: 2014/15 | F16: =IFERROR(INDEX(INDIRECT("Ind2_Obs"),Menu!$K$15), "") -> 6405 | G16: =IFERROR(INDEX(INDIRECT("Ind2_Exp"),Menu!$K$15), "") -> 5894.021416 | H16: =IFERROR((INDEX(INDIRECT("Ind2_OE"),Menu!$K$15))-1, "") -> 0.08669438881 | I16: =INDEX(INDIRECT("Ind2_Sig_non_diab"),Menu!$K$15) -> high
E17: 2015/16 | F17: =IFERROR(INDEX(INDIRECT("Ind7_Obs"),Menu!$K$15), "") -> 6840 | G17: =IFERROR(INDEX(INDIRECT("Ind7_Exp"),Menu!$K$15), "") -> 5986.020501 | H17: =IFERROR((INDEX(INDIRECT("Ind7_OE"),Menu!$K$15))-1, "") -> 0.1426623078 | I17: =INDEX(INDIRECT("Ind7_Sig_non_diab"),Menu!$K$15) -> high
E18: 2016/17 | F18: =IFERROR(INDEX(INDIRECT("Ind12_Obs"),Menu!$K$15), "") -> 8220 | G18: =IFERROR(INDEX(INDIRECT("Ind12_Exp"),Menu!$K$15), "") -> 7180.33252 | H18: =IFERROR((INDEX(INDIRECT("Ind12_OE"),Menu!$K$15))-1, "") -> 0.144793779 | I18: =INDEX(INDIRECT("Ind12_Sig_non_diab"),Menu!$K$15) -> high
E19: 2017/18 | F19: =IFERROR(INDEX(INDIRECT("Ind17_Obs"),Menu!$K$15), "") -> 8365 | G19: =IFERROR(INDEX(INDIRECT("Ind17_Exp"),Menu!$K$15), "") -> 7537.93314 | H19: =IFERROR((INDEX(INDIRECT("Ind17_OE"),Menu!$K$15))-1, "") -> 0.1097206416 | I19: =INDEX(INDIRECT("Ind17_Sig_non_diab"),Menu!$K$15) -> high | J19: ="All indicators for "&'Calc vs non diab'!H4 -> All indicators for NHS Airedale, Wharfedale and Craven CCG
B20: Bed days - elective | E20: 2014/15 | F20: =IFERROR(INDEX(INDIRECT("Ind3_Obs"),Menu!$K$15), "") -> 1740 | G20: =IFERROR(INDEX(INDIRECT("Ind3_Exp"),Menu!$K$15), "") -> 1406.197101 | H20: =IFERROR((INDEX(INDIRECT("Ind3_OE"),Menu!$K$15))-1, "") -> 0.2373798796 | I20: =INDEX(INDIRECT("Ind3_Sig_non_diab"),Menu!$K$15) -> high
E21: 2015/16 | F21: =IFERROR(INDEX(INDIRECT("Ind8_Obs"),Menu!$K$15), "") -> 1750 | G21: =IFERROR(INDEX(INDIRECT("Ind8_Exp"),Menu!$K$15), "") -> 1446.090039 | H21: =IFERROR((INDEX(INDIRECT("Ind8_OE"),Menu!$K$15))-1, "") -> 0.2101597775 | I21: =INDEX(INDIRECT("Ind8_Sig_non_diab"),Menu!$K$15) -> high
E22: 2016/17 | F22: =IFERROR(INDEX(INDIRECT("Ind13_Obs"),Menu!$K$15), "") -> 1875 | G22: =IFERROR(INDEX(INDIRECT("Ind13_Exp"),Menu!$K$15), "") -> 1549.24366 | H22: =IFERROR((INDEX(INDIRECT("Ind13_OE"),Menu!$K$15))-1, "") -> 0.2102679833 | I22: =INDEX(INDIRECT("Ind13_Sig_non_diab"),Menu!$K$15) -> high
E23: 2017/18 | F23: =IFERROR(INDEX(INDIRECT("Ind18_Obs"),Menu!$K$15), "") -> 1595 | G23: =IFERROR(INDEX(INDIRECT("Ind18_Exp"),Menu!$K$15), "") -> 1526.025493 | H23: =IFERROR((INDEX(INDIRECT("Ind18_OE"),Menu!$K$15))-1, "") -> 0.04519879105 | I23: =INDEX(INDIRECT("Ind18_Sig_non_diab"),Menu!$K$15) -> 0
B24: Bed days - emergency | E24: 2014/15 | F24: =IFERROR(INDEX(INDIRECT("Ind4_Obs"),Menu!$K$15), "") -> 4420 | G24: =IFERROR(INDEX(INDIRECT("Ind4_Exp"),Menu!$K$15), "") -> 4236.858034 | H24: =IFERROR((INDEX(INDIRECT("Ind4_OE"),Menu!$K$15))-1, "") -> 0.04322589151 | I24: =INDEX(INDIRECT("Ind4_Sig_non_diab"),Menu!$K$15) -> high
E25: 2015/16 | F25: =IFERROR(INDEX(INDIRECT("Ind9_Obs"),Menu!$K$15), "") -> 4830 | G25: =IFERROR(INDEX(INDIRECT("Ind9_Exp"),Menu!$K$15), "") -> 4464.914612 | H25: =IFERROR((INDEX(INDIRECT("Ind9_OE"),Menu!$K$15))-1, "") -> 0.08176760811 | I25: =INDEX(INDIRECT("Ind9_Sig_non_diab"),Menu!$K$15) -> high
E26: 2016/17 | F26: =IFERROR(INDEX(INDIRECT("Ind14_Obs"),Menu!$K$15), "") -> 5950 | G26: =IFERROR(INDEX(INDIRECT("Ind14_Exp"),Menu!$K$15), "") -> 5313.339853 | H26: =IFERROR((INDEX(INDIRECT("Ind14_OE"),Menu!$K$15))-1, "") -> 0.1198229671 | I26: =INDEX(INDIRECT("Ind14_Sig_non_diab"),Menu!$K$15) -> high
E27: 2017/18 | F27: =IFERROR(INDEX(INDIRECT("Ind19_Obs"),Menu!$K$15), "") -> 6385 | G27: =IFERROR(INDEX(INDIRECT("Ind19_Exp"),Menu!$K$15), "") -> 5923.120844 | H27: =IFERROR((INDEX(INDIRECT("Ind19_OE"),Menu!$K$15))-1, "") -> 0.07797901947 | I27: =INDEX(INDIRECT("Ind19_Sig_non_diab"),Menu!$K$15) -> high
B28: Emergency readmissions | E28: 2014/15 | F28: =IFERROR(INDEX(INDIRECT("Ind5_Obs"),Menu!$K$15), "") -> 400 | G28: =IFERROR(INDEX(INDIRECT("Ind5_Exp"),Menu!$K$15), "") -> 270.6319925 | H28: =IFERROR((INDEX(INDIRECT("Ind5_OE"),Menu!$K$15))-1, "") -> 0.4780218566 | I28: =INDEX(INDIRECT("Ind5_Sig_non_diab"),Menu!$K$15) -> high
E29: 2015/16 | F29: =IFERROR(INDEX(INDIRECT("Ind10_Obs"),Menu!$K$15), "") -> 380 | G29: =IFERROR(INDEX(INDIRECT("Ind10_Exp"),Menu!$K$15), "") -> 250.9587586 | H29: =IFERROR((INDEX(INDIRECT("Ind10_OE"),Menu!$K$15))-1, "") -> 0.5141930176 | I29: =INDEX(INDIRECT("Ind10_Sig_non_diab"),Menu!$K$15) -> high
E30: 2016/17 | F30: =IFERROR(INDEX(INDIRECT("Ind15_Obs"),Menu!$K$15), "") -> 465 | G30: =IFERROR(INDEX(INDIRECT("Ind15_Exp"),Menu!$K$15), "") -> 262.7577246 | H30: =IFERROR((INDEX(INDIRECT("Ind15_OE"),Menu!$K$15))-1, "") -> 0.7696910748 | I30: =INDEX(INDIRECT("Ind15_Sig_non_diab"),Menu!$K$15) -> high
E31: 2017/18 | F31: =IFERROR(INDEX(INDIRECT("Ind20_Obs"),Menu!$K$15), "") -> 445 | G31: =IFERROR(INDEX(INDIRECT("Ind20_Exp"),Menu!$K$15), "") -> 281.3421088 | H31: =IFERROR((INDEX(INDIRECT("Ind20_OE"),Menu!$K$15))-1, "") -> 0.5817042176 | I31: =INDEX(INDIRECT("Ind20_Sig_non_diab"),Menu!$K$15) -> high
B32: Note: Green % values indicate a significant difference
B36: ="Trends of diabetic inpatient activity compared to the England average for "&'Calc vs non diab'!H4&", 2014/15 to 2017/18" -> Trends of diabetic inpatient activity compared to the England average for NHS Airedale, Wharfedale and Craven CCG, 2014/15 to 2017/18
J37: ="Selected indicator: "&'Calc vs non diab'!H2 -> Selected indicator: Day case
B38: Indicator | E38: Year | F38: Observed count | G38: Expected count vs England average | H38: % difference vs England average
B39: Day case | E39: 2014/15 | F39: =IFERROR(INDEX(INDIRECT("Ind1_Obs"),Menu!$K$15), "") -> 2580 | G39: =IFERROR(INDEX(INDIRECT("Ind1_Exp_Eng"),Menu!$K$15), "") -> 2417.481338 | H39: =IFERROR((INDEX(INDIRECT("Ind1_OE_Eng"),Menu!$K$15))-1, "") -> 0.06722643896 | I39: =INDEX(INDIRECT("Ind1_Sig_Eng"),Menu!$K$15) -> high
E40: 2015/16 | F40: =IFERROR(INDEX(INDIRECT("Ind6_Obs"),Menu!$K$15), "") -> 2585 | G40: =IFERROR(INDEX(INDIRECT("Ind6_Exp_Eng"),Menu!$K$15), "") -> 2472.646461 | H40: =IFERROR((INDEX(INDIRECT("Ind6_OE_Eng"),Menu!$K$15))-1, "") -> 0.04543857809 | I40: =INDEX(INDIRECT("Ind6_Sig_Eng"),Menu!$K$15) -> high
E41: 2016/17 | F41: =IFERROR(INDEX(INDIRECT("Ind11_Obs"),Menu!$K$15), "") -> 2685 | G41: =IFERROR(INDEX(INDIRECT("Ind11_Exp_Eng"),Menu!$K$15), "") -> 2620.436127 | H41: =IFERROR((INDEX(INDIRECT("Ind11_OE_Eng"),Menu!$K$15))-1, "") -> 0.02463859839 | I41: =INDEX(INDIRECT("Ind11_Sig_Eng"),Menu!$K$15) -> 0
E42: 2017/18 | F42: =IFERROR(INDEX(INDIRECT("Ind16_Obs"),Menu!$K$15), "") -> 2675 | G42: =IFERROR(INDEX(INDIRECT("Ind16_Exp_Eng"),Menu!$K$15), "") -> 2572.592811 | H42: =IFERROR((INDEX(INDIRECT("Ind16_OE_Eng"),Menu!$K$15))-1, "") -> 0.03980699491 | I42: =INDEX(INDIRECT("Ind16_Sig_Eng"),Menu!$K$15) -> high
B43: Bed days - all | E43: 2014/15 | F43: =IFERROR(INDEX(INDIRECT("Ind2_Obs"),Menu!$K$15), "") -> 6405 | G43: =IFERROR(INDEX(INDIRECT("Ind2_Exp_Eng"),Menu!$K$15), "") -> 6637.504103 | H43: =IFERROR((INDEX(INDIRECT("Ind2_OE_Eng"),Menu!$K$15))-1, "") -> -0.03502884507 | I43: =INDEX(INDIRECT("Ind2_Sig_Eng"),Menu!$K$15) -> low
E44: 2015/16 | F44: =IFERROR(INDEX(INDIRECT("Ind7_Obs"),Menu!$K$15), "") -> 6840 | G44: =IFERROR(INDEX(INDIRECT("Ind7_Exp_Eng"),Menu!$K$15), "") -> 7062.49025 | H44: =IFERROR((INDEX(INDIRECT("Ind7_OE_Eng"),Menu!$K$15))-1, "") -> -0.03150308772 | I44: =INDEX(INDIRECT("Ind7_Sig_Eng"),Menu!$K$15) -> low
E45: 2016/17 | F45: =IFERROR(INDEX(INDIRECT("Ind12_Obs"),Menu!$K$15), "") -> 8220 | G45: =IFERROR(INDEX(INDIRECT("Ind12_Exp_Eng"),Menu!$K$15), "") -> 7230.399771 | H45: =IFERROR((INDEX(INDIRECT("Ind12_OE_Eng"),Menu!$K$15))-1, "") -> 0.1368665994 | I45: =INDEX(INDIRECT("Ind12_Sig_Eng"),Menu!$K$15) -> high
E46: 2017/18 | F46: =IFERROR(INDEX(INDIRECT("Ind17_Obs"),Menu!$K$15), "") -> 8365 | G46: =IFERROR(INDEX(INDIRECT("Ind17_Exp_Eng"),Menu!$K$15), "") -> 6772.252681 | H46: =IFERROR((INDEX(INDIRECT("Ind17_OE_Eng"),Menu!$K$15))-1, "") -> 0.2351872256 | I46: =INDEX(INDIRECT("Ind17_Sig_Eng"),Menu!$K$15) -> high
B47: Bed days - elective | E47: 2014/15 | F47: =IFERROR(INDEX(INDIRECT("Ind3_Obs"),Menu!$K$15), "") -> 1740 | G47: =IFERROR(INDEX(INDIRECT("Ind3_Exp_Eng"),Menu!$K$15), "") -> 1702.503826 | H47: =IFERROR((INDEX(INDIRECT("Ind3_OE_Eng"),Menu!$K$15))-1, "") -> 0.02202413478 | I47: =INDEX(INDIRECT("Ind3_Sig_Eng"),Menu!$K$15) -> 0
E48: 2015/16 | F48: =IFERROR(INDEX(INDIRECT("Ind8_Obs"),Menu!$K$15), "") -> 1750 | G48: =IFERROR(INDEX(INDIRECT("Ind8_Exp_Eng"),Menu!$K$15), "") -> 1859.735605 | H48: =IFERROR((INDEX(INDIRECT("Ind8_OE_Eng"),Menu!$K$15))-1, "") -> -0.05900602486 | I48: =INDEX(INDIRECT("Ind8_Sig_Eng"),Menu!$K$15) -> low
E49: 2016/17 | F49: =IFERROR(INDEX(INDIRECT("Ind13_Obs"),Menu!$K$15), "") -> 1875 | G49: =IFERROR(INDEX(INDIRECT("Ind13_Exp_Eng"),Menu!$K$15), "") -> 1858.283885 | H49: =IFERROR((INDEX(INDIRECT("Ind13_OE_Eng"),Menu!$K$15))-1, "") -> 0.008995458081 | I49: =INDEX(INDIRECT("Ind13_Sig_Eng"),Menu!$K$15) -> 0 | J49: ="All indicators for "&'Calc vs non diab'!H4 -> All indicators for NHS Airedale, Wharfedale and Craven CCG
E50: 2017/18 | F50: =IFERROR(INDEX(INDIRECT("Ind18_Obs"),Menu!$K$15), "") -> 1595 | G50: =IFERROR(INDEX(INDIRECT("Ind18_Exp_Eng"),Menu!$K$15), "") -> 1621.501283 | H50: =IFERROR((INDEX(INDIRECT("Ind18_OE_Eng"),Menu!$K$15))-1, "") -> -0.01634367096 | I50: =INDEX(INDIRECT("Ind18_Sig_Eng"),Menu!$K$15) -> 0
B51: Bed days - emergency | E51: 2014/15 | F51: =IFERROR(INDEX(INDIRECT("Ind4_Obs"),Menu!$K$15), "") -> 4420 | G51: =IFERROR(INDEX(INDIRECT("Ind4_Exp_Eng"),Menu!$K$15), "") -> 4296.392054 | H51: =IFERROR((INDEX(INDIRECT("Ind4_OE_Eng"),Menu!$K$15))-1, "") -> 0.02877017376 | I51: =INDEX(INDIRECT("Ind4_Sig_Eng"),Menu!$K$15) -> 0
E52: 2015/16 | F52: =IFERROR(INDEX(INDIRECT("Ind9_Obs"),Menu!$K$15), "") -> 4830 | G52: =IFERROR(INDEX(INDIRECT("Ind9_Exp_Eng"),Menu!$K$15), "") -> 4483.120836 | H52: =IFERROR((INDEX(INDIRECT("Ind9_OE_Eng"),Menu!$K$15))-1, "") -> 0.07737448453 | I52: =INDEX(INDIRECT("Ind9_Sig_Eng"),Menu!$K$15) -> high
E53: 2016/17 | F53: =IFERROR(INDEX(INDIRECT("Ind14_Obs"),Menu!$K$15), "") -> 5950 | G53: =IFERROR(INDEX(INDIRECT("Ind14_Exp_Eng"),Menu!$K$15), "") -> 4587.923051 | H53: =IFERROR((INDEX(INDIRECT("Ind14_OE_Eng"),Menu!$K$15))-1, "") -> 0.2968831285 | I53: =INDEX(INDIRECT("Ind14_Sig_Eng"),Menu!$K$15) -> high
E54: 2017/18 | F54: =IFERROR(INDEX(INDIRECT("Ind19_Obs"),Menu!$K$15), "") -> 6385 | G54: =IFERROR(INDEX(INDIRECT("Ind19_Exp_Eng"),Menu!$K$15), "") -> 4514.087427 | H54: =IFERROR((INDEX(INDIRECT("Ind19_OE_Eng"),Menu!$K$15))-1, "") -> 0.4144608635 | I54: =INDEX(INDIRECT("Ind19_Sig_Eng"),Menu!$K$15) -> high
B55: Emergency readmissions | E55: 2014/15 | F55: =IFERROR(INDEX(INDIRECT("Ind5_Obs"),Menu!$K$15), "") -> 400 | G55: =IFERROR(INDEX(INDIRECT("Ind5_Exp_Eng"),Menu!$K$15), "") -> 526.4084103 | H55: =IFERROR((INDEX(INDIRECT("Ind5_OE_Eng"),Menu!$K$15))-1, "") -> -0.2401337209 | I55: =INDEX(INDIRECT("Ind5_Sig_Eng"),Menu!$K$15) -> low
E56: 2015/16 | F56: =IFERROR(INDEX(INDIRECT("Ind10_Obs"),Menu!$K$15), "") -> 380 | G56: =IFERROR(INDEX(INDIRECT("Ind10_Exp_Eng"),Menu!$K$15), "") -> 558.4268034 | H56: =IFERROR((INDEX(INDIRECT("Ind10_OE_Eng"),Menu!$K$15))-1, "") -> -0.3195169041 | I56: =INDEX(INDIRECT("Ind10_Sig_Eng"),Menu!$K$15) -> low
E57: 2016/17 | F57: =IFERROR(INDEX(INDIRECT("Ind15_Obs"),Menu!$K$15), "") -> 465 | G57: =IFERROR(INDEX(INDIRECT("Ind15_Exp_Eng"),Menu!$K$15), "") -> 599.2919883 | H57: =IFERROR((INDEX(INDIRECT("Ind15_OE_Eng"),Menu!$K$15))-1, "") -> -0.2240844045 | I57: =INDEX(INDIRECT("Ind15_Sig_Eng"),Menu!$K$15) -> low
E58: 2017/18 | F58: =IFERROR(INDEX(INDIRECT("Ind20_Obs"),Menu!$K$15), "") -> 445 | G58: =IFERROR(INDEX(INDIRECT("Ind20_Exp_Eng"),Menu!$K$15), "") -> 561.2387573 | H58: =IFERROR((INDEX(INDIRECT("Ind20_OE_Eng"),Menu!$K$15))-1, "") -> -0.2071110659 | I58: =INDEX(INDIRECT("Ind20_Sig_Eng"),Menu!$K$15) -> low
B59: Note: Green % values indicate a significant difference

Sheet Calc trends (hidden)
A1: Chosen CCG | B1: ='Calc vs non diab'!J4 -> 02N | C1: STP | D1: ='Calc vs non diab'!J5 -> E54000005
A3: Trends vs non-diabetes
A4: Indicator | B4: 2014/15 | C4: 2015/16 | D4: 2016/17 | E4: 2017/18
A5: Day case | B5: =IF(INDEX(INDIRECT("Ind1_OE"),Menu!$K$15)="",NA(),(INDEX(INDIRECT("Ind1_OE"),Menu!$K$15))-1) -> -0.006342924365 | C5: =IF(INDEX(INDIRECT("Ind6_OE"),Menu!$K$15)="",NA(),(INDEX(INDIRECT("Ind6_OE"),Menu!$K$15))-1) -> -0.01452874005 | D5: =IF(INDEX(INDIRECT("Ind11_OE"),Menu!$K$15)="",NA(),(INDEX(INDIRECT("Ind11_OE"),Menu!$K$15))-1) -> -0.02184356459 | E5: =IF(INDEX(INDIRECT("Ind16_OE"),Menu!$K$15)="",NA(),(INDEX(INDIRECT("Ind16_OE"),Menu!$K$15))-1) -> -0.01823880508
A6: Bed days - all | B6: =IF(INDEX(INDIRECT("Ind2_OE"),Menu!$K$15)="",NA(),(INDEX(INDIRECT("Ind2_OE"),Menu!$K$15))-1) -> 0.08669438881 | C6: =IF(INDEX(INDIRECT("Ind7_OE"),Menu!$K$15)="",NA(),(INDEX(INDIRECT("Ind7_OE"),Menu!$K$15))-1) -> 0.1426623078 | D6: =IF(INDEX(INDIRECT("Ind12_OE"),Menu!$K$15)="",NA(),(INDEX(INDIRECT("Ind12_OE"),Menu!$K$15))-1) -> 0.144793779 | E6: =IF(INDEX(INDIRECT("Ind17_OE"),Menu!$K$15)="",NA(),(INDEX(INDIRECT("Ind17_OE"),Menu!$K$15))-1) -> 0.1097206416
A7: Bed days - elective | B7: =IF(INDEX(INDIRECT("Ind3_OE"),Menu!$K$15)="",NA(),(INDEX(INDIRECT("Ind3_OE"),Menu!$K$15))-1) -> 0.2373798796 | C7: =IF(INDEX(INDIRECT("Ind8_OE"),Menu!$K$15)="",NA(),(INDEX(INDIRECT("Ind8_OE"),Menu!$K$15))-1) -> 0.2101597775 | D7: =IF(INDEX(INDIRECT("Ind13_OE"),Menu!$K$15)="",NA(),(INDEX(INDIRECT("Ind13_OE"),Menu!$K$15))-1) -> 0.2102679833 | E7: =IF(INDEX(INDIRECT("Ind18_OE"),Menu!$K$15)="",NA(),(INDEX(INDIRECT("Ind18_OE"),Menu!$K$15))-1) -> 0.04519879105
A8: Bed days - emergency | B8: =IF(INDEX(INDIRECT("Ind4_OE"),Menu!$K$15)="",NA(),(INDEX(INDIRECT("Ind4_OE"),Menu!$K$15))-1) -> 0.04322589151 | C8: =IF(INDEX(INDIRECT("Ind9_OE"),Menu!$K$15)="",NA(),(INDEX(INDIRECT("Ind9_OE"),Menu!$K$15))-1) -> 0.08176760811 | D8: =IF(INDEX(INDIRECT("Ind14_OE"),Menu!$K$15)="",NA(),(INDEX(INDIRECT("Ind14_OE"),Menu!$K$15))-1) -> 0.1198229671 | E8: =IF(INDEX(INDIRECT("Ind19_OE"),Menu!$K$15)="",NA(),(INDEX(INDIRECT("Ind19_OE"),Menu!$K$15))-1) -> 0.07797901947
A9: Emergency readmissions | B9: =IF(INDEX(INDIRECT("Ind5_OE"),Menu!$K$15)="",NA(),(INDEX(INDIRECT("Ind5_OE"),Menu!$K$15))-1) -> 0.4780218566 | C9: =IF(INDEX(INDIRECT("Ind10_OE"),Menu!$K$15)="",NA(),(INDEX(INDIRECT("Ind10_OE"),Menu!$K$15))-1) -> 0.5141930176 | D9: =IF(INDEX(INDIRECT("Ind15_OE"),Menu!$K$15)="",NA(),(INDEX(INDIRECT("Ind15_OE"),Menu!$K$15))-1) -> 0.7696910748 | E9: =IF(INDEX(INDIRECT("Ind20_OE"),Menu!$K$15)="",NA(),(INDEX(INDIRECT("Ind20_OE"),Menu!$K$15))-1) -> 0.5817042176
A12: Trends vs England
A13: Indicator | B13: 2014/15 | C13: 2015/16 | D13: 2016/17 | E13: 2017/18
A14: Day case | B14: =IF(INDEX(INDIRECT("Ind1_OE_Eng"),Menu!$K$15)="",NA(),(INDEX(INDIRECT("Ind1_OE_Eng"),Menu!$K$15))-1) -> 0.06722643896 | C14: =IF(INDEX(INDIRECT("Ind6_OE_Eng"),Menu!$K$15)="",NA(),(INDEX(INDIRECT("Ind6_OE_Eng"),Menu!$K$15))-1) -> 0.04543857809 | D14: =IF(INDEX(INDIRECT("Ind11_OE_Eng"),Menu!$K$15)="",NA(),(INDEX(INDIRECT("Ind11_OE_Eng"),Menu!$K$15))-1) -> 0.02463859839 | E14: =IF(INDEX(INDIRECT("Ind16_OE_Eng"),Menu!$K$15)="",NA(),(INDEX(INDIRECT("Ind16_OE_Eng"),Menu!$K$15))-1) -> 0.03980699491
A15: Bed days - all | B15: =IF(INDEX(INDIRECT("Ind2_OE_Eng"),Menu!$K$15)="",NA(),(INDEX(INDIRECT("Ind2_OE_Eng"),Menu!$K$15))-1) -> -0.03502884507 | C15: =IF(INDEX(INDIRECT("Ind7_OE_Eng"),Menu!$K$15)="",NA(),(INDEX(INDIRECT("Ind7_OE_Eng"),Menu!$K$15))-1) -> -0.03150308772 | D15: =IF(INDEX(INDIRECT("Ind12_OE_Eng"),Menu!$K$15)="",NA(),(INDEX(INDIRECT("Ind12_OE_Eng"),Menu!$K$15))-1) -> 0.1368665994 | E15: =IF(INDEX(INDIRECT("Ind17_OE_Eng"),Menu!$K$15)="",NA(),(INDEX(INDIRECT("Ind17_OE_Eng"),Menu!$K$15))-1) -> 0.2351872256
A16: Bed days - elective | B16: =IF(INDEX(INDIRECT("Ind3_OE_Eng"),Menu!$K$15)="",NA(),(INDEX(INDIRECT("Ind3_OE_Eng"),Menu!$K$15))-1) -> 0.02202413478 | C16: =IF(INDEX(INDIRECT("Ind8_OE_Eng"),Menu!$K$15)="",NA(),(INDEX(INDIRECT("Ind8_OE_Eng"),Menu!$K$15))-1) -> -0.05900602486 | D16: =IF(INDEX(INDIRECT("Ind13_OE_Eng"),Menu!$K$15)="",NA(),(INDEX(INDIRECT("Ind13_OE_Eng"),Menu!$K$15))-1) -> 0.008995458081 | E16: =IF(INDEX(INDIRECT("Ind18_OE_Eng"),Menu!$K$15)="",NA(),(INDEX(INDIRECT("Ind18_OE_Eng"),Menu!$K$15))-1) -> -0.01634367096
A17: Bed days - emergency | B17: =IF(INDEX(INDIRECT("Ind4_OE_Eng"),Menu!$K$15)="",NA(),(INDEX(INDIRECT("Ind4_OE_Eng"),Menu!$K$15))-1) -> 0.02877017376 | C17: =IF(INDEX(INDIRECT("Ind9_OE_Eng"),Menu!$K$15)="",NA(),(INDEX(INDIRECT("Ind9_OE_Eng"),Menu!$K$15))-1) -> 0.07737448453 | D17: =IF(INDEX(INDIRECT("Ind14_OE_Eng"),Menu!$K$15)="",NA(),(INDEX(INDIRECT("Ind14_OE_Eng"),Menu!$K$15))-1) -> 0.2968831285 | E17: =IF(INDEX(INDIRECT("Ind19_OE_Eng"),Menu!$K$15)="",NA(),(INDEX(INDIRECT("Ind19_OE_Eng"),Menu!$K$15))-1) -> 0.4144608635
A18: Emergency readmissions | B18: =IF(INDEX(INDIRECT("Ind5_OE_Eng"),Menu!$K$15)="",NA(),(INDEX(INDIRECT("Ind5_OE_Eng"),Menu!$K$15))-1) -> -0.2401337209 | C18: =IF(INDEX(INDIRECT("Ind10_OE_Eng"),Menu!$K$15)="",NA(),(INDEX(INDIRECT("Ind10_OE_Eng"),Menu!$K$15))-1) -> -0.3195169041 | D18: =IF(INDEX(INDIRECT("Ind15_OE_Eng"),Menu!$K$15)="",NA(),(INDEX(INDIRECT("Ind15_OE_Eng"),Menu!$K$15))-1) -> -0.2240844045 | E18: =IF(INDEX(INDIRECT("Ind20_OE_Eng"),Menu!$K$15)="",NA(),(INDEX(INDIRECT("Ind20_OE_Eng"),Menu!$K$15))-1) -> -0.2071110659
A21: STP average trends vs non-diabetes
A22: Indicator | B22: 2014/15 | C22: 2015/16 | D22: 2016/17 | E22: 2017/18
A23: Day case | B23: =IF(INDEX(INDIRECT("Ind1_OE"),'Calc vs non diab'!$G$5)="",NA(),(INDEX(INDIRECT("Ind1_OE"),'Calc vs non diab'!$G$5))-1) -> -0.04273093631 | C23: =IF(INDEX(INDIRECT("Ind6_OE"),'Calc vs non diab'!$G$5)="",NA(),(INDEX(INDIRECT("Ind6_OE"),'Calc vs non diab'!$G$5))-1) -> -0.03617397695 | D23: =IF(INDEX(INDIRECT("Ind11_OE"),'Calc vs non diab'!$G$5)="",NA(),(INDEX(INDIRECT("Ind11_OE"),'Calc vs non diab'!$G$5))-1) -> -0.0276639078 | E23: =IF(INDEX(INDIRECT("Ind16_OE"),'Calc vs non diab'!$G$5)="",NA(),(INDEX(INDIRECT("Ind16_OE"),'Calc vs non diab'!$G$5))-1) -> -0.02989559107
A24: Bed days - all | B24: =IF(INDEX(INDIRECT("Ind2_OE"),'Calc vs non diab'!$G$5)="",NA(),(INDEX(INDIRECT("Ind2_OE"),'Calc vs non diab'!$G$5))-1) -> 0.2572903106 | C24: =IF(INDEX(INDIRECT("Ind7_OE"),'Calc vs non diab'!$G$5)="",NA(),(INDEX(INDIRECT("Ind7_OE"),'Calc vs non diab'!$G$5))-1) -> 0.1813787331 | D24: =IF(INDEX(INDIRECT("Ind12_OE"),'Calc vs non diab'!$G$5)="",NA(),(INDEX(INDIRECT("Ind12_OE"),'Calc vs non diab'!$G$5))-1) -> 0.2002348083 | E24: =IF(INDEX(INDIRECT("Ind17_OE"),'Calc vs non diab'!$G$5)="",NA(),(INDEX(INDIRECT("Ind17_OE"),'Calc vs non diab'!$G$5))-1) -> 0.1708223316
A25: Bed days - elective | B25: =IF(INDEX(INDIRECT("Ind3_OE"),'Calc vs non diab'!$G$5)="",NA(),(INDEX(INDIRECT("Ind3_OE"),'Calc vs non diab'!$G$5))-1) -> 0.2630749828 | C25: =IF(INDEX(INDIRECT("Ind8_OE"),'Calc vs non diab'!$G$5)="",NA(),(INDEX(INDIRECT("Ind8_OE"),'Calc vs non diab'!$G$5))-1) -> 0.09945656449 | D25: =IF(INDEX(INDIRECT("Ind13_OE"),'Calc vs non diab'!$G$5)="",NA(),(INDEX(INDIRECT("Ind13_OE"),'Calc vs non diab'!$G$5))-1) -> 0.1520295857 | E25: =IF(INDEX(INDIRECT("Ind18_OE"),'Calc vs non diab'!$G$5)="",NA(),(INDEX(INDIRECT("Ind18_OE"),'Calc vs non diab'!$G$5))-1) -> 0.1297600662
A26: Bed days - emergency | B26: =IF(INDEX(INDIRECT("Ind4_OE"),'Calc vs non diab'!$G$5)="",NA(),(INDEX(INDIRECT("Ind4_OE"),'Calc vs non diab'!$G$5))-1) -> 0.1900271235 | C26: =IF(INDEX(INDIRECT("Ind9_OE"),'Calc vs non diab'!$G$5)="",NA(),(INDEX(INDIRECT("Ind9_OE"),'Calc vs non diab'!$G$5))-1) -> 0.1933029557 | D26: =IF(INDEX(INDIRECT("Ind14_OE"),'Calc vs non diab'!$G$5)="",NA(),(INDEX(INDIRECT("Ind14_OE"),'Calc vs non diab'!$G$5))-1) -> 0.2070086823 | E26: =IF(INDEX(INDIRECT("Ind19_OE"),'Calc vs non diab'!$G$5)="",NA(),(INDEX(INDIRECT("Ind19_OE"),'Calc vs non diab'!$G$5))-1) -> 0.1702342524
A27: Emergency readmissions | B27: =IF(INDEX(INDIRECT("Ind5_OE"),'Calc vs non diab'!$G$5)="",NA(),(INDEX(INDIRECT("Ind5_OE"),'Calc vs non diab'!$G$5))-1) -> 0.5008189613 | C27: =IF(INDEX(INDIRECT("Ind10_OE"),'Calc vs non diab'!$G$5)="",NA(),(INDEX(INDIRECT("Ind10_OE"),'Calc vs non diab'!$G$5))-1) -> 0.4521187757 | D27: =IF(INDEX(INDIRECT("Ind15_OE"),'Calc vs non diab'!$G$5)="",NA(),(INDEX(INDIRECT("Ind15_OE"),'Calc vs non diab'!$G$5))-1) -> 0.4960751043 | E27: =IF(INDEX(INDIRECT("Ind20_OE"),'Calc vs non diab'!$G$5)="",NA(),(INDEX(INDIRECT("Ind20_OE"),'Calc vs non diab'!$G$5))-1) -> 0.4938612606
A29: STP average trends vs England
A30: Indicator | B30: 2014/15 | C30: 2015/16 | D30: 2016/17 | E30: 2017/18
A31: Day case | B31: =IF(INDEX(INDIRECT("Ind1_OE_Eng"),'Calc vs non diab'!$G$5)="",NA(),(INDEX(INDIRECT("Ind1_OE_Eng"),'Calc vs non diab'!$G$5))-1) -> -0.08252078108 | C31: =IF(INDEX(INDIRECT("Ind6_OE_Eng"),'Calc vs non diab'!$G$5)="",NA(),(INDEX(INDIRECT("Ind6_OE_Eng"),'Calc vs non diab'!$G$5))-1) -> 0.006835484243 | D31: =IF(INDEX(INDIRECT("Ind11_OE_Eng"),'Calc vs non diab'!$G$5)="",NA(),(INDEX(INDIRECT("Ind11_OE_Eng"),'Calc vs non diab'!$G$5))-1) -> 0.009489324295 | E31: =IF(INDEX(INDIRECT("Ind16_OE_Eng"),'Calc vs non diab'!$G$5)="",NA(),(INDEX(INDIRECT("Ind16_OE_Eng"),'Calc vs non diab'!$G$5))-1) -> 0.00696262401
A32: Bed days - all | B32: =IF(INDEX(INDIRECT("Ind2_OE_Eng"),'Calc vs non diab'!$G$5)="",NA(),(INDEX(INDIRECT("Ind2_OE_Eng"),'Calc vs non diab'!$G$5))-1) -> -0.08377918699 | C32: =IF(INDEX(INDIRECT("Ind7_OE_Eng"),'Calc vs non diab'!$G$5)="",NA(),(INDEX(INDIRECT("Ind7_OE_Eng"),'Calc vs non diab'!$G$5))-1) -> -0.04559447887 | D32: =IF(INDEX(INDIRECT("Ind12_OE_Eng"),'Calc vs non diab'!$G$5)="",NA(),(INDEX(INDIRECT("Ind12_OE_Eng"),'Calc vs non diab'!$G$5))-1) -> 0.009256565626 | E32: =IF(INDEX(INDIRECT("Ind17_OE_Eng"),'Calc vs non diab'!$G$5)="",NA(),(INDEX(INDIRECT("Ind17_OE_Eng"),'Calc vs non diab'!$G$5))-1) -> 0.05364374899
A33: Bed days - elective | B33: =IF(INDEX(INDIRECT("Ind3_OE_Eng"),'Calc vs non diab'!$G$5)="",NA(),(INDEX(INDIRECT("Ind3_OE_Eng"),'Calc vs non diab'!$G$5))-1) -> -0.2557602701 | C33: =IF(INDEX(INDIRECT("Ind8_OE_Eng"),'Calc vs non diab'!$G$5)="",NA(),(INDEX(INDIRECT("Ind8_OE_Eng"),'Calc vs non diab'!$G$5))-1) -> -0.09039034167 | D33: =IF(INDEX(INDIRECT("Ind13_OE_Eng"),'Calc vs non diab'!$G$5)="",NA(),(INDEX(INDIRECT("Ind13_OE_Eng"),'Calc vs non diab'!$G$5))-1) -> -0.02427204296 | E33: =IF(INDEX(INDIRECT("Ind18_OE_Eng"),'Calc vs non diab'!$G$5)="",NA(),(INDEX(INDIRECT("Ind18_OE_Eng"),'Calc vs non diab'!$G$5))-1) -> -0.03681340601
A34: Bed days - emergency | B34: =IF(INDEX(INDIRECT("Ind4_OE_Eng"),'Calc vs non diab'!$G$5)="",NA(),(INDEX(INDIRECT("Ind4_OE_Eng"),'Calc vs non diab'!$G$5))-1) -> 0.08268982508 | C34: =IF(INDEX(INDIRECT("Ind9_OE_Eng"),'Calc vs non diab'!$G$5)="",NA(),(INDEX(INDIRECT("Ind9_OE_Eng"),'Calc vs non diab'!$G$5))-1) -> 0.04628549445 | D34: =IF(INDEX(INDIRECT("Ind14_OE_Eng"),'Calc vs non diab'!$G$5)="",NA(),(INDEX(INDIRECT("Ind14_OE_Eng"),'Calc vs non diab'!$G$5))-1) -> 0.09626450802 | E34: =IF(INDEX(INDIRECT("Ind19_OE_Eng"),'Calc vs non diab'!$G$5)="",NA(),(INDEX(INDIRECT("Ind19_OE_Eng"),'Calc vs non diab'!$G$5))-1) -> 0.151063864
A35: Emergency readmissions | B35: =IF(INDEX(INDIRECT("Ind5_OE_Eng"),'Calc vs non diab'!$G$5)="",NA(),(INDEX(INDIRECT("Ind5_OE_Eng"),'Calc vs non diab'!$G$5))-1) -> -0.02338207017 | C35: =IF(INDEX(INDIRECT("Ind10_OE_Eng"),'Calc vs non diab'!$G$5)="",NA(),(INDEX(INDIRECT("Ind10_OE_Eng"),'Calc vs non diab'!$G$5))-1) -> -0.01862051146 | D35: =IF(INDEX(INDIRECT("Ind15_OE_Eng"),'Calc vs non diab'!$G$5)="",NA(),(INDEX(INDIRECT("Ind15_OE_Eng"),'Calc vs non diab'!$G$5))-1) -> 0.02195578261 | E35: =IF(INDEX(INDIRECT("Ind20_OE_Eng"),'Calc vs non diab'!$G$5)="",NA(),(INDEX(INDIRECT("Ind20_OE_Eng"),'Calc vs non diab'!$G$5))-1) -> 0.02994463933
A37: England average trends vs non-diabetes | G37: Chosen indicator trends
A38: Indicator | B38: 2014/15 | C38: 2015/16 | D38: 2016/17 | E38: 2017/18 | G38: ='Calc vs non diab'!H2 -> Day case | H38: 2014/15 | I38: 2015/16 | J38: 2016/17 | K38: 2017/18
A39: Day case | B39: =IF(INDEX(INDIRECT("Ind1_OE"),238)="",NA(),(INDEX(INDIRECT("Ind1_OE"),238))-1) -> -0.04340833946 | C39: =IF(INDEX(INDIRECT("Ind6_OE"),238)="",NA(),(INDEX(INDIRECT("Ind6_OE"),238))-1) -> -0.04068252414 | D39: =IF(INDEX(INDIRECT("Ind11_OE"),238)="",NA(),(INDEX(INDIRECT("Ind11_OE"),238))-1) -> -0.03376824019 | E39: =IF(INDEX(INDIRECT("Ind16_OE"),238)="",NA(),(INDEX(INDIRECT("Ind16_OE"),238))-1) -> -0.03224157533 | G39: ='Calc vs non diab'!H4 -> NHS Airedale, Wharfedale and Craven CCG | H39: =VLOOKUP($G$38,$A5:$D9,2,FALSE) -> -0.006342924365 | I39: =VLOOKUP($G$38,$A5:$D9,3,FALSE) -> -0.01452874005 | J39: =VLOOKUP($G$38,$A5:$D9,4,FALSE) -> -0.02184356459 | K39: =VLOOKUP($G$38,$A5:$E9,5,FALSE) -> -0.01823880508
A40: Bed days - all | B40: =IF(INDEX(INDIRECT("Ind2_OE"),238)="",NA(),(INDEX(INDIRECT("Ind2_OE"),238))-1) -> 0.1854981749 | C40: =IF(INDEX(INDIRECT("Ind7_OE"),238)="",NA(),(INDEX(INDIRECT("Ind7_OE"),238))-1) -> 0.1699336282 | D40: =IF(INDEX(INDIRECT("Ind12_OE"),238)="",NA(),(INDEX(INDIRECT("Ind12_OE"),238))-1) -> 0.1727166232 | E40: =IF(INDEX(INDIRECT("Ind17_OE"),238)="",NA(),(INDEX(INDIRECT("Ind17_OE"),238))-1) -> 0.1869438039 | G40: ='Calc vs non diab'!H5 -> West Yorkshire | H40: =VLOOKUP($G$38,$A23:$D27,2,FALSE) -> -0.04273093631 | I40: =VLOOKUP($G$38,$A23:$D27,3,FALSE) -> -0.03617397695 | J40: =VLOOKUP($G$38,$A23:$D27,4,FALSE) -> -0.0276639078 | K40: =VLOOKUP($G$38,$A23:$E27,5,FALSE) -> -0.02989559107
A41: Bed days - elective | B41: =IF(INDEX(INDIRECT("Ind3_OE"),238)="",NA(),(INDEX(INDIRECT("Ind3_OE"),238))-1) -> 0.1826256993 | C41: =IF(INDEX(INDIRECT("Ind8_OE"),238)="",NA(),(INDEX(INDIRECT("Ind8_OE"),238))-1) -> 0.1516065616 | D41: =IF(INDEX(INDIRECT("Ind13_OE"),238)="",NA(),(INDEX(INDIRECT("Ind13_OE"),238))-1) -> 0.1506260918 | E41: =IF(INDEX(INDIRECT("Ind18_OE"),238)="",NA(),(INDEX(INDIRECT("Ind18_OE"),238))-1) -> 0.1567123378 | G41: England | H41: =VLOOKUP($G$38,$A39:$D43,2,FALSE) -> -0.04340833946 | I41: =VLOOKUP($G$38,$A39:$D43,3,FALSE) -> -0.04068252414 | J41: =VLOOKUP($G$38,$A39:$D43,4,FALSE) -> -0.03376824019 | K41: =VLOOKUP($G$38,$A39:$E43,5,FALSE) -> -0.03224157533
A42: Bed days - emergency | B42: =IF(INDEX(INDIRECT("Ind4_OE"),238)="",NA(),(INDEX(INDIRECT("Ind4_OE"),238))-1) -> 0.1725972114 | C42: =IF(INDEX(INDIRECT("Ind9_OE"),238)="",NA(),(INDEX(INDIRECT("Ind9_OE"),238))-1) -> 0.1684829379 | D42: =IF(INDEX(INDIRECT("Ind14_OE"),238)="",NA(),(INDEX(INDIRECT("Ind14_OE"),238))-1) -> 0.1765159267 | E42: =IF(INDEX(INDIRECT("Ind19_OE"),238)="",NA(),(INDEX(INDIRECT("Ind19_OE"),238))-1) -> 0.2034113688
A43: Emergency readmissions | B43: =IF(INDEX(INDIRECT("Ind5_OE"),238)="",NA(),(INDEX(INDIRECT("Ind5_OE"),238))-1) -> 0.5076809321 | C43: =IF(INDEX(INDIRECT("Ind10_OE"),238)="",NA(),(INDEX(INDIRECT("Ind10_OE"),238))-1) -> 0.5191875209 | D43: =IF(INDEX(INDIRECT("Ind15_OE"),238)="",NA(),(INDEX(INDIRECT("Ind15_OE"),238))-1) -> 0.5083165504 | E43: =IF(INDEX(INDIRECT("Ind20_OE"),238)="",NA(),(INDEX(INDIRECT("Ind20_OE"),238))-1) -> 0.4785889169 | G43: vs Eng | H43: 2014/15 | I43: 2015/16 | J43: 2016/17 | K43: 2017/18
G44: ='Calc vs non diab'!H4 -> NHS Airedale, Wharfedale and Craven CCG | H44: =VLOOKUP($G$38,$A14:$E18,2,FALSE) -> 0.06722643896 | I44: =VLOOKUP($G$38,$A14:$E18,3,FALSE) -> 0.04543857809 | J44: =VLOOKUP($G$38,$A14:$E18,4,FALSE) -> 0.02463859839 | K44: =VLOOKUP($G$38,$A14:$E18,5,FALSE) -> 0.03980699491
A45: Values for text | B45: ='Calc vs non diab'!H4 -> NHS Airedale, Wharfedale and Craven CCG | C45: ='Calc vs non diab'!H5 -> West Yorkshire | D45: England | G45: =G40 -> West Yorkshire | H45: =VLOOKUP($G$38,$A31:$E35,2,FALSE) -> -0.08252078108 | I45: =VLOOKUP($G$38,$A31:$E35,3,FALSE) -> 0.006835484243 | J45: =VLOOKUP($G$38,$A31:$E35,4,FALSE) -> 0.009489324295 | K45: =VLOOKUP($G$38,$A31:$E35,5,FALSE) -> 0.00696262401
A46: Observed days/rate | B46: =TEXT(INDEX(INDIRECT('Calc vs non diab'!$E$6),Menu!$K$15),"#,##0") -> 2,580 | C46: =TEXT(INDEX(INDIRECT('Calc vs non diab'!$E$6),'Calc vs non diab'!$G$5),"#,##0") -> 25,630 | D46: =TEXT(INDEX(INDIRECT('Calc vs non diab'!$E$6),238),"#,##0") -> 582,858
A47: Expected days/rate non-diab | B47: =TEXT(ROUND(INDEX(INDIRECT('Calc vs non diab'!$F$6),Menu!$K$15),0),"#,##0") -> 2,596 | C47: =TEXT(ROUND(INDEX(INDIRECT('Calc vs non diab'!$F$6),'Calc vs non diab'!$G$5),0),"#,##0") -> 26,774 | D47: =TEXT(ROUND(INDEX(INDIRECT('Calc vs non diab'!$F$6),238),0),"#,##0") -> 609,307
A48: ABS OE % vs non-diab | B48: =ABS(B49) -> 0.6 | C48: 4.3 | D48: =ABS(D49) -> 4.3
A49: OE % vs non-diab | B49: =ROUND((INDEX(INDIRECT('Calc vs non diab'!$G$6),Menu!$K$15)-1)*100,1) -> -0.6 | C49: =ROUND((INDEX(INDIRECT('Calc vs non diab'!$G$6),'Calc vs non diab'!$G$5)-1)*100,1) -> -4.3 | D49: =ROUND((INDEX(INDIRECT('Calc vs non diab'!$G$6),238)-1)*100,1) -> -4.3
A50: More or less than non-diab? | B50: =IF(B49>=0,"MORE","LESS") -> LESS | C50: =IF(C49>=0,"MORE","LESS") -> LESS | D50: =IF(D49>=0,"MORE","LESS") -> LESS
A51: Sig difference vs non-diab? | B51: =IF(INDEX(INDIRECT('Calc vs non diab'!$H$6),Menu!$K$15)="high", ", a significantly higher difference", IF(INDEX(INDIRECT('Calc vs non diab'!$H$6),Menu!$K$15)="low", ", a significantly lower difference", ", but this difference is not deemed to be significant")) -> , but this difference is not deemed to be significant | C51: =IF(INDEX(INDIRECT('Calc vs non diab'!$H$6),'Calc vs non diab'!$G$5)="high", ", a significantly higher difference", IF(INDEX(INDIRECT('Calc vs non diab'!$H$6),'Calc vs non diab'!$G$5)="low", ", a significantly lower difference", ", but this difference is not deemed to be significant")) -> , a significantly lower difference | D51: =IF(INDEX(INDIRECT('Calc vs non diab'!$H$6),238)="high", ", a significantly higher difference", IF(INDEX(INDIRECT('Calc vs non diab'!$H$6),238)="low", ", a significantly lower difference", ", but this difference is not deemed to be significant")) -> , a significantly lower difference
A52: Higher or lower than STP vs non-diab? | B52: =IF(B48>ABS(C48),"larger than", IF(B48<ABS(C48),"smaller than","the same as")) -> smaller than
A53: Higher or lower than Eng av vs non-diab? | B53: =IF(B48>ABS(D48),"larger than", IF(B48<ABS(D48),"smaller than","the same as")) -> smaller than | C53: =IF(C48>ABS(D48),"larger than", IF(C48<ABS(D48),"smaller than","the same as")) -> the same as
A54: Higher or lower than STP vs Eng? | B54: =IF(B56>ABS(C56),"larger than", IF(B56<ABS(C56),"smaller than","the same as")) -> larger than
A55: Expected days/rate Eng | B55: =TEXT(ROUND(INDEX(INDIRECT('Calc vs Eng'!$F$6),Menu!$K$15),0),"#,##0") -> 2,573 | C55: =TEXT(ROUND(VLOOKUP(C$45,'Calc vs Eng'!C$204:G$246,4,FALSE),0),"#,##0") -> 31,421
A56: ABS OE % vs Eng | B56: =ABS(B57) -> 4 | C56: =ABS(C57) -> 0.7
A57: OE % vs Eng | B57: =ROUND((INDEX(INDIRECT('Calc vs Eng'!$G$6),Menu!$K$15)-1)*100,1) -> 4 | C57: =ROUND((INDEX(INDIRECT('Calc vs Eng'!$G$6),'Calc vs non diab'!$G$5)-1)*100,1) -> 0.7
A58: More or less than Eng? | B58: =IF(B57>=0,"MORE","LESS") -> MORE | C58: =IF(C57>=0,"MORE","LESS") -> MORE
A59: Sig difference vs Eng? | B59: =IF(INDEX(INDIRECT('Calc vs Eng'!$H$6),Menu!$K$15)="high", ", a significantly higher difference", IF(INDEX(INDIRECT('Calc vs Eng'!$H$6),Menu!$K$15)="low", ", a significantly lower difference", ", but this difference is not deemed to be significant")) -> , a significantly higher difference | C59: =IF(INDEX(INDIRECT('Calc vs Eng'!$H$6),'Calc vs Eng'!$G$5)="high", ", a significantly higher difference", IF(INDEX(INDIRECT('Calc vs Eng'!$H$6),'Calc vs Eng'!$G$5)="low", ", a significantly lower difference", ", but this difference is not deemed to be significant")) -> , but this difference is not deemed to be significant
A61: Indicator for text
A62: number of… | B62: =IF(Menu!K17=1,"day cases",IF(Menu!K17=2,"total bed days",IF(Menu!K17=3,"elective bed days",IF(Menu!K17=4,"emergency bed days",IF(Menu!K17=5,"emergency readmissions"))))) -> day cases
A63: (X day cases/days/readmissions) | B63: =IF(Menu!K17=1,"day cases",IF(AND(Menu!K17>=2,Menu!K17<=4),"days",IF(Menu!K17=5,"readmissions"))) -> day cases
A64: had the same… | B64: =IF(Menu!K17=1,"day case rate",IF(AND(Menu!K17>=2,Menu!K17<=4),"length of stay",IF(Menu!K17=5,"emergency readmission rate"))) -> day case rate

Sheet Calc vs non diab (hidden)
B1: CALC VS NON DIAB | G1: Number | H1: Text | J1: Codes
B2: Average value for graph | F2: Indicator selected | G2: =IF(G3=1,Menu!K17,IF(G3=2,Menu!K17+5,IF(G3=3,Menu!K17+10,Menu!K17+15))) -> 1 | H2: =INDEX(Lookup!T3:T22,$G$2) -> Day case | R2: Calculations for maximum and minimum values for count graph
B3: Average to use (count): | E3: 0 | F3: Year | G3: 1 | H3: =INDEX(Lookup!V3:V6,$G$3) -> 2014/15 | U3: Actual Min | V3: Actual Max | W3: New Min | X3: New Max
F4: Chosen CCG | G4: =Menu!K15 -> 1 | H4: =INDEX(Lookup!C3:C231,$G$4) -> NHS Airedale, Wharfedale and Craven CCG | J4: =INDEX(Lookup!B3:B231,$G$4) -> 02N | R4: Expected events (X-axis values) | U4: =MIN($F$9:$F$203) -> 725.5964026 | V4: =MAX($F$9:$F$203) -> 13022.28299 | W4: =IF($V$4>2*$U$4,0,FLOOR($U$4*0.95,10^(LEN(ROUNDUP($U$4*1.05,0))-1))) -> 0 | X4: =CEILING($V$4*1.05,10^(LEN(ROUNDUP($V$4*1.05,0))-2)) -> 14000
B5: These are the averages used on the funnel plots. They will normally be 0% but may be changed if required. | F5: STP | G5: =195+(MATCH(J5,B204:B245,0)) -> 237 | H5: =VLOOKUP(J4,Lookup!B3:E260,4,FALSE) -> West Yorkshire | J5: =VLOOKUP(J4,Lookup!B3:E260,3,FALSE) -> E54000005 | K5: ='Calc vs Eng'!H5&" STP" -> West Yorkshire STP | L5: ="CCGs in "&'Calc vs Eng'!H5&" STP" -> CCGs in West Yorkshire STP | R5: Observed relative to expected (Y-axis values) | U5: =MIN(G9:G203) -> -0.1367666811 | V5: =MAX(G9:G203) -> 0.02132629223 | W5: =IF(AND(E3=0,U5<-2/3),-1,IF($U$5>=0,ROUNDUP($U$5*-1.02,1),MAX(-1,ROUNDUP($U$5*1.02,1)))) -> -0.2 | X5: =ROUNDUP($V$5*1.02,1) -> 0.1
E6: ="DATA!Ind"&$G2&"_Obs" -> DATA!Ind1_Obs | F6: ="DATA!Ind"&$G2&"_Exp" -> DATA!Ind1_Exp | G6: ="DATA!Ind"&$G2&"_OE" -> DATA!Ind1_OE | H6: ="DATA!Ind"&$G2&"_Sig_non_diab" -> DATA!Ind1_Sig_non_diab
F7: Data used for calculations | I7: Data for graphs | R7: Calculations of funnel limits for graph | AH7: Extra lines for plot
B8: CCG | C8: CCG name | E8: Observed events | F8: Expected events | G8: Observed relative to expected (Y) | H8: Significant difference? | I8: Expected events (X-axis) | J8: Observed relative to expected (Y) | K8: Chosen CCG X | L8: Chosen CCG Y | M8: CCGs in STP X | N8: CCGs in STP Y | O8: 10 similar CCGs X | P8: 10 similar CCGs Y | R8: Observed Events | S8: Expected Events (x-axis) | T8: Lower 2s (0.025) limit (count) | U8: Lower 2s (0.025) limit (ISR) | V8: Expected Events (x-axis) | W8: Upper 2s (0.025) limit (count) | X8: Upper 2s (0.025) limit (ISR) | Y8: Expected Events (x-axis) | Z8: Lower 3s (0.001) limit (count) | AA8: Lower 3s (0.001) limit (ISR) | AB8: Expected Events (x-axis) | AC8: Upper 3s (0.001) limit (count) | AD8: Upper 3s (0.001) limit (ISR) | AE8: Baseline - count (Average Y) | AF8: Baseline - ISR (Average Y) | AG8: Row number | AH8: England average | AI8: STP average
A9: 1 | B9: 02N | C9: NHS Airedale, Wharfedale and Craven CCG | E9: =IFERROR(INDEX(INDIRECT($E$6),$A9), "") -> 2580 | F9: =IFERROR(INDEX(INDIRECT($F$6),$A9), "") -> 2596.469208 | G9: =IF(OR(E9="",E9=0),"",E9/F9-1) -> -0.006342924365 | H9: =IFERROR(IF(INDEX(INDIRECT($H$6),$A9)=0, "",INDEX(INDIRECT($H$6),$A9)),"") ->  | I9: =IF(F9="",#N/A,F9) -> 2596.469208 | J9: =IF(G9="",#N/A,G9) -> -0.006342924365 | K9: =IF(B9=$J$4,F9,NA()) -> 2596.469208 | L9: =IF(B9=$J$4,G9,NA()) -> -0.006342924365 | M9: =IF(AND(VLOOKUP($B9,Lookup!$B$3:$E$222,4,FALSE)=$H$5,B9<>$J$4),F9,NA()) ->  | N9: =IF(AND(VLOOKUP($B9,Lookup!$B$3:$E$222,4,FALSE)=$H$5,B9<>$J$4),G9,NA()) ->  | O9: =IF(ISNUMBER(MATCH($B9,Lookup!$P$3:$P$260,0)),F9,NA()) ->  | P9: =IF(ISNUMBER(MATCH($B9,Lookup!$P$3:$P$260,0)),G9,NA()) ->  | Y9: 1 | AE9: =$E$3 -> 0 | AF9: =$E$4 -> 0 | AH9: =IF(G3=1,'Calc trends'!H41,IF(G3=2,'Calc trends'!I41,IF(G3=3,'Calc trends'!J41,'Calc trends'!K41))) -> -0.04340833946 | AI9: =IF(G3=1,'Calc trends'!H40,IF(G3=2,'Calc trends'!I40,IF(G3=3,'Calc trends'!J40,'Calc trends'!K40))) -> -0.04273093631
A10: 2 | B10: 09C | C10: NHS Ashford CCG | E10: =IFERROR(INDEX(INDIRECT($E$6),$A10), "") -> 840 | F10: =IFERROR(INDEX(INDIRECT($F$6),$A10), "") -> 944.3080919 | G10: =IF(OR(E10="",E10=0),"",E10/F10-1) -> -0.1104598095 | H10: =IFERROR(IF(INDEX(INDIRECT($H$6),$A10)=0, "",INDEX(INDIRECT($H$6),$A10)),"") -> low | I10: 944.3080919 | J10: -0.1104598095 | K10: =IF(B10=$J$4,F10,NA()) ->  | L10: =IF(B10=$J$4,G10,NA()) ->  | M10: =IF(AND(VLOOKUP($B10,Lookup!$B$3:$E$222,4,FALSE)=$H$5,B10<>$J$4),F10,NA()) ->  | N10: =IF(AND(VLOOKUP($B10,Lookup!$B$3:$E$222,4,FALSE)=$H$5,B10<>$J$4),G10,NA()) ->  | O10: =IF(ISNUMBER(MATCH($B10,Lookup!$P$3:$P$260,0)),F10,NA()) ->  | P10: =IF(ISNUMBER(MATCH($B10,Lookup!$P$3:$P$260,0)),G10,NA()) ->  | R10: =MAX(1,$W$4) -> 1 | S10: =poishigh($R10,0.025) ->  | T10: =$R10/S10-1 ->  | U10: =$R10/S10*100 ->  | V10: =poislow($R10,0.025) ->  | W10: =$R10/V10-1 ->  | X10: =$R10/V10*100 ->  | Y10: =poishigh($R10,0.001) ->  | Z10: =$R10/Y10-1 ->  | AA10: =$R10/Y10*100 ->  | AB10: =poislow($R10,0.001) ->  | AC10: =$R10/AB10-1 ->  | AD10: =$R10/AB10*100 ->  | AE10: 0 | AF10: =$E$4 -> 0 | AG10: 1 | AH10: =AH$9 -> -0.04340833946 | AI10: =$AI$9 -> -0.04273093631
A11: 3 | B11: 07L | C11: NHS Barking and Dagenham CCG | E11: 2215 | F11: 2277.747236 | G11: -0.02754793658 | I11: 2277.747236 | J11: -0.02754793658 | M11: =IF(AND(VLOOKUP($B11,Lookup!$B$3:$E$222,4,FALSE)=$H$5,B11<>$J$4),F11,NA()) ->  | N11: =IF(AND(VLOOKUP($B11,Lookup!$B$3:$E$222,4,FALSE)=$H$5,B11<>$J$4),G11,NA()) ->  | O11: =IF(ISNUMBER(MATCH($B11,Lookup!$P$3:$P$260,0)),F11,NA()) ->  | P11: =IF(ISNUMBER(MATCH($B11,Lookup!$P$3:$P$260,0)),G11,NA()) ->  | R11: =MAX(ROUND(($X$4/R10)^(1/(101-AG11))*R10,0),R10+1) -> 2 | S11: =poishigh($R11,0.025) ->  | T11: =$R11/S11-1 ->  | U11: =$R11/S11*100 ->  | V11: =poislow($R11,0.025) ->  | W11: =$R11/V11-1 ->  | X11: =$R11/V11*100 ->  | Y11: =poishigh($R11,0.001) ->  | Z11: =$R11/Y11-1 ->  | AA11: =$R11/Y11*100 ->  | AB11: =poislow($R11,0.001) ->  | AC11: =$R11/AB11-1 ->  | AD11: =$R11/AB11*100 ->  | AE11: 0 | AF11: =$E$4 -> 0 | AG11: =AG9+1 -> 1 | AH11: =AH$9 -> -0.04340833946 | AI11: =$AI$9 -> -0.04273093631
A12: 4 | B12: 07M | C12: NHS Barnet CCG | E12: 3430 | F12: 3509.731169 | G12: -0.02271717262 | I12: 3509.731169 | J12: -0.02271717262 | M12: =IF(AND(VLOOKUP($B12,Lookup!$B$3:$E$222,4,FALSE)=$H$5,B12<>$J$4),F12,NA()) ->  | N12: =IF(AND(VLOOKUP($B12,Lookup!$B$3:$E$222,4,FALSE)=$H$5,B12<>$J$4),G12,NA()) ->  | O12: =IF(ISNUMBER(MATCH($B12,Lookup!$P$3:$P$260,0)),F12,NA()) ->  | P12: =IF(ISNUMBER(MATCH($B12,Lookup!$P$3:$P$260,0)),G12,NA()) ->  | R12: =MAX(ROUND(($X$4/R11)^(1/(101-AG12))*R11,0),R11+1) -> 3 | AE12: 0 | AF12: 0 | AG12: =AG11+1 -> 2 | AH12: -0.04340833946 | AI12: -0.04273093631
A13: 5 | B13: 02P | C13: NHS Barnsley CCG | E13: 3385 | F13: 3568.321879 | G13: -0.05137481562 | H13: low | I13: 3568.321879 | J13: -0.05137481562 | M13: =IF(AND(VLOOKUP($B13,Lookup!$B$3:$E$222,4,FALSE)=$H$5,B13<>$J$4),F13,NA()) ->  | N13: =IF(AND(VLOOKUP($B13,Lookup!$B$3:$E$222,4,FALSE)=$H$5,B13<>$J$4),G13,NA()) ->  | O13: =IF(ISNUMBER(MATCH($B13,Lookup!$P$3:$P$260,0)),F13,NA()) ->  | P13: =IF(ISNUMBER(MATCH($B13,Lookup!$P$3:$P$260,0)),G13,NA()) ->  | R13: 4 | AE13: 0 | AF13: 0 | AG13: 3 | AH13: -0.04340833946 | AI13: -0.04273093631
A14: 6 | B14: 99E | C14: NHS Basildon and Brentwood CCG | E14: 2290 | F14: 2408.771193 | G14: -0.04930779378 | H14: low | I14: 2408.771193 | J14: -0.04930779378 | M14: =IF(AND(VLOOKUP($B14,Lookup!$B$3:$E$222,4,FALSE)=$H$5,B14<>$J$4),F14,NA()) ->  | N14: =IF(AND(VLOOKUP($B14,Lookup!$B$3:$E$222,4,FALSE)=$H$5,B14<>$J$4),G14,NA()) ->  | O14: =IF(ISNUMBER(MATCH($B14,Lookup!$P$3:$P$260,0)),F14,NA()) ->  | P14: =IF(ISNUMBER(MATCH($B14,Lookup!$P$3:$P$260,0)),G14,NA()) ->  | R14: 5 | AE14: 0 | AF14: 0 | AG14: 4 | AH14: -0.04340833946 | AI14: -0.04273093631
A15: 7 | B15: 02Q | C15: NHS Bassetlaw CCG | E15: 1420 | F15: 1527.722619 | G15: -0.07051189632 | H15: low | I15: 1527.722619 | J15: -0.07051189632 | M15: =IF(AND(VLOOKUP($B15,Lookup!$B$3:$E$222,4,FALSE)=$H$5,B15<>$J$4),F15,NA()) ->  | N15: =IF(AND(VLOOKUP($B15,Lookup!$B$3:$E$222,4,FALSE)=$H$5,B15<>$J$4),G15,NA()) ->  | O15: =IF(ISNUMBER(MATCH($B15,Lookup!$P$3:$P$260,0)),F15,NA()) ->  | P15: =IF(ISNUMBER(MATCH($B15,Lookup!$P$3:$P$260,0)),G15,NA()) ->  | R15: 6 | AE15: 0 | AF15: 0 | AG15: 5 | AH15: -0.04340833946 | AI15: -0.04273093631
A16: 8 | B16: 11E | C16: NHS Bath and North East Somerset CCG | E16: 1425 | F16: 1426.664844 | G16: -0.001166948329 | I16: 1426.664844 | J16: -0.001166948329 | M16: =IF(AND(VLOOKUP($B16,Lookup!$B$3:$E$222,4,FALSE)=$H$5,B16<>$J$4),F16,NA()) ->  | N16: =IF(AND(VLOOKUP($B16,Lookup!$B$3:$E$222,4,FALSE)=$H$5,B16<>$J$4),G16,NA()) ->  | O16: =IF(ISNUMBER(MATCH($B16,Lookup!$P$3:$P$260,0)),F16,NA()) ->  | P16: =IF(ISNUMBER(MATCH($B16,Lookup!$P$3:$P$260,0)),G16,NA()) ->  | R16: 7 | AE16: 0 | AF16: 0 | AG16: 6 | AH16: -0.04340833946 | AI16: -0.04273093631
A17: 9 | B17: 06F | C17: NHS Bedfordshire CCG | E17: 4445 | F17: 4641.584063 | G17: -0.04235279601 | H17: low | I17: 4641.584063 | J17: -0.04235279601 | M17: =IF(AND(VLOOKUP($B17,Lookup!$B$3:$E$222,4,FALSE)=$H$5,B17<>$J$4),F17,NA()) ->  | N17: =IF(AND(VLOOKUP($B17,Lookup!$B$3:$E$222,4,FALSE)=$H$5,B17<>$J$4),G17,NA()) ->  | O17: =IF(ISNUMBER(MATCH($B17,Lookup!$P$3:$P$260,0)),F17,NA()) ->  | P17: =IF(ISNUMBER(MATCH($B17,Lookup!$P$3:$P$260,0)),G17,NA()) ->  | R17: 8 | AE17: 0 | AF17: 0 | AG17: 7 | AH17: -0.04340833946 | AI17: -0.04273093631
A18: 10 | B18: 15A | C18: NHS Berkshire West CCG | E18: 2600 | F18: 2687.554413 | G18: -0.03257772671 | I18: 2687.554413 | J18: -0.03257772671 | M18: =IF(AND(VLOOKUP($B18,Lookup!$B$3:$E$222,4,FALSE)=$H$5,B18<>$J$4),F18,NA()) ->  | N18: =IF(AND(VLOOKUP($B18,Lookup!$B$3:$E$222,4,FALSE)=$H$5,B18<>$J$4),G18,NA()) ->  | O18: =IF(ISNUMBER(MATCH($B18,Lookup!$P$3:$P$260,0)),F18,NA()) ->  | P18: =IF(ISNUMBER(MATCH($B18,Lookup!$P$3:$P$260,0)),G18,NA()) ->  | R18: 9 | AE18: 0 | AF18: 0 | AG18: 8 | AH18: -0.04340833946 | AI18: -0.04273093631
A19: 11 | B19: 07N | C19: NHS Bexley CCG | E19: 1965 | F19: 2168.580208 | G19: -0.09387718633 | H19: low | I19: 2168.580208 | J19: -0.09387718633 | M19: =IF(AND(VLOOKUP($B19,Lookup!$B$3:$E$222,4,FALSE)=$H$5,B19<>$J$4),F19,NA()) ->  | N19: =IF(AND(VLOOKUP($B19,Lookup!$B$3:$E$222,4,FALSE)=$H$5,B19<>$J$4),G19,NA()) ->  | O19: =IF(ISNUMBER(MATCH($B19,Lookup!$P$3:$P$260,0)),F19,NA()) ->  | P19: =IF(ISNUMBER(MATCH($B19,Lookup!$P$3:$P$260,0)),G19,NA()) ->  | R19: 10 | AE19: 0 | AF19: 0 | AG19: 9 | AH19: -0.04340833946 | AI19: -0.04273093631
A20: 12 | B20: 15E | C20: NHS Birmingham and Solihull CCG | E20: 13300 | F20: 13022.28299 | G20: 0.02132629223 | H20: high | I20: 13022.28299 | J20: 0.02132629223 | M20: =IF(AND(VLOOKUP($B20,Lookup!$B$3:$E$222,4,FALSE)=$H$5,B20<>$J$4),F20,NA()) ->  | N20: =IF(AND(VLOOKUP($B20,Lookup!$B$3:$E$222,4,FALSE)=$H$5,B20<>$J$4),G20,NA()) ->  | O20: =IF(ISNUMBER(MATCH($B20,Lookup!$P$3:$P$260,0)),F20,NA()) ->  | P20: =IF(ISNUMBER(MATCH($B20,Lookup!$P$3:$P$260,0)),G20,NA()) ->  | R20: 11 | AE20: 0 | AF20: 0 | AG20: 10 | AH20: -0.04340833946 | AI20: -0.04273093631
A21: 13 | B21: 00Q | C21: NHS Blackburn with Darwen CCG | E21: 2435 | F21: 2452.128645 | G21: -0.006985214669 | I21: 2452.128645 | J21: -0.006985214669 | M21: =IF(AND(VLOOKUP($B21,Lookup!$B$3:$E$222,4,FALSE)=$H$5,B21<>$J$4),F21,NA()) ->  | N21: =IF(AND(VLOOKUP($B21,Lookup!$B$3:$E$222,4,FALSE)=$H$5,B21<>$J$4),G21,NA()) ->  | O21: =IF(ISNUMBER(MATCH($B21,Lookup!$P$3:$P$260,0)),F21,NA()) ->  | P21: =IF(ISNUMBER(MATCH($B21,Lookup!$P$3:$P$260,0)),G21,NA()) ->  | R21: 12 | AE21: 0 | AF21: 0 | AG21: 11 | AH21: -0.04340833946 | AI21: -0.04273093631
A22: 14 | B22: 00R | C22: NHS Blackpool CCG | E22: 2130 | F22: 2276.50992 | G22: -0.06435725081 | H22: low | I22: 2276.50992 | J22: -0.06435725081 | M22: =IF(AND(VLOOKUP($B22,Lookup!$B$3:$E$222,4,FALSE)=$H$5,B22<>$J$4),F22,NA()) ->  | N22: =IF(AND(VLOOKUP($B22,Lookup!$B$3:$E$222,4,FALSE)=$H$5,B22<>$J$4),G22,NA()) ->  | O22: =IF(ISNUMBER(MATCH($B22,Lookup!$P$3:$P$260,0)),F22,NA()) ->  | P22: =IF(ISNUMBER(MATCH($B22,Lookup!$P$3:$P$260,0)),G22,NA()) ->  | R22: 13 | AE22: 0 | AF22: 0 | AG22: 12 | AH22: -0.04340833946 | AI22: -0.04273093631
A23: 15 | B23: 00T | C23: NHS Bolton CCG | E23: 3190 | F23: 3393.785958 | G23: -0.06004679149 | H23: low | I23: 3393.785958 | J23: -0.06004679149 | M23: =IF(AND(VLOOKUP($B23,Lookup!$B$3:$E$222,4,FALSE)=$H$5,B23<>$J$4),F23,NA()) ->  | N23: =IF(AND(VLOOKUP($B23,Lookup!$B$3:$E$222,4,FALSE)=$H$5,B23<>$J$4),G23,NA()) ->  | O23: =IF(ISNUMBER(MATCH($B23,Lookup!$P$3:$P$260,0)),F23,NA()) ->  | P23: =IF(ISNUMBER(MATCH($B23,Lookup!$P$3:$P$260,0)),G23,NA()) ->  | R23: 14 | AE23: 0 | AF23: 0 | AG23: 13 | AH23: -0.04340833946 | AI23: -0.04273093631
A24: 16 | B24: 02W | C24: NHS Bradford City CCG | E24: 1460 | F24: 1495.311479 | G24: -0.02361479856 | I24: 1495.311479 | J24: -0.02361479856 | M24: =IF(AND(VLOOKUP($B24,Lookup!$B$3:$E$222,4,FALSE)=$H$5,B24<>$J$4),F24,NA()) -> 1495.311479 | N24: =IF(AND(VLOOKUP($B24,Lookup!$B$3:$E$222,4,FALSE)=$H$5,B24<>$J$4),G24,NA()) -> -0.02361479856 | O24: =IF(ISNUMBER(MATCH($B24,Lookup!$P$3:$P$260,0)),F24,NA()) ->  | P24: =IF(ISNUMBER(MATCH($B24,Lookup!$P$3:$P$260,0)),G24,NA()) ->  | R24: 15 | AE24: 0 | AF24: 0 | AG24: 14 | AH24: -0.04340833946 | AI24: -0.04273093631
A25: 17 | B25: 02R | C25: NHS Bradford Districts CCG | E25: 4470 | F25: 4552.807694 | G25: -0.01818826962 | I25: 4552.807694 | J25: -0.01818826962 | M25: =IF(AND(VLOOKUP($B25,Lookup!$B$3:$E$222,4,FALSE)=$H$5,B25<>$J$4),F25,NA()) -> 4552.807694 | N25: =IF(AND(VLOOKUP($B25,Lookup!$B$3:$E$222,4,FALSE)=$H$5,B25<>$J$4),G25,NA()) -> -0.01818826962 | O25: =IF(ISNUMBER(MATCH($B25,Lookup!$P$3:$P$260,0)),F25,NA()) ->  | P25: =IF(ISNUMBER(MATCH($B25,Lookup!$P$3:$P$260,0)),G25,NA()) ->  | R25: 16 | AE25: 0 | AF25: 0 | AG25: 15 | AH25: -0.04340833946 | AI25: -0.04273093631
A26: 18 | B26: 07P | C26: NHS Brent CCG | E26: 5380 | F26: 5464.329046 | G26: -0.01543264421 | I26: 5464.329046 | J26: -0.01543264421 | M26: =IF(AND(VLOOKUP($B26,Lookup!$B$3:$E$222,4,FALSE)=$H$5,B26<>$J$4),F26,NA()) ->  | N26: =IF(AND(VLOOKUP($B26,Lookup!$B$3:$E$222,4,FALSE)=$H$5,B26<>$J$4),G26,NA()) ->  | O26: =IF(ISNUMBER(MATCH($B26,Lookup!$P$3:$P$260,0)),F26,NA()) ->  | P26: =IF(ISNUMBER(MATCH($B26,Lookup!$P$3:$P$260,0)),G26,NA()) ->  | R26: 17 | AE26: 0 | AF26: 0 | AG26: 16 | AH26: -0.04340833946 | AI26: -0.04273093631
A27: 19 | B27: 09D | C27: NHS Brighton and Hove CCG | E27: 1310 | F27: 1429.731442 | G27: -0.08374400872 | H27: low | I27: 1429.731442 | J27: -0.08374400872 | M27: =IF(AND(VLOOKUP($B27,Lookup!$B$3:$E$222,4,FALSE)=$H$5,B27<>$J$4),F27,NA()) ->  | N27: =IF(AND(VLOOKUP($B27,Lookup!$B$3:$E$222,4,FALSE)=$H$5,B27<>$J$4),G27,NA()) ->  | O27: =IF(ISNUMBER(MATCH($B27,Lookup!$P$3:$P$260,0)),F27,NA()) ->  | P27: =IF(ISNUMBER(MATCH($B27,Lookup!$P$3:$P$260,0)),G27,NA()) ->  | R27: 18 | AE27: 0 | AF27: 0 | AG27: 17 | AH27: -0.04340833946 | AI27: -0.04273093631
A28: 20 | B28: 15C | C28: NHS Bristol, North Somerset and South Gloucestershire CCG | E28: 10240 | F28: 10388.97249 | G28: -0.0143394826 | I28: 10388.97249 | J28: -0.0143394826 | M28: =IF(AND(VLOOKUP($B28,Lookup!$B$3:$E$222,4,FALSE)=$H$5,B28<>$J$4),F28,NA()) ->  | N28: =IF(AND(VLOOKUP($B28,Lookup!$B$3:$E$222,4,FALSE)=$H$5,B28<>$J$4),G28,NA()) ->  | O28: =IF(ISNUMBER(MATCH($B28,Lookup!$P$3:$P$260,0)),F28,NA()) ->  | P28: =IF(ISNUMBER(MATCH($B28,Lookup!$P$3:$P$260,0)),G28,NA()) ->  | R28: 20 | AE28: 0 | AF28: 0 | AG28: 18 | AH28: -0.04340833946 | AI28: -0.04273093631
A29: 21 | B29: 07Q | C29: NHS Bromley CCG | E29: 2625 | F29: 2847.906709 | G29: -0.07827036905 | H29: low | I29: 2847.906709 | J29: -0.07827036905 | M29: =IF(AND(VLOOKUP($B29,Lookup!$B$3:$E$222,4,FALSE)=$H$5,B29<>$J$4),F29,NA()) ->  | N29: =IF(AND(VLOOKUP($B29,Lookup!$B$3:$E$222,4,FALSE)=$H$5,B29<>$J$4),G29,NA()) ->  | O29: =IF(ISNUMBER(MATCH($B29,Lookup!$P$3:$P$260,0)),F29,NA()) ->  | P29: =IF(ISNUMBER(MATCH($B29,Lookup!$P$3:$P$260,0)),G29,NA()) ->  | R29: 22 | AE29: 0 | AF29: 0 | AG29: 19 | AH29: -0.04340833946 | AI29: -0.04273093631
A30: 22 | B30: 14Y | C30: NHS Buckinghamshire CCG | E30: 4920 | F30: 5108.359483 | G30: -0.03687279316 | H30: low | I30: 5108.359483 | J30: -0.03687279316 | M30: =IF(AND(VLOOKUP($B30,Lookup!$B$3:$E$222,4,FALSE)=$H$5,B30<>$J$4),F30,NA()) ->  | N30: =IF(AND(VLOOKUP($B30,Lookup!$B$3:$E$222,4,FALSE)=$H$5,B30<>$J$4),G30,NA()) ->  | O30: =IF(ISNUMBER(MATCH($B30,Lookup!$P$3:$P$260,0)),F30,NA()) ->  | P30: =IF(ISNUMBER(MATCH($B30,Lookup!$P$3:$P$260,0)),G30,NA()) ->  | R30: 24 | AE30: 0 | AF30: 0 | AG30: 20 | AH30: -0.04340833946 | AI30: -0.04273093631
A31: 23 | B31: 00V | C31: NHS Bury CCG | E31: 2160 | F31: 2286.411083 | G31: -0.05528799443 | H31: low | I31: 2286.411083 | J31: -0.05528799443 | M31: =IF(AND(VLOOKUP($B31,Lookup!$B$3:$E$222,4,FALSE)=$H$5,B31<>$J$4),F31,NA()) ->  | N31: =IF(AND(VLOOKUP($B31,Lookup!$B$3:$E$222,4,FALSE)=$H$5,B31<>$J$4),G31,NA()) ->  | O31: =IF(ISNUMBER(MATCH($B31,Lookup!$P$3:$P$260,0)),F31,NA()) ->  | P31: =IF(ISNUMBER(MATCH($B31,Lookup!$P$3:$P$260,0)),G31,NA()) ->  | R31: 26 | AE31: 0 | AF31: 0 | AG31: 21 | AH31: -0.04340833946 | AI31: -0.04273093631
A32: 24 | B32: 02T | C32: NHS Calderdale CCG | E32: 2105 | F32: 2228.278603 | G32: -0.05532459112 | H32: low | I32: 2228.278603 | J32: -0.05532459112 | M32: =IF(AND(VLOOKUP($B32,Lookup!$B$3:$E$222,4,FALSE)=$H$5,B32<>$J$4),F32,NA()) -> 2228.278603 | N32: =IF(AND(VLOOKUP($B32,Lookup!$B$3:$E$222,4,FALSE)=$H$5,B32<>$J$4),G32,NA()) -> -0.05532459112 | O32: =IF(ISNUMBER(MATCH($B32,Lookup!$P$3:$P$260,0)),F32,NA()) ->  | P32: =IF(ISNUMBER(MATCH($B32,Lookup!$P$3:$P$260,0)),G32,NA()) ->  | R32: 28 | AE32: 0 | AF32: 0 | AG32: 22 | AH32: -0.04340833946 | AI32: -0.04273093631
A33: 25 | B33: 06H | C33: NHS Cambridgeshire and Peterborough CCG | E33: 9365 | F33: 9650.197914 | G33: -0.02955358185 | H33: low | I33: 9650.197914 | J33: -0.02955358185 | M33: =IF(AND(VLOOKUP($B33,Lookup!$B$3:$E$222,4,FALSE)=$H$5,B33<>$J$4),F33,NA()) ->  | N33: =IF(AND(VLOOKUP($B33,Lookup!$B$3:$E$222,4,FALSE)=$H$5,B33<>$J$4),G33,NA()) ->  | O33: =IF(ISNUMBER(MATCH($B33,Lookup!$P$3:$P$260,0)),F33,NA()) ->  | P33: =IF(ISNUMBER(MATCH($B33,Lookup!$P$3:$P$260,0)),G33,NA()) ->  | R33: 30 | AE33: 0 | AF33: 0 | AG33: 23 | AH33: -0.04340833946 | AI33: -0.04273093631
A34: 26 | B34: 07R | C34: NHS Camden CCG | E34: 1850 | F34: 1963.13716 | G34: -0.0576307976 | H34: low | I34: 1963.13716 | J34: -0.0576307976 | M34: =IF(AND(VLOOKUP($B34,Lookup!$B$3:$E$222,4,FALSE)=$H$5,B34<>$J$4),F34,NA()) ->  | N34: =IF(AND(VLOOKUP($B34,Lookup!$B$3:$E$222,4,FALSE)=$H$5,B34<>$J$4),G34,NA()) ->  | O34: =IF(ISNUMBER(MATCH($B34,Lookup!$P$3:$P$260,0)),F34,NA()) ->  | P34: =IF(ISNUMBER(MATCH($B34,Lookup!$P$3:$P$260,0)),G34,NA()) ->  | R34: 32 | AE34: 0 | AF34: 0 | AG34: 24 | AH34: -0.04340833946 | AI34: -0.04273093631
A35: 27 | B35: 04Y | C35: NHS Cannock Chase CCG | E35: 1655 | F35: 1745.34094 | G35: -0.05176119911 | H35: low | I35: 1745.34094 | J35: -0.05176119911 | M35: =IF(AND(VLOOKUP($B35,Lookup!$B$3:$E$222,4,FALSE)=$H$5,B35<>$J$4),F35,NA()) ->  | N35: =IF(AND(VLOOKUP($B35,Lookup!$B$3:$E$222,4,FALSE)=$H$5,B35<>$J$4),G35,NA()) ->  | O35: =IF(ISNUMBER(MATCH($B35,Lookup!$P$3:$P$260,0)),F35,NA()) ->  | P35: =IF(ISNUMBER(MATCH($B35,Lookup!$P$3:$P$260,0)),G35,NA()) ->  | R35: 35 | AE35: 0 | AF35: 0 | AG35: 25 | AH35: -0.04340833946 | AI35: -0.04273093631
A36: 28 | B36: 09E | C36: NHS Canterbury and Coastal CCG | E36: 1565 | F36: 1801.215867 | G36: -0.1311424527 | H36: low | I36: 1801.215867 | J36: -0.1311424527 | M36: =IF(AND(VLOOKUP($B36,Lookup!$B$3:$E$222,4,FALSE)=$H$5,B36<>$J$4),F36,NA()) ->  | N36: =IF(AND(VLOOKUP($B36,Lookup!$B$3:$E$222,4,FALSE)=$H$5,B36<>$J$4),G36,NA()) ->  | O36: =IF(ISNUMBER(MATCH($B36,Lookup!$P$3:$P$260,0)),F36,NA()) ->  | P36: =IF(ISNUMBER(MATCH($B36,Lookup!$P$3:$P$260,0)),G36,NA()) ->  | R36: 38 | AE36: 0 | AF36: 0 | AG36: 26 | AH36: -0.04340833946 | AI36: -0.04273093631
A37: 29 | B37: 99F | C37: NHS Castle Point and Rochford CCG | E37: 1875 | F37: 2028.734478 | G37: -0.0757785108 | H37: low | I37: 2028.734478 | J37: -0.0757785108 | M37: =IF(AND(VLOOKUP($B37,Lookup!$B$3:$E$222,4,FALSE)=$H$5,B37<>$J$4),F37,NA()) ->  | N37: =IF(AND(VLOOKUP($B37,Lookup!$B$3:$E$222,4,FALSE)=$H$5,B37<>$J$4),G37,NA()) ->  | O37: =IF(ISNUMBER(MATCH($B37,Lookup!$P$3:$P$260,0)),F37,NA()) ->  | P37: =IF(ISNUMBER(MATCH($B37,Lookup!$P$3:$P$260,0)),G37,NA()) ->  | R37: 41 | AE37: 0 | AF37: 0 | AG37: 27 | AH37: -0.04340833946 | AI37: -0.04273093631
A38: 30 | B38: 09A | C38: NHS Central London (Westminster) CCG | E38: 990 | F38: 1087.750267 | G38: -0.08986462275 | H38: low | I38: 1087.750267 | J38: -0.08986462275 | M38: =IF(AND(VLOOKUP($B38,Lookup!$B$3:$E$222,4,FALSE)=$H$5,B38<>$J$4),F38,NA()) ->  | N38: =IF(AND(VLOOKUP($B38,Lookup!$B$3:$E$222,4,FALSE)=$H$5,B38<>$J$4),G38,NA()) ->  | O38: =IF(ISNUMBER(MATCH($B38,Lookup!$P$3:$P$260,0)),F38,NA()) ->  | P38: =IF(ISNUMBER(MATCH($B38,Lookup!$P$3:$P$260,0)),G38,NA()) ->  | R38: 44 | AE38: 0 | AF38: 0 | AG38: 28 | AH38: -0.04340833946 | AI38: -0.04273093631
A39: 31 | B39: 00X | C39: NHS Chorley and South Ribble CCG | E39: 2760 | F39: 2798.706063 | G39: -0.01382998496 | I39: 2798.706063 | J39: -0.01382998496 | M39: =IF(AND(VLOOKUP($B39,Lookup!$B$3:$E$222,4,FALSE)=$H$5,B39<>$J$4),F39,NA()) ->  | N39: =IF(AND(VLOOKUP($B39,Lookup!$B$3:$E$222,4,FALSE)=$H$5,B39<>$J$4),G39,NA()) ->  | O39: =IF(ISNUMBER(MATCH($B39,Lookup!$P$3:$P$260,0)),F39,NA()) ->  | P39: =IF(ISNUMBER(MATCH($B39,Lookup!$P$3:$P$260,0)),G39,NA()) ->  | R39: 48 | AE39: 0 | AF39: 0 | AG39: 29 | AH39: -0.04340833946 | AI39: -0.04273093631
A40: 32 | B40: 07T | C40: NHS City and Hackney CCG | E40: 1670 | F40: 1735.194093 | G40: -0.03757164306 | I40: 1735.194093 | J40: -0.03757164306 | M40: =IF(AND(VLOOKUP($B40,Lookup!$B$3:$E$222,4,FALSE)=$H$5,B40<>$J$4),F40,NA()) ->  | N40: =IF(AND(VLOOKUP($B40,Lookup!$B$3:$E$222,4,FALSE)=$H$5,B40<>$J$4),G40,NA()) ->  | O40: =IF(ISNUMBER(MATCH($B40,Lookup!$P$3:$P$260,0)),F40,NA()) ->  | P40: =IF(ISNUMBER(MATCH($B40,Lookup!$P$3:$P$260,0)),G40,NA()) ->  | R40: 52 | AE40: 0 | AF40: 0 | AG40: 30 | AH40: -0.04340833946 | AI40: -0.04273093631
A41: 33 | B41: 09G | C41: NHS Coastal West Sussex CCG | E41: 5130 | F41: 5505.125131 | G41: -0.06814107263 | H41: low | I41: 5505.125131 | J41: -0.06814107263 | M41: =IF(AND(VLOOKUP($B41,Lookup!$B$3:$E$222,4,FALSE)=$H$5,B41<>$J$4),F41,NA()) ->  | N41: =IF(AND(VLOOKUP($B41,Lookup!$B$3:$E$222,4,FALSE)=$H$5,B41<>$J$4),G41,NA()) ->  | O41: =IF(ISNUMBER(MATCH($B41,Lookup!$P$3:$P$260,0)),F41,NA()) ->  | P41: =IF(ISNUMBER(MATCH($B41,Lookup!$P$3:$P$260,0)),G41,NA()) ->  | R41: 56 | AE41: 0 | AF41: 0 | AG41: 31 | AH41: -0.04340833946 | AI41: -0.04273093631
A42: 34 | B42: 03V | C42: NHS Corby CCG | E42: 760 | F42: 778.9628315 | G42: -0.02434369226 | I42: 778.9628315 | J42: -0.02434369226 | M42: =IF(AND(VLOOKUP($B42,Lookup!$B$3:$E$222,4,FALSE)=$H$5,B42<>$J$4),F42,NA()) ->  | N42: =IF(AND(VLOOKUP($B42,Lookup!$B$3:$E$222,4,FALSE)=$H$5,B42<>$J$4),G42,NA()) ->  | O42: =IF(ISNUMBER(MATCH($B42,Lookup!$P$3:$P$260,0)),F42,NA()) ->  | P42: =IF(ISNUMBER(MATCH($B42,Lookup!$P$3:$P$260,0)),G42,NA()) ->  | R42: 61 | AE42: 0 | AF42: 0 | AG42: 32 | AH42: -0.04340833946 | AI42: -0.04273093631
A43: 35 | B43: 05A | C43: NHS Coventry and Rugby CCG | E43: 6400 | F43: 6478.702276 | G43: -0.01214784576 | I43: 6478.702276 | J43: -0.01214784576 | M43: =IF(AND(VLOOKUP($B43,Lookup!$B$3:$E$222,4,FALSE)=$H$5,B43<>$J$4),F43,NA()) ->  | N43: =IF(AND(VLOOKUP($B43,Lookup!$B$3:$E$222,4,FALSE)=$H$5,B43<>$J$4),G43,NA()) ->  | O43: =IF(ISNUMBER(MATCH($B43,Lookup!$P$3:$P$260,0)),F43,NA()) ->  | P43: =IF(ISNUMBER(MATCH($B43,Lookup!$P$3:$P$260,0)),G43,NA()) ->  | R43: 66 | AE43: 0 | AF43: 0 | AG43: 33 | AH43: -0.04340833946 | AI43: -0.04273093631
A44: 36 | B44: 09H | C44: NHS Crawley CCG | E44: 1185 | F44: 1218.092834 | G44: -0.02716774354 | I44: 1218.092834 | J44: -0.02716774354 | M44: =IF(AND(VLOOKUP($B44,Lookup!$B$3:$E$222,4,FALSE)=$H$5,B44<>$J$4),F44,NA()) ->  | N44: =IF(AND(VLOOKUP($B44,Lookup!$B$3:$E$222,4,FALSE)=$H$5,B44<>$J$4),G44,NA()) ->  | O44: =IF(ISNUMBER(MATCH($B44,Lookup!$P$3:$P$260,0)),F44,NA()) ->  | P44: =IF(ISNUMBER(MATCH($B44,Lookup!$P$3:$P$260,0)),G44,NA()) ->  | R44: 71 | AE44: 0 | AF44: 0 | AG44: 34 | AH44: -0.04340833946 | AI44: -0.04273093631
A45: 37 | B45: 07V | C45: NHS Croydon CCG | E45: 3400 | F45: 3570.78713 | G45: -0.04782898662 | H45: low | I45: 3570.78713 | J45: -0.04782898662 | M45: =IF(AND(VLOOKUP($B45,Lookup!$B$3:$E$222,4,FALSE)=$H$5,B45<>$J$4),F45,NA()) ->  | N45: =IF(AND(VLOOKUP($B45,Lookup!$B$3:$E$222,4,FALSE)=$H$5,B45<>$J$4),G45,NA()) ->  | O45: =IF(ISNUMBER(MATCH($B45,Lookup!$P$3:$P$260,0)),F45,NA()) ->  | P45: =IF(ISNUMBER(MATCH($B45,Lookup!$P$3:$P$260,0)),G45,NA()) ->  | R45: 77 | AE45: 0 | AF45: 0 | AG45: 35 | AH45: -0.04340833946 | AI45: -0.04273093631
A46: 38 | B46: 00C | C46: NHS Darlington CCG | E46: 1905 | F46: 1900.582777 | G46: 0.002324141234 | I46: 1900.582777 | J46: 0.002324141234 | M46: =IF(AND(VLOOKUP($B46,Lookup!$B$3:$E$222,4,FALSE)=$H$5,B46<>$J$4),F46,NA()) ->  | N46: =IF(AND(VLOOKUP($B46,Lookup!$B$3:$E$222,4,FALSE)=$H$5,B46<>$J$4),G46,NA()) ->  | O46: =IF(ISNUMBER(MATCH($B46,Lookup!$P$3:$P$260,0)),F46,NA()) ->  | P46: =IF(ISNUMBER(MATCH($B46,Lookup!$P$3:$P$260,0)),G46,NA()) ->  | R46: 83 | AE46: 0 | AF46: 0 | AG46: 36 | AH46: -0.04340833946 | AI46: -0.04273093631
A47: 39 | B47: 09J | C47: NHS Dartford, Gravesham and Swanley CCG | E47: 1790 | F47: 1922.311936 | G47: -0.06882958675 | H47: low | I47: 1922.311936 | J47: -0.06882958675 | M47: =IF(AND(VLOOKUP($B47,Lookup!$B$3:$E$222,4,FALSE)=$H$5,B47<>$J$4),F47,NA()) ->  | N47: =IF(AND(VLOOKUP($B47,Lookup!$B$3:$E$222,4,FALSE)=$H$5,B47<>$J$4),G47,NA()) ->  | O47: =IF(ISNUMBER(MATCH($B47,Lookup!$P$3:$P$260,0)),F47,NA()) ->  | P47: =IF(ISNUMBER(MATCH($B47,Lookup!$P$3:$P$260,0)),G47,NA()) ->  | R47: 90 | AE47: 0 | AF47: 0 | AG47: 37 | AH47: -0.04340833946 | AI47: -0.04273093631
A48: 40 | B48: 02X | C48: NHS Doncaster CCG | E48: 4740 | F48: 4833.961422 | G48: -0.01943776821 | I48: 4833.961422 | J48: -0.01943776821 | M48: =IF(AND(VLOOKUP($B48,Lookup!$B$3:$E$222,4,FALSE)=$H$5,B48<>$J$4),F48,NA()) ->  | N48: =IF(AND(VLOOKUP($B48,Lookup!$B$3:$E$222,4,FALSE)=$H$5,B48<>$J$4),G48,NA()) ->  | O48: =IF(ISNUMBER(MATCH($B48,Lookup!$P$3:$P$260,0)),F48,NA()) ->  | P48: =IF(ISNUMBER(MATCH($B48,Lookup!$P$3:$P$260,0)),G48,NA()) ->  | R48: 98 | AE48: 0 | AF48: 0 | AG48: 38 | AH48: -0.04340833946 | AI48: -0.04273093631
A49: 41 | B49: 11J | C49: NHS Dorset CCG | E49: 9340 | F49: 9783.353272 | G49: -0.0453171075 | H49: low | I49: 9783.353272 | J49: -0.0453171075 | M49: =IF(AND(VLOOKUP($B49,Lookup!$B$3:$E$222,4,FALSE)=$H$5,B49<>$J$4),F49,NA()) ->  | N49: =IF(AND(VLOOKUP($B49,Lookup!$B$3:$E$222,4,FALSE)=$H$5,B49<>$J$4),G49,NA()) ->  | O49: =IF(ISNUMBER(MATCH($B49,Lookup!$P$3:$P$260,0)),F49,NA()) ->  | P49: =IF(ISNUMBER(MATCH($B49,Lookup!$P$3:$P$260,0)),G49,NA()) ->  | R49: 106 | AE49: 0 | AF49: 0 | AG49: 39 | AH49: -0.04340833946 | AI49: -0.04273093631
A50: 42 | B50: 05C | C50: NHS Dudley CCG | E50: 5525 | F50: 5610.250239 | G50: -0.01519544316 | I50: 5610.250239 | J50: -0.01519544316 | M50: =IF(AND(VLOOKUP($B50,Lookup!$B$3:$E$222,4,FALSE)=$H$5,B50<>$J$4),F50,NA()) ->  | N50: =IF(AND(VLOOKUP($B50,Lookup!$B$3:$E$222,4,FALSE)=$H$5,B50<>$J$4),G50,NA()) ->  | O50: =IF(ISNUMBER(MATCH($B50,Lookup!$P$3:$P$260,0)),F50,NA()) ->  | P50: =IF(ISNUMBER(MATCH($B50,Lookup!$P$3:$P$260,0)),G50,NA()) ->  | R50: 115 | AE50: 0 | AF50: 0 | AG50: 40 | AH50: -0.04340833946 | AI50: -0.04273093631
A51: 43 | B51: 00D | C51: NHS Durham Dales, Easington and Sedgefield CCG | E51: 5305 | F51: 5474.530752 | G51: -0.03096717508 | H51: low | I51: 5474.530752 | J51: -0.03096717508 | M51: =IF(AND(VLOOKUP($B51,Lookup!$B$3:$E$222,4,FALSE)=$H$5,B51<>$J$4),F51,NA()) ->  | N51: =IF(AND(VLOOKUP($B51,Lookup!$B$3:$E$222,4,FALSE)=$H$5,B51<>$J$4),G51,NA()) ->  | O51: =IF(ISNUMBER(MATCH($B51,Lookup!$P$3:$P$260,0)),F51,NA()) ->  | P51: =IF(ISNUMBER(MATCH($B51,Lookup!$P$3:$P$260,0)),G51,NA()) ->  | R51: 125 | AE51: 0 | AF51: 0 | AG51: 41 | AH51: -0.04340833946 | AI51: -0.04273093631
A52: 44 | B52: 07W | C52: NHS Ealing CCG | E52: 4030 | F52: 4122.31977 | G52: -0.02239510156 | I52: 4122.31977 | J52: -0.02239510156 | M52: =IF(AND(VLOOKUP($B52,Lookup!$B$3:$E$222,4,FALSE)=$H$5,B52<>$J$4),F52,NA()) ->  | N52: =IF(AND(VLOOKUP($B52,Lookup!$B$3:$E$222,4,FALSE)=$H$5,B52<>$J$4),G52,NA()) ->  | O52: =IF(ISNUMBER(MATCH($B52,Lookup!$P$3:$P$260,0)),F52,NA()) ->  | P52: =IF(ISNUMBER(MATCH($B52,Lookup!$P$3:$P$260,0)),G52,NA()) ->  | R52: 135 | AE52: 0 | AF52: 0 | AG52: 42 | AH52: -0.04340833946 | AI52: -0.04273093631
A53: 45 | B53: 06K | C53: NHS East and North Hertfordshire CCG | E53: 4865 | F53: 5080.832469 | G53: -0.04247974523 | H53: low | I53: 5080.832469 | J53: -0.04247974523 | M53: =IF(AND(VLOOKUP($B53,Lookup!$B$3:$E$222,4,FALSE)=$H$5,B53<>$J$4),F53,NA()) ->  | N53: =IF(AND(VLOOKUP($B53,Lookup!$B$3:$E$222,4,FALSE)=$H$5,B53<>$J$4),G53,NA()) ->  | O53: =IF(ISNUMBER(MATCH($B53,Lookup!$P$3:$P$260,0)),F53,NA()) ->  | P53: =IF(ISNUMBER(MATCH($B53,Lookup!$P$3:$P$260,0)),G53,NA()) ->  | R53: 146 | AE53: 0 | AF53: 0 | AG53: 43 | AH53: -0.04340833946 | AI53: -0.04273093631
A54: 46 | B54: 15D | C54: NHS East Berkshire CCG | E54: 2900 | F54: 3021.570769 | G54: -0.0402342948 | H54: low | I54: 3021.570769 | J54: -0.0402342948 | M54: =IF(AND(VLOOKUP($B54,Lookup!$B$3:$E$222,4,FALSE)=$H$5,B54<>$J$4),F54,NA()) ->  | N54: =IF(AND(VLOOKUP($B54,Lookup!$B$3:$E$222,4,FALSE)=$H$5,B54<>$J$4),G54,NA()) ->  | O54: =IF(ISNUMBER(MATCH($B54,Lookup!$P$3:$P$260,0)),F54,NA()) ->  | P54: =IF(ISNUMBER(MATCH($B54,Lookup!$P$3:$P$260,0)),G54,NA()) ->  | R54: 158 | AE54: 0 | AF54: 0 | AG54: 44 | AH54: -0.04340833946 | AI54: -0.04273093631
A55: 47 | B55: 01A | C55: NHS East Lancashire CCG | E55: 5125 | F55: 5217.064954 | G55: -0.01764688662 | I55: 5217.064954 | J55: -0.01764688662 | M55: =IF(AND(VLOOKUP($B55,Lookup!$B$3:$E$222,4,FALSE)=$H$5,B55<>$J$4),F55,NA()) ->  | N55: =IF(AND(VLOOKUP($B55,Lookup!$B$3:$E$222,4,FALSE)=$H$5,B55<>$J$4),G55,NA()) ->  | O55: =IF(ISNUMBER(MATCH($B55,Lookup!$P$3:$P$260,0)),F55,NA()) ->  | P55: =IF(ISNUMBER(MATCH($B55,Lookup!$P$3:$P$260,0)),G55,NA()) ->  | R55: 171 | AE55: 0 | AF55: 0 | AG55: 45 | AH55: -0.04340833946 | AI55: -0.04273093631
A56: 48 | B56: 03W | C56: NHS East Leicestershire and Rutland CCG | E56: 2430 | F56: 2657.13337 | G56: -0.08548060588 | H56: low | I56: 2657.13337 | J56: -0.08548060588 | M56: =IF(AND(VLOOKUP($B56,Lookup!$B$3:$E$222,4,FALSE)=$H$5,B56<>$J$4),F56,NA()) ->  | N56: =IF(AND(VLOOKUP($B56,Lookup!$B$3:$E$222,4,FALSE)=$H$5,B56<>$J$4),G56,NA()) ->  | O56: =IF(ISNUMBER(MATCH($B56,Lookup!$P$3:$P$260,0)),F56,NA()) ->  | P56: =IF(ISNUMBER(MATCH($B56,Lookup!$P$3:$P$260,0)),G56,NA()) ->  | R56: 185 | AE56: 0 | AF56: 0 | AG56: 46 | AH56: -0.04340833946 | AI56: -0.04273093631
A57: 49 | B57: 02Y | C57: NHS East Riding of Yorkshire CCG | E57: 5065 | F57: 5088.293943 | G57: -0.004577947564 | I57: 5088.293943 | J57: -0.004577947564 | M57: =IF(AND(VLOOKUP($B57,Lookup!$B$3:$E$222,4,FALSE)=$H$5,B57<>$J$4),F57,NA()) ->  | N57: =IF(AND(VLOOKUP($B57,Lookup!$B$3:$E$222,4,FALSE)=$H$5,B57<>$J$4),G57,NA()) ->  | O57: =IF(ISNUMBER(MATCH($B57,Lookup!$P$3:$P$260,0)),F57,NA()) ->  | P57: =IF(ISNUMBER(MATCH($B57,Lookup!$P$3:$P$260,0)),G57,NA()) ->  | R57: 200 | AE57: 0 | AF57: 0 | AG57: 47 | AH57: -0.04340833946 | AI57: -0.04273093631
A58: 50 | B58: 05D | C58: NHS East Staffordshire CCG | E58: 1450 | F58: 1513.999833 | G58: -0.04227202108 | I58: 1513.999833 | J58: -0.04227202108 | M58: =IF(AND(VLOOKUP($B58,Lookup!$B$3:$E$222,4,FALSE)=$H$5,B58<>$J$4),F58,NA()) ->  | N58: =IF(AND(VLOOKUP($B58,Lookup!$B$3:$E$222,4,FALSE)=$H$5,B58<>$J$4),G58,NA()) ->  | O58: =IF(ISNUMBER(MATCH($B58,Lookup!$P$3:$P$260,0)),F58,NA()) -> 1513.999833 | P58: =IF(ISNUMBER(MATCH($B58,Lookup!$P$3:$P$260,0)),G58,NA()) -> -0.04227202108 | R58: 217 | AE58: 0 | AF58: 0 | AG58: 48 | AH58: -0.04340833946 | AI58: -0.04273093631
A59: 51 | B59: 09L | C59: NHS East Surrey CCG | E59: 1510 | F59: 1557.873081 | G59: -0.03072976959 | I59: 1557.873081 | J59: -0.03072976959 | M59: =IF(AND(VLOOKUP($B59,Lookup!$B$3:$E$222,4,FALSE)=$H$5,B59<>$J$4),F59,NA()) ->  | N59: =IF(AND(VLOOKUP($B59,Lookup!$B$3:$E$222,4,FALSE)=$H$5,B59<>$J$4),G59,NA()) ->  | O59: =IF(ISNUMBER(MATCH($B59,Lookup!$P$3:$P$260,0)),F59,NA()) ->  | P59: =IF(ISNUMBER(MATCH($B59,Lookup!$P$3:$P$260,0)),G59,NA()) ->  | R59: 235 | AE59: 0 | AF59: 0 | AG59: 49 | AH59: -0.04340833946 | AI59: -0.04273093631
A60: 52 | B60: 09F | C60: NHS Eastbourne, Hailsham and Seaford CCG | E60: 2035 | F60: 2114.177066 | G60: -0.0374505369 | I60: 2114.177066 | J60: -0.0374505369 | M60: =IF(AND(VLOOKUP($B60,Lookup!$B$3:$E$222,4,FALSE)=$H$5,B60<>$J$4),F60,NA()) ->  | N60: =IF(AND(VLOOKUP($B60,Lookup!$B$3:$E$222,4,FALSE)=$H$5,B60<>$J$4),G60,NA()) ->  | O60: =IF(ISNUMBER(MATCH($B60,Lookup!$P$3:$P$260,0)),F60,NA()) ->  | P60: =IF(ISNUMBER(MATCH($B60,Lookup!$P$3:$P$260,0)),G60,NA()) ->  | R60: 255 | AE60: 0 | AF60: 0 | AG60: 50 | AH60: -0.04340833946 | AI60: -0.04273093631
A61: 53 | B61: 01C | C61: NHS Eastern Cheshire CCG | E61: 1810 | F61: 1826.9841 | G61: -0.009296249665 | I61: 1826.9841 | J61: -0.009296249665 | M61: =IF(AND(VLOOKUP($B61,Lookup!$B$3:$E$222,4,FALSE)=$H$5,B61<>$J$4),F61,NA()) ->  | N61: =IF(AND(VLOOKUP($B61,Lookup!$B$3:$E$222,4,FALSE)=$H$5,B61<>$J$4),G61,NA()) ->  | O61: =IF(ISNUMBER(MATCH($B61,Lookup!$P$3:$P$260,0)),F61,NA()) ->  | P61: =IF(ISNUMBER(MATCH($B61,Lookup!$P$3:$P$260,0)),G61,NA()) ->  | R61: 276 | AE61: 0 | AF61: 0 | AG61: 51 | AH61: -0.04340833946 | AI61: -0.04273093631
A62: 54 | B62: 07X | C62: NHS Enfield CCG | E62: 5125 | F62: 5212.205821 | G62: -0.01673107777 | I62: 5212.205821 | J62: -0.01673107777 | M62: =IF(AND(VLOOKUP($B62,Lookup!$B$3:$E$222,4,FALSE)=$H$5,B62<>$J$4),F62,NA()) ->  | N62: =IF(AND(VLOOKUP($B62,Lookup!$B$3:$E$222,4,FALSE)=$H$5,B62<>$J$4),G62,NA()) ->  | O62: =IF(ISNUMBER(MATCH($B62,Lookup!$P$3:$P$260,0)),F62,NA()) ->  | P62: =IF(ISNUMBER(MATCH($B62,Lookup!$P$3:$P$260,0)),G62,NA()) ->  | R62: 299 | AE62: 0 | AF62: 0 | AG62: 52 | AH62: -0.04340833946 | AI62: -0.04273093631
A63: 55 | B63: 03X | C63: NHS Erewash CCG | E63: 970 | F63: 1062.857552 | G63: -0.08736594277 | H63: low | I63: 1062.857552 | J63: -0.08736594277 | M63: =IF(AND(VLOOKUP($B63,Lookup!$B$3:$E$222,4,FALSE)=$H$5,B63<>$J$4),F63,NA()) ->  | N63: =IF(AND(VLOOKUP($B63,Lookup!$B$3:$E$222,4,FALSE)=$H$5,B63<>$J$4),G63,NA()) ->  | O63: =IF(ISNUMBER(MATCH($B63,Lookup!$P$3:$P$260,0)),F63,NA()) ->  | P63: =IF(ISNUMBER(MATCH($B63,Lookup!$P$3:$P$260,0)),G63,NA()) ->  | R63: 324 | AE63: 0 | AF63: 0 | AG63: 53 | AH63: -0.04340833946 | AI63: -0.04273093631
A64: 56 | B64: 10K | C64: NHS Fareham and Gosport CCG | E64: 1625 | F64: 1690.450708 | G64: -0.03871790405 | I64: 1690.450708 | J64: -0.03871790405 | M64: =IF(AND(VLOOKUP($B64,Lookup!$B$3:$E$222,4,FALSE)=$H$5,B64<>$J$4),F64,NA()) ->  | N64: =IF(AND(VLOOKUP($B64,Lookup!$B$3:$E$222,4,FALSE)=$H$5,B64<>$J$4),G64,NA()) ->  | O64: =IF(ISNUMBER(MATCH($B64,Lookup!$P$3:$P$260,0)),F64,NA()) ->  | P64: =IF(ISNUMBER(MATCH($B64,Lookup!$P$3:$P$260,0)),G64,NA()) ->  | R64: 351 | AE64: 0 | AF64: 0 | AG64: 54 | AH64: -0.04340833946 | AI64: -0.04273093631
A65: 57 | B65: 02M | C65: NHS Fylde and Wyre CCG | E65: 1930 | F65: 2070.149299 | G65: -0.06770009262 | H65: low | I65: 2070.149299 | J65: -0.06770009262 | M65: =IF(AND(VLOOKUP($B65,Lookup!$B$3:$E$222,4,FALSE)=$H$5,B65<>$J$4),F65,NA()) ->  | N65: =IF(AND(VLOOKUP($B65,Lookup!$B$3:$E$222,4,FALSE)=$H$5,B65<>$J$4),G65,NA()) ->  | O65: =IF(ISNUMBER(MATCH($B65,Lookup!$P$3:$P$260,0)),F65,NA()) ->  | P65: =IF(ISNUMBER(MATCH($B65,Lookup!$P$3:$P$260,0)),G65,NA()) ->  | R65: 380 | AE65: 0 | AF65: 0 | AG65: 55 | AH65: -0.04340833946 | AI65: -0.04273093631
A66: 58 | B66: 11M | C66: NHS Gloucestershire CCG | E66: 5305 | F66: 5557.324059 | G66: -0.04540387712 | H66: low | I66: 5557.324059 | J66: -0.04540387712 | M66: =IF(AND(VLOOKUP($B66,Lookup!$B$3:$E$222,4,FALSE)=$H$5,B66<>$J$4),F66,NA()) ->  | N66: =IF(AND(VLOOKUP($B66,Lookup!$B$3:$E$222,4,FALSE)=$H$5,B66<>$J$4),G66,NA()) ->  | O66: =IF(ISNUMBER(MATCH($B66,Lookup!$P$3:$P$260,0)),F66,NA()) ->  | P66: =IF(ISNUMBER(MATCH($B66,Lookup!$P$3:$P$260,0)),G66,NA()) ->  | R66: 412 | AE66: 0 | AF66: 0 | AG66: 56 | AH66: -0.04340833946 | AI66: -0.04273093631
A67: 59 | B67: 06M | C67: NHS Great Yarmouth and Waveney CCG | E67: 4025 | F67: 4134.828923 | G67: -0.02656190263 | I67: 4134.828923 | J67: -0.02656190263 | M67: =IF(AND(VLOOKUP($B67,Lookup!$B$3:$E$222,4,FALSE)=$H$5,B67<>$J$4),F67,NA()) ->  | N67: =IF(AND(VLOOKUP($B67,Lookup!$B$3:$E$222,4,FALSE)=$H$5,B67<>$J$4),G67,NA()) ->  | O67: =IF(ISNUMBER(MATCH($B67,Lookup!$P$3:$P$260,0)),F67,NA()) ->  | P67: =IF(ISNUMBER(MATCH($B67,Lookup!$P$3:$P$260,0)),G67,NA()) ->  | R67: 446 | AE67: 0 | AF67: 0 | AG67: 57 | AH67: -0.04340833946 | AI67: -0.04273093631
A68: 60 | B68: 03A | C68: NHS Greater Huddersfield CCG | E68: 2230 | F68: 2312.002149 | G68: -0.03546802443 | I68: 2312.002149 | J68: -0.03546802443 | M68: =IF(AND(VLOOKUP($B68,Lookup!$B$3:$E$222,4,FALSE)=$H$5,B68<>$J$4),F68,NA()) -> 2312.002149 | N68: =IF(AND(VLOOKUP($B68,Lookup!$B$3:$E$222,4,FALSE)=$H$5,B68<>$J$4),G68,NA()) -> -0.03546802443 | O68: =IF(ISNUMBER(MATCH($B68,Lookup!$P$3:$P$260,0)),F68,NA()) ->  | P68: =IF(ISNUMBER(MATCH($B68,Lookup!$P$3:$P$260,0)),G68,NA()) ->  | R68: 483 | AE68: 0 | AF68: 0 | AG68: 58 | AH68: -0.04340833946 | AI68: -0.04273093631
A69: 61 | B69: 01E | C69: NHS Greater Preston CCG | E69: 2510 | F69: 2587.601991 | G69: -0.0299899255 | I69: 2587.601991 | J69: -0.0299899255 | M69: =IF(AND(VLOOKUP($B69,Lookup!$B$3:$E$222,4,FALSE)=$H$5,B69<>$J$4),F69,NA()) ->  | N69: =IF(AND(VLOOKUP($B69,Lookup!$B$3:$E$222,4,FALSE)=$H$5,B69<>$J$4),G69,NA()) ->  | O69: =IF(ISNUMBER(MATCH($B69,Lookup!$P$3:$P$260,0)),F69,NA()) ->  | P69: =IF(ISNUMBER(MATCH($B69,Lookup!$P$3:$P$260,0)),G69,NA()) ->  | R69: 523 | AE69: 0 | AF69: 0 | AG69: 59 | AH69: -0.04340833946 | AI69: -0.04273093631
A70: 62 | B70: 08A | C70: NHS Greenwich CCG | E70: 2350 | F70: 2508.733077 | G70: -0.06327220628 | H70: low | I70: 2508.733077 | J70: -0.06327220628 | M70: =IF(AND(VLOOKUP($B70,Lookup!$B$3:$E$222,4,FALSE)=$H$5,B70<>$J$4),F70,NA()) ->  | N70: =IF(AND(VLOOKUP($B70,Lookup!$B$3:$E$222,4,FALSE)=$H$5,B70<>$J$4),G70,NA()) ->  | O70: =IF(ISNUMBER(MATCH($B70,Lookup!$P$3:$P$260,0)),F70,NA()) ->  | P70: =IF(ISNUMBER(MATCH($B70,Lookup!$P$3:$P$260,0)),G70,NA()) ->  | R70: 567 | AE70: 0 | AF70: 0 | AG70: 60 | AH70: -0.04340833946 | AI70: -0.04273093631
A71: 63 | B71: 09N | C71: NHS Guildford and Waverley CCG | E71: 1470 | F71: 1547.152342 | G71: -0.04986732093 | I71: 1547.152342 | J71: -0.04986732093 | M71: =IF(AND(VLOOKUP($B71,Lookup!$B$3:$E$222,4,FALSE)=$H$5,B71<>$J$4),F71,NA()) ->  | N71: =IF(AND(VLOOKUP($B71,Lookup!$B$3:$E$222,4,FALSE)=$H$5,B71<>$J$4),G71,NA()) ->  | O71: =IF(ISNUMBER(MATCH($B71,Lookup!$P$3:$P$260,0)),F71,NA()) ->  | P71: =IF(ISNUMBER(MATCH($B71,Lookup!$P$3:$P$260,0)),G71,NA()) ->  | R71: 614 | AE71: 0 | AF71: 0 | AG71: 61 | AH71: -0.04340833946 | AI71: -0.04273093631
A72: 64 | B72: 01F | C72: NHS Halton CCG | E72: 1960 | F72: 2037.947624 | G72: -0.03824809963 | I72: 2037.947624 | J72: -0.03824809963 | M72: =IF(AND(VLOOKUP($B72,Lookup!$B$3:$E$222,4,FALSE)=$H$5,B72<>$J$4),F72,NA()) ->  | N72: =IF(AND(VLOOKUP($B72,Lookup!$B$3:$E$222,4,FALSE)=$H$5,B72<>$J$4),G72,NA()) ->  | O72: =IF(ISNUMBER(MATCH($B72,Lookup!$P$3:$P$260,0)),F72,NA()) ->  | P72: =IF(ISNUMBER(MATCH($B72,Lookup!$P$3:$P$260,0)),G72,NA()) ->  | R72: 665 | AE72: 0 | AF72: 0 | AG72: 62 | AH72: -0.04340833946 | AI72: -0.04273093631
A73: 65 | B73: 03D | C73: NHS Hambleton, Richmondshire and Whitby CCG | E73: 1795 | F73: 1839.140863 | G73: -0.02400080603 | I73: =IF(F73="",#N/A,F73) -> 1839.140863 | J73: -0.02400080603 | M73: =IF(AND(VLOOKUP($B73,Lookup!$B$3:$E$222,4,FALSE)=$H$5,B73<>$J$4),F73,NA()) ->  | N73: =IF(AND(VLOOKUP($B73,Lookup!$B$3:$E$222,4,FALSE)=$H$5,B73<>$J$4),G73,NA()) ->  | O73: =IF(ISNUMBER(MATCH($B73,Lookup!$P$3:$P$260,0)),F73,NA()) ->  | P73: =IF(ISNUMBER(MATCH($B73,Lookup!$P$3:$P$260,0)),G73,NA()) ->  | R73: 721 | AE73: =$E$3 -> 0 | AF73: 0 | AG73: 63 | AH73: -0.04340833946 | AI73: -0.04273093631
A74: 66 | B74: 08C | C74: NHS Hammersmith and Fulham CCG | E74: =IFERROR(INDEX(INDIRECT($E$6),$A74), "") -> 915 | F74: =IFERROR(INDEX(INDIRECT($F$6),$A74), "") -> 1038.136686 | G74: =IF(OR(E74="",E74=0),"",E74/F74-1) -> -0.1186131727 | H74: =IFERROR(IF(INDEX(INDIRECT($H$6),$A74)=0, "",INDEX(INDIRECT($H$6),$A74)),"") -> low | I74: 1038.136686 | J74: -0.1186131727 | K74: =IF(B74=$J$4,F74,NA()) ->  | L74: =IF(B74=$J$4,G74,NA()) ->  | M74: =IF(AND(VLOOKUP($B74,Lookup!$B$3:$E$222,4,FALSE)=$H$5,B74<>$J$4),F74,NA()) ->  | N74: =IF(AND(VLOOKUP($B74,Lookup!$B$3:$E$222,4,FALSE)=$H$5,B74<>$J$4),G74,NA()) ->  | O74: =IF(ISNUMBER(MATCH($B74,Lookup!$P$3:$P$260,0)),F74,NA()) ->  | P74: =IF(ISNUMBER(MATCH($B74,Lookup!$P$3:$P$260,0)),G74,NA()) ->  | R74: 781 | AE74: 0 | AF74: 0 | AG74: 64 | AH74: -0.04340833946 | AI74: -0.04273093631
A75: 67 | B75: 03Y | C75: NHS Hardwick CCG | E75: 1445 | F75: 1501.77335 | G75: -0.0378042065 | I75: 1501.77335 | J75: -0.0378042065 | M75: =IF(AND(VLOOKUP($B75,Lookup!$B$3:$E$222,4,FALSE)=$H$5,B75<>$J$4),F75,NA()) ->  | N75: =IF(AND(VLOOKUP($B75,Lookup!$B$3:$E$222,4,FALSE)=$H$5,B75<>$J$4),G75,NA()) ->  | O75: =IF(ISNUMBER(MATCH($B75,Lookup!$P$3:$P$260,0)),F75,NA()) ->  | P75: =IF(ISNUMBER(MATCH($B75,Lookup!$P$3:$P$260,0)),G75,NA()) ->  | R75: 846 | S75: =poishigh($R75,0.025) ->  | T75: =$R75/S75-1 ->  | U75: =$R75/S75*100 ->  | V75: =poislow($R75,0.025) ->  | W75: =$R75/V75-1 ->  | X75: =$R75/V75*100 ->  | Y75: =poishigh($R75,0.001) ->  | Z75: =$R75/Y75-1 ->  | AA75: =$R75/Y75*100 ->  | AB75: =poislow($R75,0.001) ->  | AC75: =$R75/AB75-1 ->  | AD75: =$R75/AB75*100 ->  | AE75: 0 | AF75: =$E$4 -> 0 | AG75: 65 | AH75: =AH$9 -> -0.04340833946 | AI75: =$AI$9 -> -0.04273093631
A76: 68 | B76: 08D | C76: NHS Haringey CCG | E76: 3435 | F76: 3558.197268 | G76: -0.03462350686 | H76: low | I76: 3558.197268 | J76: -0.03462350686 | M76: =IF(AND(VLOOKUP($B76,Lookup!$B$3:$E$222,4,FALSE)=$H$5,B76<>$J$4),F76,NA()) ->  | N76: =IF(AND(VLOOKUP($B76,Lookup!$B$3:$E$222,4,FALSE)=$H$5,B76<>$J$4),G76,NA()) ->  | O76: =IF(ISNUMBER(MATCH($B76,Lookup!$P$3:$P$260,0)),F76,NA()) ->  | P76: =IF(ISNUMBER(MATCH($B76,Lookup!$P$3:$P$260,0)),G76,NA()) ->  | R76: =MAX(ROUND(($X$4/R75)^(1/(101-AG76))*R75,0),R75+1) -> 917 | AE76: 0 | AF76: 0 | AG76: =AG75+1 -> 66 | AH76: -0.04340833946 | AI76: -0.04273093631
A77: 69 | B77: 03E | C77: NHS Harrogate and Rural District CCG | E77: 1990 | F77: 2102.654847 | G77: -0.05357743206 | H77: low | I77: 2102.654847 | J77: -0.05357743206 | M77: =IF(AND(VLOOKUP($B77,Lookup!$B$3:$E$222,4,FALSE)=$H$5,B77<>$J$4),F77,NA()) -> 2102.654847 | N77: =IF(AND(VLOOKUP($B77,Lookup!$B$3:$E$222,4,FALSE)=$H$5,B77<>$J$4),G77,NA()) -> -0.05357743206 | O77: =IF(ISNUMBER(MATCH($B77,Lookup!$P$3:$P$260,0)),F77,NA()) ->  | P77: =IF(ISNUMBER(MATCH($B77,Lookup!$P$3:$P$260,0)),G77,NA()) ->  | R77: 994 | AE77: 0 | AF77: 0 | AG77: =AG76+1 -> 67 | AH77: -0.04340833946 | AI77: -0.04273093631
A78: 70 | B78: 08E | C78: NHS Harrow CCG | E78: 3135 | F78: 3286.317632 | G78: -0.04604473727 | H78: low | I78: 3286.317632 | J78: -0.04604473727 | M78: =IF(AND(VLOOKUP($B78,Lookup!$B$3:$E$222,4,FALSE)=$H$5,B78<>$J$4),F78,NA()) ->  | N78: =IF(AND(VLOOKUP($B78,Lookup!$B$3:$E$222,4,FALSE)=$H$5,B78<>$J$4),G78,NA()) ->  | O78: =IF(ISNUMBER(MATCH($B78,Lookup!$P$3:$P$260,0)),F78,NA()) ->  | P78: =IF(ISNUMBER(MATCH($B78,Lookup!$P$3:$P$260,0)),G78,NA()) ->  | R78: 1077 | AE78: 0 | AF78: 0 | AG78: 68 | AH78: -0.04340833946 | AI78: -0.04273093631
A79: 71 | B79: 00K | C79: NHS Hartlepool and Stockton-on-Tees CCG | E79: 4065 | F79: 4222.928905 | G79: -0.03739795505 | H79: low | I79: 4222.928905 | J79: -0.03739795505 | M79: =IF(AND(VLOOKUP($B79,Lookup!$B$3:$E$222,4,FALSE)=$H$5,B79<>$J$4),F79,NA()) ->  | N79: =IF(AND(VLOOKUP($B79,Lookup!$B$3:$E$222,4,FALSE)=$H$5,B79<>$J$4),G79,NA()) ->  | O79: =IF(ISNUMBER(MATCH($B79,Lookup!$P$3:$P$260,0)),F79,NA()) ->  | P79: =IF(ISNUMBER(MATCH($B79,Lookup!$P$3:$P$260,0)),G79,NA()) ->  | R79: 1167 | AE79: 0 | AF79: 0 | AG79: 69 | AH79: -0.04340833946 | AI79: -0.04273093631
A80: 72 | B80: 09P | C80: NHS Hastings and Rother CCG | E80: 2000 | F80: 2093.070598 | G80: -0.04446605787 | H80: low | I80: 2093.070598 | J80: -0.04446605787 | M80: =IF(AND(VLOOKUP($B80,Lookup!$B$3:$E$222,4,FALSE)=$H$5,B80<>$J$4),F80,NA()) ->  | N80: =IF(AND(VLOOKUP($B80,Lookup!$B$3:$E$222,4,FALSE)=$H$5,B80<>$J$4),G80,NA()) ->  | O80: =IF(ISNUMBER(MATCH($B80,Lookup!$P$3:$P$260,0)),F80,NA()) ->  | P80: =IF(ISNUMBER(MATCH($B80,Lookup!$P$3:$P$260,0)),G80,NA()) ->  | R80: 1264 | AE80: 0 | AF80: 0 | AG80: 70 | AH80: -0.04340833946 | AI80: -0.04273093631
A81: 73 | B81: 08F | C81: NHS Havering CCG | E81: 2625 | F81: 2719.106642 | G81: -0.03460939728 | I81: 2719.106642 | J81: -0.03460939728 | M81: =IF(AND(VLOOKUP($B81,Lookup!$B$3:$E$222,4,FALSE)=$H$5,B81<>$J$4),F81,NA()) ->  | N81: =IF(AND(VLOOKUP($B81,Lookup!$B$3:$E$222,4,FALSE)=$H$5,B81<>$J$4),G81,NA()) ->  | O81: =IF(ISNUMBER(MATCH($B81,Lookup!$P$3:$P$260,0)),F81,NA()) ->  | P81: =IF(ISNUMBER(MATCH($B81,Lookup!$P$3:$P$260,0)),G81,NA()) ->  | R81: 1369 | AE81: 0 | AF81: 0 | AG81: 71 | AH81: -0.04340833946 | AI81: -0.04273093631
A82: 74 | B82: 05F | C82: NHS Herefordshire CCG | E82: 1255 | F82: 1399.487337 | G82: -0.1032430472 | H82: low | I82: 1399.487337 | J82: -0.1032430472 | M82: =IF(AND(VLOOKUP($B82,Lookup!$B$3:$E$222,4,FALSE)=$H$5,B82<>$J$4),F82,NA()) ->  | N82: =IF(AND(VLOOKUP($B82,Lookup!$B$3:$E$222,4,FALSE)=$H$5,B82<>$J$4),G82,NA()) ->  | O82: =IF(ISNUMBER(MATCH($B82,Lookup!$P$3:$P$260,0)),F82,NA()) ->  | P82: =IF(ISNUMBER(MATCH($B82,Lookup!$P$3:$P$260,0)),G82,NA()) ->  | R82: 1483 | AE82: 0 | AF82: 0 | AG82: 72 | AH82: -0.04340833946 | AI82: -0.04273093631
A83: 75 | B83: 06N | C83: NHS Herts Valleys CCG | E83: 4425 | F83: 4669.873082 | G83: -0.05243677462 | H83: low | I83: 4669.873082 | J83: -0.05243677462 | M83: =IF(AND(VLOOKUP($B83,Lookup!$B$3:$E$222,4,FALSE)=$H$5,B83<>$J$4),F83,NA()) ->  | N83: =IF(AND(VLOOKUP($B83,Lookup!$B$3:$E$222,4,FALSE)=$H$5,B83<>$J$4),G83,NA()) ->  | O83: =IF(ISNUMBER(MATCH($B83,Lookup!$P$3:$P$260,0)),F83,NA()) ->  | P83: =IF(ISNUMBER(MATCH($B83,Lookup!$P$3:$P$260,0)),G83,NA()) ->  | R83: 1607 | AE83: 0 | AF83: 0 | AG83: 73 | AH83: -0.04340833946 | AI83: -0.04273093631
A84: 76 | B84: 01D | C84: NHS Heywood, Middleton and Rochdale CCG | E84: 3375 | F84: 3509.054985 | G84: -0.03820258892 | H84: low | I84: 3509.054985 | J84: -0.03820258892 | M84: =IF(AND(VLOOKUP($B84,Lookup!$B$3:$E$222,4,FALSE)=$H$5,B84<>$J$4),F84,NA()) ->  | N84: =IF(AND(VLOOKUP($B84,Lookup!$B$3:$E$222,4,FALSE)=$H$5,B84<>$J$4),G84,NA()) ->  | O84: =IF(ISNUMBER(MATCH($B84,Lookup!$P$3:$P$260,0)),F84,NA()) ->  | P84: =IF(ISNUMBER(MATCH($B84,Lookup!$P$3:$P$260,0)),G84,NA()) ->  | R84: 1741 | AE84: 0 | AF84: 0 | AG84: 74 | AH84: -0.04340833946 | AI84: -0.04273093631
A85: 77 | B85: 99K | C85: NHS High Weald Lewes Havens CCG | E85: 1065 | F85: 1154.417685 | G85: -0.07745696017 | H85: low | I85: 1154.417685 | J85: -0.07745696017 | M85: =IF(AND(VLOOKUP($B85,Lookup!$B$3:$E$222,4,FALSE)=$H$5,B85<>$J$4),F85,NA()) ->  | N85: =IF(AND(VLOOKUP($B85,Lookup!$B$3:$E$222,4,FALSE)=$H$5,B85<>$J$4),G85,NA()) ->  | O85: =IF(ISNUMBER(MATCH($B85,Lookup!$P$3:$P$260,0)),F85,NA()) ->  | P85: =IF(ISNUMBER(MATCH($B85,Lookup!$P$3:$P$260,0)),G85,NA()) ->  | R85: 1886 | AE85: 0 | AF85: 0 | AG85: 75 | AH85: -0.04340833946 | AI85: -0.04273093631
A86: 78 | B86: 08G | C86: NHS Hillingdon CCG | E86: 2935 | F86: 3050.297391 | G86: -0.03779873758 | H86: low | I86: 3050.297391 | J86: -0.03779873758 | M86: =IF(AND(VLOOKUP($B86,Lookup!$B$3:$E$222,4,FALSE)=$H$5,B86<>$J$4),F86,NA()) ->  | N86: =IF(AND(VLOOKUP($B86,Lookup!$B$3:$E$222,4,FALSE)=$H$5,B86<>$J$4),G86,NA()) ->  | O86: =IF(ISNUMBER(MATCH($B86,Lookup!$P$3:$P$260,0)),F86,NA()) ->  | P86: =IF(ISNUMBER(MATCH($B86,Lookup!$P$3:$P$260,0)),G86,NA()) ->  | R86: 2043 | AE86: 0 | AF86: 0 | AG86: 76 | AH86: -0.04340833946 | AI86: -0.04273093631
A87: 79 | B87: 09X | C87: NHS Horsham and Mid Sussex CCG | E87: 1535 | F87: 1578.115008 | G87: -0.02732057428 | I87: 1578.115008 | J87: -0.02732057428 | M87: =IF(AND(VLOOKUP($B87,Lookup!$B$3:$E$222,4,FALSE)=$H$5,B87<>$J$4),F87,NA()) ->  | N87: =IF(AND(VLOOKUP($B87,Lookup!$B$3:$E$222,4,FALSE)=$H$5,B87<>$J$4),G87,NA()) ->  | O87: =IF(ISNUMBER(MATCH($B87,Lookup!$P$3:$P$260,0)),F87,NA()) ->  | P87: =IF(ISNUMBER(MATCH($B87,Lookup!$P$3:$P$260,0)),G87,NA()) ->  | R87: 2214 | AE87: 0 | AF87: 0 | AG87: 77 | AH87: -0.04340833946 | AI87: -0.04273093631
A88: 80 | B88: 07Y | C88: NHS Hounslow CCG | E88: 1750 | F88: 1830.189161 | G88: -0.04381468445 | I88: 1830.189161 | J88: -0.04381468445 | M88: =IF(AND(VLOOKUP($B88,Lookup!$B$3:$E$222,4,FALSE)=$H$5,B88<>$J$4),F88,NA()) ->  | N88: =IF(AND(VLOOKUP($B88,Lookup!$B$3:$E$222,4,FALSE)=$H$5,B88<>$J$4),G88,NA()) ->  | O88: =IF(ISNUMBER(MATCH($B88,Lookup!$P$3:$P$260,0)),F88,NA()) ->  | P88: =IF(ISNUMBER(MATCH($B88,Lookup!$P$3:$P$260,0)),G88,NA()) ->  | R88: 2399 | AE88: 0 | AF88: 0 | AG88: 78 | AH88: -0.04340833946 | AI88: -0.04273093631
A89: 81 | B89: 03F | C89: NHS Hull CCG | E89: 3885 | F89: 3942.524109 | G89: -0.01459068032 | I89: 3942.524109 | J89: -0.01459068032 | M89: =IF(AND(VLOOKUP($B89,Lookup!$B$3:$E$222,4,FALSE)=$H$5,B89<>$J$4),F89,NA()) ->  | N89: =IF(AND(VLOOKUP($B89,Lookup!$B$3:$E$222,4,FALSE)=$H$5,B89<>$J$4),G89,NA()) ->  | O89: =IF(ISNUMBER(MATCH($B89,Lookup!$P$3:$P$260,0)),F89,NA()) ->  | P89: =IF(ISNUMBER(MATCH($B89,Lookup!$P$3:$P$260,0)),G89,NA()) ->  | R89: 2599 | AE89: 0 | AF89: 0 | AG89: 79 | AH89: -0.04340833946 | AI89: -0.04273093631
A90: 82 | B90: 06L | C90: NHS Ipswich and East Suffolk CCG | E90: 4030 | F90: 4141.867202 | G90: -0.02700888184 | I90: 4141.867202 | J90: -0.02700888184 | M90: =IF(AND(VLOOKUP($B90,Lookup!$B$3:$E$222,4,FALSE)=$H$5,B90<>$J$4),F90,NA()) ->  | N90: =IF(AND(VLOOKUP($B90,Lookup!$B$3:$E$222,4,FALSE)=$H$5,B90<>$J$4),G90,NA()) ->  | O90: =IF(ISNUMBER(MATCH($B90,Lookup!$P$3:$P$260,0)),F90,NA()) ->  | P90: =IF(ISNUMBER(MATCH($B90,Lookup!$P$3:$P$260,0)),G90,NA()) ->  | R90: 2816 | AE90: 0 | AF90: 0 | AG90: 80 | AH90: -0.04340833946 | AI90: -0.04273093631
A91: 83 | B91: 10L | C91: NHS Isle of Wight CCG | E91: 660 | F91: 725.5964026 | G91: -0.09040342865 | H91: low | I91: 725.5964026 | J91: -0.09040342865 | M91: =IF(AND(VLOOKUP($B91,Lookup!$B$3:$E$222,4,FALSE)=$H$5,B91<>$J$4),F91,NA()) ->  | N91: =IF(AND(VLOOKUP($B91,Lookup!$B$3:$E$222,4,FALSE)=$H$5,B91<>$J$4),G91,NA()) ->  | O91: =IF(ISNUMBER(MATCH($B91,Lookup!$P$3:$P$260,0)),F91,NA()) ->  | P91: =IF(ISNUMBER(MATCH($B91,Lookup!$P$3:$P$260,0)),G91,NA()) ->  | R91: 3051 | AE91: 0 | AF91: 0 | AG91: 81 | AH91: -0.04340833946 | AI91: -0.04273093631
A92: 84 | B92: 08H | C92: NHS Islington CCG | E92: 2055 | F92: 2124.465536 | G92: -0.03269788814 | I92: 2124.465536 | J92: -0.03269788814 | M92: =IF(AND(VLOOKUP($B92,Lookup!$B$3:$E$222,4,FALSE)=$H$5,B92<>$J$4),F92,NA()) ->  | N92: =IF(AND(VLOOKUP($B92,Lookup!$B$3:$E$222,4,FALSE)=$H$5,B92<>$J$4),G92,NA()) ->  | O92: =IF(ISNUMBER(MATCH($B92,Lookup!$P$3:$P$260,0)),F92,NA()) ->  | P92: =IF(ISNUMBER(MATCH($B92,Lookup!$P$3:$P$260,0)),G92,NA()) ->  | R92: 3306 | AE92: 0 | AF92: 0 | AG92: 82 | AH92: -0.04340833946 | AI92: -0.04273093631
A93: 85 | B93: 11N | C93: NHS Kernow CCG | E93: 6035 | F93: 6517.45527 | G93: -0.07402509873 | H93: low | I93: 6517.45527 | J93: -0.07402509873 | M93: =IF(AND(VLOOKUP($B93,Lookup!$B$3:$E$222,4,FALSE)=$H$5,B93<>$J$4),F93,NA()) ->  | N93: =IF(AND(VLOOKUP($B93,Lookup!$B$3:$E$222,4,FALSE)=$H$5,B93<>$J$4),G93,NA()) ->  | O93: =IF(ISNUMBER(MATCH($B93,Lookup!$P$3:$P$260,0)),F93,NA()) ->  | P93: =IF(ISNUMBER(MATCH($B93,Lookup!$P$3:$P$260,0)),G93,NA()) ->  | R93: 3582 | AE93: 0 | AF93: 0 | AG93: 83 | AH93: -0.04340833946 | AI93: -0.04273093631
A94: 86 | B94: 08J | C94: NHS Kingston CCG | E94: 1260 | F94: 1282.29976 | G94: -0.01739044237 | I94: 1282.29976 | J94: -0.01739044237 | M94: =IF(AND(VLOOKUP($B94,Lookup!$B$3:$E$222,4,FALSE)=$H$5,B94<>$J$4),F94,NA()) ->  | N94: =IF(AND(VLOOKUP($B94,Lookup!$B$3:$E$222,4,FALSE)=$H$5,B94<>$J$4),G94,NA()) ->  | O94: =IF(ISNUMBER(MATCH($B94,Lookup!$P$3:$P$260,0)),F94,NA()) ->  | P94: =IF(ISNUMBER(MATCH($B94,Lookup!$P$3:$P$260,0)),G94,NA()) ->  | R94: 3881 | AE94: 0 | AF94: 0 | AG94: 84 | AH94: -0.04340833946 | AI94: -0.04273093631
A95: 87 | B95: 01J | C95: NHS Knowsley CCG | E95: 1810 | F95: 1936.132007 | G95: -0.06514638779 | H95: low | I95: 1936.132007 | J95: -0.06514638779 | M95: =IF(AND(VLOOKUP($B95,Lookup!$B$3:$E$222,4,FALSE)=$H$5,B95<>$J$4),F95,NA()) ->  | N95: =IF(AND(VLOOKUP($B95,Lookup!$B$3:$E$222,4,FALSE)=$H$5,B95<>$J$4),G95,NA()) ->  | O95: =IF(ISNUMBER(MATCH($B95,Lookup!$P$3:$P$260,0)),F95,NA()) ->  | P95: =IF(ISNUMBER(MATCH($B95,Lookup!$P$3:$P$260,0)),G95,NA()) ->  | R95: 4205 | AE95: 0 | AF95: 0 | AG95: 85 | AH95: -0.04340833946 | AI95: -0.04273093631
A96: 88 | B96: 08K | C96: NHS Lambeth CCG | E96: 2590 | F96: 2759.813008 | G96: -0.06153062077 | H96: low | I96: 2759.813008 | J96: -0.06153062077 | M96: =IF(AND(VLOOKUP($B96,Lookup!$B$3:$E$222,4,FALSE)=$H$5,B96<>$J$4),F96,NA()) ->  | N96: =IF(AND(VLOOKUP($B96,Lookup!$B$3:$E$222,4,FALSE)=$H$5,B96<>$J$4),G96,NA()) ->  | O96: =IF(ISNUMBER(MATCH($B96,Lookup!$P$3:$P$260,0)),F96,NA()) ->  | P96: =IF(ISNUMBER(MATCH($B96,Lookup!$P$3:$P$260,0)),G96,NA()) ->  | R96: 4556 | AE96: 0 | AF96: 0 | AG96: 86 | AH96: -0.04340833946 | AI96: -0.04273093631
A97: 89 | B97: 15F | C97: NHS Leeds CCG | E97: 5610 | F97: 6171.423397 | G97: -0.09097146 | H97: low | I97: 6171.423397 | J97: -0.09097146 | M97: =IF(AND(VLOOKUP($B97,Lookup!$B$3:$E$222,4,FALSE)=$H$5,B97<>$J$4),F97,NA()) -> 6171.423397 | N97: =IF(AND(VLOOKUP($B97,Lookup!$B$3:$E$222,4,FALSE)=$H$5,B97<>$J$4),G97,NA()) -> -0.09097146 | O97: =IF(ISNUMBER(MATCH($B97,Lookup!$P$3:$P$260,0)),F97,NA()) ->  | P97: =IF(ISNUMBER(MATCH($B97,Lookup!$P$3:$P$260,0)),G97,NA()) ->  | R97: 4936 | AE97: 0 | AF97: 0 | AG97: 87 | AH97: -0.04340833946 | AI97: -0.04273093631
A98: 90 | B98: 04C | C98: NHS Leicester City CCG | E98: 3320 | F98: 3511.818356 | G98: -0.05462080788 | H98: low | I98: 3511.818356 | J98: -0.05462080788 | M98: =IF(AND(VLOOKUP($B98,Lookup!$B$3:$E$222,4,FALSE)=$H$5,B98<>$J$4),F98,NA()) ->  | N98: =IF(AND(VLOOKUP($B98,Lookup!$B$3:$E$222,4,FALSE)=$H$5,B98<>$J$4),G98,NA()) ->  | O98: =IF(ISNUMBER(MATCH($B98,Lookup!$P$3:$P$260,0)),F98,NA()) ->  | P98: =IF(ISNUMBER(MATCH($B98,Lookup!$P$3:$P$260,0)),G98,NA()) ->  | R98: 5348 | AE98: 0 | AF98: 0 | AG98: 88 | AH98: -0.04340833946 | AI98: -0.04273093631
A99: 91 | B99: 08L | C99: NHS Lewisham CCG | E99: 2305 | F99: 2428.81132 | G99: -0.05097609643 | H99: low | I99: 2428.81132 | J99: -0.05097609643 | M99: =IF(AND(VLOOKUP($B99,Lookup!$B$3:$E$222,4,FALSE)=$H$5,B99<>$J$4),F99,NA()) ->  | N99: =IF(AND(VLOOKUP($B99,Lookup!$B$3:$E$222,4,FALSE)=$H$5,B99<>$J$4),G99,NA()) ->  | O99: =IF(ISNUMBER(MATCH($B99,Lookup!$P$3:$P$260,0)),F99,NA()) ->  | P99: =IF(ISNUMBER(MATCH($B99,Lookup!$P$3:$P$260,0)),G99,NA()) ->  | R99: 5795 | AE99: 0 | AF99: 0 | AG99: 89 | AH99: -0.04340833946 | AI99: -0.04273093631
A100: 92 | B100: 03T | C100: NHS Lincolnshire East CCG | E100: 2905 | F100: 3138.521075 | G100: -0.07440481354 | H100: low | I100: 3138.521075 | J100: -0.07440481354 | M100: =IF(AND(VLOOKUP($B100,Lookup!$B$3:$E$222,4,FALSE)=$H$5,B100<>$J$4),F100,NA()) ->  | N100: =IF(AND(VLOOKUP($B100,Lookup!$B$3:$E$222,4,FALSE)=$H$5,B100<>$J$4),G100,NA()) ->  | O100: =IF(ISNUMBER(MATCH($B100,Lookup!$P$3:$P$260,0)),F100,NA()) ->  | P100: =IF(ISNUMBER(MATCH($B100,Lookup!$P$3:$P$260,0)),G100,NA()) ->  | R100: 6279 | AE100: 0 | AF100: 0 | AG100: 90 | AH100: -0.04340833946 | AI100: -0.04273093631
A101: 93 | B101: 04D | C101: NHS Lincolnshire West CCG | E101: 1695 | F101: 1834.422701 | G101: -0.07600358454 | H101: low | I101: 1834.422701 | J101: -0.07600358454 | M101: =IF(AND(VLOOKUP($B101,Lookup!$B$3:$E$222,4,FALSE)=$H$5,B101<>$J$4),F101,NA()) ->  | N101: =IF(AND(VLOOKUP($B101,Lookup!$B$3:$E$222,4,FALSE)=$H$5,B101<>$J$4),G101,NA()) ->  | O101: =IF(ISNUMBER(MATCH($B101,Lookup!$P$3:$P$260,0)),F101,NA()) ->  | P101: =IF(ISNUMBER(MATCH($B101,Lookup!$P$3:$P$260,0)),G101,NA()) ->  | R101: 6803 | AE101: 0 | AF101: 0 | AG101: 91 | AH101: -0.04340833946 | AI101: -0.04273093631
A102: 94 | B102: 99A | C102: NHS Liverpool CCG | E102: 4365 | F102: 4554.975661 | G102: -0.04170728346 | H102: low | I102: 4554.975661 | J102: -0.04170728346 | M102: =IF(AND(VLOOKUP($B102,Lookup!$B$3:$E$222,4,FALSE)=$H$5,B102<>$J$4),F102,NA()) ->  | N102: =IF(AND(VLOOKUP($B102,Lookup!$B$3:$E$222,4,FALSE)=$H$5,B102<>$J$4),G102,NA()) ->  | O102: =IF(ISNUMBER(MATCH($B102,Lookup!$P$3:$P$260,0)),F102,NA()) ->  | P102: =IF(ISNUMBER(MATCH($B102,Lookup!$P$3:$P$260,0)),G102,NA()) ->  | R102: 7371 | AE102: 0 | AF102: 0 | AG102: 92 | AH102: -0.04340833946 | AI102: -0.04273093631
A103: 95 | B103: 06P | C103: NHS Luton CCG | E103: 2355 | F103: 2447.352407 | G103: -0.03773563891 | I103: 2447.352407 | J103: -0.03773563891 | M103: =IF(AND(VLOOKUP($B103,Lookup!$B$3:$E$222,4,FALSE)=$H$5,B103<>$J$4),F103,NA()) ->  | N103: =IF(AND(VLOOKUP($B103,Lookup!$B$3:$E$222,4,FALSE)=$H$5,B103<>$J$4),G103,NA()) ->  | O103: =IF(ISNUMBER(MATCH($B103,Lookup!$P$3:$P$260,0)),F103,NA()) ->  | P103: =IF(ISNUMBER(MATCH($B103,Lookup!$P$3:$P$260,0)),G103,NA()) ->  | R103: 7986 | AE103: 0 | AF103: 0 | AG103: 93 | AH103: -0.04340833946 | AI103: -0.04273093631
A104: 96 | B104: 14L | C104: NHS Manchester CCG | E104: 5535 | F104: 5847.675648 | G104: -0.05347007371 | H104: low | I104: 5847.675648 | J104: -0.05347007371 | M104: =IF(AND(VLOOKUP($B104,Lookup!$B$3:$E$222,4,FALSE)=$H$5,B104<>$J$4),F104,NA()) ->  | N104: =IF(AND(VLOOKUP($B104,Lookup!$B$3:$E$222,4,FALSE)=$H$5,B104<>$J$4),G104,NA()) ->  | O104: =IF(ISNUMBER(MATCH($B104,Lookup!$P$3:$P$260,0)),F104,NA()) ->  | P104: =IF(ISNUMBER(MATCH($B104,Lookup!$P$3:$P$260,0)),G104,NA()) ->  | R104: 8653 | AE104: 0 | AF104: 0 | AG104: 94 | AH104: -0.04340833946 | AI104: -0.04273093631
A105: 97 | B105: 04E | C105: NHS Mansfield and Ashfield CCG | E105: 2305 | F105: 2381.588757 | G105: -0.03215868266 | I105: 2381.588757 | J105: -0.03215868266 | M105: =IF(AND(VLOOKUP($B105,Lookup!$B$3:$E$222,4,FALSE)=$H$5,B105<>$J$4),F105,NA()) ->  | N105: =IF(AND(VLOOKUP($B105,Lookup!$B$3:$E$222,4,FALSE)=$H$5,B105<>$J$4),G105,NA()) ->  | O105: =IF(ISNUMBER(MATCH($B105,Lookup!$P$3:$P$260,0)),F105,NA()) ->  | P105: =IF(ISNUMBER(MATCH($B105,Lookup!$P$3:$P$260,0)),G105,NA()) ->  | R105: 9375 | AE105: 0 | AF105: 0 | AG105: 95 | AH105: -0.04340833946 | AI105: -0.04273093631
A106: 98 | B106: 09W | C106: NHS Medway CCG | E106: 2710 | F106: 2756.593671 | G106: -0.01690262585 | I106: 2756.593671 | J106: -0.01690262585 | M106: =IF(AND(VLOOKUP($B106,Lookup!$B$3:$E$222,4,FALSE)=$H$5,B106<>$J$4),F106,NA()) ->  | N106: =IF(AND(VLOOKUP($B106,Lookup!$B$3:$E$222,4,FALSE)=$H$5,B106<>$J$4),G106,NA()) ->  | O106: =IF(ISNUMBER(MATCH($B106,Lookup!$P$3:$P$260,0)),F106,NA()) ->  | P106: =IF(ISNUMBER(MATCH($B106,Lookup!$P$3:$P$260,0)),G106,NA()) ->  | R106: 10158 | AE106: 0 | AF106: 0 | AG106: 96 | AH106: -0.04340833946 | AI106: -0.04273093631
A107: 99 | B107: 08R | C107: NHS Merton CCG | E107: 1055 | F107: 1169.255006 | G107: -0.09771607186 | H107: low | I107: 1169.255006 | J107: -0.09771607186 | M107: =IF(AND(VLOOKUP($B107,Lookup!$B$3:$E$222,4,FALSE)=$H$5,B107<>$J$4),F107,NA()) ->  | N107: =IF(AND(VLOOKUP($B107,Lookup!$B$3:$E$222,4,FALSE)=$H$5,B107<>$J$4),G107,NA()) ->  | O107: =IF(ISNUMBER(MATCH($B107,Lookup!$P$3:$P$260,0)),F107,NA()) ->  | P107: =IF(ISNUMBER(MATCH($B107,Lookup!$P$3:$P$260,0)),G107,NA()) ->  | R107: 11006 | AE107: 0 | AF107: 0 | AG107: 97 | AH107: -0.04340833946 | AI107: -0.04273093631
A108: 100 | B108: 06Q | C108: NHS Mid Essex CCG | E108: 2525 | F108: 2751.326674 | G108: -0.08226092372 | H108: low | I108: 2751.326674 | J108: -0.08226092372 | M108: =IF(AND(VLOOKUP($B108,Lookup!$B$3:$E$222,4,FALSE)=$H$5,B108<>$J$4),F108,NA()) ->  | N108: =IF(AND(VLOOKUP($B108,Lookup!$B$3:$E$222,4,FALSE)=$H$5,B108<>$J$4),G108,NA()) ->  | O108: =IF(ISNUMBER(MATCH($B108,Lookup!$P$3:$P$260,0)),F108,NA()) ->  | P108: =IF(ISNUMBER(MATCH($B108,Lookup!$P$3:$P$260,0)),G108,NA()) ->  | R108: 11925 | AE108: 0 | AF108: 0 | AG108: 98 | AH108: -0.04340833946 | AI108: -0.04273093631
A109: 101 | B109: 04F | C109: NHS Milton Keynes CCG | E109: 2835 | F109: 2958.996492 | G109: -0.04190491341 | H109: low | I109: 2958.996492 | J109: -0.04190491341 | M109: =IF(AND(VLOOKUP($B109,Lookup!$B$3:$E$222,4,FALSE)=$H$5,B109<>$J$4),F109,NA()) ->  | N109: =IF(AND(VLOOKUP($B109,Lookup!$B$3:$E$222,4,FALSE)=$H$5,B109<>$J$4),G109,NA()) ->  | O109: =IF(ISNUMBER(MATCH($B109,Lookup!$P$3:$P$260,0)),F109,NA()) ->  | P109: =IF(ISNUMBER(MATCH($B109,Lookup!$P$3:$P$260,0)),G109,NA()) ->  | R109: 12921 | AE109: 0 | AF109: 0 | AG109: 99 | AH109: -0.04340833946 | AI109: -0.04273093631
A110: 102 | B110: 01K | C110: NHS Morecambe Bay CCG | E110: 2030 | F110: 2120.916592 | G110: -0.04286665115 | I110: 2120.916592 | J110: -0.04286665115 | M110: =IF(AND(VLOOKUP($B110,Lookup!$B$3:$E$222,4,FALSE)=$H$5,B110<>$J$4),F110,NA()) ->  | N110: =IF(AND(VLOOKUP($B110,Lookup!$B$3:$E$222,4,FALSE)=$H$5,B110<>$J$4),G110,NA()) ->  | O110: =IF(ISNUMBER(MATCH($B110,Lookup!$P$3:$P$260,0)),F110,NA()) ->  | P110: =IF(ISNUMBER(MATCH($B110,Lookup!$P$3:$P$260,0)),G110,NA()) ->  | S110: =MAX(X4,S109) ->  | T110: =T109 ->  | U110: =U109 ->  | V110: =MAX(X4,V109) ->  | W110: =W109 ->  | X110: =X109 ->  | Y110: =MAX(X4,Y109) ->  | Z110: =Z109 ->  | AA110: =AA109 ->  | AB110: =MAX(X4,AB109) ->  | AC110: =AC109 ->  | AD110: =AD109 ->  | AE110: 0 | AF110: 0 | AH110: -0.04340833946 | AI110: =$AI$9 -> -0.04273093631
A111: 103 | B111: 04G | C111: NHS Nene CCG | E111: 6510 | F111: 6810.175859 | G111: -0.0440775489 | H111: low | I111: 6810.175859 | J111: -0.0440775489 | M111: =IF(AND(VLOOKUP($B111,Lookup!$B$3:$E$222,4,FALSE)=$H$5,B111<>$J$4),F111,NA()) ->  | N111: =IF(AND(VLOOKUP($B111,Lookup!$B$3:$E$222,4,FALSE)=$H$5,B111<>$J$4),G111,NA()) ->  | O111: =IF(ISNUMBER(MATCH($B111,Lookup!$P$3:$P$260,0)),F111,NA()) ->  | P111: =IF(ISNUMBER(MATCH($B111,Lookup!$P$3:$P$260,0)),G111,NA()) -> 
A112: 104 | B112: 04H | C112: NHS Newark and Sherwood CCG | E112: 1595 | F112: 1629.430366 | G112: -0.02113030858 | I112: 1629.430366 | J112: -0.02113030858 | M112: =IF(AND(VLOOKUP($B112,Lookup!$B$3:$E$222,4,FALSE)=$H$5,B112<>$J$4),F112,NA()) ->  | N112: =IF(AND(VLOOKUP($B112,Lookup!$B$3:$E$222,4,FALSE)=$H$5,B112<>$J$4),G112,NA()) ->  | O112: =IF(ISNUMBER(MATCH($B112,Lookup!$P$3:$P$260,0)),F112,NA()) -> 1629.430366 | P112: =IF(ISNUMBER(MATCH($B112,Lookup!$P$3:$P$260,0)),G112,NA()) -> -0.02113030858
A113: 105 | B113: 13T | C113: NHS Newcastle Gateshead CCG | E113: 5605 | F113: 6201.450535 | G113: -0.09617919739 | H113: low | I113: 6201.450535 | J113: -0.09617919739 | M113: =IF(AND(VLOOKUP($B113,Lookup!$B$3:$E$222,4,FALSE)=$H$5,B113<>$J$4),F113,NA()) ->  | N113: =IF(AND(VLOOKUP($B113,Lookup!$B$3:$E$222,4,FALSE)=$H$5,B113<>$J$4),G113,NA()) ->  | O113: =IF(ISNUMBER(MATCH($B113,Lookup!$P$3:$P$260,0)),F113,NA()) ->  | P113: =IF(ISNUMBER(MATCH($B113,Lookup!$P$3:$P$260,0)),G113,NA()) -> 
A114: 106 | B114: 08M | C114: NHS Newham CCG | E114: 3265 | F114: 3349.840316 | G114: -0.02532667462 | I114: 3349.840316 | J114: -0.02532667462 | M114: =IF(AND(VLOOKUP($B114,Lookup!$B$3:$E$222,4,FALSE)=$H$5,B114<>$J$4),F114,NA()) ->  | N114: =IF(AND(VLOOKUP($B114,Lookup!$B$3:$E$222,4,FALSE)=$H$5,B114<>$J$4),G114,NA()) ->  | O114: =IF(ISNUMBER(MATCH($B114,Lookup!$P$3:$P$260,0)),F114,NA()) ->  | P114: =IF(ISNUMBER(MATCH($B114,Lookup!$P$3:$P$260,0)),G114,NA()) -> 
A115: 107 | B115: 01H | C115: NHS North Cumbria CCG | E115: 9985 | F115: 9818.672521 | G115: 0.01693991509 | I115: 9818.672521 | J115: 0.01693991509 | M115: =IF(AND(VLOOKUP($B115,Lookup!$B$3:$E$222,4,FALSE)=$H$5,B115<>$J$4),F115,NA()) ->  | N115: =IF(AND(VLOOKUP($B115,Lookup!$B$3:$E$222,4,FALSE)=$H$5,B115<>$J$4),G115,NA()) ->  | O115: =IF(ISNUMBER(MATCH($B115,Lookup!$P$3:$P$260,0)),F115,NA()) ->  | P115: =IF(ISNUMBER(MATCH($B115,Lookup!$P$3:$P$260,0)),G115,NA()) -> 
A116: 108 | B116: 04J | C116: NHS North Derbyshire CCG | E116: 2975 | F116: 3112.293235 | G116: -0.04411320677 | H116: low | I116: 3112.293235 | J116: -0.04411320677 | M116: =IF(AND(VLOOKUP($B116,Lookup!$B$3:$E$222,4,FALSE)=$H$5,B116<>$J$4),F116,NA()) ->  | N116: =IF(AND(VLOOKUP($B116,Lookup!$B$3:$E$222,4,FALSE)=$H$5,B116<>$J$4),G116,NA()) ->  | O116: =IF(ISNUMBER(MATCH($B116,Lookup!$P$3:$P$260,0)),F116,NA()) ->  | P116: =IF(ISNUMBER(MATCH($B116,Lookup!$P$3:$P$260,0)),G116,NA()) -> 
A117: 109 | B117: 00J | C117: NHS North Durham CCG | E117: 4125 | F117: 4252.982532 | G117: -0.03009241888 | H117: low | I117: 4252.982532 | J117: -0.03009241888 | M117: =IF(AND(VLOOKUP($B117,Lookup!$B$3:$E$222,4,FALSE)=$H$5,B117<>$J$4),F117,NA()) ->  | N117: =IF(AND(VLOOKUP($B117,Lookup!$B$3:$E$222,4,FALSE)=$H$5,B117<>$J$4),G117,NA()) ->  | O117: =IF(ISNUMBER(MATCH($B117,Lookup!$P$3:$P$260,0)),F117,NA()) ->  | P117: =IF(ISNUMBER(MATCH($B117,Lookup!$P$3:$P$260,0)),G117,NA()) -> 
A118: 110 | B118: 06T | C118: NHS North East Essex CCG | E118: 3845 | F118: 4133.669107 | G118: -0.0698336272 | H118: low | I118: 4133.669107 | J118: -0.0698336272 | M118: =IF(AND(VLOOKUP($B118,Lookup!$B$3:$E$222,4,FALSE)=$H$5,B118<>$J$4),F118,NA()) ->  | N118: =IF(AND(VLOOKUP($B118,Lookup!$B$3:$E$222,4,FALSE)=$H$5,B118<>$J$4),G118,NA()) ->  | O118: =IF(ISNUMBER(MATCH($B118,Lookup!$P$3:$P$260,0)),F118,NA()) ->  | P118: =IF(ISNUMBER(MATCH($B118,Lookup!$P$3:$P$260,0)),G118,NA()) -> 
A119: 111 | B119: 99M | C119: NHS North East Hampshire and Farnham CCG | E119: 2005 | F119: 2028.531795 | G119: -0.01160040712 | I119: 2028.531795 | J119: -0.01160040712 | M119: =IF(AND(VLOOKUP($B119,Lookup!$B$3:$E$222,4,FALSE)=$H$5,B119<>$J$4),F119,NA()) ->  | N119: =IF(AND(VLOOKUP($B119,Lookup!$B$3:$E$222,4,FALSE)=$H$5,B119<>$J$4),G119,NA()) ->  | O119: =IF(ISNUMBER(MATCH($B119,Lookup!$P$3:$P$260,0)),F119,NA()) ->  | P119: =IF(ISNUMBER(MATCH($B119,Lookup!$P$3:$P$260,0)),G119,NA()) -> 
A120: 112 | B120: 03H | C120: NHS North East Lincolnshire CCG | E120: 3300 | F120: 3383.363215 | G120: -0.02463915628 | I120: 3383.363215 | J120: -0.02463915628 | M120: =IF(AND(VLOOKUP($B120,Lookup!$B$3:$E$222,4,FALSE)=$H$5,B120<>$J$4),F120,NA()) ->  | N120: =IF(AND(VLOOKUP($B120,Lookup!$B$3:$E$222,4,FALSE)=$H$5,B120<>$J$4),G120,NA()) ->  | O120: =IF(ISNUMBER(MATCH($B120,Lookup!$P$3:$P$260,0)),F120,NA()) ->  | P120: =IF(ISNUMBER(MATCH($B120,Lookup!$P$3:$P$260,0)),G120,NA()) -> 
A121: 113 | B121: 10J | C121: NHS North Hampshire CCG | E121: 2480 | F121: 2535.445026 | G121: -0.02186796608 | I121: 2535.445026 | J121: -0.02186796608 | M121: =IF(AND(VLOOKUP($B121,Lookup!$B$3:$E$222,4,FALSE)=$H$5,B121<>$J$4),F121,NA()) ->  | N121: =IF(AND(VLOOKUP($B121,Lookup!$B$3:$E$222,4,FALSE)=$H$5,B121<>$J$4),G121,NA()) ->  | O121: =IF(ISNUMBER(MATCH($B121,Lookup!$P$3:$P$260,0)),F121,NA()) ->  | P121: =IF(ISNUMBER(MATCH($B121,Lookup!$P$3:$P$260,0)),G121,NA()) -> 
A122: 114 | B122: 03J | C122: NHS North Kirklees CCG | E122: 1735 | F122: 1799.464392 | G122: -0.03582421082 | I122: 1799.464392 | J122: -0.03582421082 | M122: =IF(AND(VLOOKUP($B122,Lookup!$B$3:$E$222,4,FALSE)=$H$5,B122<>$J$4),F122,NA()) -> 1799.464392 | N122: =IF(AND(VLOOKUP($B122,Lookup!$B$3:$E$222,4,FALSE)=$H$5,B122<>$J$4),G122,NA()) -> -0.03582421082 | O122: =IF(ISNUMBER(MATCH($B122,Lookup!$P$3:$P$260,0)),F122,NA()) ->  | P122: =IF(ISNUMBER(MATCH($B122,Lookup!$P$3:$P$260,0)),G122,NA()) -> 
A123: 115 | B123: 03K | C123: NHS North Lincolnshire CCG | E123: 3255 | F123: 3376.272792 | G123: -0.03591913326 | H123: low | I123: 3376.272792 | J123: -0.03591913326 | M123: =IF(AND(VLOOKUP($B123,Lookup!$B$3:$E$222,4,FALSE)=$H$5,B123<>$J$4),F123,NA()) ->  | N123: =IF(AND(VLOOKUP($B123,Lookup!$B$3:$E$222,4,FALSE)=$H$5,B123<>$J$4),G123,NA()) ->  | O123: =IF(ISNUMBER(MATCH($B123,Lookup!$P$3:$P$260,0)),F123,NA()) -> 3376.272792 | P123: =IF(ISNUMBER(MATCH($B123,Lookup!$P$3:$P$260,0)),G123,NA()) -> -0.03591913326
A124: 116 | B124: 06V | C124: NHS North Norfolk CCG | E124: 2480 | F124: 2593.087379 | G124: -0.04361109474 | H124: low | I124: 2593.087379 | J124: -0.04361109474 | M124: =IF(AND(VLOOKUP($B124,Lookup!$B$3:$E$222,4,FALSE)=$H$5,B124<>$J$4),F124,NA()) ->  | N124: =IF(AND(VLOOKUP($B124,Lookup!$B$3:$E$222,4,FALSE)=$H$5,B124<>$J$4),G124,NA()) ->  | O124: =IF(ISNUMBER(MATCH($B124,Lookup!$P$3:$P$260,0)),F124,NA()) ->  | P124: =IF(ISNUMBER(MATCH($B124,Lookup!$P$3:$P$260,0)),G124,NA()) -> 
A125: 117 | B125: 05G | C125: NHS North Staffordshire CCG | E125: 2370 | F125: 2523.829789 | G125: -0.06095093641 | H125: low | I125: 2523.829789 | J125: -0.06095093641 | M125: =IF(AND(VLOOKUP($B125,Lookup!$B$3:$E$222,4,FALSE)=$H$5,B125<>$J$4),F125,NA()) ->  | N125: =IF(AND(VLOOKUP($B125,Lookup!$B$3:$E$222,4,FALSE)=$H$5,B125<>$J$4),G125,NA()) ->  | O125: =IF(ISNUMBER(MATCH($B125,Lookup!$P$3:$P$260,0)),F125,NA()) -> 2523.829789 | P125: =IF(ISNUMBER(MATCH($B125,Lookup!$P$3:$P$260,0)),G125,NA()) -> -0.06095093641
A126: 118 | B126: 99C | C126: NHS North Tyneside CCG | E126: 3280 | F126: 3461.439264 | G126: -0.0524172895 | H126: low | I126: 3461.439264 | J126: -0.0524172895 | M126: =IF(AND(VLOOKUP($B126,Lookup!$B$3:$E$222,4,FALSE)=$H$5,B126<>$J$4),F126,NA()) ->  | N126: =IF(AND(VLOOKUP($B126,Lookup!$B$3:$E$222,4,FALSE)=$H$5,B126<>$J$4),G126,NA()) ->  | O126: =IF(ISNUMBER(MATCH($B126,Lookup!$P$3:$P$260,0)),F126,NA()) ->  | P126: =IF(ISNUMBER(MATCH($B126,Lookup!$P$3:$P$260,0)),G126,NA()) -> 
A127: 119 | B127: 09Y | C127: NHS North West Surrey CCG | E127: 3000 | F127: 3064.460292 | G127: -0.02103479434 | I127: 3064.460292 | J127: -0.02103479434 | M127: =IF(AND(VLOOKUP($B127,Lookup!$B$3:$E$222,4,FALSE)=$H$5,B127<>$J$4),F127,NA()) ->  | N127: =IF(AND(VLOOKUP($B127,Lookup!$B$3:$E$222,4,FALSE)=$H$5,B127<>$J$4),G127,NA()) ->  | O127: =IF(ISNUMBER(MATCH($B127,Lookup!$P$3:$P$260,0)),F127,NA()) ->  | P127: =IF(ISNUMBER(MATCH($B127,Lookup!$P$3:$P$260,0)),G127,NA()) -> 
A128: 120 | B128: 99P | C128: NHS Northern, Eastern and Western Devon CCG | E128: 9385 | F128: 9956.260208 | G128: -0.05737698656 | H128: low | I128: 9956.260208 | J128: -0.05737698656 | M128: =IF(AND(VLOOKUP($B128,Lookup!$B$3:$E$222,4,FALSE)=$H$5,B128<>$J$4),F128,NA()) ->  | N128: =IF(AND(VLOOKUP($B128,Lookup!$B$3:$E$222,4,FALSE)=$H$5,B128<>$J$4),G128,NA()) ->  | O128: =IF(ISNUMBER(MATCH($B128,Lookup!$P$3:$P$260,0)),F128,NA()) ->  | P128: =IF(ISNUMBER(MATCH($B128,Lookup!$P$3:$P$260,0)),G128,NA()) -> 
A129: 121 | B129: 00L | C129: NHS Northumberland CCG | E129: 4545 | F129: 4798.828564 | G129: -0.05289385956 | H129: low | I129: 4798.828564 | J129: -0.05289385956 | M129: =IF(AND(VLOOKUP($B129,Lookup!$B$3:$E$222,4,FALSE)=$H$5,B129<>$J$4),F129,NA()) ->  | N129: =IF(AND(VLOOKUP($B129,Lookup!$B$3:$E$222,4,FALSE)=$H$5,B129<>$J$4),G129,NA()) ->  | O129: =IF(ISNUMBER(MATCH($B129,Lookup!$P$3:$P$260,0)),F129,NA()) ->  | P129: =IF(ISNUMBER(MATCH($B129,Lookup!$P$3:$P$260,0)),G129,NA()) -> 
A130: 122 | B130: 06W | C130: NHS Norwich CCG | E130: 1930 | F130: 1997.584612 | G130: -0.0338331663 | I130: 1997.584612 | J130: -0.0338331663 | M130: =IF(AND(VLOOKUP($B130,Lookup!$B$3:$E$222,4,FALSE)=$H$5,B130<>$J$4),F130,NA()) ->  | N130: =IF(AND(VLOOKUP($B130,Lookup!$B$3:$E$222,4,FALSE)=$H$5,B130<>$J$4),G130,NA()) ->  | O130: =IF(ISNUMBER(MATCH($B130,Lookup!$P$3:$P$260,0)),F130,NA()) ->  | P130: =IF(ISNUMBER(MATCH($B130,Lookup!$P$3:$P$260,0)),G130,NA()) -> 
A131: 123 | B131: 04K | C131: NHS Nottingham City CCG | E131: 2935 | F131: 3045.279583 | G131: -0.03621328694 | H131: low | I131: 3045.279583 | J131: -0.03621328694 | M131: =IF(AND(VLOOKUP($B131,Lookup!$B$3:$E$222,4,FALSE)=$H$5,B131<>$J$4),F131,NA()) ->  | N131: =IF(AND(VLOOKUP($B131,Lookup!$B$3:$E$222,4,FALSE)=$H$5,B131<>$J$4),G131,NA()) ->  | O131: =IF(ISNUMBER(MATCH($B131,Lookup!$P$3:$P$260,0)),F131,NA()) ->  | P131: =IF(ISNUMBER(MATCH($B131,Lookup!$P$3:$P$260,0)),G131,NA()) -> 
A132: 124 | B132: 04L | C132: NHS Nottingham North and East CCG | E132: 1595 | F132: 1669.270669 | G132: -0.04449288555 | I132: 1669.270669 | J132: -0.04449288555 | M132: =IF(AND(VLOOKUP($B132,Lookup!$B$3:$E$222,4,FALSE)=$H$5,B132<>$J$4),F132,NA()) ->  | N132: =IF(AND(VLOOKUP($B132,Lookup!$B$3:$E$222,4,FALSE)=$H$5,B132<>$J$4),G132,NA()) ->  | O132: =IF(ISNUMBER(MATCH($B132,Lookup!$P$3:$P$260,0)),F132,NA()) ->  | P132: =IF(ISNUMBER(MATCH($B132,Lookup!$P$3:$P$260,0)),G132,NA()) -> 
A133: 125 | B133: 04M | C133: NHS Nottingham West CCG | E133: 935 | F133: 982.838709 | G133: -0.04867401794 | I133: 982.838709 | J133: -0.04867401794 | M133: =IF(AND(VLOOKUP($B133,Lookup!$B$3:$E$222,4,FALSE)=$H$5,B133<>$J$4),F133,NA()) ->  | N133: =IF(AND(VLOOKUP($B133,Lookup!$B$3:$E$222,4,FALSE)=$H$5,B133<>$J$4),G133,NA()) ->  | O133: =IF(ISNUMBER(MATCH($B133,Lookup!$P$3:$P$260,0)),F133,NA()) ->  | P133: =IF(ISNUMBER(MATCH($B133,Lookup!$P$3:$P$260,0)),G133,NA()) -> 
A134: 126 | B134: 00Y | C134: NHS Oldham CCG | E134: 2900 | F134: 3044.743811 | G134: -0.04753891306 | H134: low | I134: 3044.743811 | J134: -0.04753891306 | M134: =IF(AND(VLOOKUP($B134,Lookup!$B$3:$E$222,4,FALSE)=$H$5,B134<>$J$4),F134,NA()) ->  | N134: =IF(AND(VLOOKUP($B134,Lookup!$B$3:$E$222,4,FALSE)=$H$5,B134<>$J$4),G134,NA()) ->  | O134: =IF(ISNUMBER(MATCH($B134,Lookup!$P$3:$P$260,0)),F134,NA()) ->  | P134: =IF(ISNUMBER(MATCH($B134,Lookup!$P$3:$P$260,0)),G134,NA()) -> 
A135: 127 | B135: 10Q | C135: NHS Oxfordshire CCG | E135: 4425 | F135: 4648.094313 | G135: -0.04799694191 | H135: low | I135: 4648.094313 | J135: -0.04799694191 | M135: =IF(AND(VLOOKUP($B135,Lookup!$B$3:$E$222,4,FALSE)=$H$5,B135<>$J$4),F135,NA()) ->  | N135: =IF(AND(VLOOKUP($B135,Lookup!$B$3:$E$222,4,FALSE)=$H$5,B135<>$J$4),G135,NA()) ->  | O135: =IF(ISNUMBER(MATCH($B135,Lookup!$P$3:$P$260,0)),F135,NA()) ->  | P135: =IF(ISNUMBER(MATCH($B135,Lookup!$P$3:$P$260,0)),G135,NA()) -> 
A136: 128 | B136: 10R | C136: NHS Portsmouth CCG | E136: 1570 | F136: 1630.55538 | G136: -0.03713788616 | I136: 1630.55538 | J136: -0.03713788616 | M136: =IF(AND(VLOOKUP($B136,Lookup!$B$3:$E$222,4,FALSE)=$H$5,B136<>$J$4),F136,NA()) ->  | N136: =IF(AND(VLOOKUP($B136,Lookup!$B$3:$E$222,4,FALSE)=$H$5,B136<>$J$4),G136,NA()) ->  | O136: =IF(ISNUMBER(MATCH($B136,Lookup!$P$3:$P$260,0)),F136,NA()) ->  | P136: =IF(ISNUMBER(MATCH($B136,Lookup!$P$3:$P$260,0)),G136,NA()) -> 
A137: 129 | B137: 08N | C137: NHS Redbridge CCG | E137: 3280 | F137: 3349.300219 | G137: -0.02069095473 | I137: =IF(F137="",#N/A,F137) -> 3349.300219 | J137: -0.02069095473 | M137: =IF(AND(VLOOKUP($B137,Lookup!$B$3:$E$222,4,FALSE)=$H$5,B137<>$J$4),F137,NA()) ->  | N137: =IF(AND(VLOOKUP($B137,Lookup!$B$3:$E$222,4,FALSE)=$H$5,B137<>$J$4),G137,NA()) ->  | O137: =IF(ISNUMBER(MATCH($B137,Lookup!$P$3:$P$260,0)),F137,NA()) ->  | P137: =IF(ISNUMBER(MATCH($B137,Lookup!$P$3:$P$260,0)),G137,NA()) -> 
A138: 130 | B138: 05J | C138: NHS Redditch and Bromsgrove CCG | E138: =IFERROR(INDEX(INDIRECT($E$6),$A138), "") -> 2280 | F138: =IFERROR(INDEX(INDIRECT($F$6),$A138), "") -> 2350.625361 | G138: =IF(OR(E138="",E138=0),"",E138/F138-1) -> -0.0300453495 | H138: =IFERROR(IF(INDEX(INDIRECT($H$6),$A138)=0, "",INDEX(INDIRECT($H$6),$A138)),"") ->  | I138: 2350.625361 | J138: -0.0300453495 | K138: =IF(B138=$J$4,F138,NA()) ->  | L138: =IF(B138=$J$4,G138,NA()) ->  | M138: =IF(AND(VLOOKUP($B138,Lookup!$B$3:$E$222,4,FALSE)=$H$5,B138<>$J$4),F138,NA()) ->  | N138: =IF(AND(VLOOKUP($B138,Lookup!$B$3:$E$222,4,FALSE)=$H$5,B138<>$J$4),G138,NA()) ->  | O138: =IF(ISNUMBER(MATCH($B138,Lookup!$P$3:$P$260,0)),F138,NA()) ->  | P138: =IF(ISNUMBER(MATCH($B138,Lookup!$P$3:$P$260,0)),G138,NA()) -> 
A139: 131 | B139: 08P | C139: NHS Richmond CCG | E139: 775 | F139: 820.4650536 | G139: -0.05541376001 | I139: 820.4650536 | J139: -0.05541376001 | M139: =IF(AND(VLOOKUP($B139,Lookup!$B$3:$E$222,4,FALSE)=$H$5,B139<>$J$4),F139,NA()) ->  | N139: =IF(AND(VLOOKUP($B139,Lookup!$B$3:$E$222,4,FALSE)=$H$5,B139<>$J$4),G139,NA()) ->  | O139: =IF(ISNUMBER(MATCH($B139,Lookup!$P$3:$P$260,0)),F139,NA()) ->  | P139: =IF(ISNUMBER(MATCH($B139,Lookup!$P$3:$P$260,0)),G139,NA()) -> 
A140: 132 | B140: 03L | C140: NHS Rotherham CCG | E140: 4255 | F140: 4457.228257 | G140: -0.04537085507 | H140: low | I140: 4457.228257 | J140: -0.04537085507 | M140: =IF(AND(VLOOKUP($B140,Lookup!$B$3:$E$222,4,FALSE)=$H$5,B140<>$J$4),F140,NA()) ->  | N140: =IF(AND(VLOOKUP($B140,Lookup!$B$3:$E$222,4,FALSE)=$H$5,B140<>$J$4),G140,NA()) ->  | O140: =IF(ISNUMBER(MATCH($B140,Lookup!$P$3:$P$260,0)),F140,NA()) ->  | P140: =IF(ISNUMBER(MATCH($B140,Lookup!$P$3:$P$260,0)),G140,NA()) -> 
A141: 133 | B141: 04N | C141: NHS Rushcliffe CCG | E141: 1130 | F141: 1196.352913 | G141: -0.05546265838 | I141: 1196.352913 | J141: -0.05546265838 | M141: =IF(AND(VLOOKUP($B141,Lookup!$B$3:$E$222,4,FALSE)=$H$5,B141<>$J$4),F141,NA()) ->  | N141: =IF(AND(VLOOKUP($B141,Lookup!$B$3:$E$222,4,FALSE)=$H$5,B141<>$J$4),G141,NA()) ->  | O141: =IF(ISNUMBER(MATCH($B141,Lookup!$P$3:$P$260,0)),F141,NA()) ->  | P141: =IF(ISNUMBER(MATCH($B141,Lookup!$P$3:$P$260,0)),G141,NA()) -> 
A142: 134 | B142: 01G | C142: NHS Salford CCG | E142: 2555 | F142: 2618.951582 | G142: -0.02441877226 | I142: 2618.951582 | J142: -0.02441877226 | M142: =IF(AND(VLOOKUP($B142,Lookup!$B$3:$E$222,4,FALSE)=$H$5,B142<>$J$4),F142,NA()) ->  | N142: =IF(AND(VLOOKUP($B142,Lookup!$B$3:$E$222,4,FALSE)=$H$5,B142<>$J$4),G142,NA()) ->  | O142: =IF(ISNUMBER(MATCH($B142,Lookup!$P$3:$P$260,0)),F142,NA()) ->  | P142: =IF(ISNUMBER(MATCH($B142,Lookup!$P$3:$P$260,0)),G142,NA()) -> 
A143: 135 | B143: 05L | C143: NHS Sandwell and West Birmingham CCG | E143: 5990 | F143: 6101.853328 | G143: -0.01833104178 | I143: 6101.853328 | J143: -0.01833104178 | M143: =IF(AND(VLOOKUP($B143,Lookup!$B$3:$E$222,4,FALSE)=$H$5,B143<>$J$4),F143,NA()) ->  | N143: =IF(AND(VLOOKUP($B143,Lookup!$B$3:$E$222,4,FALSE)=$H$5,B143<>$J$4),G143,NA()) ->  | O143: =IF(ISNUMBER(MATCH($B143,Lookup!$P$3:$P$260,0)),F143,NA()) ->  | P143: =IF(ISNUMBER(MATCH($B143,Lookup!$P$3:$P$260,0)),G143,NA()) -> 
A144: 136 | B144: 03M | C144: NHS Scarborough and Ryedale CCG | E144: 1515 | F144: 1573.130144 | G144: -0.03695189751 | I144: 1573.130144 | J144: -0.03695189751 | M144: =IF(AND(VLOOKUP($B144,Lookup!$B$3:$E$222,4,FALSE)=$H$5,B144<>$J$4),F144,NA()) ->  | N144: =IF(AND(VLOOKUP($B144,Lookup!$B$3:$E$222,4,FALSE)=$H$5,B144<>$J$4),G144,NA()) ->  | O144: =IF(ISNUMBER(MATCH($B144,Lookup!$P$3:$P$260,0)),F144,NA()) ->  | P144: =IF(ISNUMBER(MATCH($B144,Lookup!$P$3:$P$260,0)),G144,NA()) -> 
A145: 137 | B145: 03N | C145: NHS Sheffield CCG | E145: 4720 | F145: 5317.068941 | G145: -0.1122928718 | H145: low | I145: 5317.068941 | J145: -0.1122928718 | M145: =IF(AND(VLOOKUP($B145,Lookup!$B$3:$E$222,4,FALSE)=$H$5,B145<>$J$4),F145,NA()) ->  | N145: =IF(AND(VLOOKUP($B145,Lookup!$B$3:$E$222,4,FALSE)=$H$5,B145<>$J$4),G145,NA()) ->  | O145: =IF(ISNUMBER(MATCH($B145,Lookup!$P$3:$P$260,0)),F145,NA()) ->  | P145: =IF(ISNUMBER(MATCH($B145,Lookup!$P$3:$P$260,0)),G145,NA()) -> 
A146: 138 | B146: 05N | C146: NHS Shropshire CCG | E146: 3625 | F146: 3680.336541 | G146: -0.01503572862 | I146: 3680.336541 | J146: -0.01503572862 | M146: =IF(AND(VLOOKUP($B146,Lookup!$B$3:$E$222,4,FALSE)=$H$5,B146<>$J$4),F146,NA()) ->  | N146: =IF(AND(VLOOKUP($B146,Lookup!$B$3:$E$222,4,FALSE)=$H$5,B146<>$J$4),G146,NA()) ->  | O146: =IF(ISNUMBER(MATCH($B146,Lookup!$P$3:$P$260,0)),F146,NA()) ->  | P146: =IF(ISNUMBER(MATCH($B146,Lookup!$P$3:$P$260,0)),G146,NA()) -> 
A147: 139 | B147: 11X | C147: NHS Somerset CCG | E147: 6965 | F147: 7239.190779 | G147: -0.03787588797 | H147: low | I147: 7239.190779 | J147: -0.03787588797 | M147: =IF(AND(VLOOKUP($B147,Lookup!$B$3:$E$222,4,FALSE)=$H$5,B147<>$J$4),F147,NA()) ->  | N147: =IF(AND(VLOOKUP($B147,Lookup!$B$3:$E$222,4,FALSE)=$H$5,B147<>$J$4),G147,NA()) ->  | O147: =IF(ISNUMBER(MATCH($B147,Lookup!$P$3:$P$260,0)),F147,NA()) ->  | P147: =IF(ISNUMBER(MATCH($B147,Lookup!$P$3:$P$260,0)),G147,NA()) -> 
A148: 140 | B148: 01R | C148: NHS South Cheshire CCG | E148: 2425 | F148: 2499.64915 | G148: -0.02986385123 | I148: 2499.64915 | J148: -0.02986385123 | M148: =IF(AND(VLOOKUP($B148,Lookup!$B$3:$E$222,4,FALSE)=$H$5,B148<>$J$4),F148,NA()) ->  | N148: =IF(AND(VLOOKUP($B148,Lookup!$B$3:$E$222,4,FALSE)=$H$5,B148<>$J$4),G148,NA()) ->  | O148: =IF(ISNUMBER(MATCH($B148,Lookup!$P$3:$P$260,0)),F148,NA()) -> 2499.64915 | P148: =IF(ISNUMBER(MATCH($B148,Lookup!$P$3:$P$260,0)),G148,NA()) -> -0.02986385123
A149: 141 | B149: 99Q | C149: NHS South Devon and Torbay CCG | E149: 2225 | F149: 2460.15732 | G149: -0.09558629381 | H149: low | I149: 2460.15732 | J149: -0.09558629381 | M149: =IF(AND(VLOOKUP($B149,Lookup!$B$3:$E$222,4,FALSE)=$H$5,B149<>$J$4),F149,NA()) ->  | N149: =IF(AND(VLOOKUP($B149,Lookup!$B$3:$E$222,4,FALSE)=$H$5,B149<>$J$4),G149,NA()) ->  | O149: =IF(ISNUMBER(MATCH($B149,Lookup!$P$3:$P$260,0)),F149,NA()) ->  | P149: =IF(ISNUMBER(MATCH($B149,Lookup!$P$3:$P$260,0)),G149,NA()) -> 
A150: 142 | B150: 05Q | C150: NHS South East Staffordshire and Seisdon Peninsula CCG | E150: 2445 | F150: 2541.907477 | G150: -0.03812391981 | I150: 2541.907477 | J150: -0.03812391981 | M150: =IF(AND(VLOOKUP($B150,Lookup!$B$3:$E$222,4,FALSE)=$H$5,B150<>$J$4),F150,NA()) ->  | N150: =IF(AND(VLOOKUP($B150,Lookup!$B$3:$E$222,4,FALSE)=$H$5,B150<>$J$4),G150,NA()) ->  | O150: =IF(ISNUMBER(MATCH($B150,Lookup!$P$3:$P$260,0)),F150,NA()) ->  | P150: =IF(ISNUMBER(MATCH($B150,Lookup!$P$3:$P$260,0)),G150,NA()) -> 
A151: 143 | B151: 10V | C151: NHS South Eastern Hampshire CCG | E151: 1805 | F151: 1947.645552 | G151: -0.07323999571 | H151: low | I151: 1947.645552 | J151: -0.07323999571 | M151: =IF(AND(VLOOKUP($B151,Lookup!$B$3:$E$222,4,FALSE)=$H$5,B151<>$J$4),F151,NA()) ->  | N151: =IF(AND(VLOOKUP($B151,Lookup!$B$3:$E$222,4,FALSE)=$H$5,B151<>$J$4),G151,NA()) ->  | O151: =IF(ISNUMBER(MATCH($B151,Lookup!$P$3:$P$260,0)),F151,NA()) -> 1947.645552 | P151: =IF(ISNUMBER(MATCH($B151,Lookup!$P$3:$P$260,0)),G151,NA()) -> -0.07323999571
A152: 144 | B152: 10A | C152: NHS South Kent Coast CCG | E152: 1670 | F152: 1898.905454 | G152: -0.1205459986 | H152: low | I152: 1898.905454 | J152: -0.1205459986 | M152: =IF(AND(VLOOKUP($B152,Lookup!$B$3:$E$222,4,FALSE)=$H$5,B152<>$J$4),F152,NA()) ->  | N152: =IF(AND(VLOOKUP($B152,Lookup!$B$3:$E$222,4,FALSE)=$H$5,B152<>$J$4),G152,NA()) ->  | O152: =IF(ISNUMBER(MATCH($B152,Lookup!$P$3:$P$260,0)),F152,NA()) -> 1898.905454 | P152: =IF(ISNUMBER(MATCH($B152,Lookup!$P$3:$P$260,0)),G152,NA()) -> -0.1205459986
A153: 145 | B153: 99D | C153: NHS South Lincolnshire CCG | E153: 1940 | F153: 2000.76799 | G153: -0.03037233213 | I153: 2000.76799 | J153: -0.03037233213 | M153: =IF(AND(VLOOKUP($B153,Lookup!$B$3:$E$222,4,FALSE)=$H$5,B153<>$J$4),F153,NA()) ->  | N153: =IF(AND(VLOOKUP($B153,Lookup!$B$3:$E$222,4,FALSE)=$H$5,B153<>$J$4),G153,NA()) ->  | O153: =IF(ISNUMBER(MATCH($B153,Lookup!$P$3:$P$260,0)),F153,NA()) ->  | P153: =IF(ISNUMBER(MATCH($B153,Lookup!$P$3:$P$260,0)),G153,NA()) -> 
A154: 146 | B154: 06Y | C154: NHS South Norfolk CCG | E154: 2695 | F154: 2825.352472 | G154: -0.0461367116 | H154: low | I154: 2825.352472 | J154: -0.0461367116 | M154: =IF(AND(VLOOKUP($B154,Lookup!$B$3:$E$222,4,FALSE)=$H$5,B154<>$J$4),F154,NA()) ->  | N154: =IF(AND(VLOOKUP($B154,Lookup!$B$3:$E$222,4,FALSE)=$H$5,B154<>$J$4),G154,NA()) ->  | O154: =IF(ISNUMBER(MATCH($B154,Lookup!$P$3:$P$260,0)),F154,NA()) ->  | P154: =IF(ISNUMBER(MATCH($B154,Lookup!$P$3:$P$260,0)),G154,NA()) -> 
A155: 147 | B155: 01T | C155: NHS South Sefton CCG | E155: 1725 | F155: 1817.518807 | G155: -0.05090390649 | H155: low | I155: 1817.518807 | J155: -0.05090390649 | M155: =IF(AND(VLOOKUP($B155,Lookup!$B$3:$E$222,4,FALSE)=$H$5,B155<>$J$4),F155,NA()) ->  | N155: =IF(AND(VLOOKUP($B155,Lookup!$B$3:$E$222,4,FALSE)=$H$5,B155<>$J$4),G155,NA()) ->  | O155: =IF(ISNUMBER(MATCH($B155,Lookup!$P$3:$P$260,0)),F155,NA()) ->  | P155: =IF(ISNUMBER(MATCH($B155,Lookup!$P$3:$P$260,0)),G155,NA()) -> 
A156: 148 | B156: 00M | C156: NHS South Tees CCG | E156: 3765 | F156: 3974.403292 | G156: -0.05268798267 | H156: low | I156: 3974.403292 | J156: -0.05268798267 | M156: =IF(AND(VLOOKUP($B156,Lookup!$B$3:$E$222,4,FALSE)=$H$5,B156<>$J$4),F156,NA()) ->  | N156: =IF(AND(VLOOKUP($B156,Lookup!$B$3:$E$222,4,FALSE)=$H$5,B156<>$J$4),G156,NA()) ->  | O156: =IF(ISNUMBER(MATCH($B156,Lookup!$P$3:$P$260,0)),F156,NA()) ->  | P156: =IF(ISNUMBER(MATCH($B156,Lookup!$P$3:$P$260,0)),G156,NA()) -> 
A157: 149 | B157: 00N | C157: NHS South Tyneside CCG | E157: 3350 | F157: 3436.312013 | G157: -0.02511762989 | I157: 3436.312013 | J157: -0.02511762989 | M157: =IF(AND(VLOOKUP($B157,Lookup!$B$3:$E$222,4,FALSE)=$H$5,B157<>$J$4),F157,NA()) ->  | N157: =IF(AND(VLOOKUP($B157,Lookup!$B$3:$E$222,4,FALSE)=$H$5,B157<>$J$4),G157,NA()) ->  | O157: =IF(ISNUMBER(MATCH($B157,Lookup!$P$3:$P$260,0)),F157,NA()) ->  | P157: =IF(ISNUMBER(MATCH($B157,Lookup!$P$3:$P$260,0)),G157,NA()) -> 
A158: 150 | B158: 05R | C158: NHS South Warwickshire CCG | E158: 2735 | F158: 2802.52989 | G158: -0.0240960464 | I158: 2802.52989 | J158: -0.0240960464 | M158: =IF(AND(VLOOKUP($B158,Lookup!$B$3:$E$222,4,FALSE)=$H$5,B158<>$J$4),F158,NA()) ->  | N158: =IF(AND(VLOOKUP($B158,Lookup!$B$3:$E$222,4,FALSE)=$H$5,B158<>$J$4),G158,NA()) ->  | O158: =IF(ISNUMBER(MATCH($B158,Lookup!$P$3:$P$260,0)),F158,NA()) ->  | P158: =IF(ISNUMBER(MATCH($B158,Lookup!$P$3:$P$260,0)),G158,NA()) -> 
A159: 151 | B159: 04Q | C159: NHS South West Lincolnshire CCG | E159: 1010 | F159: 1142.278267 | G159: -0.1158021389 | H159: low | I159: 1142.278267 | J159: -0.1158021389 | M159: =IF(AND(VLOOKUP($B159,Lookup!$B$3:$E$222,4,FALSE)=$H$5,B159<>$J$4),F159,NA()) ->  | N159: =IF(AND(VLOOKUP($B159,Lookup!$B$3:$E$222,4,FALSE)=$H$5,B159<>$J$4),G159,NA()) ->  | O159: =IF(ISNUMBER(MATCH($B159,Lookup!$P$3:$P$260,0)),F159,NA()) ->  | P159: =IF(ISNUMBER(MATCH($B159,Lookup!$P$3:$P$260,0)),G159,NA()) -> 
A160: 152 | B160: 05T | C160: NHS South Worcestershire CCG | E160: 3815 | F160: 3981.502201 | G160: -0.04181893995 | H160: low | I160: 3981.502201 | J160: -0.04181893995 | M160: =IF(AND(VLOOKUP($B160,Lookup!$B$3:$E$222,4,FALSE)=$H$5,B160<>$J$4),F160,NA()) ->  | N160: =IF(AND(VLOOKUP($B160,Lookup!$B$3:$E$222,4,FALSE)=$H$5,B160<>$J$4),G160,NA()) ->  | O160: =IF(ISNUMBER(MATCH($B160,Lookup!$P$3:$P$260,0)),F160,NA()) ->  | P160: =IF(ISNUMBER(MATCH($B160,Lookup!$P$3:$P$260,0)),G160,NA()) -> 
A161: 153 | B161: 10X | C161: NHS Southampton CCG | E161: 1695 | F161: 1865.444137 | G161: -0.09136919918 | H161: low | I161: 1865.444137 | J161: -0.09136919918 | M161: =IF(AND(VLOOKUP($B161,Lookup!$B$3:$E$222,4,FALSE)=$H$5,B161<>$J$4),F161,NA()) ->  | N161: =IF(AND(VLOOKUP($B161,Lookup!$B$3:$E$222,4,FALSE)=$H$5,B161<>$J$4),G161,NA()) ->  | O161: =IF(ISNUMBER(MATCH($B161,Lookup!$P$3:$P$260,0)),F161,NA()) ->  | P161: =IF(ISNUMBER(MATCH($B161,Lookup!$P$3:$P$260,0)),G161,NA()) -> 
A162: 154 | B162: 99G | C162: NHS Southend CCG | E162: 1525 | F162: 1712.66322 | G162: -0.1095739186 | H162: low | I162: 1712.66322 | J162: -0.1095739186 | M162: =IF(AND(VLOOKUP($B162,Lookup!$B$3:$E$222,4,FALSE)=$H$5,B162<>$J$4),F162,NA()) ->  | N162: =IF(AND(VLOOKUP($B162,Lookup!$B$3:$E$222,4,FALSE)=$H$5,B162<>$J$4),G162,NA()) ->  | O162: =IF(ISNUMBER(MATCH($B162,Lookup!$P$3:$P$260,0)),F162,NA()) ->  | P162: =IF(ISNUMBER(MATCH($B162,Lookup!$P$3:$P$260,0)),G162,NA()) -> 
A163: 155 | B163: 04R | C163: NHS Southern Derbyshire CCG | E163: 3775 | F163: 4237.119437 | G163: -0.1090645294 | H163: low | I163: 4237.119437 | J163: -0.1090645294 | M163: =IF(AND(VLOOKUP($B163,Lookup!$B$3:$E$222,4,FALSE)=$H$5,B163<>$J$4),F163,NA()) ->  | N163: =IF(AND(VLOOKUP($B163,Lookup!$B$3:$E$222,4,FALSE)=$H$5,B163<>$J$4),G163,NA()) ->  | O163: =IF(ISNUMBER(MATCH($B163,Lookup!$P$3:$P$260,0)),F163,NA()) ->  | P163: =IF(ISNUMBER(MATCH($B163,Lookup!$P$3:$P$260,0)),G163,NA()) -> 
A164: 156 | B164: 01V | C164: NHS Southport and Formby CCG | E164: 1795 | F164: 1843.146051 | G164: -0.02612166874 | I164: 1843.146051 | J164: -0.02612166874 | M164: =IF(AND(VLOOKUP($B164,Lookup!$B$3:$E$222,4,FALSE)=$H$5,B164<>$J$4),F164,NA()) ->  | N164: =IF(AND(VLOOKUP($B164,Lookup!$B$3:$E$222,4,FALSE)=$H$5,B164<>$J$4),G164,NA()) ->  | O164: =IF(ISNUMBER(MATCH($B164,Lookup!$P$3:$P$260,0)),F164,NA()) ->  | P164: =IF(ISNUMBER(MATCH($B164,Lookup!$P$3:$P$260,0)),G164,NA()) -> 
A165: 157 | B165: 08Q | C165: NHS Southwark CCG | E165: 2385 | F165: 2531.880253 | G165: -0.05801232209 | H165: low | I165: 2531.880253 | J165: -0.05801232209 | M165: =IF(AND(VLOOKUP($B165,Lookup!$B$3:$E$222,4,FALSE)=$H$5,B165<>$J$4),F165,NA()) ->  | N165: =IF(AND(VLOOKUP($B165,Lookup!$B$3:$E$222,4,FALSE)=$H$5,B165<>$J$4),G165,NA()) ->  | O165: =IF(ISNUMBER(MATCH($B165,Lookup!$P$3:$P$260,0)),F165,NA()) ->  | P165: =IF(ISNUMBER(MATCH($B165,Lookup!$P$3:$P$260,0)),G165,NA()) -> 
A166: 158 | B166: 01X | C166: NHS St Helens CCG | E166: 2365 | F166: 2449.140745 | G166: -0.03435521013 | I166: 2449.140745 | J166: -0.03435521013 | M166: =IF(AND(VLOOKUP($B166,Lookup!$B$3:$E$222,4,FALSE)=$H$5,B166<>$J$4),F166,NA()) ->  | N166: =IF(AND(VLOOKUP($B166,Lookup!$B$3:$E$222,4,FALSE)=$H$5,B166<>$J$4),G166,NA()) ->  | O166: =IF(ISNUMBER(MATCH($B166,Lookup!$P$3:$P$260,0)),F166,NA()) ->  | P166: =IF(ISNUMBER(MATCH($B166,Lookup!$P$3:$P$260,0)),G166,NA()) -> 
A167: 159 | B167: 05V | C167: NHS Stafford and Surrounds CCG | E167: 1575 | F167: 1652.528962 | G167: -0.04691534254 | I167: 1652.528962 | J167: -0.04691534254 | M167: =IF(AND(VLOOKUP($B167,Lookup!$B$3:$E$222,4,FALSE)=$H$5,B167<>$J$4),F167,NA()) ->  | N167: =IF(AND(VLOOKUP($B167,Lookup!$B$3:$E$222,4,FALSE)=$H$5,B167<>$J$4),G167,NA()) ->  | O167: =IF(ISNUMBER(MATCH($B167,Lookup!$P$3:$P$260,0)),F167,NA()) ->  | P167: =IF(ISNUMBER(MATCH($B167,Lookup!$P$3:$P$260,0)),G167,NA()) -> 
A168: 160 | B168: 01W | C168: NHS Stockport CCG | E168: 3355 | F168: 3459.631678 | G168: -0.0302435887 | I168: 3459.631678 | J168: -0.0302435887 | M168: =IF(AND(VLOOKUP($B168,Lookup!$B$3:$E$222,4,FALSE)=$H$5,B168<>$J$4),F168,NA()) ->  | N168: =IF(AND(VLOOKUP($B168,Lookup!$B$3:$E$222,4,FALSE)=$H$5,B168<>$J$4),G168,NA()) ->  | O168: =IF(ISNUMBER(MATCH($B168,Lookup!$P$3:$P$260,0)),F168,NA()) ->  | P168: =IF(ISNUMBER(MATCH($B168,Lookup!$P$3:$P$260,0)),G168,NA()) -> 
A169: 161 | B169: 05W | C169: NHS Stoke on Trent CCG | E169: 3225 | F169: 3396.317284 | G169: -0.05044207287 | H169: low | I169: 3396.317284 | J169: -0.05044207287 | M169: =IF(AND(VLOOKUP($B169,Lookup!$B$3:$E$222,4,FALSE)=$H$5,B169<>$J$4),F169,NA()) ->  | N169: =IF(AND(VLOOKUP($B169,Lookup!$B$3:$E$222,4,FALSE)=$H$5,B169<>$J$4),G169,NA()) ->  | O169: =IF(ISNUMBER(MATCH($B169,Lookup!$P$3:$P$260,0)),F169,NA()) ->  | P169: =IF(ISNUMBER(MATCH($B169,Lookup!$P$3:$P$260,0)),G169,NA()) -> 
A170: 162 | B170: 00P | C170: NHS Sunderland CCG | E170: 3475 | F170: 3763.148991 | G170: -0.07657124182 | H170: low | I170: 3763.148991 | J170: -0.07657124182 | M170: =IF(AND(VLOOKUP($B170,Lookup!$B$3:$E$222,4,FALSE)=$H$5,B170<>$J$4),F170,NA()) ->  | N170: =IF(AND(VLOOKUP($B170,Lookup!$B$3:$E$222,4,FALSE)=$H$5,B170<>$J$4),G170,NA()) ->  | O170: =IF(ISNUMBER(MATCH($B170,Lookup!$P$3:$P$260,0)),F170,NA()) ->  | P170: =IF(ISNUMBER(MATCH($B170,Lookup!$P$3:$P$260,0)),G170,NA()) -> 
A171: 163 | B171: 99H | C171: NHS Surrey Downs CCG | E171: 2135 | F171: 2186.709402 | G171: -0.02364713018 | I171: 2186.709402 | J171: -0.02364713018 | M171: =IF(AND(VLOOKUP($B171,Lookup!$B$3:$E$222,4,FALSE)=$H$5,B171<>$J$4),F171,NA()) ->  | N171: =IF(AND(VLOOKUP($B171,Lookup!$B$3:$E$222,4,FALSE)=$H$5,B171<>$J$4),G171,NA()) ->  | O171: =IF(ISNUMBER(MATCH($B171,Lookup!$P$3:$P$260,0)),F171,NA()) ->  | P171: =IF(ISNUMBER(MATCH($B171,Lookup!$P$3:$P$260,0)),G171,NA()) -> 
A172: 164 | B172: 10C | C172: NHS Surrey Heath CCG | E172: 890 | F172: 891.148273 | G172: -0.001288531918 | I172: 891.148273 | J172: -0.001288531918 | M172: =IF(AND(VLOOKUP($B172,Lookup!$B$3:$E$222,4,FALSE)=$H$5,B172<>$J$4),F172,NA()) ->  | N172: =IF(AND(VLOOKUP($B172,Lookup!$B$3:$E$222,4,FALSE)=$H$5,B172<>$J$4),G172,NA()) ->  | O172: =IF(ISNUMBER(MATCH($B172,Lookup!$P$3:$P$260,0)),F172,NA()) ->  | P172: =IF(ISNUMBER(MATCH($B172,Lookup!$P$3:$P$260,0)),G172,NA()) -> 
A173: 165 | B173: 08T | C173: NHS Sutton CCG | E173: 1260 | F173: 1366.62248 | G173: -0.078018971 | H173: low | I173: 1366.62248 | J173: -0.078018971 | M173: =IF(AND(VLOOKUP($B173,Lookup!$B$3:$E$222,4,FALSE)=$H$5,B173<>$J$4),F173,NA()) ->  | N173: =IF(AND(VLOOKUP($B173,Lookup!$B$3:$E$222,4,FALSE)=$H$5,B173<>$J$4),G173,NA()) ->  | O173: =IF(ISNUMBER(MATCH($B173,Lookup!$P$3:$P$260,0)),F173,NA()) ->  | P173: =IF(ISNUMBER(MATCH($B173,Lookup!$P$3:$P$260,0)),G173,NA()) -> 
A174: 166 | B174: 10D | C174: NHS Swale CCG | E174: 1025 | F174: 1098.793044 | G174: -0.06715827351 | H174: low | I174: 1098.793044 | J174: -0.06715827351 | M174: =IF(AND(VLOOKUP($B174,Lookup!$B$3:$E$222,4,FALSE)=$H$5,B174<>$J$4),F174,NA()) ->  | N174: =IF(AND(VLOOKUP($B174,Lookup!$B$3:$E$222,4,FALSE)=$H$5,B174<>$J$4),G174,NA()) ->  | O174: =IF(ISNUMBER(MATCH($B174,Lookup!$P$3:$P$260,0)),F174,NA()) ->  | P174: =IF(ISNUMBER(MATCH($B174,Lookup!$P$3:$P$260,0)),G174,NA()) -> 
A175: 167 | B175: 12D | C175: NHS Swindon CCG | E175: 1960 | F175: 2121.171201 | G175: -0.07598217471 | H175: low | I175: 2121.171201 | J175: -0.07598217471 | M175: =IF(AND(VLOOKUP($B175,Lookup!$B$3:$E$222,4,FALSE)=$H$5,B175<>$J$4),F175,NA()) ->  | N175: =IF(AND(VLOOKUP($B175,Lookup!$B$3:$E$222,4,FALSE)=$H$5,B175<>$J$4),G175,NA()) ->  | O175: =IF(ISNUMBER(MATCH($B175,Lookup!$P$3:$P$260,0)),F175,NA()) ->  | P175: =IF(ISNUMBER(MATCH($B175,Lookup!$P$3:$P$260,0)),G175,NA()) -> 
A176: 168 | B176: 01Y | C176: NHS Tameside and Glossop CCG | E176: 3180 | F176: 3378.316182 | G176: -0.05870267058 | H176: low | I176: 3378.316182 | J176: -0.05870267058 | M176: =IF(AND(VLOOKUP($B176,Lookup!$B$3:$E$222,4,FALSE)=$H$5,B176<>$J$4),F176,NA()) ->  | N176: =IF(AND(VLOOKUP($B176,Lookup!$B$3:$E$222,4,FALSE)=$H$5,B176<>$J$4),G176,NA()) ->  | O176: =IF(ISNUMBER(MATCH($B176,Lookup!$P$3:$P$260,0)),F176,NA()) ->  | P176: =IF(ISNUMBER(MATCH($B176,Lookup!$P$3:$P$260,0)),G176,NA()) -> 
A177: 169 | B177: 05X | C177: NHS Telford and Wrekin CCG | E177: 2025 | F177: 2150.899972 | G177: -0.05853362482 | H177: low | I177: 2150.899972 | J177: -0.05853362482 | M177: =IF(AND(VLOOKUP($B177,Lookup!$B$3:$E$222,4,FALSE)=$H$5,B177<>$J$4),F177,NA()) ->  | N177: =IF(AND(VLOOKUP($B177,Lookup!$B$3:$E$222,4,FALSE)=$H$5,B177<>$J$4),G177,NA()) ->  | O177: =IF(ISNUMBER(MATCH($B177,Lookup!$P$3:$P$260,0)),F177,NA()) ->  | P177: =IF(ISNUMBER(MATCH($B177,Lookup!$P$3:$P$260,0)),G177,NA()) -> 
A178: 170 | B178: 10E | C178: NHS Thanet CCG | E178: 1205 | F178: 1395.914608 | G178: -0.1367666811 | H178: low | I178: 1395.914608 | J178: -0.1367666811 | M178: =IF(AND(VLOOKUP($B178,Lookup!$B$3:$E$222,4,FALSE)=$H$5,B178<>$J$4),F178,NA()) ->  | N178: =IF(AND(VLOOKUP($B178,Lookup!$B$3:$E$222,4,FALSE)=$H$5,B178<>$J$4),G178,NA()) ->  | O178: =IF(ISNUMBER(MATCH($B178,Lookup!$P$3:$P$260,0)),F178,NA()) ->  | P178: =IF(ISNUMBER(MATCH($B178,Lookup!$P$3:$P$260,0)),G178,NA()) -> 
A179: 171 | B179: 07G | C179: NHS Thurrock CCG | E179: 1480 | F179: 1562.220843 | G179: -0.0526307423 | H179: low | I179: 1562.220843 | J179: -0.0526307423 | M179: =IF(AND(VLOOKUP($B179,Lookup!$B$3:$E$222,4,FALSE)=$H$5,B179<>$J$4),F179,NA()) ->  | N179: =IF(AND(VLOOKUP($B179,Lookup!$B$3:$E$222,4,FALSE)=$H$5,B179<>$J$4),G179,NA()) ->  | O179: =IF(ISNUMBER(MATCH($B179,Lookup!$P$3:$P$260,0)),F179,NA()) ->  | P179: =IF(ISNUMBER(MATCH($B179,Lookup!$P$3:$P$260,0)),G179,NA()) -> 
A180: 172 | B180: 08V | C180: NHS Tower Hamlets CCG | E180: 2375 | F180: 2356.770396 | G180: 0.007734993448 | I180: 2356.770396 | J180: 0.007734993448 | M180: =IF(AND(VLOOKUP($B180,Lookup!$B$3:$E$222,4,FALSE)=$H$5,B180<>$J$4),F180,NA()) ->  | N180: =IF(AND(VLOOKUP($B180,Lookup!$B$3:$E$222,4,FALSE)=$H$5,B180<>$J$4),G180,NA()) ->  | O180: =IF(ISNUMBER(MATCH($B180,Lookup!$P$3:$P$260,0)),F180,NA()) ->  | P180: =IF(ISNUMBER(MATCH($B180,Lookup!$P$3:$P$260,0)),G180,NA()) -> 
A181: 173 | B181: 02A | C181: NHS Trafford CCG | E181: 2815 | F181: 2916.210654 | G181: -0.03470622173 | I181: 2916.210654 | J181: -0.03470622173 | M181: =IF(AND(VLOOKUP($B181,Lookup!$B$3:$E$222,4,FALSE)=$H$5,B181<>$J$4),F181,NA()) ->  | N181: =IF(AND(VLOOKUP($B181,Lookup!$B$3:$E$222,4,FALSE)=$H$5,B181<>$J$4),G181,NA()) ->  | O181: =IF(ISNUMBER(MATCH($B181,Lookup!$P$3:$P$260,0)),F181,NA()) ->  | P181: =IF(ISNUMBER(MATCH($B181,Lookup!$P$3:$P$260,0)),G181,NA()) -> 
A182: 174 | B182: 03Q | C182: NHS Vale of York CCG | E182: 4805 | F182: 4868.325483 | G182: -0.01300765189 | I182: 4868.325483 | J182: -0.01300765189 | M182: =IF(AND(VLOOKUP($B182,Lookup!$B$3:$E$222,4,FALSE)=$H$5,B182<>$J$4),F182,NA()) ->  | N182: =IF(AND(VLOOKUP($B182,Lookup!$B$3:$E$222,4,FALSE)=$H$5,B182<>$J$4),G182,NA()) ->  | O182: =IF(ISNUMBER(MATCH($B182,Lookup!$P$3:$P$260,0)),F182,NA()) ->  | P182: =IF(ISNUMBER(MATCH($B182,Lookup!$P$3:$P$260,0)),G182,NA()) -> 
A183: 175 | B183: 02D | C183: NHS Vale Royal CCG | E183: 1350 | F183: 1355.53939 | G183: -0.004086483799 | I183: 1355.53939 | J183: -0.004086483799 | M183: =IF(AND(VLOOKUP($B183,Lookup!$B$3:$E$222,4,FALSE)=$H$5,B183<>$J$4),F183,NA()) ->  | N183: =IF(AND(VLOOKUP($B183,Lookup!$B$3:$E$222,4,FALSE)=$H$5,B183<>$J$4),G183,NA()) ->  | O183: =IF(ISNUMBER(MATCH($B183,Lookup!$P$3:$P$260,0)),F183,NA()) ->  | P183: =IF(ISNUMBER(MATCH($B183,Lookup!$P$3:$P$260,0)),G183,NA()) -> 
A184: 176 | B184: 03R | C184: NHS Wakefield CCG | E184: 3445 | F184: 3476.414232 | G184: -0.009036389325 | I184: 3476.414232 | J184: -0.009036389325 | M184: =IF(AND(VLOOKUP($B184,Lookup!$B$3:$E$222,4,FALSE)=$H$5,B184<>$J$4),F184,NA()) -> 3476.414232 | N184: =IF(AND(VLOOKUP($B184,Lookup!$B$3:$E$222,4,FALSE)=$H$5,B184<>$J$4),G184,NA()) -> -0.009036389325 | O184: =IF(ISNUMBER(MATCH($B184,Lookup!$P$3:$P$260,0)),F184,NA()) ->  | P184: =IF(ISNUMBER(MATCH($B184,Lookup!$P$3:$P$260,0)),G184,NA()) -> 
A185: 177 | B185: 05Y | C185: NHS Walsall CCG | E185: 2895 | F185: 3027.88141 | G185: -0.04388593594 | H185: low | I185: 3027.88141 | J185: -0.04388593594 | M185: =IF(AND(VLOOKUP($B185,Lookup!$B$3:$E$222,4,FALSE)=$H$5,B185<>$J$4),F185,NA()) ->  | N185: =IF(AND(VLOOKUP($B185,Lookup!$B$3:$E$222,4,FALSE)=$H$5,B185<>$J$4),G185,NA()) ->  | O185: =IF(ISNUMBER(MATCH($B185,Lookup!$P$3:$P$260,0)),F185,NA()) ->  | P185: =IF(ISNUMBER(MATCH($B185,Lookup!$P$3:$P$260,0)),G185,NA()) -> 
A186: 178 | B186: 08W | C186: NHS Waltham Forest CCG | E186: 2110 | F186: 2195.073555 | G186: -0.03875658524 | I186: 2195.073555 | J186: -0.03875658524 | M186: =IF(AND(VLOOKUP($B186,Lookup!$B$3:$E$222,4,FALSE)=$H$5,B186<>$J$4),F186,NA()) ->  | N186: =IF(AND(VLOOKUP($B186,Lookup!$B$3:$E$222,4,FALSE)=$H$5,B186<>$J$4),G186,NA()) ->  | O186: =IF(ISNUMBER(MATCH($B186,Lookup!$P$3:$P$260,0)),F186,NA()) ->  | P186: =IF(ISNUMBER(MATCH($B186,Lookup!$P$3:$P$260,0)),G186,NA()) -> 
A187: 179 | B187: 08X | C187: NHS Wandsworth CCG | E187: 1490 | F187: 1655.938537 | G187: -0.1002081499 | H187: low | I187: 1655.938537 | J187: -0.1002081499 | M187: =IF(AND(VLOOKUP($B187,Lookup!$B$3:$E$222,4,FALSE)=$H$5,B187<>$J$4),F187,NA()) ->  | N187: =IF(AND(VLOOKUP($B187,Lookup!$B$3:$E$222,4,FALSE)=$H$5,B187<>$J$4),G187,NA()) ->  | O187: =IF(ISNUMBER(MATCH($B187,Lookup!$P$3:$P$260,0)),F187,NA()) ->  | P187: =IF(ISNUMBER(MATCH($B187,Lookup!$P$3:$P$260,0)),G187,NA()) -> 
A188: 180 | B188: 02E | C188: NHS Warrington CCG | E188: 2685 | F188: 2683.772914 | G188: 0.0004572241182 | I188: 2683.772914 | J188: 0.0004572241182 | M188: =IF(AND(VLOOKUP($B188,Lookup!$B$3:$E$222,4,FALSE)=$H$5,B188<>$J$4),F188,NA()) ->  | N188: =IF(AND(VLOOKUP($B188,Lookup!$B$3:$E$222,4,FALSE)=$H$5,B188<>$J$4),G188,NA()) ->  | O188: =IF(ISNUMBER(MATCH($B188,Lookup!$P$3:$P$260,0)),F188,NA()) ->  | P188: =IF(ISNUMBER(MATCH($B188,Lookup!$P$3:$P$260,0)),G188,NA()) -> 
A189: 181 | B189: 05H | C189: NHS Warwickshire North CCG | E189: 1805 | F189: 1818.709446 | G189: -0.007538007946 | I189: 1818.709446 | J189: -0.007538007946 | M189: =IF(AND(VLOOKUP($B189,Lookup!$B$3:$E$222,4,FALSE)=$H$5,B189<>$J$4),F189,NA()) ->  | N189: =IF(AND(VLOOKUP($B189,Lookup!$B$3:$E$222,4,FALSE)=$H$5,B189<>$J$4),G189,NA()) ->  | O189: =IF(ISNUMBER(MATCH($B189,Lookup!$P$3:$P$260,0)),F189,NA()) -> 1818.709446 | P189: =IF(ISNUMBER(MATCH($B189,Lookup!$P$3:$P$260,0)),G189,NA()) -> -0.007538007946
A190: 182 | B190: 02F | C190: NHS West Cheshire CCG | E190: 3350 | F190: 3502.587958 | G190: -0.04356434724 | H190: low | I190: 3502.587958 | J190: -0.04356434724 | M190: =IF(AND(VLOOKUP($B190,Lookup!$B$3:$E$222,4,FALSE)=$H$5,B190<>$J$4),F190,NA()) ->  | N190: =IF(AND(VLOOKUP($B190,Lookup!$B$3:$E$222,4,FALSE)=$H$5,B190<>$J$4),G190,NA()) ->  | O190: =IF(ISNUMBER(MATCH($B190,Lookup!$P$3:$P$260,0)),F190,NA()) ->  | P190: =IF(ISNUMBER(MATCH($B190,Lookup!$P$3:$P$260,0)),G190,NA()) -> 
A191: 183 | B191: 07H | C191: NHS West Essex CCG | E191: 2520 | F191: 2689.448133 | G191: -0.06300479677 | H191: low | I191: 2689.448133 | J191: -0.06300479677 | M191: =IF(AND(VLOOKUP($B191,Lookup!$B$3:$E$222,4,FALSE)=$H$5,B191<>$J$4),F191,NA()) ->  | N191: =IF(AND(VLOOKUP($B191,Lookup!$B$3:$E$222,4,FALSE)=$H$5,B191<>$J$4),G191,NA()) ->  | O191: =IF(ISNUMBER(MATCH($B191,Lookup!$P$3:$P$260,0)),F191,NA()) ->  | P191: =IF(ISNUMBER(MATCH($B191,Lookup!$P$3:$P$260,0)),G191,NA()) -> 
A192: 184 | B192: 11A | C192: NHS West Hampshire CCG | E192: 4700 | F192: 4905.84447 | G192: -0.0419590289 | H192: low | I192: 4905.84447 | J192: -0.0419590289 | M192: =IF(AND(VLOOKUP($B192,Lookup!$B$3:$E$222,4,FALSE)=$H$5,B192<>$J$4),F192,NA()) ->  | N192: =IF(AND(VLOOKUP($B192,Lookup!$B$3:$E$222,4,FALSE)=$H$5,B192<>$J$4),G192,NA()) ->  | O192: =IF(ISNUMBER(MATCH($B192,Lookup!$P$3:$P$260,0)),F192,NA()) ->  | P192: =IF(ISNUMBER(MATCH($B192,Lookup!$P$3:$P$260,0)),G192,NA()) -> 
A193: 185 | B193: 99J | C193: NHS West Kent CCG | E193: 2570 | F193: 2818.233369 | G193: -0.08808119725 | H193: low | I193: 2818.233369 | J193: -0.08808119725 | M193: =IF(AND(VLOOKUP($B193,Lookup!$B$3:$E$222,4,FALSE)=$H$5,B193<>$J$4),F193,NA()) ->  | N193: =IF(AND(VLOOKUP($B193,Lookup!$B$3:$E$222,4,FALSE)=$H$5,B193<>$J$4),G193,NA()) ->  | O193: =IF(ISNUMBER(MATCH($B193,Lookup!$P$3:$P$260,0)),F193,NA()) ->  | P193: =IF(ISNUMBER(MATCH($B193,Lookup!$P$3:$P$260,0)),G193,NA()) -> 
A194: 186 | B194: 02G | C194: NHS West Lancashire CCG | E194: 1650 | F194: 1655.446358 | G194: -0.003289963403 | I194: 1655.446358 | J194: -0.003289963403 | M194: =IF(AND(VLOOKUP($B194,Lookup!$B$3:$E$222,4,FALSE)=$H$5,B194<>$J$4),F194,NA()) ->  | N194: =IF(AND(VLOOKUP($B194,Lookup!$B$3:$E$222,4,FALSE)=$H$5,B194<>$J$4),G194,NA()) ->  | O194: =IF(ISNUMBER(MATCH($B194,Lookup!$P$3:$P$260,0)),F194,NA()) -> 1655.446358 | P194: =IF(ISNUMBER(MATCH($B194,Lookup!$P$3:$P$260,0)),G194,NA()) -> -0.003289963403
A195: 187 | B195: 04V | C195: NHS West Leicestershire CCG | E195: 2690 | F195: 2955.637765 | G195: -0.08987493934 | H195: low | I195: 2955.637765 | J195: -0.08987493934 | M195: =IF(AND(VLOOKUP($B195,Lookup!$B$3:$E$222,4,FALSE)=$H$5,B195<>$J$4),F195,NA()) ->  | N195: =IF(AND(VLOOKUP($B195,Lookup!$B$3:$E$222,4,FALSE)=$H$5,B195<>$J$4),G195,NA()) ->  | O195: =IF(ISNUMBER(MATCH($B195,Lookup!$P$3:$P$260,0)),F195,NA()) ->  | P195: =IF(ISNUMBER(MATCH($B195,Lookup!$P$3:$P$260,0)),G195,NA()) -> 
A196: 188 | B196: 08Y | C196: NHS West London CCG | E196: 1305 | F196: 1382.472401 | G196: -0.05603902185 | H196: low | I196: 1382.472401 | J196: -0.05603902185 | M196: =IF(AND(VLOOKUP($B196,Lookup!$B$3:$E$222,4,FALSE)=$H$5,B196<>$J$4),F196,NA()) ->  | N196: =IF(AND(VLOOKUP($B196,Lookup!$B$3:$E$222,4,FALSE)=$H$5,B196<>$J$4),G196,NA()) ->  | O196: =IF(ISNUMBER(MATCH($B196,Lookup!$P$3:$P$260,0)),F196,NA()) ->  | P196: =IF(ISNUMBER(MATCH($B196,Lookup!$P$3:$P$260,0)),G196,NA()) -> 
A197: 189 | B197: 07J | C197: NHS West Norfolk CCG | E197: 4120 | F197: 4214.540417 | G197: -0.02243196366 | I197: 4214.540417 | J197: -0.02243196366 | M197: =IF(AND(VLOOKUP($B197,Lookup!$B$3:$E$222,4,FALSE)=$H$5,B197<>$J$4),F197,NA()) ->  | N197: =IF(AND(VLOOKUP($B197,Lookup!$B$3:$E$222,4,FALSE)=$H$5,B197<>$J$4),G197,NA()) ->  | O197: =IF(ISNUMBER(MATCH($B197,Lookup!$P$3:$P$260,0)),F197,NA()) ->  | P197: =IF(ISNUMBER(MATCH($B197,Lookup!$P$3:$P$260,0)),G197,NA()) -> 
A198: 190 | B198: 07K | C198: NHS West Suffolk CCG | E198: 2830 | F198: 2942.084918 | G198: -0.03809710489 | H198: low | I198: 2942.084918 | J198: -0.03809710489 | M198: =IF(AND(VLOOKUP($B198,Lookup!$B$3:$E$222,4,FALSE)=$H$5,B198<>$J$4),F198,NA()) ->  | N198: =IF(AND(VLOOKUP($B198,Lookup!$B$3:$E$222,4,FALSE)=$H$5,B198<>$J$4),G198,NA()) ->  | O198: =IF(ISNUMBER(MATCH($B198,Lookup!$P$3:$P$260,0)),F198,NA()) ->  | P198: =IF(ISNUMBER(MATCH($B198,Lookup!$P$3:$P$260,0)),G198,NA()) -> 
A199: 191 | B199: 02H | C199: NHS Wigan Borough CCG | E199: 5715 | F199: 5823.779515 | G199: -0.0186785084 | I199: 5823.779515 | J199: -0.0186785084 | M199: =IF(AND(VLOOKUP($B199,Lookup!$B$3:$E$222,4,FALSE)=$H$5,B199<>$J$4),F199,NA()) ->  | N199: =IF(AND(VLOOKUP($B199,Lookup!$B$3:$E$222,4,FALSE)=$H$5,B199<>$J$4),G199,NA()) ->  | O199: =IF(ISNUMBER(MATCH($B199,Lookup!$P$3:$P$260,0)),F199,NA()) ->  | P199: =IF(ISNUMBER(MATCH($B199,Lookup!$P$3:$P$260,0)),G199,NA()) -> 
A200: 192 | B200: 99N | C200: NHS Wiltshire CCG | E200: 3980 | F200: 4173.948054 | G200: -0.04646633143 | H200: low | I200: 4173.948054 | J200: -0.04646633143 | M200: =IF(AND(VLOOKUP($B200,Lookup!$B$3:$E$222,4,FALSE)=$H$5,B200<>$J$4),F200,NA()) ->  | N200: =IF(AND(VLOOKUP($B200,Lookup!$B$3:$E$222,4,FALSE)=$H$5,B200<>$J$4),G200,NA()) ->  | O200: =IF(ISNUMBER(MATCH($B200,Lookup!$P$3:$P$260,0)),F200,NA()) ->  | P200: =IF(ISNUMBER(MATCH($B200,Lookup!$P$3:$P$260,0)),G200,NA()) -> 
... 46 more rows

Sheet Calc vs Eng (hidden)
B1: CALC VS ENG | G1: Number | H1: Text | J1: Codes
B2: Average value for graph | F2: Indicator selected | G2: =IF(G3=1,Menu!K17,IF(G3=2,Menu!K17+5,IF(G3=3,Menu!K17+10,Menu!K17+15))) -> 16 | H2: =INDEX(Lookup!T3:T22,$G$2) -> Day case | R2: Calculations for maximum and minimum values for count graph
B3: Average to use (count): | E3: 0 | F3: Year | G3: =Menu!K19 -> 4 | H3: =INDEX(Lookup!V3:V6,$G$3) -> 2017/18 | U3: Actual Min | V3: Actual Max | W3: New Min | X3: New Max
B4: Average to use (ISR) | E4: 100 | F4: Chosen CCG | G4: =Menu!K15 -> 1 | H4: =INDEX(Lookup!C3:C231,$G$4) -> NHS Airedale, Wharfedale and Craven CCG | J4: =INDEX(Lookup!B3:B231,$G$4) -> 02N | R4: Expected events (X-axis values) | U4: =MIN($F$9:$F$203) -> 840.7575767 | V4: =MAX($F$9:$F$203) -> 18025.43369 | W4: =IF($V$4>2*$U$4,0,FLOOR($U$4*0.95,10^(LEN(ROUNDUP($U$4*1.05,0))-1))) -> 0 | X4: =CEILING($V$4*1.05,10^(LEN(ROUNDUP($V$4*1.05,0))-2)) -> 19000
B5: These are the averages used on the funnel plots. They will normally be 0% and 100 but may be changed if required. | F5: STP | G5: ='Calc vs non diab'!G5 -> 237 | H5: =VLOOKUP(J4,Lookup!B3:E260,4,FALSE) -> West Yorkshire | J5: =VLOOKUP(J4,Lookup!B3:E260,3,FALSE) -> E54000005 | R5: Observed relative to expected (Y-axis values) | U5: =MIN(G9:G203) -> -0.1193931943 | V5: =MAX(G9:G203) -> 0.07707388597 | W5: =IF(AND(E3=0,U5<-2/3),-1,IF($U$5>=0,ROUNDUP($U$5*-1.02,1),MAX(-1,ROUNDUP($U$5*1.02,1)))) -> -0.2 | X5: =ROUNDUP($V$5*1.02,1) -> 0.1
E6: ="DATA!Ind"&$G2&"_Obs" -> DATA!Ind16_Obs | F6: ="DATA!Ind"&$G2&"_Exp_Eng" -> DATA!Ind16_Exp_Eng | G6: ="DATA!Ind"&$G2&"_OE_Eng" -> DATA!Ind16_OE_Eng | H6: ="DATA!Ind"&$G2&"_Sig_Eng" -> DATA!Ind16_Sig_Eng
F7: Data used for calculations | I7: Data for graphs | R7: Calculations of funnel limits for graph | AH7: Extra lines for plot
B8: CCG | C8: CCG name | D8: Exclusion | E8: Observed events | F8: Expected events | G8: Observed relative to expected (Y) | H8: Significant difference? | I8: Expected events (X-axis) | J8: Observed relative to expected (Y) | K8: Chosen CCG X | L8: Chosen CCG Y | M8: CCGs in STP X | N8: CCGs in STP Y | O8: 10 similar CCGs X | P8: 10 similar CCGs Y | R8: Observed Events | S8: Expected Events (x-axis) | T8: Lower 2s (0.025) limit (count) | U8: Lower 2s (0.025) limit (ISR) | V8: Expected Events (x-axis) | W8: Upper 2s (0.025) limit (count) | X8: Upper 2s (0.025) limit (ISR) | Y8: Expected Events (x-axis) | Z8: Lower 3s (0.001) limit (count) | AA8: Lower 3s (0.001) limit (ISR) | AB8: Expected Events (x-axis) | AC8: Upper 3s (0.001) limit (count) | AD8: Upper 3s (0.001) limit (ISR) | AE8: Baseline - count (Average Y) | AF8: Baseline - ISR (Average Y) | AG8: Row number | AH8: STP average
A9: 1 | B9: 02N | C9: NHS Airedale, Wharfedale and Craven CCG | E9: =IFERROR(INDEX(INDIRECT($E$6),$A9), "") -> 2675 | F9: =IFERROR(INDEX(INDIRECT($F$6),$A9), "") -> 2572.592811 | G9: =IF(OR(E9="",E9=0),"",E9/F9-1) -> 0.03980699491 | H9: =IFERROR(IF(INDEX(INDIRECT($H$6),$A9)=0, "",INDEX(INDIRECT($H$6),$A9)),"") -> high | I9: =IF(F9="",#N/A,F9) -> 2572.592811 | J9: =IF(G9="",#N/A,G9) -> 0.03980699491 | K9: =IF(B9=$J$4,F9,NA()) -> 2572.592811 | L9: =IF(B9=$J$4,G9,NA()) -> 0.03980699491 | M9: =IF(AND(VLOOKUP($B9,Lookup!$B$3:$E$222,4,FALSE)=$H$5,B9<>$J$4),F9,NA()) ->  | N9: =IF(AND(VLOOKUP($B9,Lookup!$B$3:$E$222,4,FALSE)=$H$5,B9<>$J$4),G9,NA()) ->  | O9: =IF(ISNUMBER(MATCH($B9,Lookup!$P$3:$P$260,0)),F9,NA()) ->  | P9: =IF(ISNUMBER(MATCH($B9,Lookup!$P$3:$P$260,0)),G9,NA()) ->  | Y9: 1 | AE9: =$E$3 -> 0 | AF9: =$E$4 -> 100 | AH9: =IF(G3=1,'Calc trends'!H45,IF(G3=2,'Calc trends'!I45,IF(G3=3,'Calc trends'!J45,'Calc trends'!K45))) -> 0.00696262401
A10: 2 | B10: 09C | C10: NHS Ashford CCG | E10: 1135 | F10: 1206.475779 | G10: -0.05924344265 | H10: =IFERROR(IF(INDEX(INDIRECT($H$6),$A10)=0, "",INDEX(INDIRECT($H$6),$A10)),"") -> low | I10: 1206.475779 | J10: -0.05924344265 | K10: =IF(B10=$J$4,F10,NA()) ->  | L10: =IF(B10=$J$4,G10,NA()) ->  | M10: =IF(AND(VLOOKUP($B10,Lookup!$B$3:$E$222,4,FALSE)=$H$5,B10<>$J$4),F10,NA()) ->  | N10: =IF(AND(VLOOKUP($B10,Lookup!$B$3:$E$222,4,FALSE)=$H$5,B10<>$J$4),G10,NA()) ->  | O10: =IF(ISNUMBER(MATCH($B10,Lookup!$P$3:$P$260,0)),F10,NA()) ->  | P10: =IF(ISNUMBER(MATCH($B10,Lookup!$P$3:$P$260,0)),G10,NA()) ->  | R10: =MAX(1,$W$4) -> 1 | S10: =poishigh($R10,0.025) ->  | T10: =$R10/S10-1 ->  | U10: =$R10/S10*100 ->  | V10: =poislow($R10,0.025) ->  | W10: =$R10/V10-1 ->  | X10: =$R10/V10*100 ->  | Y10: =poishigh($R10,0.001) ->  | Z10: =$R10/Y10-1 ->  | AA10: =$R10/Y10*100 ->  | AB10: =poislow($R10,0.001) ->  | AC10: =$R10/AB10-1 ->  | AD10: =$R10/AB10*100 ->  | AE10: 0 | AF10: =$E$4 -> 100 | AG10: 1 | AH10: =$AH$9 -> 0.00696262401
A11: 3 | B11: 07L | C11: NHS Barking and Dagenham CCG | E11: 2755 | F11: 2712.480709 | G11: 0.0156754262 | I11: 2712.480709 | J11: 0.0156754262 | M11: =IF(AND(VLOOKUP($B11,Lookup!$B$3:$E$222,4,FALSE)=$H$5,B11<>$J$4),F11,NA()) ->  | N11: =IF(AND(VLOOKUP($B11,Lookup!$B$3:$E$222,4,FALSE)=$H$5,B11<>$J$4),G11,NA()) ->  | O11: =IF(ISNUMBER(MATCH($B11,Lookup!$P$3:$P$260,0)),F11,NA()) ->  | P11: =IF(ISNUMBER(MATCH($B11,Lookup!$P$3:$P$260,0)),G11,NA()) ->  | R11: =MAX(ROUND(($X$4/R10)^(1/(101-AG11))*R10,0),R10+1) -> 2 | AE11: 0 | AF11: =$E$4 -> 100 | AG11: =AG9+1 -> 1 | AH11: 0.00696262401
A12: 4 | B12: 07M | C12: NHS Barnet CCG | E12: 4800 | F12: 4695.680099 | G12: 0.02221614308 | I12: 4695.680099 | J12: 0.02221614308 | M12: =IF(AND(VLOOKUP($B12,Lookup!$B$3:$E$222,4,FALSE)=$H$5,B12<>$J$4),F12,NA()) ->  | N12: =IF(AND(VLOOKUP($B12,Lookup!$B$3:$E$222,4,FALSE)=$H$5,B12<>$J$4),G12,NA()) ->  | O12: =IF(ISNUMBER(MATCH($B12,Lookup!$P$3:$P$260,0)),F12,NA()) ->  | P12: =IF(ISNUMBER(MATCH($B12,Lookup!$P$3:$P$260,0)),G12,NA()) ->  | R12: 3 | AE12: 0 | AF12: 100 | AG12: =AG11+1 -> 2 | AH12: 0.00696262401
A13: 5 | B13: 02P | C13: NHS Barnsley CCG | E13: 3935 | F13: 3823.410708 | G13: 0.02918579793 | I13: 3823.410708 | J13: 0.02918579793 | M13: =IF(AND(VLOOKUP($B13,Lookup!$B$3:$E$222,4,FALSE)=$H$5,B13<>$J$4),F13,NA()) ->  | N13: =IF(AND(VLOOKUP($B13,Lookup!$B$3:$E$222,4,FALSE)=$H$5,B13<>$J$4),G13,NA()) ->  | O13: =IF(ISNUMBER(MATCH($B13,Lookup!$P$3:$P$260,0)),F13,NA()) ->  | P13: =IF(ISNUMBER(MATCH($B13,Lookup!$P$3:$P$260,0)),G13,NA()) ->  | R13: 4 | AE13: 0 | AF13: 100 | AG13: 3 | AH13: 0.00696262401
A14: 6 | B14: 99E | C14: NHS Basildon and Brentwood CCG | E14: 3005 | F14: 2971.101427 | G14: 0.01140942984 | I14: 2971.101427 | J14: 0.01140942984 | M14: =IF(AND(VLOOKUP($B14,Lookup!$B$3:$E$222,4,FALSE)=$H$5,B14<>$J$4),F14,NA()) ->  | N14: =IF(AND(VLOOKUP($B14,Lookup!$B$3:$E$222,4,FALSE)=$H$5,B14<>$J$4),G14,NA()) ->  | O14: =IF(ISNUMBER(MATCH($B14,Lookup!$P$3:$P$260,0)),F14,NA()) ->  | P14: =IF(ISNUMBER(MATCH($B14,Lookup!$P$3:$P$260,0)),G14,NA()) ->  | R14: 5 | AE14: 0 | AF14: 100 | AG14: 4 | AH14: 0.00696262401
A15: 7 | B15: 02Q | C15: NHS Bassetlaw CCG | E15: 1525 | F15: 1565.445094 | G15: -0.02583616262 | I15: 1565.445094 | J15: -0.02583616262 | M15: =IF(AND(VLOOKUP($B15,Lookup!$B$3:$E$222,4,FALSE)=$H$5,B15<>$J$4),F15,NA()) ->  | N15: =IF(AND(VLOOKUP($B15,Lookup!$B$3:$E$222,4,FALSE)=$H$5,B15<>$J$4),G15,NA()) ->  | O15: =IF(ISNUMBER(MATCH($B15,Lookup!$P$3:$P$260,0)),F15,NA()) ->  | P15: =IF(ISNUMBER(MATCH($B15,Lookup!$P$3:$P$260,0)),G15,NA()) ->  | R15: 6 | AE15: 0 | AF15: 100 | AG15: 5 | AH15: 0.00696262401
A16: 8 | B16: 11E | C16: NHS Bath and North East Somerset CCG | E16: 1780 | F16: 1723.661602 | G16: 0.03268530076 | I16: 1723.661602 | J16: 0.03268530076 | M16: =IF(AND(VLOOKUP($B16,Lookup!$B$3:$E$222,4,FALSE)=$H$5,B16<>$J$4),F16,NA()) ->  | N16: =IF(AND(VLOOKUP($B16,Lookup!$B$3:$E$222,4,FALSE)=$H$5,B16<>$J$4),G16,NA()) ->  | O16: =IF(ISNUMBER(MATCH($B16,Lookup!$P$3:$P$260,0)),F16,NA()) ->  | P16: =IF(ISNUMBER(MATCH($B16,Lookup!$P$3:$P$260,0)),G16,NA()) ->  | R16: 7 | AE16: 0 | AF16: 100 | AG16: 6 | AH16: 0.00696262401
A17: 9 | B17: 06F | C17: NHS Bedfordshire CCG | E17: 5630 | F17: 5589.689094 | G17: 0.007211654464 | I17: 5589.689094 | J17: 0.007211654464 | M17: =IF(AND(VLOOKUP($B17,Lookup!$B$3:$E$222,4,FALSE)=$H$5,B17<>$J$4),F17,NA()) ->  | N17: =IF(AND(VLOOKUP($B17,Lookup!$B$3:$E$222,4,FALSE)=$H$5,B17<>$J$4),G17,NA()) ->  | O17: =IF(ISNUMBER(MATCH($B17,Lookup!$P$3:$P$260,0)),F17,NA()) ->  | P17: =IF(ISNUMBER(MATCH($B17,Lookup!$P$3:$P$260,0)),G17,NA()) ->  | R17: 8 | AE17: 0 | AF17: 100 | AG17: 7 | AH17: 0.00696262401
A18: 10 | B18: 15A | C18: NHS Berkshire West CCG | E18: 2915 | F18: 2989.328847 | G18: -0.02486472733 | I18: 2989.328847 | J18: -0.02486472733 | M18: =IF(AND(VLOOKUP($B18,Lookup!$B$3:$E$222,4,FALSE)=$H$5,B18<>$J$4),F18,NA()) ->  | N18: =IF(AND(VLOOKUP($B18,Lookup!$B$3:$E$222,4,FALSE)=$H$5,B18<>$J$4),G18,NA()) ->  | O18: =IF(ISNUMBER(MATCH($B18,Lookup!$P$3:$P$260,0)),F18,NA()) ->  | P18: =IF(ISNUMBER(MATCH($B18,Lookup!$P$3:$P$260,0)),G18,NA()) ->  | R18: 9 | AE18: 0 | AF18: 100 | AG18: 8 | AH18: 0.00696262401
A19: 11 | B19: 07N | C19: NHS Bexley CCG | E19: 2700 | F19: 2897.456793 | G19: -0.06814831314 | H19: low | I19: 2897.456793 | J19: -0.06814831314 | M19: =IF(AND(VLOOKUP($B19,Lookup!$B$3:$E$222,4,FALSE)=$H$5,B19<>$J$4),F19,NA()) ->  | N19: =IF(AND(VLOOKUP($B19,Lookup!$B$3:$E$222,4,FALSE)=$H$5,B19<>$J$4),G19,NA()) ->  | O19: =IF(ISNUMBER(MATCH($B19,Lookup!$P$3:$P$260,0)),F19,NA()) ->  | P19: =IF(ISNUMBER(MATCH($B19,Lookup!$P$3:$P$260,0)),G19,NA()) ->  | R19: 10 | AE19: 0 | AF19: 100 | AG19: 9 | AH19: 0.00696262401
A20: 12 | B20: 15E | C20: NHS Birmingham and Solihull CCG | E20: 16365 | F20: 18025.43369 | G20: -0.09211615772 | H20: low | I20: 18025.43369 | J20: -0.09211615772 | M20: =IF(AND(VLOOKUP($B20,Lookup!$B$3:$E$222,4,FALSE)=$H$5,B20<>$J$4),F20,NA()) ->  | N20: =IF(AND(VLOOKUP($B20,Lookup!$B$3:$E$222,4,FALSE)=$H$5,B20<>$J$4),G20,NA()) ->  | O20: =IF(ISNUMBER(MATCH($B20,Lookup!$P$3:$P$260,0)),F20,NA()) ->  | P20: =IF(ISNUMBER(MATCH($B20,Lookup!$P$3:$P$260,0)),G20,NA()) ->  | R20: 11 | AE20: 0 | AF20: 100 | AG20: 10 | AH20: 0.00696262401
A21: 13 | B21: 00Q | C21: NHS Blackburn with Darwen CCG | E21: 3035 | F21: 2944.26991 | G21: 0.03081581935 | I21: 2944.26991 | J21: 0.03081581935 | K21: =IF(B21=$J$4,F21,NA()) ->  | L21: =IF(B21=$J$4,G21,NA()) ->  | M21: =IF(AND(VLOOKUP($B21,Lookup!$B$3:$E$222,4,FALSE)=$H$5,B21<>$J$4),F21,NA()) ->  | N21: =IF(AND(VLOOKUP($B21,Lookup!$B$3:$E$222,4,FALSE)=$H$5,B21<>$J$4),G21,NA()) ->  | O21: =IF(ISNUMBER(MATCH($B21,Lookup!$P$3:$P$260,0)),F21,NA()) ->  | P21: =IF(ISNUMBER(MATCH($B21,Lookup!$P$3:$P$260,0)),G21,NA()) ->  | R21: 12 | AE21: 0 | AF21: 100 | AG21: 11 | AH21: 0.00696262401
A22: 14 | B22: 00R | C22: NHS Blackpool CCG | E22: 2630 | F22: 2640.348493 | G22: -0.003919366409 | I22: 2640.348493 | J22: -0.003919366409 | M22: =IF(AND(VLOOKUP($B22,Lookup!$B$3:$E$222,4,FALSE)=$H$5,B22<>$J$4),F22,NA()) ->  | N22: =IF(AND(VLOOKUP($B22,Lookup!$B$3:$E$222,4,FALSE)=$H$5,B22<>$J$4),G22,NA()) ->  | O22: =IF(ISNUMBER(MATCH($B22,Lookup!$P$3:$P$260,0)),F22,NA()) ->  | P22: =IF(ISNUMBER(MATCH($B22,Lookup!$P$3:$P$260,0)),G22,NA()) ->  | R22: 13 | AE22: 0 | AF22: 100 | AG22: 12 | AH22: 0.00696262401
A23: 15 | B23: 00T | C23: NHS Bolton CCG | E23: 4800 | F23: 4839.029256 | G23: -0.008065513613 | I23: 4839.029256 | J23: -0.008065513613 | M23: =IF(AND(VLOOKUP($B23,Lookup!$B$3:$E$222,4,FALSE)=$H$5,B23<>$J$4),F23,NA()) ->  | N23: =IF(AND(VLOOKUP($B23,Lookup!$B$3:$E$222,4,FALSE)=$H$5,B23<>$J$4),G23,NA()) ->  | O23: =IF(ISNUMBER(MATCH($B23,Lookup!$P$3:$P$260,0)),F23,NA()) ->  | P23: =IF(ISNUMBER(MATCH($B23,Lookup!$P$3:$P$260,0)),G23,NA()) ->  | R23: 14 | AE23: 0 | AF23: 100 | AG23: 13 | AH23: 0.00696262401
A24: 16 | B24: 02W | C24: NHS Bradford City CCG | E24: 1730 | F24: 1667.813578 | G24: 0.03728619504 | I24: 1667.813578 | J24: 0.03728619504 | M24: =IF(AND(VLOOKUP($B24,Lookup!$B$3:$E$222,4,FALSE)=$H$5,B24<>$J$4),F24,NA()) -> 1667.813578 | N24: =IF(AND(VLOOKUP($B24,Lookup!$B$3:$E$222,4,FALSE)=$H$5,B24<>$J$4),G24,NA()) -> 0.03728619504 | O24: =IF(ISNUMBER(MATCH($B24,Lookup!$P$3:$P$260,0)),F24,NA()) ->  | P24: =IF(ISNUMBER(MATCH($B24,Lookup!$P$3:$P$260,0)),G24,NA()) ->  | R24: 15 | AE24: 0 | AF24: 100 | AG24: 14 | AH24: 0.00696262401
A25: 17 | B25: 02R | C25: NHS Bradford Districts CCG | E25: 4360 | F25: 4296.194618 | G25: 0.01485160415 | I25: 4296.194618 | J25: 0.01485160415 | M25: =IF(AND(VLOOKUP($B25,Lookup!$B$3:$E$222,4,FALSE)=$H$5,B25<>$J$4),F25,NA()) -> 4296.194618 | N25: =IF(AND(VLOOKUP($B25,Lookup!$B$3:$E$222,4,FALSE)=$H$5,B25<>$J$4),G25,NA()) -> 0.01485160415 | O25: =IF(ISNUMBER(MATCH($B25,Lookup!$P$3:$P$260,0)),F25,NA()) ->  | P25: =IF(ISNUMBER(MATCH($B25,Lookup!$P$3:$P$260,0)),G25,NA()) ->  | R25: 16 | AE25: 0 | AF25: 100 | AG25: 15 | AH25: 0.00696262401
A26: 18 | B26: 07P | C26: NHS Brent CCG | E26: 7370 | F26: 7118.605526 | G26: 0.03531512929 | H26: high | I26: 7118.605526 | J26: 0.03531512929 | M26: =IF(AND(VLOOKUP($B26,Lookup!$B$3:$E$222,4,FALSE)=$H$5,B26<>$J$4),F26,NA()) ->  | N26: =IF(AND(VLOOKUP($B26,Lookup!$B$3:$E$222,4,FALSE)=$H$5,B26<>$J$4),G26,NA()) ->  | O26: =IF(ISNUMBER(MATCH($B26,Lookup!$P$3:$P$260,0)),F26,NA()) ->  | P26: =IF(ISNUMBER(MATCH($B26,Lookup!$P$3:$P$260,0)),G26,NA()) ->  | R26: 17 | AE26: 0 | AF26: 100 | AG26: 16 | AH26: 0.00696262401
A27: 19 | B27: 09D | C27: NHS Brighton and Hove CCG | E27: 1540 | F27: 1678.117164 | G27: -0.08230483937 | H27: low | I27: 1678.117164 | J27: -0.08230483937 | M27: =IF(AND(VLOOKUP($B27,Lookup!$B$3:$E$222,4,FALSE)=$H$5,B27<>$J$4),F27,NA()) ->  | N27: =IF(AND(VLOOKUP($B27,Lookup!$B$3:$E$222,4,FALSE)=$H$5,B27<>$J$4),G27,NA()) ->  | O27: =IF(ISNUMBER(MATCH($B27,Lookup!$P$3:$P$260,0)),F27,NA()) ->  | P27: =IF(ISNUMBER(MATCH($B27,Lookup!$P$3:$P$260,0)),G27,NA()) ->  | R27: 18 | AE27: 0 | AF27: 100 | AG27: 17 | AH27: 0.00696262401
A28: 20 | B28: 15C | C28: NHS Bristol, North Somerset and South Gloucestershire CCG | E28: 11095 | F28: 11093.8837 | G28: 0.0001006231282 | I28: 11093.8837 | J28: 0.0001006231282 | M28: =IF(AND(VLOOKUP($B28,Lookup!$B$3:$E$222,4,FALSE)=$H$5,B28<>$J$4),F28,NA()) ->  | N28: =IF(AND(VLOOKUP($B28,Lookup!$B$3:$E$222,4,FALSE)=$H$5,B28<>$J$4),G28,NA()) ->  | O28: =IF(ISNUMBER(MATCH($B28,Lookup!$P$3:$P$260,0)),F28,NA()) ->  | P28: =IF(ISNUMBER(MATCH($B28,Lookup!$P$3:$P$260,0)),G28,NA()) ->  | R28: 20 | AE28: 0 | AF28: 100 | AG28: 18 | AH28: 0.00696262401
A29: 21 | B29: 07Q | C29: NHS Bromley CCG | E29: 3065 | F29: 3153.35674 | G29: -0.02801989973 | I29: 3153.35674 | J29: -0.02801989973 | M29: =IF(AND(VLOOKUP($B29,Lookup!$B$3:$E$222,4,FALSE)=$H$5,B29<>$J$4),F29,NA()) ->  | N29: =IF(AND(VLOOKUP($B29,Lookup!$B$3:$E$222,4,FALSE)=$H$5,B29<>$J$4),G29,NA()) ->  | O29: =IF(ISNUMBER(MATCH($B29,Lookup!$P$3:$P$260,0)),F29,NA()) ->  | P29: =IF(ISNUMBER(MATCH($B29,Lookup!$P$3:$P$260,0)),G29,NA()) ->  | R29: 22 | AE29: 0 | AF29: 100 | AG29: 19 | AH29: 0.00696262401
A30: 22 | B30: 14Y | C30: NHS Buckinghamshire CCG | E30: 5835 | F30: 5676.09153 | G30: 0.02799610776 | H30: high | I30: 5676.09153 | J30: 0.02799610776 | M30: =IF(AND(VLOOKUP($B30,Lookup!$B$3:$E$222,4,FALSE)=$H$5,B30<>$J$4),F30,NA()) ->  | N30: =IF(AND(VLOOKUP($B30,Lookup!$B$3:$E$222,4,FALSE)=$H$5,B30<>$J$4),G30,NA()) ->  | O30: =IF(ISNUMBER(MATCH($B30,Lookup!$P$3:$P$260,0)),F30,NA()) ->  | P30: =IF(ISNUMBER(MATCH($B30,Lookup!$P$3:$P$260,0)),G30,NA()) ->  | R30: 24 | AE30: 0 | AF30: 100 | AG30: 20 | AH30: 0.00696262401
A31: 23 | B31: 00V | C31: NHS Bury CCG | E31: 2905 | F31: 2790.252392 | G31: 0.04112445463 | H31: high | I31: 2790.252392 | J31: 0.04112445463 | M31: =IF(AND(VLOOKUP($B31,Lookup!$B$3:$E$222,4,FALSE)=$H$5,B31<>$J$4),F31,NA()) ->  | N31: =IF(AND(VLOOKUP($B31,Lookup!$B$3:$E$222,4,FALSE)=$H$5,B31<>$J$4),G31,NA()) ->  | O31: =IF(ISNUMBER(MATCH($B31,Lookup!$P$3:$P$260,0)),F31,NA()) ->  | P31: =IF(ISNUMBER(MATCH($B31,Lookup!$P$3:$P$260,0)),G31,NA()) ->  | R31: 26 | AE31: 0 | AF31: 100 | AG31: 21 | AH31: 0.00696262401
A32: 24 | B32: 02T | C32: NHS Calderdale CCG | E32: 2700 | F32: 2654.255658 | G32: 0.01723433912 | I32: 2654.255658 | J32: 0.01723433912 | M32: =IF(AND(VLOOKUP($B32,Lookup!$B$3:$E$222,4,FALSE)=$H$5,B32<>$J$4),F32,NA()) -> 2654.255658 | N32: =IF(AND(VLOOKUP($B32,Lookup!$B$3:$E$222,4,FALSE)=$H$5,B32<>$J$4),G32,NA()) -> 0.01723433912 | O32: =IF(ISNUMBER(MATCH($B32,Lookup!$P$3:$P$260,0)),F32,NA()) ->  | P32: =IF(ISNUMBER(MATCH($B32,Lookup!$P$3:$P$260,0)),G32,NA()) ->  | R32: 28 | AE32: 0 | AF32: 100 | AG32: 22 | AH32: 0.00696262401
A33: 25 | B33: 06H | C33: NHS Cambridgeshire and Peterborough CCG | E33: 11220 | F33: 10961.88725 | G33: 0.02354637882 | H33: high | I33: 10961.88725 | J33: 0.02354637882 | M33: =IF(AND(VLOOKUP($B33,Lookup!$B$3:$E$222,4,FALSE)=$H$5,B33<>$J$4),F33,NA()) ->  | N33: =IF(AND(VLOOKUP($B33,Lookup!$B$3:$E$222,4,FALSE)=$H$5,B33<>$J$4),G33,NA()) ->  | O33: =IF(ISNUMBER(MATCH($B33,Lookup!$P$3:$P$260,0)),F33,NA()) ->  | P33: =IF(ISNUMBER(MATCH($B33,Lookup!$P$3:$P$260,0)),G33,NA()) ->  | R33: 30 | AE33: 0 | AF33: 100 | AG33: 23 | AH33: 0.00696262401
A34: 26 | B34: 07R | C34: NHS Camden CCG | E34: 2415 | F34: 2352.326225 | G34: 0.02664331754 | I34: 2352.326225 | J34: 0.02664331754 | M34: =IF(AND(VLOOKUP($B34,Lookup!$B$3:$E$222,4,FALSE)=$H$5,B34<>$J$4),F34,NA()) ->  | N34: =IF(AND(VLOOKUP($B34,Lookup!$B$3:$E$222,4,FALSE)=$H$5,B34<>$J$4),G34,NA()) ->  | O34: =IF(ISNUMBER(MATCH($B34,Lookup!$P$3:$P$260,0)),F34,NA()) ->  | P34: =IF(ISNUMBER(MATCH($B34,Lookup!$P$3:$P$260,0)),G34,NA()) ->  | R34: 33 | AE34: 0 | AF34: 100 | AG34: 24 | AH34: 0.00696262401
A35: 27 | B35: 04Y | C35: NHS Cannock Chase CCG | E35: 2115 | F35: 1967.36516 | G35: 0.0750419105 | H35: high | I35: 1967.36516 | J35: 0.0750419105 | M35: =IF(AND(VLOOKUP($B35,Lookup!$B$3:$E$222,4,FALSE)=$H$5,B35<>$J$4),F35,NA()) ->  | N35: =IF(AND(VLOOKUP($B35,Lookup!$B$3:$E$222,4,FALSE)=$H$5,B35<>$J$4),G35,NA()) ->  | O35: =IF(ISNUMBER(MATCH($B35,Lookup!$P$3:$P$260,0)),F35,NA()) ->  | P35: =IF(ISNUMBER(MATCH($B35,Lookup!$P$3:$P$260,0)),G35,NA()) ->  | R35: 36 | AE35: 0 | AF35: 100 | AG35: 25 | AH35: 0.00696262401
A36: 28 | B36: 09E | C36: NHS Canterbury and Coastal CCG | E36: 2360 | F36: 2395.108427 | G36: -0.01465838748 | I36: 2395.108427 | J36: -0.01465838748 | M36: =IF(AND(VLOOKUP($B36,Lookup!$B$3:$E$222,4,FALSE)=$H$5,B36<>$J$4),F36,NA()) ->  | N36: =IF(AND(VLOOKUP($B36,Lookup!$B$3:$E$222,4,FALSE)=$H$5,B36<>$J$4),G36,NA()) ->  | O36: =IF(ISNUMBER(MATCH($B36,Lookup!$P$3:$P$260,0)),F36,NA()) ->  | P36: =IF(ISNUMBER(MATCH($B36,Lookup!$P$3:$P$260,0)),G36,NA()) ->  | R36: 39 | AE36: 0 | AF36: 100 | AG36: 26 | AH36: 0.00696262401
A37: 29 | B37: 99F | C37: NHS Castle Point and Rochford CCG | E37: 3280 | F37: 3122.688052 | G37: 0.05037709336 | H37: high | I37: 3122.688052 | J37: 0.05037709336 | M37: =IF(AND(VLOOKUP($B37,Lookup!$B$3:$E$222,4,FALSE)=$H$5,B37<>$J$4),F37,NA()) ->  | N37: =IF(AND(VLOOKUP($B37,Lookup!$B$3:$E$222,4,FALSE)=$H$5,B37<>$J$4),G37,NA()) ->  | O37: =IF(ISNUMBER(MATCH($B37,Lookup!$P$3:$P$260,0)),F37,NA()) ->  | P37: =IF(ISNUMBER(MATCH($B37,Lookup!$P$3:$P$260,0)),G37,NA()) ->  | R37: 42 | AE37: 0 | AF37: 100 | AG37: 27 | AH37: 0.00696262401
A38: 30 | B38: 09A | C38: NHS Central London (Westminster) CCG | E38: 2065 | F38: 2024.906474 | G38: 0.01980018664 | I38: 2024.906474 | J38: 0.01980018664 | M38: =IF(AND(VLOOKUP($B38,Lookup!$B$3:$E$222,4,FALSE)=$H$5,B38<>$J$4),F38,NA()) ->  | N38: =IF(AND(VLOOKUP($B38,Lookup!$B$3:$E$222,4,FALSE)=$H$5,B38<>$J$4),G38,NA()) ->  | O38: =IF(ISNUMBER(MATCH($B38,Lookup!$P$3:$P$260,0)),F38,NA()) ->  | P38: =IF(ISNUMBER(MATCH($B38,Lookup!$P$3:$P$260,0)),G38,NA()) ->  | R38: 46 | AE38: 0 | AF38: 100 | AG38: 28 | AH38: 0.00696262401
A39: 31 | B39: 00X | C39: NHS Chorley and South Ribble CCG | E39: 3075 | F39: 2901.138807 | G39: 0.05992860205 | H39: high | I39: 2901.138807 | J39: 0.05992860205 | M39: =IF(AND(VLOOKUP($B39,Lookup!$B$3:$E$222,4,FALSE)=$H$5,B39<>$J$4),F39,NA()) ->  | N39: =IF(AND(VLOOKUP($B39,Lookup!$B$3:$E$222,4,FALSE)=$H$5,B39<>$J$4),G39,NA()) ->  | O39: =IF(ISNUMBER(MATCH($B39,Lookup!$P$3:$P$260,0)),F39,NA()) ->  | P39: =IF(ISNUMBER(MATCH($B39,Lookup!$P$3:$P$260,0)),G39,NA()) ->  | R39: 50 | AE39: 0 | AF39: 100 | AG39: 29 | AH39: 0.00696262401
A40: 32 | B40: 07T | C40: NHS City and Hackney CCG | E40: 2460 | F40: 2463.236994 | G40: -0.001314122013 | I40: 2463.236994 | J40: -0.001314122013 | M40: =IF(AND(VLOOKUP($B40,Lookup!$B$3:$E$222,4,FALSE)=$H$5,B40<>$J$4),F40,NA()) ->  | N40: =IF(AND(VLOOKUP($B40,Lookup!$B$3:$E$222,4,FALSE)=$H$5,B40<>$J$4),G40,NA()) ->  | O40: =IF(ISNUMBER(MATCH($B40,Lookup!$P$3:$P$260,0)),F40,NA()) ->  | P40: =IF(ISNUMBER(MATCH($B40,Lookup!$P$3:$P$260,0)),G40,NA()) ->  | R40: 54 | AE40: 0 | AF40: 100 | AG40: 30 | AH40: 0.00696262401
A41: 33 | B41: 09G | C41: NHS Coastal West Sussex CCG | E41: 5355 | F41: 5479.912814 | G41: -0.02279467179 | I41: =IF(F41="",#N/A,F41) -> 5479.912814 | J41: =IF(G41="",#N/A,G41) -> -0.02279467179 | M41: =IF(AND(VLOOKUP($B41,Lookup!$B$3:$E$222,4,FALSE)=$H$5,B41<>$J$4),F41,NA()) ->  | N41: =IF(AND(VLOOKUP($B41,Lookup!$B$3:$E$222,4,FALSE)=$H$5,B41<>$J$4),G41,NA()) ->  | O41: =IF(ISNUMBER(MATCH($B41,Lookup!$P$3:$P$260,0)),F41,NA()) ->  | P41: =IF(ISNUMBER(MATCH($B41,Lookup!$P$3:$P$260,0)),G41,NA()) ->  | R41: 59 | AE41: 0 | AF41: 100 | AG41: 31 | AH41: 0.00696262401
A42: 34 | B42: 03V | C42: NHS Corby CCG | E42: 1205 | F42: 1152.570351 | G42: 0.04548932627 | I42: 1152.570351 | J42: 0.04548932627 | M42: =IF(AND(VLOOKUP($B42,Lookup!$B$3:$E$222,4,FALSE)=$H$5,B42<>$J$4),F42,NA()) ->  | N42: =IF(AND(VLOOKUP($B42,Lookup!$B$3:$E$222,4,FALSE)=$H$5,B42<>$J$4),G42,NA()) ->  | O42: =IF(ISNUMBER(MATCH($B42,Lookup!$P$3:$P$260,0)),F42,NA()) ->  | P42: =IF(ISNUMBER(MATCH($B42,Lookup!$P$3:$P$260,0)),G42,NA()) ->  | R42: 64 | S42: =poishigh($R42,0.025) ->  | T42: =$R42/S42-1 ->  | U42: =$R42/S42*100 ->  | V42: =poislow($R42,0.025) ->  | W42: =$R42/V42-1 ->  | X42: =$R42/V42*100 ->  | Y42: =poishigh($R42,0.001) ->  | Z42: =$R42/Y42-1 ->  | AA42: =$R42/Y42*100 ->  | AB42: =poislow($R42,0.001) ->  | AC42: =$R42/AB42-1 ->  | AD42: =$R42/AB42*100 ->  | AE42: 0 | AF42: 100 | AG42: 32 | AH42: =$AH$9 -> 0.00696262401
A43: 35 | B43: 05A | C43: NHS Coventry and Rugby CCG | E43: 6475 | F43: 6327.332524 | G43: 0.02333802992 | I43: 6327.332524 | J43: 0.02333802992 | M43: =IF(AND(VLOOKUP($B43,Lookup!$B$3:$E$222,4,FALSE)=$H$5,B43<>$J$4),F43,NA()) ->  | N43: =IF(AND(VLOOKUP($B43,Lookup!$B$3:$E$222,4,FALSE)=$H$5,B43<>$J$4),G43,NA()) ->  | O43: =IF(ISNUMBER(MATCH($B43,Lookup!$P$3:$P$260,0)),F43,NA()) ->  | P43: =IF(ISNUMBER(MATCH($B43,Lookup!$P$3:$P$260,0)),G43,NA()) ->  | R43: =MAX(ROUND(($X$4/R42)^(1/(101-AG43))*R42,0),R42+1) -> 70 | AE43: 0 | AF43: 100 | AG43: 33 | AH43: 0.00696262401
A44: 36 | B44: 09H | C44: NHS Crawley CCG | E44: 1690 | F44: 1734.079342 | G44: -0.02541944933 | I44: 1734.079342 | J44: -0.02541944933 | M44: =IF(AND(VLOOKUP($B44,Lookup!$B$3:$E$222,4,FALSE)=$H$5,B44<>$J$4),F44,NA()) ->  | N44: =IF(AND(VLOOKUP($B44,Lookup!$B$3:$E$222,4,FALSE)=$H$5,B44<>$J$4),G44,NA()) ->  | O44: =IF(ISNUMBER(MATCH($B44,Lookup!$P$3:$P$260,0)),F44,NA()) ->  | P44: =IF(ISNUMBER(MATCH($B44,Lookup!$P$3:$P$260,0)),G44,NA()) ->  | R44: 76 | AE44: 0 | AF44: 100 | AG44: 34 | AH44: 0.00696262401
A45: 37 | B45: 07V | C45: NHS Croydon CCG | E45: 4315 | F45: 4312.490753 | G45: 0.000581855617 | I45: 4312.490753 | J45: 0.000581855617 | M45: =IF(AND(VLOOKUP($B45,Lookup!$B$3:$E$222,4,FALSE)=$H$5,B45<>$J$4),F45,NA()) ->  | N45: =IF(AND(VLOOKUP($B45,Lookup!$B$3:$E$222,4,FALSE)=$H$5,B45<>$J$4),G45,NA()) ->  | O45: =IF(ISNUMBER(MATCH($B45,Lookup!$P$3:$P$260,0)),F45,NA()) ->  | P45: =IF(ISNUMBER(MATCH($B45,Lookup!$P$3:$P$260,0)),G45,NA()) ->  | R45: 83 | AE45: 0 | AF45: 100 | AG45: 35 | AH45: 0.00696262401
A46: 38 | B46: 00C | C46: NHS Darlington CCG | E46: 1505 | F46: 1536.368357 | G46: -0.02041721082 | I46: 1536.368357 | J46: -0.02041721082 | M46: =IF(AND(VLOOKUP($B46,Lookup!$B$3:$E$222,4,FALSE)=$H$5,B46<>$J$4),F46,NA()) ->  | N46: =IF(AND(VLOOKUP($B46,Lookup!$B$3:$E$222,4,FALSE)=$H$5,B46<>$J$4),G46,NA()) ->  | O46: =IF(ISNUMBER(MATCH($B46,Lookup!$P$3:$P$260,0)),F46,NA()) ->  | P46: =IF(ISNUMBER(MATCH($B46,Lookup!$P$3:$P$260,0)),G46,NA()) ->  | R46: 90 | AE46: 0 | AF46: 100 | AG46: 36 | AH46: 0.00696262401
A47: 39 | B47: 09J | C47: NHS Dartford, Gravesham and Swanley CCG | E47: 2800 | F47: 3151.989367 | G47: -0.1116721302 | H47: low | I47: 3151.989367 | J47: -0.1116721302 | M47: =IF(AND(VLOOKUP($B47,Lookup!$B$3:$E$222,4,FALSE)=$H$5,B47<>$J$4),F47,NA()) ->  | N47: =IF(AND(VLOOKUP($B47,Lookup!$B$3:$E$222,4,FALSE)=$H$5,B47<>$J$4),G47,NA()) ->  | O47: =IF(ISNUMBER(MATCH($B47,Lookup!$P$3:$P$260,0)),F47,NA()) ->  | P47: =IF(ISNUMBER(MATCH($B47,Lookup!$P$3:$P$260,0)),G47,NA()) ->  | R47: 98 | AE47: 0 | AF47: 100 | AG47: 37 | AH47: 0.00696262401
A48: 40 | B48: 02X | C48: NHS Doncaster CCG | E48: 5065 | F48: 5180.578355 | G48: -0.02230993275 | I48: 5180.578355 | J48: -0.02230993275 | M48: =IF(AND(VLOOKUP($B48,Lookup!$B$3:$E$222,4,FALSE)=$H$5,B48<>$J$4),F48,NA()) ->  | N48: =IF(AND(VLOOKUP($B48,Lookup!$B$3:$E$222,4,FALSE)=$H$5,B48<>$J$4),G48,NA()) ->  | O48: =IF(ISNUMBER(MATCH($B48,Lookup!$P$3:$P$260,0)),F48,NA()) ->  | P48: =IF(ISNUMBER(MATCH($B48,Lookup!$P$3:$P$260,0)),G48,NA()) ->  | R48: 107 | AE48: 0 | AF48: 100 | AG48: 38 | AH48: 0.00696262401
A49: 41 | B49: 11J | C49: NHS Dorset CCG | E49: 10105 | F49: 10182.16129 | G49: -0.007578085275 | I49: 10182.16129 | J49: -0.007578085275 | M49: =IF(AND(VLOOKUP($B49,Lookup!$B$3:$E$222,4,FALSE)=$H$5,B49<>$J$4),F49,NA()) ->  | N49: =IF(AND(VLOOKUP($B49,Lookup!$B$3:$E$222,4,FALSE)=$H$5,B49<>$J$4),G49,NA()) ->  | O49: =IF(ISNUMBER(MATCH($B49,Lookup!$P$3:$P$260,0)),F49,NA()) ->  | P49: =IF(ISNUMBER(MATCH($B49,Lookup!$P$3:$P$260,0)),G49,NA()) ->  | R49: 116 | AE49: 0 | AF49: 100 | AG49: 39 | AH49: 0.00696262401
A50: 42 | B50: 05C | C50: NHS Dudley CCG | E50: 6080 | F50: 5727.459864 | G50: 0.06155261574 | H50: high | I50: 5727.459864 | J50: 0.06155261574 | M50: =IF(AND(VLOOKUP($B50,Lookup!$B$3:$E$222,4,FALSE)=$H$5,B50<>$J$4),F50,NA()) ->  | N50: =IF(AND(VLOOKUP($B50,Lookup!$B$3:$E$222,4,FALSE)=$H$5,B50<>$J$4),G50,NA()) ->  | O50: =IF(ISNUMBER(MATCH($B50,Lookup!$P$3:$P$260,0)),F50,NA()) ->  | P50: =IF(ISNUMBER(MATCH($B50,Lookup!$P$3:$P$260,0)),G50,NA()) ->  | R50: 126 | AE50: 0 | AF50: 100 | AG50: 40 | AH50: 0.00696262401
A51: 43 | B51: 00D | C51: NHS Durham Dales, Easington and Sedgefield CCG | E51: 4375 | F51: 4507.039421 | G51: -0.02929626495 | I51: 4507.039421 | J51: -0.02929626495 | M51: =IF(AND(VLOOKUP($B51,Lookup!$B$3:$E$222,4,FALSE)=$H$5,B51<>$J$4),F51,NA()) ->  | N51: =IF(AND(VLOOKUP($B51,Lookup!$B$3:$E$222,4,FALSE)=$H$5,B51<>$J$4),G51,NA()) ->  | O51: =IF(ISNUMBER(MATCH($B51,Lookup!$P$3:$P$260,0)),F51,NA()) ->  | P51: =IF(ISNUMBER(MATCH($B51,Lookup!$P$3:$P$260,0)),G51,NA()) ->  | R51: 137 | AE51: 0 | AF51: 100 | AG51: 41 | AH51: 0.00696262401
A52: 44 | B52: 07W | C52: NHS Ealing CCG | E52: 6735 | F52: 6506.846005 | G52: 0.03506368438 | H52: high | I52: 6506.846005 | J52: 0.03506368438 | M52: =IF(AND(VLOOKUP($B52,Lookup!$B$3:$E$222,4,FALSE)=$H$5,B52<>$J$4),F52,NA()) ->  | N52: =IF(AND(VLOOKUP($B52,Lookup!$B$3:$E$222,4,FALSE)=$H$5,B52<>$J$4),G52,NA()) ->  | O52: =IF(ISNUMBER(MATCH($B52,Lookup!$P$3:$P$260,0)),F52,NA()) ->  | P52: =IF(ISNUMBER(MATCH($B52,Lookup!$P$3:$P$260,0)),G52,NA()) ->  | R52: 149 | AE52: 0 | AF52: 100 | AG52: 42 | AH52: 0.00696262401
A53: 45 | B53: 06K | C53: NHS East and North Hertfordshire CCG | E53: 6865 | F53: 6938.668456 | G53: -0.01061708832 | I53: 6938.668456 | J53: -0.01061708832 | M53: =IF(AND(VLOOKUP($B53,Lookup!$B$3:$E$222,4,FALSE)=$H$5,B53<>$J$4),F53,NA()) ->  | N53: =IF(AND(VLOOKUP($B53,Lookup!$B$3:$E$222,4,FALSE)=$H$5,B53<>$J$4),G53,NA()) ->  | O53: =IF(ISNUMBER(MATCH($B53,Lookup!$P$3:$P$260,0)),F53,NA()) ->  | P53: =IF(ISNUMBER(MATCH($B53,Lookup!$P$3:$P$260,0)),G53,NA()) ->  | R53: 162 | AE53: 0 | AF53: 100 | AG53: 43 | AH53: 0.00696262401
A54: 46 | B54: 15D | C54: NHS East Berkshire CCG | E54: 3590 | F54: 3699.376782 | G54: -0.02956627243 | I54: 3699.376782 | J54: -0.02956627243 | M54: =IF(AND(VLOOKUP($B54,Lookup!$B$3:$E$222,4,FALSE)=$H$5,B54<>$J$4),F54,NA()) ->  | N54: =IF(AND(VLOOKUP($B54,Lookup!$B$3:$E$222,4,FALSE)=$H$5,B54<>$J$4),G54,NA()) ->  | O54: =IF(ISNUMBER(MATCH($B54,Lookup!$P$3:$P$260,0)),F54,NA()) ->  | P54: =IF(ISNUMBER(MATCH($B54,Lookup!$P$3:$P$260,0)),G54,NA()) ->  | R54: 176 | AE54: 0 | AF54: 100 | AG54: 44 | AH54: 0.00696262401
A55: 47 | B55: 01A | C55: NHS East Lancashire CCG | E55: 6220 | F55: 6030.897214 | G55: 0.03135566391 | H55: high | I55: 6030.897214 | J55: 0.03135566391 | M55: =IF(AND(VLOOKUP($B55,Lookup!$B$3:$E$222,4,FALSE)=$H$5,B55<>$J$4),F55,NA()) ->  | N55: =IF(AND(VLOOKUP($B55,Lookup!$B$3:$E$222,4,FALSE)=$H$5,B55<>$J$4),G55,NA()) ->  | O55: =IF(ISNUMBER(MATCH($B55,Lookup!$P$3:$P$260,0)),F55,NA()) ->  | P55: =IF(ISNUMBER(MATCH($B55,Lookup!$P$3:$P$260,0)),G55,NA()) ->  | R55: 191 | AE55: 0 | AF55: 100 | AG55: 45 | AH55: 0.00696262401
A56: 48 | B56: 03W | C56: NHS East Leicestershire and Rutland CCG | E56: 3055 | F56: 3100.542716 | G56: -0.01468862721 | I56: 3100.542716 | J56: -0.01468862721 | M56: =IF(AND(VLOOKUP($B56,Lookup!$B$3:$E$222,4,FALSE)=$H$5,B56<>$J$4),F56,NA()) ->  | N56: =IF(AND(VLOOKUP($B56,Lookup!$B$3:$E$222,4,FALSE)=$H$5,B56<>$J$4),G56,NA()) ->  | O56: =IF(ISNUMBER(MATCH($B56,Lookup!$P$3:$P$260,0)),F56,NA()) ->  | P56: =IF(ISNUMBER(MATCH($B56,Lookup!$P$3:$P$260,0)),G56,NA()) ->  | R56: 208 | AE56: 0 | AF56: 100 | AG56: 46 | AH56: 0.00696262401
A57: 49 | B57: 02Y | C57: NHS East Riding of Yorkshire CCG | E57: 5850 | F57: 5769.478989 | G57: 0.01395637478 | I57: 5769.478989 | J57: 0.01395637478 | M57: =IF(AND(VLOOKUP($B57,Lookup!$B$3:$E$222,4,FALSE)=$H$5,B57<>$J$4),F57,NA()) ->  | N57: =IF(AND(VLOOKUP($B57,Lookup!$B$3:$E$222,4,FALSE)=$H$5,B57<>$J$4),G57,NA()) ->  | O57: =IF(ISNUMBER(MATCH($B57,Lookup!$P$3:$P$260,0)),F57,NA()) ->  | P57: =IF(ISNUMBER(MATCH($B57,Lookup!$P$3:$P$260,0)),G57,NA()) ->  | R57: 226 | AE57: 0 | AF57: 100 | AG57: 47 | AH57: 0.00696262401
A58: 50 | B58: 05D | C58: NHS East Staffordshire CCG | E58: 1730 | F58: 1749.225336 | G58: -0.01099077159 | I58: 1749.225336 | J58: -0.01099077159 | M58: =IF(AND(VLOOKUP($B58,Lookup!$B$3:$E$222,4,FALSE)=$H$5,B58<>$J$4),F58,NA()) ->  | N58: =IF(AND(VLOOKUP($B58,Lookup!$B$3:$E$222,4,FALSE)=$H$5,B58<>$J$4),G58,NA()) ->  | O58: =IF(ISNUMBER(MATCH($B58,Lookup!$P$3:$P$260,0)),F58,NA()) -> 1749.225336 | P58: =IF(ISNUMBER(MATCH($B58,Lookup!$P$3:$P$260,0)),G58,NA()) -> -0.01099077159 | R58: 246 | AE58: 0 | AF58: 100 | AG58: 48 | AH58: 0.00696262401
A59: 51 | B59: 09L | C59: NHS East Surrey CCG | E59: 2060 | F59: 2113.232154 | G59: -0.02518992244 | I59: 2113.232154 | J59: -0.02518992244 | M59: =IF(AND(VLOOKUP($B59,Lookup!$B$3:$E$222,4,FALSE)=$H$5,B59<>$J$4),F59,NA()) ->  | N59: =IF(AND(VLOOKUP($B59,Lookup!$B$3:$E$222,4,FALSE)=$H$5,B59<>$J$4),G59,NA()) ->  | O59: =IF(ISNUMBER(MATCH($B59,Lookup!$P$3:$P$260,0)),F59,NA()) ->  | P59: =IF(ISNUMBER(MATCH($B59,Lookup!$P$3:$P$260,0)),G59,NA()) ->  | R59: 267 | AE59: 0 | AF59: 100 | AG59: 49 | AH59: 0.00696262401
A60: 52 | B60: 09F | C60: NHS Eastbourne, Hailsham and Seaford CCG | E60: 2595 | F60: 2656.703324 | G60: -0.02322552296 | I60: 2656.703324 | J60: -0.02322552296 | M60: =IF(AND(VLOOKUP($B60,Lookup!$B$3:$E$222,4,FALSE)=$H$5,B60<>$J$4),F60,NA()) ->  | N60: =IF(AND(VLOOKUP($B60,Lookup!$B$3:$E$222,4,FALSE)=$H$5,B60<>$J$4),G60,NA()) ->  | O60: =IF(ISNUMBER(MATCH($B60,Lookup!$P$3:$P$260,0)),F60,NA()) ->  | P60: =IF(ISNUMBER(MATCH($B60,Lookup!$P$3:$P$260,0)),G60,NA()) ->  | R60: 290 | AE60: 0 | AF60: 100 | AG60: 50 | AH60: 0.00696262401
A61: 53 | B61: 01C | C61: NHS Eastern Cheshire CCG | E61: 2665 | F61: 2671.944931 | G61: -0.002599204337 | I61: 2671.944931 | J61: -0.002599204337 | M61: =IF(AND(VLOOKUP($B61,Lookup!$B$3:$E$222,4,FALSE)=$H$5,B61<>$J$4),F61,NA()) ->  | N61: =IF(AND(VLOOKUP($B61,Lookup!$B$3:$E$222,4,FALSE)=$H$5,B61<>$J$4),G61,NA()) ->  | O61: =IF(ISNUMBER(MATCH($B61,Lookup!$P$3:$P$260,0)),F61,NA()) ->  | P61: =IF(ISNUMBER(MATCH($B61,Lookup!$P$3:$P$260,0)),G61,NA()) ->  | R61: 315 | AE61: 0 | AF61: 100 | AG61: 51 | AH61: 0.00696262401
A62: 54 | B62: 07X | C62: NHS Enfield CCG | E62: 5845 | F62: 5609.24623 | G62: 0.04202949205 | H62: high | I62: 5609.24623 | J62: 0.04202949205 | M62: =IF(AND(VLOOKUP($B62,Lookup!$B$3:$E$222,4,FALSE)=$H$5,B62<>$J$4),F62,NA()) ->  | N62: =IF(AND(VLOOKUP($B62,Lookup!$B$3:$E$222,4,FALSE)=$H$5,B62<>$J$4),G62,NA()) ->  | O62: =IF(ISNUMBER(MATCH($B62,Lookup!$P$3:$P$260,0)),F62,NA()) ->  | P62: =IF(ISNUMBER(MATCH($B62,Lookup!$P$3:$P$260,0)),G62,NA()) ->  | R62: 342 | AE62: 0 | AF62: 100 | AG62: 52 | AH62: 0.00696262401
A63: 55 | B63: 03X | C63: NHS Erewash CCG | E63: 1355 | F63: 1356.734827 | G63: -0.001278677931 | I63: 1356.734827 | J63: -0.001278677931 | M63: =IF(AND(VLOOKUP($B63,Lookup!$B$3:$E$222,4,FALSE)=$H$5,B63<>$J$4),F63,NA()) ->  | N63: =IF(AND(VLOOKUP($B63,Lookup!$B$3:$E$222,4,FALSE)=$H$5,B63<>$J$4),G63,NA()) ->  | O63: =IF(ISNUMBER(MATCH($B63,Lookup!$P$3:$P$260,0)),F63,NA()) ->  | P63: =IF(ISNUMBER(MATCH($B63,Lookup!$P$3:$P$260,0)),G63,NA()) ->  | R63: 372 | AE63: 0 | AF63: 100 | AG63: 53 | AH63: 0.00696262401
A64: 56 | B64: 10K | C64: NHS Fareham and Gosport CCG | E64: 2235 | F64: 2242.162977 | G64: -0.003194672718 | I64: 2242.162977 | J64: -0.003194672718 | M64: =IF(AND(VLOOKUP($B64,Lookup!$B$3:$E$222,4,FALSE)=$H$5,B64<>$J$4),F64,NA()) ->  | N64: =IF(AND(VLOOKUP($B64,Lookup!$B$3:$E$222,4,FALSE)=$H$5,B64<>$J$4),G64,NA()) ->  | O64: =IF(ISNUMBER(MATCH($B64,Lookup!$P$3:$P$260,0)),F64,NA()) ->  | P64: =IF(ISNUMBER(MATCH($B64,Lookup!$P$3:$P$260,0)),G64,NA()) ->  | R64: 404 | AE64: 0 | AF64: 100 | AG64: 54 | AH64: 0.00696262401
A65: 57 | B65: 02M | C65: NHS Fylde and Wyre CCG | E65: 2385 | F65: 2339.807674 | G65: 0.01931454747 | I65: 2339.807674 | J65: 0.01931454747 | M65: =IF(AND(VLOOKUP($B65,Lookup!$B$3:$E$222,4,FALSE)=$H$5,B65<>$J$4),F65,NA()) ->  | N65: =IF(AND(VLOOKUP($B65,Lookup!$B$3:$E$222,4,FALSE)=$H$5,B65<>$J$4),G65,NA()) ->  | O65: =IF(ISNUMBER(MATCH($B65,Lookup!$P$3:$P$260,0)),F65,NA()) ->  | P65: =IF(ISNUMBER(MATCH($B65,Lookup!$P$3:$P$260,0)),G65,NA()) ->  | R65: 439 | AE65: 0 | AF65: 100 | AG65: 55 | AH65: 0.00696262401
A66: 58 | B66: 11M | C66: NHS Gloucestershire CCG | E66: 5460 | F66: 5704.744512 | G66: -0.04290192342 | H66: low | I66: 5704.744512 | J66: -0.04290192342 | M66: =IF(AND(VLOOKUP($B66,Lookup!$B$3:$E$222,4,FALSE)=$H$5,B66<>$J$4),F66,NA()) ->  | N66: =IF(AND(VLOOKUP($B66,Lookup!$B$3:$E$222,4,FALSE)=$H$5,B66<>$J$4),G66,NA()) ->  | O66: =IF(ISNUMBER(MATCH($B66,Lookup!$P$3:$P$260,0)),F66,NA()) ->  | P66: =IF(ISNUMBER(MATCH($B66,Lookup!$P$3:$P$260,0)),G66,NA()) ->  | R66: 477 | AE66: 0 | AF66: 100 | AG66: 56 | AH66: 0.00696262401
A67: 59 | B67: 06M | C67: NHS Great Yarmouth and Waveney CCG | E67: 4825 | F67: 4787.875988 | G67: 0.007753753971 | I67: 4787.875988 | J67: 0.007753753971 | M67: =IF(AND(VLOOKUP($B67,Lookup!$B$3:$E$222,4,FALSE)=$H$5,B67<>$J$4),F67,NA()) ->  | N67: =IF(AND(VLOOKUP($B67,Lookup!$B$3:$E$222,4,FALSE)=$H$5,B67<>$J$4),G67,NA()) ->  | O67: =IF(ISNUMBER(MATCH($B67,Lookup!$P$3:$P$260,0)),F67,NA()) ->  | P67: =IF(ISNUMBER(MATCH($B67,Lookup!$P$3:$P$260,0)),G67,NA()) ->  | R67: 519 | AE67: 0 | AF67: 100 | AG67: 57 | AH67: 0.00696262401
A68: 60 | B68: 03A | C68: NHS Greater Huddersfield CCG | E68: 2790 | F68: 2767.9148 | G68: 0.007979002945 | I68: 2767.9148 | J68: 0.007979002945 | M68: =IF(AND(VLOOKUP($B68,Lookup!$B$3:$E$222,4,FALSE)=$H$5,B68<>$J$4),F68,NA()) -> 2767.9148 | N68: =IF(AND(VLOOKUP($B68,Lookup!$B$3:$E$222,4,FALSE)=$H$5,B68<>$J$4),G68,NA()) -> 0.007979002945 | O68: =IF(ISNUMBER(MATCH($B68,Lookup!$P$3:$P$260,0)),F68,NA()) ->  | P68: =IF(ISNUMBER(MATCH($B68,Lookup!$P$3:$P$260,0)),G68,NA()) ->  | R68: 564 | AE68: 0 | AF68: 100 | AG68: 58 | AH68: 0.00696262401
A69: 61 | B69: 01E | C69: NHS Greater Preston CCG | E69: 2985 | F69: 2850.457994 | G69: 0.04720013624 | H69: high | I69: 2850.457994 | J69: 0.04720013624 | M69: =IF(AND(VLOOKUP($B69,Lookup!$B$3:$E$222,4,FALSE)=$H$5,B69<>$J$4),F69,NA()) ->  | N69: =IF(AND(VLOOKUP($B69,Lookup!$B$3:$E$222,4,FALSE)=$H$5,B69<>$J$4),G69,NA()) ->  | O69: =IF(ISNUMBER(MATCH($B69,Lookup!$P$3:$P$260,0)),F69,NA()) ->  | P69: =IF(ISNUMBER(MATCH($B69,Lookup!$P$3:$P$260,0)),G69,NA()) ->  | R69: 613 | AE69: 0 | AF69: 100 | AG69: 59 | AH69: 0.00696262401
A70: 62 | B70: 08A | C70: NHS Greenwich CCG | E70: 3245 | F70: 3226.177818 | G70: 0.005834204908 | I70: 3226.177818 | J70: 0.005834204908 | M70: =IF(AND(VLOOKUP($B70,Lookup!$B$3:$E$222,4,FALSE)=$H$5,B70<>$J$4),F70,NA()) ->  | N70: =IF(AND(VLOOKUP($B70,Lookup!$B$3:$E$222,4,FALSE)=$H$5,B70<>$J$4),G70,NA()) ->  | O70: =IF(ISNUMBER(MATCH($B70,Lookup!$P$3:$P$260,0)),F70,NA()) ->  | P70: =IF(ISNUMBER(MATCH($B70,Lookup!$P$3:$P$260,0)),G70,NA()) ->  | R70: 667 | AE70: 0 | AF70: 100 | AG70: 60 | AH70: 0.00696262401
A71: 63 | B71: 09N | C71: NHS Guildford and Waverley CCG | E71: 1990 | F71: 2003.305779 | G71: -0.00664191112 | I71: 2003.305779 | J71: -0.00664191112 | M71: =IF(AND(VLOOKUP($B71,Lookup!$B$3:$E$222,4,FALSE)=$H$5,B71<>$J$4),F71,NA()) ->  | N71: =IF(AND(VLOOKUP($B71,Lookup!$B$3:$E$222,4,FALSE)=$H$5,B71<>$J$4),G71,NA()) ->  | O71: =IF(ISNUMBER(MATCH($B71,Lookup!$P$3:$P$260,0)),F71,NA()) ->  | P71: =IF(ISNUMBER(MATCH($B71,Lookup!$P$3:$P$260,0)),G71,NA()) ->  | R71: 725 | AE71: 0 | AF71: 100 | AG71: 61 | AH71: 0.00696262401
A72: 64 | B72: 01F | C72: NHS Halton CCG | E72: 2430 | F72: 2416.176475 | G72: 0.005721239786 | I72: 2416.176475 | J72: 0.005721239786 | M72: =IF(AND(VLOOKUP($B72,Lookup!$B$3:$E$222,4,FALSE)=$H$5,B72<>$J$4),F72,NA()) ->  | N72: =IF(AND(VLOOKUP($B72,Lookup!$B$3:$E$222,4,FALSE)=$H$5,B72<>$J$4),G72,NA()) ->  | O72: =IF(ISNUMBER(MATCH($B72,Lookup!$P$3:$P$260,0)),F72,NA()) ->  | P72: =IF(ISNUMBER(MATCH($B72,Lookup!$P$3:$P$260,0)),G72,NA()) ->  | R72: 788 | AE72: 0 | AF72: 100 | AG72: 62 | AH72: 0.00696262401
A73: 65 | B73: 03D | C73: NHS Hambleton, Richmondshire and Whitby CCG | E73: =IFERROR(INDEX(INDIRECT($E$6),$A73), "") -> 1855 | F73: =IFERROR(INDEX(INDIRECT($F$6),$A73), "") -> 1915.394556 | G73: =IF(OR(E73="",E73=0),"",E73/F73-1) -> -0.03153113072 | I73: =IF(F73="",#N/A,F73) -> 1915.394556 | J73: =IF(G73="",#N/A,G73) -> -0.03153113072 | M73: =IF(AND(VLOOKUP($B73,Lookup!$B$3:$E$222,4,FALSE)=$H$5,B73<>$J$4),F73,NA()) ->  | N73: =IF(AND(VLOOKUP($B73,Lookup!$B$3:$E$222,4,FALSE)=$H$5,B73<>$J$4),G73,NA()) ->  | O73: =IF(ISNUMBER(MATCH($B73,Lookup!$P$3:$P$260,0)),F73,NA()) ->  | P73: =IF(ISNUMBER(MATCH($B73,Lookup!$P$3:$P$260,0)),G73,NA()) ->  | R73: 857 | AE73: =$E$3 -> 0 | AF73: 100 | AG73: 63 | AH73: 0.00696262401
A74: 66 | B74: 08C | C74: NHS Hammersmith and Fulham CCG | E74: 2250 | F74: 2233.871035 | G74: 0.007220186368 | H74: =IFERROR(IF(INDEX(INDIRECT($H$6),$A74)=0, "",INDEX(INDIRECT($H$6),$A74)),"") ->  | I74: 2233.871035 | J74: 0.007220186368 | K74: =IF(B74=$J$4,F74,NA()) ->  | L74: =IF(B74=$J$4,G74,NA()) ->  | M74: =IF(AND(VLOOKUP($B74,Lookup!$B$3:$E$222,4,FALSE)=$H$5,B74<>$J$4),F74,NA()) ->  | N74: =IF(AND(VLOOKUP($B74,Lookup!$B$3:$E$222,4,FALSE)=$H$5,B74<>$J$4),G74,NA()) ->  | O74: =IF(ISNUMBER(MATCH($B74,Lookup!$P$3:$P$260,0)),F74,NA()) ->  | P74: =IF(ISNUMBER(MATCH($B74,Lookup!$P$3:$P$260,0)),G74,NA()) ->  | R74: 932 | S74: =poishigh($R74,0.025) ->  | T74: =$R74/S74-1 ->  | U74: =$R74/S74*100 ->  | V74: =poislow($R74,0.025) ->  | W74: =$R74/V74-1 ->  | X74: =$R74/V74*100 ->  | Y74: =poishigh($R74,0.001) ->  | Z74: =$R74/Y74-1 ->  | AA74: =$R74/Y74*100 ->  | AB74: =poislow($R74,0.001) ->  | AC74: =$R74/AB74-1 ->  | AD74: =$R74/AB74*100 ->  | AE74: 0 | AF74: 100 | AG74: 64 | AH74: =$AH$9 -> 0.00696262401
A75: 67 | B75: 03Y | C75: NHS Hardwick CCG | E75: 1545 | F75: 1522.012152 | G75: 0.01510359059 | I75: 1522.012152 | J75: 0.01510359059 | M75: =IF(AND(VLOOKUP($B75,Lookup!$B$3:$E$222,4,FALSE)=$H$5,B75<>$J$4),F75,NA()) ->  | N75: =IF(AND(VLOOKUP($B75,Lookup!$B$3:$E$222,4,FALSE)=$H$5,B75<>$J$4),G75,NA()) ->  | O75: =IF(ISNUMBER(MATCH($B75,Lookup!$P$3:$P$260,0)),F75,NA()) ->  | P75: =IF(ISNUMBER(MATCH($B75,Lookup!$P$3:$P$260,0)),G75,NA()) ->  | R75: =MAX(ROUND(($X$4/R74)^(1/(101-AG75))*R74,0),R74+1) -> 1013 | AE75: 0 | AF75: =$E$4 -> 100 | AG75: 65 | AH75: 0.00696262401
A76: 68 | B76: 08D | C76: NHS Haringey CCG | E76: 4365 | F76: 4207.343574 | G76: 0.03747172619 | H76: high | I76: 4207.343574 | J76: 0.03747172619 | M76: =IF(AND(VLOOKUP($B76,Lookup!$B$3:$E$222,4,FALSE)=$H$5,B76<>$J$4),F76,NA()) ->  | N76: =IF(AND(VLOOKUP($B76,Lookup!$B$3:$E$222,4,FALSE)=$H$5,B76<>$J$4),G76,NA()) ->  | O76: =IF(ISNUMBER(MATCH($B76,Lookup!$P$3:$P$260,0)),F76,NA()) ->  | P76: =IF(ISNUMBER(MATCH($B76,Lookup!$P$3:$P$260,0)),G76,NA()) ->  | R76: 1102 | AE76: 0 | AF76: 100 | AG76: =AG75+1 -> 66 | AH76: 0.00696262401
A77: 69 | B77: 03E | C77: NHS Harrogate and Rural District CCG | E77: 2170 | F77: 2130.654889 | G77: 0.01846620528 | I77: 2130.654889 | J77: 0.01846620528 | M77: =IF(AND(VLOOKUP($B77,Lookup!$B$3:$E$222,4,FALSE)=$H$5,B77<>$J$4),F77,NA()) -> 2130.654889 | N77: =IF(AND(VLOOKUP($B77,Lookup!$B$3:$E$222,4,FALSE)=$H$5,B77<>$J$4),G77,NA()) -> 0.01846620528 | O77: =IF(ISNUMBER(MATCH($B77,Lookup!$P$3:$P$260,0)),F77,NA()) ->  | P77: =IF(ISNUMBER(MATCH($B77,Lookup!$P$3:$P$260,0)),G77,NA()) ->  | R77: 1198 | AE77: 0 | AF77: 100 | AG77: =AG76+1 -> 67 | AH77: 0.00696262401
A78: 70 | B78: 08E | C78: NHS Harrow CCG | E78: 4650 | F78: 4445.646901 | G78: 0.04596701077 | H78: high | I78: 4445.646901 | J78: 0.04596701077 | M78: =IF(AND(VLOOKUP($B78,Lookup!$B$3:$E$222,4,FALSE)=$H$5,B78<>$J$4),F78,NA()) ->  | N78: =IF(AND(VLOOKUP($B78,Lookup!$B$3:$E$222,4,FALSE)=$H$5,B78<>$J$4),G78,NA()) ->  | O78: =IF(ISNUMBER(MATCH($B78,Lookup!$P$3:$P$260,0)),F78,NA()) ->  | P78: =IF(ISNUMBER(MATCH($B78,Lookup!$P$3:$P$260,0)),G78,NA()) ->  | R78: 1303 | AE78: 0 | AF78: 100 | AG78: 68 | AH78: 0.00696262401
A79: 71 | B79: 00K | C79: NHS Hartlepool and Stockton-on-Tees CCG | E79: 4745 | F79: 4696.619155 | G79: 0.0103012067 | I79: 4696.619155 | J79: 0.0103012067 | M79: =IF(AND(VLOOKUP($B79,Lookup!$B$3:$E$222,4,FALSE)=$H$5,B79<>$J$4),F79,NA()) ->  | N79: =IF(AND(VLOOKUP($B79,Lookup!$B$3:$E$222,4,FALSE)=$H$5,B79<>$J$4),G79,NA()) ->  | O79: =IF(ISNUMBER(MATCH($B79,Lookup!$P$3:$P$260,0)),F79,NA()) ->  | P79: =IF(ISNUMBER(MATCH($B79,Lookup!$P$3:$P$260,0)),G79,NA()) ->  | R79: 1417 | AE79: 0 | AF79: 100 | AG79: 69 | AH79: 0.00696262401
A80: 72 | B80: 09P | C80: NHS Hastings and Rother CCG | E80: 2575 | F80: 2558.412407 | G80: 0.006483549174 | I80: 2558.412407 | J80: 0.006483549174 | M80: =IF(AND(VLOOKUP($B80,Lookup!$B$3:$E$222,4,FALSE)=$H$5,B80<>$J$4),F80,NA()) ->  | N80: =IF(AND(VLOOKUP($B80,Lookup!$B$3:$E$222,4,FALSE)=$H$5,B80<>$J$4),G80,NA()) ->  | O80: =IF(ISNUMBER(MATCH($B80,Lookup!$P$3:$P$260,0)),F80,NA()) ->  | P80: =IF(ISNUMBER(MATCH($B80,Lookup!$P$3:$P$260,0)),G80,NA()) ->  | R80: 1541 | AE80: 0 | AF80: 100 | AG80: 70 | AH80: 0.00696262401
A81: 73 | B81: 08F | C81: NHS Havering CCG | E81: 3445 | F81: 3376.742418 | G81: 0.02021403278 | I81: 3376.742418 | J81: 0.02021403278 | M81: =IF(AND(VLOOKUP($B81,Lookup!$B$3:$E$222,4,FALSE)=$H$5,B81<>$J$4),F81,NA()) ->  | N81: =IF(AND(VLOOKUP($B81,Lookup!$B$3:$E$222,4,FALSE)=$H$5,B81<>$J$4),G81,NA()) ->  | O81: =IF(ISNUMBER(MATCH($B81,Lookup!$P$3:$P$260,0)),F81,NA()) ->  | P81: =IF(ISNUMBER(MATCH($B81,Lookup!$P$3:$P$260,0)),G81,NA()) ->  | R81: 1676 | AE81: 0 | AF81: 100 | AG81: 71 | AH81: 0.00696262401
A82: 74 | B82: 05F | C82: NHS Herefordshire CCG | E82: 2885 | F82: 2749.76789 | G82: 0.04917946373 | H82: high | I82: 2749.76789 | J82: 0.04917946373 | M82: =IF(AND(VLOOKUP($B82,Lookup!$B$3:$E$222,4,FALSE)=$H$5,B82<>$J$4),F82,NA()) ->  | N82: =IF(AND(VLOOKUP($B82,Lookup!$B$3:$E$222,4,FALSE)=$H$5,B82<>$J$4),G82,NA()) ->  | O82: =IF(ISNUMBER(MATCH($B82,Lookup!$P$3:$P$260,0)),F82,NA()) ->  | P82: =IF(ISNUMBER(MATCH($B82,Lookup!$P$3:$P$260,0)),G82,NA()) ->  | R82: 1822 | AE82: 0 | AF82: 100 | AG82: 72 | AH82: 0.00696262401
A83: 75 | B83: 06N | C83: NHS Herts Valleys CCG | E83: 6685 | F83: 6573.881819 | G83: 0.01690297819 | I83: 6573.881819 | J83: 0.01690297819 | M83: =IF(AND(VLOOKUP($B83,Lookup!$B$3:$E$222,4,FALSE)=$H$5,B83<>$J$4),F83,NA()) ->  | N83: =IF(AND(VLOOKUP($B83,Lookup!$B$3:$E$222,4,FALSE)=$H$5,B83<>$J$4),G83,NA()) ->  | O83: =IF(ISNUMBER(MATCH($B83,Lookup!$P$3:$P$260,0)),F83,NA()) ->  | P83: =IF(ISNUMBER(MATCH($B83,Lookup!$P$3:$P$260,0)),G83,NA()) ->  | R83: 1981 | AE83: 0 | AF83: 100 | AG83: 73 | AH83: 0.00696262401
A84: 76 | B84: 01D | C84: NHS Heywood, Middleton and Rochdale CCG | E84: 3755 | F84: 3637.528844 | G84: 0.03229421979 | I84: 3637.528844 | J84: 0.03229421979 | M84: =IF(AND(VLOOKUP($B84,Lookup!$B$3:$E$222,4,FALSE)=$H$5,B84<>$J$4),F84,NA()) ->  | N84: =IF(AND(VLOOKUP($B84,Lookup!$B$3:$E$222,4,FALSE)=$H$5,B84<>$J$4),G84,NA()) ->  | O84: =IF(ISNUMBER(MATCH($B84,Lookup!$P$3:$P$260,0)),F84,NA()) ->  | P84: =IF(ISNUMBER(MATCH($B84,Lookup!$P$3:$P$260,0)),G84,NA()) ->  | R84: 2154 | AE84: 0 | AF84: 100 | AG84: 74 | AH84: 0.00696262401
A85: 77 | B85: 99K | C85: NHS High Weald Lewes Havens CCG | E85: 1395 | F85: 1469.80011 | G85: -0.05089134864 | I85: 1469.80011 | J85: -0.05089134864 | M85: =IF(AND(VLOOKUP($B85,Lookup!$B$3:$E$222,4,FALSE)=$H$5,B85<>$J$4),F85,NA()) ->  | N85: =IF(AND(VLOOKUP($B85,Lookup!$B$3:$E$222,4,FALSE)=$H$5,B85<>$J$4),G85,NA()) ->  | O85: =IF(ISNUMBER(MATCH($B85,Lookup!$P$3:$P$260,0)),F85,NA()) ->  | P85: =IF(ISNUMBER(MATCH($B85,Lookup!$P$3:$P$260,0)),G85,NA()) ->  | R85: 2342 | AE85: 0 | AF85: 100 | AG85: 75 | AH85: 0.00696262401
A86: 78 | B86: 08G | C86: NHS Hillingdon CCG | E86: 4055 | F86: 4054.6611 | G86: 8.358285849e-05 | I86: 4054.6611 | J86: 8.358285849e-05 | M86: =IF(AND(VLOOKUP($B86,Lookup!$B$3:$E$222,4,FALSE)=$H$5,B86<>$J$4),F86,NA()) ->  | N86: =IF(AND(VLOOKUP($B86,Lookup!$B$3:$E$222,4,FALSE)=$H$5,B86<>$J$4),G86,NA()) ->  | O86: =IF(ISNUMBER(MATCH($B86,Lookup!$P$3:$P$260,0)),F86,NA()) ->  | P86: =IF(ISNUMBER(MATCH($B86,Lookup!$P$3:$P$260,0)),G86,NA()) ->  | R86: 2547 | AE86: 0 | AF86: 100 | AG86: 76 | AH86: 0.00696262401
A87: 79 | B87: 09X | C87: NHS Horsham and Mid Sussex CCG | E87: 2220 | F87: 2295.560094 | G87: -0.03291575522 | I87: 2295.560094 | J87: -0.03291575522 | M87: =IF(AND(VLOOKUP($B87,Lookup!$B$3:$E$222,4,FALSE)=$H$5,B87<>$J$4),F87,NA()) ->  | N87: =IF(AND(VLOOKUP($B87,Lookup!$B$3:$E$222,4,FALSE)=$H$5,B87<>$J$4),G87,NA()) ->  | O87: =IF(ISNUMBER(MATCH($B87,Lookup!$P$3:$P$260,0)),F87,NA()) ->  | P87: =IF(ISNUMBER(MATCH($B87,Lookup!$P$3:$P$260,0)),G87,NA()) ->  | R87: 2769 | AE87: 0 | AF87: 100 | AG87: 77 | AH87: 0.00696262401
A88: 80 | B88: 07Y | C88: NHS Hounslow CCG | E88: 3265 | F88: 3245.043464 | G88: 0.006149851675 | I88: 3245.043464 | J88: 0.006149851675 | M88: =IF(AND(VLOOKUP($B88,Lookup!$B$3:$E$222,4,FALSE)=$H$5,B88<>$J$4),F88,NA()) ->  | N88: =IF(AND(VLOOKUP($B88,Lookup!$B$3:$E$222,4,FALSE)=$H$5,B88<>$J$4),G88,NA()) ->  | O88: =IF(ISNUMBER(MATCH($B88,Lookup!$P$3:$P$260,0)),F88,NA()) ->  | P88: =IF(ISNUMBER(MATCH($B88,Lookup!$P$3:$P$260,0)),G88,NA()) ->  | R88: 3011 | AE88: 0 | AF88: 100 | AG88: 78 | AH88: 0.00696262401
A89: 81 | B89: 03F | C89: NHS Hull CCG | E89: 4415 | F89: 4426.552838 | G89: -0.002609894916 | I89: 4426.552838 | J89: -0.002609894916 | M89: =IF(AND(VLOOKUP($B89,Lookup!$B$3:$E$222,4,FALSE)=$H$5,B89<>$J$4),F89,NA()) ->  | N89: =IF(AND(VLOOKUP($B89,Lookup!$B$3:$E$222,4,FALSE)=$H$5,B89<>$J$4),G89,NA()) ->  | O89: =IF(ISNUMBER(MATCH($B89,Lookup!$P$3:$P$260,0)),F89,NA()) ->  | P89: =IF(ISNUMBER(MATCH($B89,Lookup!$P$3:$P$260,0)),G89,NA()) ->  | R89: 3274 | AE89: 0 | AF89: 100 | AG89: 79 | AH89: 0.00696262401
A90: 82 | B90: 06L | C90: NHS Ipswich and East Suffolk CCG | E90: 4900 | F90: 4825.156136 | G90: 0.01551117963 | I90: 4825.156136 | J90: 0.01551117963 | M90: =IF(AND(VLOOKUP($B90,Lookup!$B$3:$E$222,4,FALSE)=$H$5,B90<>$J$4),F90,NA()) ->  | N90: =IF(AND(VLOOKUP($B90,Lookup!$B$3:$E$222,4,FALSE)=$H$5,B90<>$J$4),G90,NA()) ->  | O90: =IF(ISNUMBER(MATCH($B90,Lookup!$P$3:$P$260,0)),F90,NA()) ->  | P90: =IF(ISNUMBER(MATCH($B90,Lookup!$P$3:$P$260,0)),G90,NA()) ->  | R90: 3560 | AE90: 0 | AF90: 100 | AG90: 80 | AH90: 0.00696262401
A91: 83 | B91: 10L | C91: NHS Isle of Wight CCG | E91: 990 | F91: 1104.35697 | G91: -0.1035507297 | H91: low | I91: 1104.35697 | J91: -0.1035507297 | M91: =IF(AND(VLOOKUP($B91,Lookup!$B$3:$E$222,4,FALSE)=$H$5,B91<>$J$4),F91,NA()) ->  | N91: =IF(AND(VLOOKUP($B91,Lookup!$B$3:$E$222,4,FALSE)=$H$5,B91<>$J$4),G91,NA()) ->  | O91: =IF(ISNUMBER(MATCH($B91,Lookup!$P$3:$P$260,0)),F91,NA()) ->  | P91: =IF(ISNUMBER(MATCH($B91,Lookup!$P$3:$P$260,0)),G91,NA()) ->  | R91: 3871 | AE91: 0 | AF91: 100 | AG91: 81 | AH91: 0.00696262401
A92: 84 | B92: 08H | C92: NHS Islington CCG | E92: 2585 | F92: 2531.556189 | G92: 0.02111105071 | I92: 2531.556189 | J92: 0.02111105071 | M92: =IF(AND(VLOOKUP($B92,Lookup!$B$3:$E$222,4,FALSE)=$H$5,B92<>$J$4),F92,NA()) ->  | N92: =IF(AND(VLOOKUP($B92,Lookup!$B$3:$E$222,4,FALSE)=$H$5,B92<>$J$4),G92,NA()) ->  | O92: =IF(ISNUMBER(MATCH($B92,Lookup!$P$3:$P$260,0)),F92,NA()) ->  | P92: =IF(ISNUMBER(MATCH($B92,Lookup!$P$3:$P$260,0)),G92,NA()) ->  | R92: 4209 | AE92: 0 | AF92: 100 | AG92: 82 | AH92: 0.00696262401
A93: 85 | B93: 11N | C93: NHS Kernow CCG | E93: 8700 | F93: 8732.939749 | G93: -0.003771897021 | I93: 8732.939749 | J93: -0.003771897021 | M93: =IF(AND(VLOOKUP($B93,Lookup!$B$3:$E$222,4,FALSE)=$H$5,B93<>$J$4),F93,NA()) ->  | N93: =IF(AND(VLOOKUP($B93,Lookup!$B$3:$E$222,4,FALSE)=$H$5,B93<>$J$4),G93,NA()) ->  | O93: =IF(ISNUMBER(MATCH($B93,Lookup!$P$3:$P$260,0)),F93,NA()) ->  | P93: =IF(ISNUMBER(MATCH($B93,Lookup!$P$3:$P$260,0)),G93,NA()) ->  | R93: 4577 | AE93: 0 | AF93: 100 | AG93: 83 | AH93: 0.00696262401
A94: 86 | B94: 08J | C94: NHS Kingston CCG | E94: 1435 | F94: 1478.848975 | G94: -0.02965074575 | I94: 1478.848975 | J94: -0.02965074575 | M94: =IF(AND(VLOOKUP($B94,Lookup!$B$3:$E$222,4,FALSE)=$H$5,B94<>$J$4),F94,NA()) ->  | N94: =IF(AND(VLOOKUP($B94,Lookup!$B$3:$E$222,4,FALSE)=$H$5,B94<>$J$4),G94,NA()) ->  | O94: =IF(ISNUMBER(MATCH($B94,Lookup!$P$3:$P$260,0)),F94,NA()) ->  | P94: =IF(ISNUMBER(MATCH($B94,Lookup!$P$3:$P$260,0)),G94,NA()) ->  | R94: 4977 | AE94: 0 | AF94: 100 | AG94: 84 | AH94: 0.00696262401
A95: 87 | B95: 01J | C95: NHS Knowsley CCG | E95: 2275 | F95: 2278.519117 | G95: -0.001544475428 | I95: 2278.519117 | J95: -0.001544475428 | M95: =IF(AND(VLOOKUP($B95,Lookup!$B$3:$E$222,4,FALSE)=$H$5,B95<>$J$4),F95,NA()) ->  | N95: =IF(AND(VLOOKUP($B95,Lookup!$B$3:$E$222,4,FALSE)=$H$5,B95<>$J$4),G95,NA()) ->  | O95: =IF(ISNUMBER(MATCH($B95,Lookup!$P$3:$P$260,0)),F95,NA()) ->  | P95: =IF(ISNUMBER(MATCH($B95,Lookup!$P$3:$P$260,0)),G95,NA()) ->  | R95: 5412 | AE95: 0 | AF95: 100 | AG95: 85 | AH95: 0.00696262401
A96: 88 | B96: 08K | C96: NHS Lambeth CCG | E96: 4375 | F96: 4467.071804 | G96: -0.020611221 | I96: 4467.071804 | J96: -0.020611221 | M96: =IF(AND(VLOOKUP($B96,Lookup!$B$3:$E$222,4,FALSE)=$H$5,B96<>$J$4),F96,NA()) ->  | N96: =IF(AND(VLOOKUP($B96,Lookup!$B$3:$E$222,4,FALSE)=$H$5,B96<>$J$4),G96,NA()) ->  | O96: =IF(ISNUMBER(MATCH($B96,Lookup!$P$3:$P$260,0)),F96,NA()) ->  | P96: =IF(ISNUMBER(MATCH($B96,Lookup!$P$3:$P$260,0)),G96,NA()) ->  | R96: 5885 | AE96: 0 | AF96: 100 | AG96: 86 | AH96: 0.00696262401
A97: 89 | B97: 15F | C97: NHS Leeds CCG | E97: 6885 | F97: 7197.183544 | G97: -0.043375793 | H97: low | I97: 7197.183544 | J97: -0.043375793 | M97: =IF(AND(VLOOKUP($B97,Lookup!$B$3:$E$222,4,FALSE)=$H$5,B97<>$J$4),F97,NA()) -> 7197.183544 | N97: =IF(AND(VLOOKUP($B97,Lookup!$B$3:$E$222,4,FALSE)=$H$5,B97<>$J$4),G97,NA()) -> -0.043375793 | O97: =IF(ISNUMBER(MATCH($B97,Lookup!$P$3:$P$260,0)),F97,NA()) ->  | P97: =IF(ISNUMBER(MATCH($B97,Lookup!$P$3:$P$260,0)),G97,NA()) ->  | R97: 6399 | AE97: 0 | AF97: 100 | AG97: 87 | AH97: 0.00696262401
A98: 90 | B98: 04C | C98: NHS Leicester City CCG | E98: 3935 | F98: 3946.48475 | G98: -0.002910121459 | I98: 3946.48475 | J98: -0.002910121459 | M98: =IF(AND(VLOOKUP($B98,Lookup!$B$3:$E$222,4,FALSE)=$H$5,B98<>$J$4),F98,NA()) ->  | N98: =IF(AND(VLOOKUP($B98,Lookup!$B$3:$E$222,4,FALSE)=$H$5,B98<>$J$4),G98,NA()) ->  | O98: =IF(ISNUMBER(MATCH($B98,Lookup!$P$3:$P$260,0)),F98,NA()) ->  | P98: =IF(ISNUMBER(MATCH($B98,Lookup!$P$3:$P$260,0)),G98,NA()) ->  | R98: 6958 | AE98: 0 | AF98: 100 | AG98: 88 | AH98: 0.00696262401
A99: 91 | B99: 08L | C99: NHS Lewisham CCG | E99: 3995 | F99: 4007.788903 | G99: -0.0031910122 | I99: 4007.788903 | J99: -0.0031910122 | M99: =IF(AND(VLOOKUP($B99,Lookup!$B$3:$E$222,4,FALSE)=$H$5,B99<>$J$4),F99,NA()) ->  | N99: =IF(AND(VLOOKUP($B99,Lookup!$B$3:$E$222,4,FALSE)=$H$5,B99<>$J$4),G99,NA()) ->  | O99: =IF(ISNUMBER(MATCH($B99,Lookup!$P$3:$P$260,0)),F99,NA()) ->  | P99: =IF(ISNUMBER(MATCH($B99,Lookup!$P$3:$P$260,0)),G99,NA()) ->  | R99: 7566 | AE99: 0 | AF99: 100 | AG99: 89 | AH99: 0.00696262401
A100: 92 | B100: 03T | C100: NHS Lincolnshire East CCG | E100: 3610 | F100: 3605.90422 | G100: 0.001135853767 | I100: 3605.90422 | J100: 0.001135853767 | M100: =IF(AND(VLOOKUP($B100,Lookup!$B$3:$E$222,4,FALSE)=$H$5,B100<>$J$4),F100,NA()) ->  | N100: =IF(AND(VLOOKUP($B100,Lookup!$B$3:$E$222,4,FALSE)=$H$5,B100<>$J$4),G100,NA()) ->  | O100: =IF(ISNUMBER(MATCH($B100,Lookup!$P$3:$P$260,0)),F100,NA()) ->  | P100: =IF(ISNUMBER(MATCH($B100,Lookup!$P$3:$P$260,0)),G100,NA()) ->  | R100: 8227 | AE100: 0 | AF100: 100 | AG100: 90 | AH100: 0.00696262401
A101: 93 | B101: 04D | C101: NHS Lincolnshire West CCG | E101: 2500 | F101: 2585.314108 | G101: -0.03299951362 | I101: 2585.314108 | J101: -0.03299951362 | M101: =IF(AND(VLOOKUP($B101,Lookup!$B$3:$E$222,4,FALSE)=$H$5,B101<>$J$4),F101,NA()) ->  | N101: =IF(AND(VLOOKUP($B101,Lookup!$B$3:$E$222,4,FALSE)=$H$5,B101<>$J$4),G101,NA()) ->  | O101: =IF(ISNUMBER(MATCH($B101,Lookup!$P$3:$P$260,0)),F101,NA()) ->  | P101: =IF(ISNUMBER(MATCH($B101,Lookup!$P$3:$P$260,0)),G101,NA()) ->  | R101: 8945 | AE101: 0 | AF101: 100 | AG101: 91 | AH101: 0.00696262401
A102: 94 | B102: 99A | C102: NHS Liverpool CCG | E102: 6745 | F102: 6532.632018 | G102: 0.03250879297 | H102: high | I102: 6532.632018 | J102: 0.03250879297 | M102: =IF(AND(VLOOKUP($B102,Lookup!$B$3:$E$222,4,FALSE)=$H$5,B102<>$J$4),F102,NA()) ->  | N102: =IF(AND(VLOOKUP($B102,Lookup!$B$3:$E$222,4,FALSE)=$H$5,B102<>$J$4),G102,NA()) ->  | O102: =IF(ISNUMBER(MATCH($B102,Lookup!$P$3:$P$260,0)),F102,NA()) ->  | P102: =IF(ISNUMBER(MATCH($B102,Lookup!$P$3:$P$260,0)),G102,NA()) ->  | R102: 9726 | AE102: 0 | AF102: 100 | AG102: 92 | AH102: 0.00696262401
A103: 95 | B103: 06P | C103: NHS Luton CCG | E103: 3030 | F103: 3082.14054 | G103: -0.01691698975 | I103: 3082.14054 | J103: -0.01691698975 | M103: =IF(AND(VLOOKUP($B103,Lookup!$B$3:$E$222,4,FALSE)=$H$5,B103<>$J$4),F103,NA()) ->  | N103: =IF(AND(VLOOKUP($B103,Lookup!$B$3:$E$222,4,FALSE)=$H$5,B103<>$J$4),G103,NA()) ->  | O103: =IF(ISNUMBER(MATCH($B103,Lookup!$P$3:$P$260,0)),F103,NA()) ->  | P103: =IF(ISNUMBER(MATCH($B103,Lookup!$P$3:$P$260,0)),G103,NA()) ->  | R103: 10575 | AE103: 0 | AF103: 100 | AG103: 93 | AH103: 0.00696262401
A104: 96 | B104: 14L | C104: NHS Manchester CCG | E104: 6590 | F104: 6652.25402 | G104: -0.009358334782 | I104: 6652.25402 | J104: -0.009358334782 | M104: =IF(AND(VLOOKUP($B104,Lookup!$B$3:$E$222,4,FALSE)=$H$5,B104<>$J$4),F104,NA()) ->  | N104: =IF(AND(VLOOKUP($B104,Lookup!$B$3:$E$222,4,FALSE)=$H$5,B104<>$J$4),G104,NA()) ->  | O104: =IF(ISNUMBER(MATCH($B104,Lookup!$P$3:$P$260,0)),F104,NA()) ->  | P104: =IF(ISNUMBER(MATCH($B104,Lookup!$P$3:$P$260,0)),G104,NA()) ->  | R104: 11498 | AE104: 0 | AF104: 100 | AG104: 94 | AH104: 0.00696262401
A105: 97 | B105: 04E | C105: NHS Mansfield and Ashfield CCG | E105: 3040 | F105: 2965.782361 | G105: 0.0250246412 | I105: =IF(F105="",#N/A,F105) -> 2965.782361 | J105: =IF(G105="",#N/A,G105) -> 0.0250246412 | M105: =IF(AND(VLOOKUP($B105,Lookup!$B$3:$E$222,4,FALSE)=$H$5,B105<>$J$4),F105,NA()) ->  | N105: =IF(AND(VLOOKUP($B105,Lookup!$B$3:$E$222,4,FALSE)=$H$5,B105<>$J$4),G105,NA()) ->  | O105: =IF(ISNUMBER(MATCH($B105,Lookup!$P$3:$P$260,0)),F105,NA()) ->  | P105: =IF(ISNUMBER(MATCH($B105,Lookup!$P$3:$P$260,0)),G105,NA()) ->  | R105: 12502 | AE105: 0 | AF105: 100 | AG105: 95 | AH105: 0.00696262401
A106: 98 | B106: 09W | C106: NHS Medway CCG | E106: 3090 | F106: 3203.106881 | G106: -0.0353116161 | H106: low | I106: 3203.106881 | J106: -0.0353116161 | M106: =IF(AND(VLOOKUP($B106,Lookup!$B$3:$E$222,4,FALSE)=$H$5,B106<>$J$4),F106,NA()) ->  | N106: =IF(AND(VLOOKUP($B106,Lookup!$B$3:$E$222,4,FALSE)=$H$5,B106<>$J$4),G106,NA()) ->  | O106: =IF(ISNUMBER(MATCH($B106,Lookup!$P$3:$P$260,0)),F106,NA()) ->  | P106: =IF(ISNUMBER(MATCH($B106,Lookup!$P$3:$P$260,0)),G106,NA()) ->  | R106: 13594 | T106: =$R106/S106-1 ->  | W106: =$R106/V106-1 ->  | Z106: =$R106/Y106-1 ->  | AC106: =$R106/AB106-1 ->  | AE106: 0 | AF106: 100 | AG106: 96 | AH106: 0.00696262401
A107: 99 | B107: 08R | C107: NHS Merton CCG | E107: 1335 | F107: 1516.000094 | G107: -0.1193931943 | H107: low | I107: 1516.000094 | J107: -0.1193931943 | M107: =IF(AND(VLOOKUP($B107,Lookup!$B$3:$E$222,4,FALSE)=$H$5,B107<>$J$4),F107,NA()) ->  | N107: =IF(AND(VLOOKUP($B107,Lookup!$B$3:$E$222,4,FALSE)=$H$5,B107<>$J$4),G107,NA()) ->  | O107: =IF(ISNUMBER(MATCH($B107,Lookup!$P$3:$P$260,0)),F107,NA()) ->  | P107: =IF(ISNUMBER(MATCH($B107,Lookup!$P$3:$P$260,0)),G107,NA()) ->  | R107: 14781 | AE107: 0 | AF107: 100 | AG107: 97 | AH107: 0.00696262401
A108: 100 | B108: 06Q | C108: NHS Mid Essex CCG | E108: 3340 | F108: 3414.564022 | G108: -0.02183705495 | I108: 3414.564022 | J108: -0.02183705495 | M108: =IF(AND(VLOOKUP($B108,Lookup!$B$3:$E$222,4,FALSE)=$H$5,B108<>$J$4),F108,NA()) ->  | N108: =IF(AND(VLOOKUP($B108,Lookup!$B$3:$E$222,4,FALSE)=$H$5,B108<>$J$4),G108,NA()) ->  | O108: =IF(ISNUMBER(MATCH($B108,Lookup!$P$3:$P$260,0)),F108,NA()) ->  | P108: =IF(ISNUMBER(MATCH($B108,Lookup!$P$3:$P$260,0)),G108,NA()) ->  | R108: 16071 | AE108: 0 | AF108: 100 | AG108: 98 | AH108: 0.00696262401
A109: 101 | B109: 04F | C109: NHS Milton Keynes CCG | E109: 3325 | F109: 3278.762517 | G109: 0.01410211397 | I109: 3278.762517 | J109: 0.01410211397 | M109: =IF(AND(VLOOKUP($B109,Lookup!$B$3:$E$222,4,FALSE)=$H$5,B109<>$J$4),F109,NA()) ->  | N109: =IF(AND(VLOOKUP($B109,Lookup!$B$3:$E$222,4,FALSE)=$H$5,B109<>$J$4),G109,NA()) ->  | O109: =IF(ISNUMBER(MATCH($B109,Lookup!$P$3:$P$260,0)),F109,NA()) ->  | P109: =IF(ISNUMBER(MATCH($B109,Lookup!$P$3:$P$260,0)),G109,NA()) ->  | R109: 17474 | AE109: 0 | AF109: 100 | AG109: 99 | AH109: 0.00696262401
A110: 102 | B110: 01K | C110: NHS Morecambe Bay CCG | E110: 4815 | F110: 4741.944928 | G110: 0.01540614094 | I110: 4741.944928 | J110: 0.01540614094 | M110: =IF(AND(VLOOKUP($B110,Lookup!$B$3:$E$222,4,FALSE)=$H$5,B110<>$J$4),F110,NA()) ->  | N110: =IF(AND(VLOOKUP($B110,Lookup!$B$3:$E$222,4,FALSE)=$H$5,B110<>$J$4),G110,NA()) ->  | O110: =IF(ISNUMBER(MATCH($B110,Lookup!$P$3:$P$260,0)),F110,NA()) ->  | P110: =IF(ISNUMBER(MATCH($B110,Lookup!$P$3:$P$260,0)),G110,NA()) ->  | S110: =MAX(X4,S109) ->  | T110: =T109 ->  | U110: =U109 ->  | V110: =MAX(X4,V109) ->  | W110: =W109 ->  | X110: =X109 ->  | Y110: =MAX(X4,Y109) ->  | Z110: =Z109 ->  | AA110: =AA109 ->  | AB110: =MAX(X4,AB109) ->  | AC110: =AC109 ->  | AD110: =AD109 ->  | AE110: 0 | AF110: 100 | AH110: 0.00696262401
A111: 103 | B111: 04G | C111: NHS Nene CCG | E111: 9030 | F111: 8864.372212 | G111: 0.01868466081 | I111: 8864.372212 | J111: 0.01868466081 | M111: =IF(AND(VLOOKUP($B111,Lookup!$B$3:$E$222,4,FALSE)=$H$5,B111<>$J$4),F111,NA()) ->  | N111: =IF(AND(VLOOKUP($B111,Lookup!$B$3:$E$222,4,FALSE)=$H$5,B111<>$J$4),G111,NA()) ->  | O111: =IF(ISNUMBER(MATCH($B111,Lookup!$P$3:$P$260,0)),F111,NA()) ->  | P111: =IF(ISNUMBER(MATCH($B111,Lookup!$P$3:$P$260,0)),G111,NA()) -> 
A112: 104 | B112: 04H | C112: NHS Newark and Sherwood CCG | E112: 2175 | F112: 2107.993387 | G112: 0.03178691805 | I112: 2107.993387 | J112: 0.03178691805 | M112: =IF(AND(VLOOKUP($B112,Lookup!$B$3:$E$222,4,FALSE)=$H$5,B112<>$J$4),F112,NA()) ->  | N112: =IF(AND(VLOOKUP($B112,Lookup!$B$3:$E$222,4,FALSE)=$H$5,B112<>$J$4),G112,NA()) ->  | O112: =IF(ISNUMBER(MATCH($B112,Lookup!$P$3:$P$260,0)),F112,NA()) -> 2107.993387 | P112: =IF(ISNUMBER(MATCH($B112,Lookup!$P$3:$P$260,0)),G112,NA()) -> 0.03178691805
A113: 105 | B113: 13T | C113: NHS Newcastle Gateshead CCG | E113: 6950 | F113: 7114.202034 | G113: -0.02308087867 | H113: low | I113: 7114.202034 | J113: -0.02308087867 | M113: =IF(AND(VLOOKUP($B113,Lookup!$B$3:$E$222,4,FALSE)=$H$5,B113<>$J$4),F113,NA()) ->  | N113: =IF(AND(VLOOKUP($B113,Lookup!$B$3:$E$222,4,FALSE)=$H$5,B113<>$J$4),G113,NA()) ->  | O113: =IF(ISNUMBER(MATCH($B113,Lookup!$P$3:$P$260,0)),F113,NA()) ->  | P113: =IF(ISNUMBER(MATCH($B113,Lookup!$P$3:$P$260,0)),G113,NA()) -> 
A114: 106 | B114: 08M | C114: NHS Newham CCG | E114: 4345 | F114: 4273.933217 | G114: 0.01662795829 | I114: 4273.933217 | J114: 0.01662795829 | M114: =IF(AND(VLOOKUP($B114,Lookup!$B$3:$E$222,4,FALSE)=$H$5,B114<>$J$4),F114,NA()) ->  | N114: =IF(AND(VLOOKUP($B114,Lookup!$B$3:$E$222,4,FALSE)=$H$5,B114<>$J$4),G114,NA()) ->  | O114: =IF(ISNUMBER(MATCH($B114,Lookup!$P$3:$P$260,0)),F114,NA()) ->  | P114: =IF(ISNUMBER(MATCH($B114,Lookup!$P$3:$P$260,0)),G114,NA()) -> 
A115: 107 | B115: 01H | C115: NHS North Cumbria CCG | E115: 4245 | F115: 4527.9098 | G115: -0.06248132426 | H115: low | I115: 4527.9098 | J115: -0.06248132426 | M115: =IF(AND(VLOOKUP($B115,Lookup!$B$3:$E$222,4,FALSE)=$H$5,B115<>$J$4),F115,NA()) ->  | N115: =IF(AND(VLOOKUP($B115,Lookup!$B$3:$E$222,4,FALSE)=$H$5,B115<>$J$4),G115,NA()) ->  | O115: =IF(ISNUMBER(MATCH($B115,Lookup!$P$3:$P$260,0)),F115,NA()) ->  | P115: =IF(ISNUMBER(MATCH($B115,Lookup!$P$3:$P$260,0)),G115,NA()) -> 
A116: 108 | B116: 04J | C116: NHS North Derbyshire CCG | E116: 3865 | F116: 3865.155919 | G116: -4.033951348e-05 | I116: 3865.155919 | J116: -4.033951348e-05 | M116: =IF(AND(VLOOKUP($B116,Lookup!$B$3:$E$222,4,FALSE)=$H$5,B116<>$J$4),F116,NA()) ->  | N116: =IF(AND(VLOOKUP($B116,Lookup!$B$3:$E$222,4,FALSE)=$H$5,B116<>$J$4),G116,NA()) ->  | O116: =IF(ISNUMBER(MATCH($B116,Lookup!$P$3:$P$260,0)),F116,NA()) ->  | P116: =IF(ISNUMBER(MATCH($B116,Lookup!$P$3:$P$260,0)),G116,NA()) -> 
A117: 109 | B117: 00J | C117: NHS North Durham CCG | E117: 3320 | F117: 3421.671317 | G117: -0.02971393448 | I117: 3421.671317 | J117: -0.02971393448 | M117: =IF(AND(VLOOKUP($B117,Lookup!$B$3:$E$222,4,FALSE)=$H$5,B117<>$J$4),F117,NA()) ->  | N117: =IF(AND(VLOOKUP($B117,Lookup!$B$3:$E$222,4,FALSE)=$H$5,B117<>$J$4),G117,NA()) ->  | O117: =IF(ISNUMBER(MATCH($B117,Lookup!$P$3:$P$260,0)),F117,NA()) ->  | P117: =IF(ISNUMBER(MATCH($B117,Lookup!$P$3:$P$260,0)),G117,NA()) -> 
A118: 110 | B118: 06T | C118: NHS North East Essex CCG | E118: 4480 | F118: 4565.056566 | G118: -0.01863209459 | I118: 4565.056566 | J118: -0.01863209459 | M118: =IF(AND(VLOOKUP($B118,Lookup!$B$3:$E$222,4,FALSE)=$H$5,B118<>$J$4),F118,NA()) ->  | N118: =IF(AND(VLOOKUP($B118,Lookup!$B$3:$E$222,4,FALSE)=$H$5,B118<>$J$4),G118,NA()) ->  | O118: =IF(ISNUMBER(MATCH($B118,Lookup!$P$3:$P$260,0)),F118,NA()) ->  | P118: =IF(ISNUMBER(MATCH($B118,Lookup!$P$3:$P$260,0)),G118,NA()) -> 
A119: 111 | B119: 99M | C119: NHS North East Hampshire and Farnham CCG | E119: 2095 | F119: 2124.175361 | G119: -0.01373491155 | I119: 2124.175361 | J119: -0.01373491155 | M119: =IF(AND(VLOOKUP($B119,Lookup!$B$3:$E$222,4,FALSE)=$H$5,B119<>$J$4),F119,NA()) ->  | N119: =IF(AND(VLOOKUP($B119,Lookup!$B$3:$E$222,4,FALSE)=$H$5,B119<>$J$4),G119,NA()) ->  | O119: =IF(ISNUMBER(MATCH($B119,Lookup!$P$3:$P$260,0)),F119,NA()) ->  | P119: =IF(ISNUMBER(MATCH($B119,Lookup!$P$3:$P$260,0)),G119,NA()) -> 
A120: 112 | B120: 03H | C120: NHS North East Lincolnshire CCG | E120: 4005 | F120: 3934.020166 | G120: 0.01804256999 | I120: 3934.020166 | J120: 0.01804256999 | M120: =IF(AND(VLOOKUP($B120,Lookup!$B$3:$E$222,4,FALSE)=$H$5,B120<>$J$4),F120,NA()) ->  | N120: =IF(AND(VLOOKUP($B120,Lookup!$B$3:$E$222,4,FALSE)=$H$5,B120<>$J$4),G120,NA()) ->  | O120: =IF(ISNUMBER(MATCH($B120,Lookup!$P$3:$P$260,0)),F120,NA()) ->  | P120: =IF(ISNUMBER(MATCH($B120,Lookup!$P$3:$P$260,0)),G120,NA()) -> 
A121: 113 | B121: 10J | C121: NHS North Hampshire CCG | E121: 2880 | F121: 2865.809015 | G121: 0.004951825204 | I121: 2865.809015 | J121: 0.004951825204 | M121: =IF(AND(VLOOKUP($B121,Lookup!$B$3:$E$222,4,FALSE)=$H$5,B121<>$J$4),F121,NA()) ->  | N121: =IF(AND(VLOOKUP($B121,Lookup!$B$3:$E$222,4,FALSE)=$H$5,B121<>$J$4),G121,NA()) ->  | O121: =IF(ISNUMBER(MATCH($B121,Lookup!$P$3:$P$260,0)),F121,NA()) ->  | P121: =IF(ISNUMBER(MATCH($B121,Lookup!$P$3:$P$260,0)),G121,NA()) -> 
A122: 114 | B122: 03J | C122: NHS North Kirklees CCG | E122: 2580 | F122: 2564.54965 | G122: 0.006024585928 | I122: 2564.54965 | J122: 0.006024585928 | M122: =IF(AND(VLOOKUP($B122,Lookup!$B$3:$E$222,4,FALSE)=$H$5,B122<>$J$4),F122,NA()) -> 2564.54965 | N122: =IF(AND(VLOOKUP($B122,Lookup!$B$3:$E$222,4,FALSE)=$H$5,B122<>$J$4),G122,NA()) -> 0.006024585928 | O122: =IF(ISNUMBER(MATCH($B122,Lookup!$P$3:$P$260,0)),F122,NA()) ->  | P122: =IF(ISNUMBER(MATCH($B122,Lookup!$P$3:$P$260,0)),G122,NA()) -> 
A123: 115 | B123: 03K | C123: NHS North Lincolnshire CCG | E123: 3230 | F123: 3259.202152 | G123: -0.008959908056 | I123: 3259.202152 | J123: -0.008959908056 | M123: =IF(AND(VLOOKUP($B123,Lookup!$B$3:$E$222,4,FALSE)=$H$5,B123<>$J$4),F123,NA()) ->  | N123: =IF(AND(VLOOKUP($B123,Lookup!$B$3:$E$222,4,FALSE)=$H$5,B123<>$J$4),G123,NA()) ->  | O123: =IF(ISNUMBER(MATCH($B123,Lookup!$P$3:$P$260,0)),F123,NA()) -> 3259.202152 | P123: =IF(ISNUMBER(MATCH($B123,Lookup!$P$3:$P$260,0)),G123,NA()) -> -0.008959908056
A124: 116 | B124: 06V | C124: NHS North Norfolk CCG | E124: 3210 | F124: 3157.676567 | G124: 0.01657023199 | I124: 3157.676567 | J124: 0.01657023199 | M124: =IF(AND(VLOOKUP($B124,Lookup!$B$3:$E$222,4,FALSE)=$H$5,B124<>$J$4),F124,NA()) ->  | N124: =IF(AND(VLOOKUP($B124,Lookup!$B$3:$E$222,4,FALSE)=$H$5,B124<>$J$4),G124,NA()) ->  | O124: =IF(ISNUMBER(MATCH($B124,Lookup!$P$3:$P$260,0)),F124,NA()) ->  | P124: =IF(ISNUMBER(MATCH($B124,Lookup!$P$3:$P$260,0)),G124,NA()) -> 
A125: 117 | B125: 05G | C125: NHS North Staffordshire CCG | E125: 3445 | F125: 3310.067082 | G125: 0.04076440588 | H125: high | I125: 3310.067082 | J125: 0.04076440588 | M125: =IF(AND(VLOOKUP($B125,Lookup!$B$3:$E$222,4,FALSE)=$H$5,B125<>$J$4),F125,NA()) ->  | N125: =IF(AND(VLOOKUP($B125,Lookup!$B$3:$E$222,4,FALSE)=$H$5,B125<>$J$4),G125,NA()) ->  | O125: =IF(ISNUMBER(MATCH($B125,Lookup!$P$3:$P$260,0)),F125,NA()) -> 3310.067082 | P125: =IF(ISNUMBER(MATCH($B125,Lookup!$P$3:$P$260,0)),G125,NA()) -> 0.04076440588
A126: 118 | B126: 99C | C126: NHS North Tyneside CCG | E126: 3535 | F126: 3448.545914 | G126: 0.02506972162 | I126: 3448.545914 | J126: 0.02506972162 | M126: =IF(AND(VLOOKUP($B126,Lookup!$B$3:$E$222,4,FALSE)=$H$5,B126<>$J$4),F126,NA()) ->  | N126: =IF(AND(VLOOKUP($B126,Lookup!$B$3:$E$222,4,FALSE)=$H$5,B126<>$J$4),G126,NA()) ->  | O126: =IF(ISNUMBER(MATCH($B126,Lookup!$P$3:$P$260,0)),F126,NA()) ->  | P126: =IF(ISNUMBER(MATCH($B126,Lookup!$P$3:$P$260,0)),G126,NA()) -> 
A127: 119 | B127: 09Y | C127: NHS North West Surrey CCG | E127: 3185 | F127: 3400.291151 | G127: -0.06331550486 | H127: low | I127: 3400.291151 | J127: -0.06331550486 | M127: =IF(AND(VLOOKUP($B127,Lookup!$B$3:$E$222,4,FALSE)=$H$5,B127<>$J$4),F127,NA()) ->  | N127: =IF(AND(VLOOKUP($B127,Lookup!$B$3:$E$222,4,FALSE)=$H$5,B127<>$J$4),G127,NA()) ->  | O127: =IF(ISNUMBER(MATCH($B127,Lookup!$P$3:$P$260,0)),F127,NA()) ->  | P127: =IF(ISNUMBER(MATCH($B127,Lookup!$P$3:$P$260,0)),G127,NA()) -> 
A128: 120 | B128: 99P | C128: NHS Northern, Eastern and Western Devon CCG | E128: 9350 | F128: 9857.837486 | G128: -0.05151611465 | H128: low | I128: 9857.837486 | J128: -0.05151611465 | M128: =IF(AND(VLOOKUP($B128,Lookup!$B$3:$E$222,4,FALSE)=$H$5,B128<>$J$4),F128,NA()) ->  | N128: =IF(AND(VLOOKUP($B128,Lookup!$B$3:$E$222,4,FALSE)=$H$5,B128<>$J$4),G128,NA()) ->  | O128: =IF(ISNUMBER(MATCH($B128,Lookup!$P$3:$P$260,0)),F128,NA()) ->  | P128: =IF(ISNUMBER(MATCH($B128,Lookup!$P$3:$P$260,0)),G128,NA()) -> 
A129: 121 | B129: 00L | C129: NHS Northumberland CCG | E129: 5115 | F129: 5052.546211 | G129: 0.01236085457 | I129: 5052.546211 | J129: 0.01236085457 | M129: =IF(AND(VLOOKUP($B129,Lookup!$B$3:$E$222,4,FALSE)=$H$5,B129<>$J$4),F129,NA()) ->  | N129: =IF(AND(VLOOKUP($B129,Lookup!$B$3:$E$222,4,FALSE)=$H$5,B129<>$J$4),G129,NA()) ->  | O129: =IF(ISNUMBER(MATCH($B129,Lookup!$P$3:$P$260,0)),F129,NA()) ->  | P129: =IF(ISNUMBER(MATCH($B129,Lookup!$P$3:$P$260,0)),G129,NA()) -> 
A130: 122 | B130: 06W | C130: NHS Norwich CCG | E130: 2485 | F130: 2446.753271 | G130: 0.01563162494 | I130: 2446.753271 | J130: 0.01563162494 | M130: =IF(AND(VLOOKUP($B130,Lookup!$B$3:$E$222,4,FALSE)=$H$5,B130<>$J$4),F130,NA()) ->  | N130: =IF(AND(VLOOKUP($B130,Lookup!$B$3:$E$222,4,FALSE)=$H$5,B130<>$J$4),G130,NA()) ->  | O130: =IF(ISNUMBER(MATCH($B130,Lookup!$P$3:$P$260,0)),F130,NA()) ->  | P130: =IF(ISNUMBER(MATCH($B130,Lookup!$P$3:$P$260,0)),G130,NA()) -> 
A131: 123 | B131: 04K | C131: NHS Nottingham City CCG | E131: 4090 | F131: 4046.790899 | G131: 0.01067737432 | I131: 4046.790899 | J131: 0.01067737432 | M131: =IF(AND(VLOOKUP($B131,Lookup!$B$3:$E$222,4,FALSE)=$H$5,B131<>$J$4),F131,NA()) ->  | N131: =IF(AND(VLOOKUP($B131,Lookup!$B$3:$E$222,4,FALSE)=$H$5,B131<>$J$4),G131,NA()) ->  | O131: =IF(ISNUMBER(MATCH($B131,Lookup!$P$3:$P$260,0)),F131,NA()) ->  | P131: =IF(ISNUMBER(MATCH($B131,Lookup!$P$3:$P$260,0)),G131,NA()) -> 
A132: 124 | B132: 04L | C132: NHS Nottingham North and East CCG | E132: 2225 | F132: 2200.094744 | G132: 0.01132008358 | I132: 2200.094744 | J132: 0.01132008358 | M132: =IF(AND(VLOOKUP($B132,Lookup!$B$3:$E$222,4,FALSE)=$H$5,B132<>$J$4),F132,NA()) ->  | N132: =IF(AND(VLOOKUP($B132,Lookup!$B$3:$E$222,4,FALSE)=$H$5,B132<>$J$4),G132,NA()) ->  | O132: =IF(ISNUMBER(MATCH($B132,Lookup!$P$3:$P$260,0)),F132,NA()) ->  | P132: =IF(ISNUMBER(MATCH($B132,Lookup!$P$3:$P$260,0)),G132,NA()) -> 
A133: 125 | B133: 04M | C133: NHS Nottingham West CCG | E133: 1300 | F133: 1287.271441 | G133: 0.009888015035 | I133: 1287.271441 | J133: 0.009888015035 | M133: =IF(AND(VLOOKUP($B133,Lookup!$B$3:$E$222,4,FALSE)=$H$5,B133<>$J$4),F133,NA()) ->  | N133: =IF(AND(VLOOKUP($B133,Lookup!$B$3:$E$222,4,FALSE)=$H$5,B133<>$J$4),G133,NA()) ->  | O133: =IF(ISNUMBER(MATCH($B133,Lookup!$P$3:$P$260,0)),F133,NA()) ->  | P133: =IF(ISNUMBER(MATCH($B133,Lookup!$P$3:$P$260,0)),G133,NA()) -> 
A134: 126 | B134: 00Y | C134: NHS Oldham CCG | E134: 3500 | F134: 3516.355456 | G134: -0.004651252115 | I134: 3516.355456 | J134: -0.004651252115 | M134: =IF(AND(VLOOKUP($B134,Lookup!$B$3:$E$222,4,FALSE)=$H$5,B134<>$J$4),F134,NA()) ->  | N134: =IF(AND(VLOOKUP($B134,Lookup!$B$3:$E$222,4,FALSE)=$H$5,B134<>$J$4),G134,NA()) ->  | O134: =IF(ISNUMBER(MATCH($B134,Lookup!$P$3:$P$260,0)),F134,NA()) ->  | P134: =IF(ISNUMBER(MATCH($B134,Lookup!$P$3:$P$260,0)),G134,NA()) -> 
A135: 127 | B135: 10Q | C135: NHS Oxfordshire CCG | E135: 5665 | F135: 5618.0796 | G135: 0.008351679507 | I135: 5618.0796 | J135: 0.008351679507 | M135: =IF(AND(VLOOKUP($B135,Lookup!$B$3:$E$222,4,FALSE)=$H$5,B135<>$J$4),F135,NA()) ->  | N135: =IF(AND(VLOOKUP($B135,Lookup!$B$3:$E$222,4,FALSE)=$H$5,B135<>$J$4),G135,NA()) ->  | O135: =IF(ISNUMBER(MATCH($B135,Lookup!$P$3:$P$260,0)),F135,NA()) ->  | P135: =IF(ISNUMBER(MATCH($B135,Lookup!$P$3:$P$260,0)),G135,NA()) -> 
A136: 128 | B136: 10R | C136: NHS Portsmouth CCG | E136: 2025 | F136: 2013.927349 | G136: 0.005498038856 | I136: 2013.927349 | J136: 0.005498038856 | M136: =IF(AND(VLOOKUP($B136,Lookup!$B$3:$E$222,4,FALSE)=$H$5,B136<>$J$4),F136,NA()) ->  | N136: =IF(AND(VLOOKUP($B136,Lookup!$B$3:$E$222,4,FALSE)=$H$5,B136<>$J$4),G136,NA()) ->  | O136: =IF(ISNUMBER(MATCH($B136,Lookup!$P$3:$P$260,0)),F136,NA()) ->  | P136: =IF(ISNUMBER(MATCH($B136,Lookup!$P$3:$P$260,0)),G136,NA()) -> 
A137: 129 | B137: 08N | C137: NHS Redbridge CCG | E137: =IFERROR(INDEX(INDIRECT($E$6),$A137), "") -> 4270 | F137: =IFERROR(INDEX(INDIRECT($F$6),$A137), "") -> 4125.12997 | G137: =IF(OR(E137="",E137=0),"",E137/F137-1) -> 0.03511890069 | H137: high | I137: =IF(F137="",#N/A,F137) -> 4125.12997 | J137: =IF(G137="",#N/A,G137) -> 0.03511890069 | M137: =IF(AND(VLOOKUP($B137,Lookup!$B$3:$E$222,4,FALSE)=$H$5,B137<>$J$4),F137,NA()) ->  | N137: =IF(AND(VLOOKUP($B137,Lookup!$B$3:$E$222,4,FALSE)=$H$5,B137<>$J$4),G137,NA()) ->  | O137: =IF(ISNUMBER(MATCH($B137,Lookup!$P$3:$P$260,0)),F137,NA()) ->  | P137: =IF(ISNUMBER(MATCH($B137,Lookup!$P$3:$P$260,0)),G137,NA()) -> 
A138: 130 | B138: 05J | C138: NHS Redditch and Bromsgrove CCG | E138: 2780 | F138: 2714.831207 | G138: 0.02400473097 | H138: =IFERROR(IF(INDEX(INDIRECT($H$6),$A138)=0, "",INDEX(INDIRECT($H$6),$A138)),"") ->  | I138: 2714.831207 | J138: 0.02400473097 | K138: =IF(B138=$J$4,F138,NA()) ->  | L138: =IF(B138=$J$4,G138,NA()) ->  | M138: =IF(AND(VLOOKUP($B138,Lookup!$B$3:$E$222,4,FALSE)=$H$5,B138<>$J$4),F138,NA()) ->  | N138: =IF(AND(VLOOKUP($B138,Lookup!$B$3:$E$222,4,FALSE)=$H$5,B138<>$J$4),G138,NA()) ->  | O138: =IF(ISNUMBER(MATCH($B138,Lookup!$P$3:$P$260,0)),F138,NA()) ->  | P138: =IF(ISNUMBER(MATCH($B138,Lookup!$P$3:$P$260,0)),G138,NA()) -> 
A139: 131 | B139: 08P | C139: NHS Richmond CCG | E139: 1015 | F139: 1078.838439 | G139: -0.05917330814 | H139: low | I139: 1078.838439 | J139: -0.05917330814 | M139: =IF(AND(VLOOKUP($B139,Lookup!$B$3:$E$222,4,FALSE)=$H$5,B139<>$J$4),F139,NA()) ->  | N139: =IF(AND(VLOOKUP($B139,Lookup!$B$3:$E$222,4,FALSE)=$H$5,B139<>$J$4),G139,NA()) ->  | O139: =IF(ISNUMBER(MATCH($B139,Lookup!$P$3:$P$260,0)),F139,NA()) ->  | P139: =IF(ISNUMBER(MATCH($B139,Lookup!$P$3:$P$260,0)),G139,NA()) -> 
A140: 132 | B140: 03L | C140: NHS Rotherham CCG | E140: 3755 | F140: 3865.971322 | G140: -0.02870464174 | I140: 3865.971322 | J140: -0.02870464174 | M140: =IF(AND(VLOOKUP($B140,Lookup!$B$3:$E$222,4,FALSE)=$H$5,B140<>$J$4),F140,NA()) ->  | N140: =IF(AND(VLOOKUP($B140,Lookup!$B$3:$E$222,4,FALSE)=$H$5,B140<>$J$4),G140,NA()) ->  | O140: =IF(ISNUMBER(MATCH($B140,Lookup!$P$3:$P$260,0)),F140,NA()) ->  | P140: =IF(ISNUMBER(MATCH($B140,Lookup!$P$3:$P$260,0)),G140,NA()) -> 
A141: 133 | B141: 04N | C141: NHS Rushcliffe CCG | E141: 1420 | F141: 1406.86961 | G141: 0.009333053971 | I141: 1406.86961 | J141: 0.009333053971 | M141: =IF(AND(VLOOKUP($B141,Lookup!$B$3:$E$222,4,FALSE)=$H$5,B141<>$J$4),F141,NA()) ->  | N141: =IF(AND(VLOOKUP($B141,Lookup!$B$3:$E$222,4,FALSE)=$H$5,B141<>$J$4),G141,NA()) ->  | O141: =IF(ISNUMBER(MATCH($B141,Lookup!$P$3:$P$260,0)),F141,NA()) ->  | P141: =IF(ISNUMBER(MATCH($B141,Lookup!$P$3:$P$260,0)),G141,NA()) -> 
A142: 134 | B142: 01G | C142: NHS Salford CCG | E142: 3385 | F142: 3356.838371 | G142: 0.008389331359 | I142: 3356.838371 | J142: 0.008389331359 | M142: =IF(AND(VLOOKUP($B142,Lookup!$B$3:$E$222,4,FALSE)=$H$5,B142<>$J$4),F142,NA()) ->  | N142: =IF(AND(VLOOKUP($B142,Lookup!$B$3:$E$222,4,FALSE)=$H$5,B142<>$J$4),G142,NA()) ->  | O142: =IF(ISNUMBER(MATCH($B142,Lookup!$P$3:$P$260,0)),F142,NA()) ->  | P142: =IF(ISNUMBER(MATCH($B142,Lookup!$P$3:$P$260,0)),G142,NA()) -> 
A143: 135 | B143: 05L | C143: NHS Sandwell and West Birmingham CCG | E143: 5915 | F143: 6024.594973 | G143: -0.01819125993 | I143: 6024.594973 | J143: -0.01819125993 | M143: =IF(AND(VLOOKUP($B143,Lookup!$B$3:$E$222,4,FALSE)=$H$5,B143<>$J$4),F143,NA()) ->  | N143: =IF(AND(VLOOKUP($B143,Lookup!$B$3:$E$222,4,FALSE)=$H$5,B143<>$J$4),G143,NA()) ->  | O143: =IF(ISNUMBER(MATCH($B143,Lookup!$P$3:$P$260,0)),F143,NA()) ->  | P143: =IF(ISNUMBER(MATCH($B143,Lookup!$P$3:$P$260,0)),G143,NA()) -> 
A144: 136 | B144: 03M | C144: NHS Scarborough and Ryedale CCG | E144: 2130 | F144: 2047.926725 | G144: 0.04007627499 | I144: 2047.926725 | J144: 0.04007627499 | M144: =IF(AND(VLOOKUP($B144,Lookup!$B$3:$E$222,4,FALSE)=$H$5,B144<>$J$4),F144,NA()) ->  | N144: =IF(AND(VLOOKUP($B144,Lookup!$B$3:$E$222,4,FALSE)=$H$5,B144<>$J$4),G144,NA()) ->  | O144: =IF(ISNUMBER(MATCH($B144,Lookup!$P$3:$P$260,0)),F144,NA()) ->  | P144: =IF(ISNUMBER(MATCH($B144,Lookup!$P$3:$P$260,0)),G144,NA()) -> 
A145: 137 | B145: 03N | C145: NHS Sheffield CCG | E145: 5655 | F145: 5784.195255 | G145: -0.0223359083 | I145: 5784.195255 | J145: -0.0223359083 | M145: =IF(AND(VLOOKUP($B145,Lookup!$B$3:$E$222,4,FALSE)=$H$5,B145<>$J$4),F145,NA()) ->  | N145: =IF(AND(VLOOKUP($B145,Lookup!$B$3:$E$222,4,FALSE)=$H$5,B145<>$J$4),G145,NA()) ->  | O145: =IF(ISNUMBER(MATCH($B145,Lookup!$P$3:$P$260,0)),F145,NA()) ->  | P145: =IF(ISNUMBER(MATCH($B145,Lookup!$P$3:$P$260,0)),G145,NA()) -> 
A146: 138 | B146: 05N | C146: NHS Shropshire CCG | E146: 4925 | F146: 4709.603119 | G146: 0.04573567576 | H146: high | I146: 4709.603119 | J146: 0.04573567576 | M146: =IF(AND(VLOOKUP($B146,Lookup!$B$3:$E$222,4,FALSE)=$H$5,B146<>$J$4),F146,NA()) ->  | N146: =IF(AND(VLOOKUP($B146,Lookup!$B$3:$E$222,4,FALSE)=$H$5,B146<>$J$4),G146,NA()) ->  | O146: =IF(ISNUMBER(MATCH($B146,Lookup!$P$3:$P$260,0)),F146,NA()) ->  | P146: =IF(ISNUMBER(MATCH($B146,Lookup!$P$3:$P$260,0)),G146,NA()) -> 
A147: 139 | B147: 11X | C147: NHS Somerset CCG | E147: 7945 | F147: 7971.501157 | G147: -0.003324487661 | I147: 7971.501157 | J147: -0.003324487661 | M147: =IF(AND(VLOOKUP($B147,Lookup!$B$3:$E$222,4,FALSE)=$H$5,B147<>$J$4),F147,NA()) ->  | N147: =IF(AND(VLOOKUP($B147,Lookup!$B$3:$E$222,4,FALSE)=$H$5,B147<>$J$4),G147,NA()) ->  | O147: =IF(ISNUMBER(MATCH($B147,Lookup!$P$3:$P$260,0)),F147,NA()) ->  | P147: =IF(ISNUMBER(MATCH($B147,Lookup!$P$3:$P$260,0)),G147,NA()) -> 
A148: 140 | B148: 01R | C148: NHS South Cheshire CCG | E148: 2870 | F148: 2783.583969 | G148: 0.0310448804 | I148: 2783.583969 | J148: 0.0310448804 | M148: =IF(AND(VLOOKUP($B148,Lookup!$B$3:$E$222,4,FALSE)=$H$5,B148<>$J$4),F148,NA()) ->  | N148: =IF(AND(VLOOKUP($B148,Lookup!$B$3:$E$222,4,FALSE)=$H$5,B148<>$J$4),G148,NA()) ->  | O148: =IF(ISNUMBER(MATCH($B148,Lookup!$P$3:$P$260,0)),F148,NA()) -> 2783.583969 | P148: =IF(ISNUMBER(MATCH($B148,Lookup!$P$3:$P$260,0)),G148,NA()) -> 0.0310448804
A149: 141 | B149: 99Q | C149: NHS South Devon and Torbay CCG | E149: 2610 | F149: 2703.07487 | G149: -0.03443296029 | I149: 2703.07487 | J149: -0.03443296029 | M149: =IF(AND(VLOOKUP($B149,Lookup!$B$3:$E$222,4,FALSE)=$H$5,B149<>$J$4),F149,NA()) ->  | N149: =IF(AND(VLOOKUP($B149,Lookup!$B$3:$E$222,4,FALSE)=$H$5,B149<>$J$4),G149,NA()) ->  | O149: =IF(ISNUMBER(MATCH($B149,Lookup!$P$3:$P$260,0)),F149,NA()) ->  | P149: =IF(ISNUMBER(MATCH($B149,Lookup!$P$3:$P$260,0)),G149,NA()) -> 
A150: 142 | B150: 05Q | C150: NHS South East Staffordshire and Seisdon Peninsula CCG | E150: 2805 | F150: 3108.363025 | G150: -0.09759575138 | H150: low | I150: 3108.363025 | J150: -0.09759575138 | M150: =IF(AND(VLOOKUP($B150,Lookup!$B$3:$E$222,4,FALSE)=$H$5,B150<>$J$4),F150,NA()) ->  | N150: =IF(AND(VLOOKUP($B150,Lookup!$B$3:$E$222,4,FALSE)=$H$5,B150<>$J$4),G150,NA()) ->  | O150: =IF(ISNUMBER(MATCH($B150,Lookup!$P$3:$P$260,0)),F150,NA()) ->  | P150: =IF(ISNUMBER(MATCH($B150,Lookup!$P$3:$P$260,0)),G150,NA()) -> 
A151: 143 | B151: 10V | C151: NHS South Eastern Hampshire CCG | E151: 2740 | F151: 2720.04196 | G151: 0.007337401372 | I151: 2720.04196 | J151: 0.007337401372 | M151: =IF(AND(VLOOKUP($B151,Lookup!$B$3:$E$222,4,FALSE)=$H$5,B151<>$J$4),F151,NA()) ->  | N151: =IF(AND(VLOOKUP($B151,Lookup!$B$3:$E$222,4,FALSE)=$H$5,B151<>$J$4),G151,NA()) ->  | O151: =IF(ISNUMBER(MATCH($B151,Lookup!$P$3:$P$260,0)),F151,NA()) -> 2720.04196 | P151: =IF(ISNUMBER(MATCH($B151,Lookup!$P$3:$P$260,0)),G151,NA()) -> 0.007337401372
A152: 144 | B152: 10A | C152: NHS South Kent Coast CCG | E152: 2625 | F152: 2744.503654 | G152: -0.04354290228 | H152: low | I152: 2744.503654 | J152: -0.04354290228 | M152: =IF(AND(VLOOKUP($B152,Lookup!$B$3:$E$222,4,FALSE)=$H$5,B152<>$J$4),F152,NA()) ->  | N152: =IF(AND(VLOOKUP($B152,Lookup!$B$3:$E$222,4,FALSE)=$H$5,B152<>$J$4),G152,NA()) ->  | O152: =IF(ISNUMBER(MATCH($B152,Lookup!$P$3:$P$260,0)),F152,NA()) -> 2744.503654 | P152: =IF(ISNUMBER(MATCH($B152,Lookup!$P$3:$P$260,0)),G152,NA()) -> -0.04354290228
A153: 145 | B153: 99D | C153: NHS South Lincolnshire CCG | E153: 2270 | F153: 2201.124342 | G153: 0.03129112548 | I153: 2201.124342 | J153: 0.03129112548 | M153: =IF(AND(VLOOKUP($B153,Lookup!$B$3:$E$222,4,FALSE)=$H$5,B153<>$J$4),F153,NA()) ->  | N153: =IF(AND(VLOOKUP($B153,Lookup!$B$3:$E$222,4,FALSE)=$H$5,B153<>$J$4),G153,NA()) ->  | O153: =IF(ISNUMBER(MATCH($B153,Lookup!$P$3:$P$260,0)),F153,NA()) ->  | P153: =IF(ISNUMBER(MATCH($B153,Lookup!$P$3:$P$260,0)),G153,NA()) -> 
A154: 146 | B154: 06Y | C154: NHS South Norfolk CCG | E154: 3040 | F154: 3007.611417 | G154: 0.0107688723 | I154: 3007.611417 | J154: 0.0107688723 | M154: =IF(AND(VLOOKUP($B154,Lookup!$B$3:$E$222,4,FALSE)=$H$5,B154<>$J$4),F154,NA()) ->  | N154: =IF(AND(VLOOKUP($B154,Lookup!$B$3:$E$222,4,FALSE)=$H$5,B154<>$J$4),G154,NA()) ->  | O154: =IF(ISNUMBER(MATCH($B154,Lookup!$P$3:$P$260,0)),F154,NA()) ->  | P154: =IF(ISNUMBER(MATCH($B154,Lookup!$P$3:$P$260,0)),G154,NA()) -> 
A155: 147 | B155: 01T | C155: NHS South Sefton CCG | E155: 2130 | F155: 2023.702009 | G155: 0.0525265038 | H155: high | I155: 2023.702009 | J155: 0.0525265038 | M155: =IF(AND(VLOOKUP($B155,Lookup!$B$3:$E$222,4,FALSE)=$H$5,B155<>$J$4),F155,NA()) ->  | N155: =IF(AND(VLOOKUP($B155,Lookup!$B$3:$E$222,4,FALSE)=$H$5,B155<>$J$4),G155,NA()) ->  | O155: =IF(ISNUMBER(MATCH($B155,Lookup!$P$3:$P$260,0)),F155,NA()) ->  | P155: =IF(ISNUMBER(MATCH($B155,Lookup!$P$3:$P$260,0)),G155,NA()) -> 
A156: 148 | B156: 00M | C156: NHS South Tees CCG | E156: 4520 | F156: 4617.458195 | G156: -0.02110645972 | I156: 4617.458195 | J156: -0.02110645972 | M156: =IF(AND(VLOOKUP($B156,Lookup!$B$3:$E$222,4,FALSE)=$H$5,B156<>$J$4),F156,NA()) ->  | N156: =IF(AND(VLOOKUP($B156,Lookup!$B$3:$E$222,4,FALSE)=$H$5,B156<>$J$4),G156,NA()) ->  | O156: =IF(ISNUMBER(MATCH($B156,Lookup!$P$3:$P$260,0)),F156,NA()) ->  | P156: =IF(ISNUMBER(MATCH($B156,Lookup!$P$3:$P$260,0)),G156,NA()) -> 
A157: 149 | B157: 00N | C157: NHS South Tyneside CCG | E157: 3280 | F157: 3198.18227 | G157: 0.02558257247 | I157: 3198.18227 | J157: 0.02558257247 | M157: =IF(AND(VLOOKUP($B157,Lookup!$B$3:$E$222,4,FALSE)=$H$5,B157<>$J$4),F157,NA()) ->  | N157: =IF(AND(VLOOKUP($B157,Lookup!$B$3:$E$222,4,FALSE)=$H$5,B157<>$J$4),G157,NA()) ->  | O157: =IF(ISNUMBER(MATCH($B157,Lookup!$P$3:$P$260,0)),F157,NA()) ->  | P157: =IF(ISNUMBER(MATCH($B157,Lookup!$P$3:$P$260,0)),G157,NA()) -> 
A158: 150 | B158: 05R | C158: NHS South Warwickshire CCG | E158: 3295 | F158: 3218.993009 | G158: 0.02361203975 | I158: 3218.993009 | J158: 0.02361203975 | M158: =IF(AND(VLOOKUP($B158,Lookup!$B$3:$E$222,4,FALSE)=$H$5,B158<>$J$4),F158,NA()) ->  | N158: =IF(AND(VLOOKUP($B158,Lookup!$B$3:$E$222,4,FALSE)=$H$5,B158<>$J$4),G158,NA()) ->  | O158: =IF(ISNUMBER(MATCH($B158,Lookup!$P$3:$P$260,0)),F158,NA()) ->  | P158: =IF(ISNUMBER(MATCH($B158,Lookup!$P$3:$P$260,0)),G158,NA()) -> 
A159: 151 | B159: 04Q | C159: NHS South West Lincolnshire CCG | E159: 1525 | F159: 1578.216946 | G159: -0.03371966439 | I159: 1578.216946 | J159: -0.03371966439 | M159: =IF(AND(VLOOKUP($B159,Lookup!$B$3:$E$222,4,FALSE)=$H$5,B159<>$J$4),F159,NA()) ->  | N159: =IF(AND(VLOOKUP($B159,Lookup!$B$3:$E$222,4,FALSE)=$H$5,B159<>$J$4),G159,NA()) ->  | O159: =IF(ISNUMBER(MATCH($B159,Lookup!$P$3:$P$260,0)),F159,NA()) ->  | P159: =IF(ISNUMBER(MATCH($B159,Lookup!$P$3:$P$260,0)),G159,NA()) -> 
A160: 152 | B160: 05T | C160: NHS South Worcestershire CCG | E160: 5160 | F160: 5015.701284 | G160: 0.02876939988 | H160: high | I160: 5015.701284 | J160: 0.02876939988 | M160: =IF(AND(VLOOKUP($B160,Lookup!$B$3:$E$222,4,FALSE)=$H$5,B160<>$J$4),F160,NA()) ->  | N160: =IF(AND(VLOOKUP($B160,Lookup!$B$3:$E$222,4,FALSE)=$H$5,B160<>$J$4),G160,NA()) ->  | O160: =IF(ISNUMBER(MATCH($B160,Lookup!$P$3:$P$260,0)),F160,NA()) ->  | P160: =IF(ISNUMBER(MATCH($B160,Lookup!$P$3:$P$260,0)),G160,NA()) -> 
A161: 153 | B161: 10X | C161: NHS Southampton CCG | E161: 2370 | F161: 2482.563741 | G161: -0.04534173247 | H161: low | I161: 2482.563741 | J161: -0.04534173247 | M161: =IF(AND(VLOOKUP($B161,Lookup!$B$3:$E$222,4,FALSE)=$H$5,B161<>$J$4),F161,NA()) ->  | N161: =IF(AND(VLOOKUP($B161,Lookup!$B$3:$E$222,4,FALSE)=$H$5,B161<>$J$4),G161,NA()) ->  | O161: =IF(ISNUMBER(MATCH($B161,Lookup!$P$3:$P$260,0)),F161,NA()) ->  | P161: =IF(ISNUMBER(MATCH($B161,Lookup!$P$3:$P$260,0)),G161,NA()) -> 
A162: 154 | B162: 99G | C162: NHS Southend CCG | E162: 2855 | F162: 2799.258276 | G162: 0.01991303372 | I162: 2799.258276 | J162: 0.01991303372 | M162: =IF(AND(VLOOKUP($B162,Lookup!$B$3:$E$222,4,FALSE)=$H$5,B162<>$J$4),F162,NA()) ->  | N162: =IF(AND(VLOOKUP($B162,Lookup!$B$3:$E$222,4,FALSE)=$H$5,B162<>$J$4),G162,NA()) ->  | O162: =IF(ISNUMBER(MATCH($B162,Lookup!$P$3:$P$260,0)),F162,NA()) ->  | P162: =IF(ISNUMBER(MATCH($B162,Lookup!$P$3:$P$260,0)),G162,NA()) -> 
A163: 155 | B163: 04R | C163: NHS Southern Derbyshire CCG | E163: 6695 | F163: 6871.635504 | G163: -0.02570501655 | H163: low | I163: 6871.635504 | J163: -0.02570501655 | M163: =IF(AND(VLOOKUP($B163,Lookup!$B$3:$E$222,4,FALSE)=$H$5,B163<>$J$4),F163,NA()) ->  | N163: =IF(AND(VLOOKUP($B163,Lookup!$B$3:$E$222,4,FALSE)=$H$5,B163<>$J$4),G163,NA()) ->  | O163: =IF(ISNUMBER(MATCH($B163,Lookup!$P$3:$P$260,0)),F163,NA()) ->  | P163: =IF(ISNUMBER(MATCH($B163,Lookup!$P$3:$P$260,0)),G163,NA()) -> 
A164: 156 | B164: 01V | C164: NHS Southport and Formby CCG | E164: 2110 | F164: 2065.773937 | G164: 0.02140895599 | I164: 2065.773937 | J164: 0.02140895599 | M164: =IF(AND(VLOOKUP($B164,Lookup!$B$3:$E$222,4,FALSE)=$H$5,B164<>$J$4),F164,NA()) ->  | N164: =IF(AND(VLOOKUP($B164,Lookup!$B$3:$E$222,4,FALSE)=$H$5,B164<>$J$4),G164,NA()) ->  | O164: =IF(ISNUMBER(MATCH($B164,Lookup!$P$3:$P$260,0)),F164,NA()) ->  | P164: =IF(ISNUMBER(MATCH($B164,Lookup!$P$3:$P$260,0)),G164,NA()) -> 
A165: 157 | B165: 08Q | C165: NHS Southwark CCG | E165: 4290 | F165: 4298.13683 | G165: -0.001893106306 | I165: 4298.13683 | J165: -0.001893106306 | M165: =IF(AND(VLOOKUP($B165,Lookup!$B$3:$E$222,4,FALSE)=$H$5,B165<>$J$4),F165,NA()) ->  | N165: =IF(AND(VLOOKUP($B165,Lookup!$B$3:$E$222,4,FALSE)=$H$5,B165<>$J$4),G165,NA()) ->  | O165: =IF(ISNUMBER(MATCH($B165,Lookup!$P$3:$P$260,0)),F165,NA()) ->  | P165: =IF(ISNUMBER(MATCH($B165,Lookup!$P$3:$P$260,0)),G165,NA()) -> 
A166: 158 | B166: 01X | C166: NHS St Helens CCG | E166: 2965 | F166: 2991.272927 | G166: -0.008783192805 | I166: 2991.272927 | J166: -0.008783192805 | M166: =IF(AND(VLOOKUP($B166,Lookup!$B$3:$E$222,4,FALSE)=$H$5,B166<>$J$4),F166,NA()) ->  | N166: =IF(AND(VLOOKUP($B166,Lookup!$B$3:$E$222,4,FALSE)=$H$5,B166<>$J$4),G166,NA()) ->  | O166: =IF(ISNUMBER(MATCH($B166,Lookup!$P$3:$P$260,0)),F166,NA()) ->  | P166: =IF(ISNUMBER(MATCH($B166,Lookup!$P$3:$P$260,0)),G166,NA()) -> 
A167: 159 | B167: 05V | C167: NHS Stafford and Surrounds CCG | E167: 2215 | F167: 2056.497729 | G167: 0.07707388597 | H167: high | I167: 2056.497729 | J167: 0.07707388597 | M167: =IF(AND(VLOOKUP($B167,Lookup!$B$3:$E$222,4,FALSE)=$H$5,B167<>$J$4),F167,NA()) ->  | N167: =IF(AND(VLOOKUP($B167,Lookup!$B$3:$E$222,4,FALSE)=$H$5,B167<>$J$4),G167,NA()) ->  | O167: =IF(ISNUMBER(MATCH($B167,Lookup!$P$3:$P$260,0)),F167,NA()) ->  | P167: =IF(ISNUMBER(MATCH($B167,Lookup!$P$3:$P$260,0)),G167,NA()) -> 
A168: 160 | B168: 01W | C168: NHS Stockport CCG | E168: 4670 | F168: 4645.830111 | G168: 0.005202490968 | I168: 4645.830111 | J168: 0.005202490968 | M168: =IF(AND(VLOOKUP($B168,Lookup!$B$3:$E$222,4,FALSE)=$H$5,B168<>$J$4),F168,NA()) ->  | N168: =IF(AND(VLOOKUP($B168,Lookup!$B$3:$E$222,4,FALSE)=$H$5,B168<>$J$4),G168,NA()) ->  | O168: =IF(ISNUMBER(MATCH($B168,Lookup!$P$3:$P$260,0)),F168,NA()) ->  | P168: =IF(ISNUMBER(MATCH($B168,Lookup!$P$3:$P$260,0)),G168,NA()) -> 
A169: 161 | B169: 05W | C169: NHS Stoke on Trent CCG | E169: 4830 | F169: 4664.555862 | G169: 0.03546835819 | H169: high | I169: =IF(F169="",#N/A,F169) -> 4664.555862 | J169: =IF(G169="",#N/A,G169) -> 0.03546835819 | M169: =IF(AND(VLOOKUP($B169,Lookup!$B$3:$E$222,4,FALSE)=$H$5,B169<>$J$4),F169,NA()) ->  | N169: =IF(AND(VLOOKUP($B169,Lookup!$B$3:$E$222,4,FALSE)=$H$5,B169<>$J$4),G169,NA()) ->  | O169: =IF(ISNUMBER(MATCH($B169,Lookup!$P$3:$P$260,0)),F169,NA()) ->  | P169: =IF(ISNUMBER(MATCH($B169,Lookup!$P$3:$P$260,0)),G169,NA()) -> 
A170: 162 | B170: 00P | C170: NHS Sunderland CCG | E170: 4600 | F170: 4719.705955 | G170: -0.02536301111 | I170: 4719.705955 | J170: -0.02536301111 | M170: =IF(AND(VLOOKUP($B170,Lookup!$B$3:$E$222,4,FALSE)=$H$5,B170<>$J$4),F170,NA()) ->  | N170: =IF(AND(VLOOKUP($B170,Lookup!$B$3:$E$222,4,FALSE)=$H$5,B170<>$J$4),G170,NA()) ->  | O170: =IF(ISNUMBER(MATCH($B170,Lookup!$P$3:$P$260,0)),F170,NA()) ->  | P170: =IF(ISNUMBER(MATCH($B170,Lookup!$P$3:$P$260,0)),G170,NA()) -> 
A171: 163 | B171: 99H | C171: NHS Surrey Downs CCG | E171: 2500 | F171: 2596.018894 | G171: -0.03698697806 | I171: 2596.018894 | J171: -0.03698697806 | M171: =IF(AND(VLOOKUP($B171,Lookup!$B$3:$E$222,4,FALSE)=$H$5,B171<>$J$4),F171,NA()) ->  | N171: =IF(AND(VLOOKUP($B171,Lookup!$B$3:$E$222,4,FALSE)=$H$5,B171<>$J$4),G171,NA()) ->  | O171: =IF(ISNUMBER(MATCH($B171,Lookup!$P$3:$P$260,0)),F171,NA()) ->  | P171: =IF(ISNUMBER(MATCH($B171,Lookup!$P$3:$P$260,0)),G171,NA()) -> 
A172: 164 | B172: 10C | C172: NHS Surrey Heath CCG | E172: 845 | F172: 840.7575767 | G172: 0.005045953134 | I172: 840.7575767 | J172: 0.005045953134 | M172: =IF(AND(VLOOKUP($B172,Lookup!$B$3:$E$222,4,FALSE)=$H$5,B172<>$J$4),F172,NA()) ->  | N172: =IF(AND(VLOOKUP($B172,Lookup!$B$3:$E$222,4,FALSE)=$H$5,B172<>$J$4),G172,NA()) ->  | O172: =IF(ISNUMBER(MATCH($B172,Lookup!$P$3:$P$260,0)),F172,NA()) ->  | P172: =IF(ISNUMBER(MATCH($B172,Lookup!$P$3:$P$260,0)),G172,NA()) -> 
A173: 165 | B173: 08T | C173: NHS Sutton CCG | E173: 1600 | F173: 1736.152466 | G173: -0.07842195243 | H173: low | I173: 1736.152466 | J173: -0.07842195243 | M173: =IF(AND(VLOOKUP($B173,Lookup!$B$3:$E$222,4,FALSE)=$H$5,B173<>$J$4),F173,NA()) ->  | N173: =IF(AND(VLOOKUP($B173,Lookup!$B$3:$E$222,4,FALSE)=$H$5,B173<>$J$4),G173,NA()) ->  | O173: =IF(ISNUMBER(MATCH($B173,Lookup!$P$3:$P$260,0)),F173,NA()) ->  | P173: =IF(ISNUMBER(MATCH($B173,Lookup!$P$3:$P$260,0)),G173,NA()) -> 
A174: 166 | B174: 10D | C174: NHS Swale CCG | E174: 1270 | F174: 1344.855934 | G174: -0.05566093119 | H174: low | I174: 1344.855934 | J174: -0.05566093119 | M174: =IF(AND(VLOOKUP($B174,Lookup!$B$3:$E$222,4,FALSE)=$H$5,B174<>$J$4),F174,NA()) ->  | N174: =IF(AND(VLOOKUP($B174,Lookup!$B$3:$E$222,4,FALSE)=$H$5,B174<>$J$4),G174,NA()) ->  | O174: =IF(ISNUMBER(MATCH($B174,Lookup!$P$3:$P$260,0)),F174,NA()) ->  | P174: =IF(ISNUMBER(MATCH($B174,Lookup!$P$3:$P$260,0)),G174,NA()) -> 
A175: 167 | B175: 12D | C175: NHS Swindon CCG | E175: 2175 | F175: 2314.284588 | G175: -0.06018472768 | H175: low | I175: 2314.284588 | J175: -0.06018472768 | M175: =IF(AND(VLOOKUP($B175,Lookup!$B$3:$E$222,4,FALSE)=$H$5,B175<>$J$4),F175,NA()) ->  | N175: =IF(AND(VLOOKUP($B175,Lookup!$B$3:$E$222,4,FALSE)=$H$5,B175<>$J$4),G175,NA()) ->  | O175: =IF(ISNUMBER(MATCH($B175,Lookup!$P$3:$P$260,0)),F175,NA()) ->  | P175: =IF(ISNUMBER(MATCH($B175,Lookup!$P$3:$P$260,0)),G175,NA()) -> 
A176: 168 | B176: 01Y | C176: NHS Tameside and Glossop CCG | E176: 3295 | F176: 3343.133891 | G176: -0.01439783526 | I176: 3343.133891 | J176: -0.01439783526 | M176: =IF(AND(VLOOKUP($B176,Lookup!$B$3:$E$222,4,FALSE)=$H$5,B176<>$J$4),F176,NA()) ->  | N176: =IF(AND(VLOOKUP($B176,Lookup!$B$3:$E$222,4,FALSE)=$H$5,B176<>$J$4),G176,NA()) ->  | O176: =IF(ISNUMBER(MATCH($B176,Lookup!$P$3:$P$260,0)),F176,NA()) ->  | P176: =IF(ISNUMBER(MATCH($B176,Lookup!$P$3:$P$260,0)),G176,NA()) -> 
A177: 169 | B177: 05X | C177: NHS Telford and Wrekin CCG | E177: 2920 | F177: 2743.295208 | G177: 0.06441333469 | H177: high | I177: 2743.295208 | J177: 0.06441333469 | M177: =IF(AND(VLOOKUP($B177,Lookup!$B$3:$E$222,4,FALSE)=$H$5,B177<>$J$4),F177,NA()) ->  | N177: =IF(AND(VLOOKUP($B177,Lookup!$B$3:$E$222,4,FALSE)=$H$5,B177<>$J$4),G177,NA()) ->  | O177: =IF(ISNUMBER(MATCH($B177,Lookup!$P$3:$P$260,0)),F177,NA()) ->  | P177: =IF(ISNUMBER(MATCH($B177,Lookup!$P$3:$P$260,0)),G177,NA()) -> 
A178: 170 | B178: 10E | C178: NHS Thanet CCG | E178: 1870 | F178: 1963.705843 | G178: -0.04771887996 | H178: low | I178: 1963.705843 | J178: -0.04771887996 | M178: =IF(AND(VLOOKUP($B178,Lookup!$B$3:$E$222,4,FALSE)=$H$5,B178<>$J$4),F178,NA()) ->  | N178: =IF(AND(VLOOKUP($B178,Lookup!$B$3:$E$222,4,FALSE)=$H$5,B178<>$J$4),G178,NA()) ->  | O178: =IF(ISNUMBER(MATCH($B178,Lookup!$P$3:$P$260,0)),F178,NA()) ->  | P178: =IF(ISNUMBER(MATCH($B178,Lookup!$P$3:$P$260,0)),G178,NA()) -> 
A179: 171 | B179: 07G | C179: NHS Thurrock CCG | E179: 2125 | F179: 2103.543531 | G179: 0.01020015431 | I179: 2103.543531 | J179: 0.01020015431 | M179: =IF(AND(VLOOKUP($B179,Lookup!$B$3:$E$222,4,FALSE)=$H$5,B179<>$J$4),F179,NA()) ->  | N179: =IF(AND(VLOOKUP($B179,Lookup!$B$3:$E$222,4,FALSE)=$H$5,B179<>$J$4),G179,NA()) ->  | O179: =IF(ISNUMBER(MATCH($B179,Lookup!$P$3:$P$260,0)),F179,NA()) ->  | P179: =IF(ISNUMBER(MATCH($B179,Lookup!$P$3:$P$260,0)),G179,NA()) -> 
A180: 172 | B180: 08V | C180: NHS Tower Hamlets CCG | E180: 2920 | F180: 2856.310603 | G180: 0.0222977841 | I180: 2856.310603 | J180: 0.0222977841 | M180: =IF(AND(VLOOKUP($B180,Lookup!$B$3:$E$222,4,FALSE)=$H$5,B180<>$J$4),F180,NA()) ->  | N180: =IF(AND(VLOOKUP($B180,Lookup!$B$3:$E$222,4,FALSE)=$H$5,B180<>$J$4),G180,NA()) ->  | O180: =IF(ISNUMBER(MATCH($B180,Lookup!$P$3:$P$260,0)),F180,NA()) ->  | P180: =IF(ISNUMBER(MATCH($B180,Lookup!$P$3:$P$260,0)),G180,NA()) -> 
A181: 173 | B181: 02A | C181: NHS Trafford CCG | E181: 3000 | F181: 3006.113511 | G181: -0.002033692785 | I181: 3006.113511 | J181: -0.002033692785 | M181: =IF(AND(VLOOKUP($B181,Lookup!$B$3:$E$222,4,FALSE)=$H$5,B181<>$J$4),F181,NA()) ->  | N181: =IF(AND(VLOOKUP($B181,Lookup!$B$3:$E$222,4,FALSE)=$H$5,B181<>$J$4),G181,NA()) ->  | O181: =IF(ISNUMBER(MATCH($B181,Lookup!$P$3:$P$260,0)),F181,NA()) ->  | P181: =IF(ISNUMBER(MATCH($B181,Lookup!$P$3:$P$260,0)),G181,NA()) -> 
A182: 174 | B182: 03Q | C182: NHS Vale of York CCG | E182: 5610 | F182: 5235.284203 | G182: 0.07157506308 | H182: high | I182: 5235.284203 | J182: 0.07157506308 | M182: =IF(AND(VLOOKUP($B182,Lookup!$B$3:$E$222,4,FALSE)=$H$5,B182<>$J$4),F182,NA()) ->  | N182: =IF(AND(VLOOKUP($B182,Lookup!$B$3:$E$222,4,FALSE)=$H$5,B182<>$J$4),G182,NA()) ->  | O182: =IF(ISNUMBER(MATCH($B182,Lookup!$P$3:$P$260,0)),F182,NA()) ->  | P182: =IF(ISNUMBER(MATCH($B182,Lookup!$P$3:$P$260,0)),G182,NA()) -> 
A183: 175 | B183: 02D | C183: NHS Vale Royal CCG | E183: 1490 | F183: 1447.862518 | G183: 0.02910323425 | I183: 1447.862518 | J183: 0.02910323425 | M183: =IF(AND(VLOOKUP($B183,Lookup!$B$3:$E$222,4,FALSE)=$H$5,B183<>$J$4),F183,NA()) ->  | N183: =IF(AND(VLOOKUP($B183,Lookup!$B$3:$E$222,4,FALSE)=$H$5,B183<>$J$4),G183,NA()) ->  | O183: =IF(ISNUMBER(MATCH($B183,Lookup!$P$3:$P$260,0)),F183,NA()) ->  | P183: =IF(ISNUMBER(MATCH($B183,Lookup!$P$3:$P$260,0)),G183,NA()) -> 
A184: 176 | B184: 03R | C184: NHS Wakefield CCG | E184: 5755 | F184: 5570.066271 | G184: 0.03320135166 | H184: high | I184: 5570.066271 | J184: 0.03320135166 | M184: =IF(AND(VLOOKUP($B184,Lookup!$B$3:$E$222,4,FALSE)=$H$5,B184<>$J$4),F184,NA()) -> 5570.066271 | N184: =IF(AND(VLOOKUP($B184,Lookup!$B$3:$E$222,4,FALSE)=$H$5,B184<>$J$4),G184,NA()) -> 0.03320135166 | O184: =IF(ISNUMBER(MATCH($B184,Lookup!$P$3:$P$260,0)),F184,NA()) ->  | P184: =IF(ISNUMBER(MATCH($B184,Lookup!$P$3:$P$260,0)),G184,NA()) -> 
A185: 177 | B185: 05Y | C185: NHS Walsall CCG | E185: 4030 | F185: 3956.19934 | G185: 0.01865443415 | I185: 3956.19934 | J185: 0.01865443415 | M185: =IF(AND(VLOOKUP($B185,Lookup!$B$3:$E$222,4,FALSE)=$H$5,B185<>$J$4),F185,NA()) ->  | N185: =IF(AND(VLOOKUP($B185,Lookup!$B$3:$E$222,4,FALSE)=$H$5,B185<>$J$4),G185,NA()) ->  | O185: =IF(ISNUMBER(MATCH($B185,Lookup!$P$3:$P$260,0)),F185,NA()) ->  | P185: =IF(ISNUMBER(MATCH($B185,Lookup!$P$3:$P$260,0)),G185,NA()) -> 
A186: 178 | B186: 08W | C186: NHS Waltham Forest CCG | E186: 2965 | F186: 2948.54166 | G186: 0.005581857554 | I186: 2948.54166 | J186: 0.005581857554 | M186: =IF(AND(VLOOKUP($B186,Lookup!$B$3:$E$222,4,FALSE)=$H$5,B186<>$J$4),F186,NA()) ->  | N186: =IF(AND(VLOOKUP($B186,Lookup!$B$3:$E$222,4,FALSE)=$H$5,B186<>$J$4),G186,NA()) ->  | O186: =IF(ISNUMBER(MATCH($B186,Lookup!$P$3:$P$260,0)),F186,NA()) ->  | P186: =IF(ISNUMBER(MATCH($B186,Lookup!$P$3:$P$260,0)),G186,NA()) -> 
A187: 179 | B187: 08X | C187: NHS Wandsworth CCG | E187: 1925 | F187: 2183.403474 | G187: -0.1183489344 | H187: low | I187: 2183.403474 | J187: -0.1183489344 | M187: =IF(AND(VLOOKUP($B187,Lookup!$B$3:$E$222,4,FALSE)=$H$5,B187<>$J$4),F187,NA()) ->  | N187: =IF(AND(VLOOKUP($B187,Lookup!$B$3:$E$222,4,FALSE)=$H$5,B187<>$J$4),G187,NA()) ->  | O187: =IF(ISNUMBER(MATCH($B187,Lookup!$P$3:$P$260,0)),F187,NA()) ->  | P187: =IF(ISNUMBER(MATCH($B187,Lookup!$P$3:$P$260,0)),G187,NA()) -> 
A188: 180 | B188: 02E | C188: NHS Warrington CCG | E188: 3530 | F188: 3557.809066 | G188: -0.007816345838 | I188: 3557.809066 | J188: -0.007816345838 | M188: =IF(AND(VLOOKUP($B188,Lookup!$B$3:$E$222,4,FALSE)=$H$5,B188<>$J$4),F188,NA()) ->  | N188: =IF(AND(VLOOKUP($B188,Lookup!$B$3:$E$222,4,FALSE)=$H$5,B188<>$J$4),G188,NA()) ->  | O188: =IF(ISNUMBER(MATCH($B188,Lookup!$P$3:$P$260,0)),F188,NA()) ->  | P188: =IF(ISNUMBER(MATCH($B188,Lookup!$P$3:$P$260,0)),G188,NA()) -> 
A189: 181 | B189: 05H | C189: NHS Warwickshire North CCG | E189: 2420 | F189: 2333.667721 | G189: 0.03699424676 | I189: 2333.667721 | J189: 0.03699424676 | M189: =IF(AND(VLOOKUP($B189,Lookup!$B$3:$E$222,4,FALSE)=$H$5,B189<>$J$4),F189,NA()) ->  | N189: =IF(AND(VLOOKUP($B189,Lookup!$B$3:$E$222,4,FALSE)=$H$5,B189<>$J$4),G189,NA()) ->  | O189: =IF(ISNUMBER(MATCH($B189,Lookup!$P$3:$P$260,0)),F189,NA()) -> 2333.667721 | P189: =IF(ISNUMBER(MATCH($B189,Lookup!$P$3:$P$260,0)),G189,NA()) -> 0.03699424676
A190: 182 | B190: 02F | C190: NHS West Cheshire CCG | E190: 3195 | F190: 3219.146694 | G190: -0.007500960927 | I190: 3219.146694 | J190: -0.007500960927 | M190: =IF(AND(VLOOKUP($B190,Lookup!$B$3:$E$222,4,FALSE)=$H$5,B190<>$J$4),F190,NA()) ->  | N190: =IF(AND(VLOOKUP($B190,Lookup!$B$3:$E$222,4,FALSE)=$H$5,B190<>$J$4),G190,NA()) ->  | O190: =IF(ISNUMBER(MATCH($B190,Lookup!$P$3:$P$260,0)),F190,NA()) ->  | P190: =IF(ISNUMBER(MATCH($B190,Lookup!$P$3:$P$260,0)),G190,NA()) -> 
A191: 183 | B191: 07H | C191: NHS West Essex CCG | E191: 3325 | F191: 3295.990214 | G191: 0.008801538974 | I191: 3295.990214 | J191: 0.008801538974 | M191: =IF(AND(VLOOKUP($B191,Lookup!$B$3:$E$222,4,FALSE)=$H$5,B191<>$J$4),F191,NA()) ->  | N191: =IF(AND(VLOOKUP($B191,Lookup!$B$3:$E$222,4,FALSE)=$H$5,B191<>$J$4),G191,NA()) ->  | O191: =IF(ISNUMBER(MATCH($B191,Lookup!$P$3:$P$260,0)),F191,NA()) ->  | P191: =IF(ISNUMBER(MATCH($B191,Lookup!$P$3:$P$260,0)),G191,NA()) -> 
A192: 184 | B192: 11A | C192: NHS West Hampshire CCG | E192: 5225 | F192: 5406.628671 | G192: -0.03359370183 | H192: low | I192: 5406.628671 | J192: -0.03359370183 | M192: =IF(AND(VLOOKUP($B192,Lookup!$B$3:$E$222,4,FALSE)=$H$5,B192<>$J$4),F192,NA()) ->  | N192: =IF(AND(VLOOKUP($B192,Lookup!$B$3:$E$222,4,FALSE)=$H$5,B192<>$J$4),G192,NA()) ->  | O192: =IF(ISNUMBER(MATCH($B192,Lookup!$P$3:$P$260,0)),F192,NA()) ->  | P192: =IF(ISNUMBER(MATCH($B192,Lookup!$P$3:$P$260,0)),G192,NA()) -> 
A193: 185 | B193: 99J | C193: NHS West Kent CCG | E193: 3140 | F193: 3376.151274 | G193: -0.06994688768 | H193: low | I193: 3376.151274 | J193: -0.06994688768 | M193: =IF(AND(VLOOKUP($B193,Lookup!$B$3:$E$222,4,FALSE)=$H$5,B193<>$J$4),F193,NA()) ->  | N193: =IF(AND(VLOOKUP($B193,Lookup!$B$3:$E$222,4,FALSE)=$H$5,B193<>$J$4),G193,NA()) ->  | O193: =IF(ISNUMBER(MATCH($B193,Lookup!$P$3:$P$260,0)),F193,NA()) ->  | P193: =IF(ISNUMBER(MATCH($B193,Lookup!$P$3:$P$260,0)),G193,NA()) -> 
A194: 186 | B194: 02G | C194: NHS West Lancashire CCG | E194: 1940 | F194: 1880.933197 | G194: 0.03140292459 | I194: 1880.933197 | J194: 0.03140292459 | M194: =IF(AND(VLOOKUP($B194,Lookup!$B$3:$E$222,4,FALSE)=$H$5,B194<>$J$4),F194,NA()) ->  | N194: =IF(AND(VLOOKUP($B194,Lookup!$B$3:$E$222,4,FALSE)=$H$5,B194<>$J$4),G194,NA()) ->  | O194: =IF(ISNUMBER(MATCH($B194,Lookup!$P$3:$P$260,0)),F194,NA()) -> 1880.933197 | P194: =IF(ISNUMBER(MATCH($B194,Lookup!$P$3:$P$260,0)),G194,NA()) -> 0.03140292459
A195: 187 | B195: 04V | C195: NHS West Leicestershire CCG | E195: 3635 | F195: 3706.625459 | G195: -0.01932363001 | I195: 3706.625459 | J195: -0.01932363001 | M195: =IF(AND(VLOOKUP($B195,Lookup!$B$3:$E$222,4,FALSE)=$H$5,B195<>$J$4),F195,NA()) ->  | N195: =IF(AND(VLOOKUP($B195,Lookup!$B$3:$E$222,4,FALSE)=$H$5,B195<>$J$4),G195,NA()) ->  | O195: =IF(ISNUMBER(MATCH($B195,Lookup!$P$3:$P$260,0)),F195,NA()) ->  | P195: =IF(ISNUMBER(MATCH($B195,Lookup!$P$3:$P$260,0)),G195,NA()) -> 
A196: 188 | B196: 08Y | C196: NHS West London CCG | E196: 2620 | F196: 2588.478723 | G196: 0.01217752988 | I196: 2588.478723 | J196: 0.01217752988 | M196: =IF(AND(VLOOKUP($B196,Lookup!$B$3:$E$222,4,FALSE)=$H$5,B196<>$J$4),F196,NA()) ->  | N196: =IF(AND(VLOOKUP($B196,Lookup!$B$3:$E$222,4,FALSE)=$H$5,B196<>$J$4),G196,NA()) ->  | O196: =IF(ISNUMBER(MATCH($B196,Lookup!$P$3:$P$260,0)),F196,NA()) ->  | P196: =IF(ISNUMBER(MATCH($B196,Lookup!$P$3:$P$260,0)),G196,NA()) -> 
A197: 189 | B197: 07J | C197: NHS West Norfolk CCG | E197: 4750 | F197: 4488.448134 | G197: 0.0582722264 | H197: high | I197: 4488.448134 | J197: 0.0582722264 | M197: =IF(AND(VLOOKUP($B197,Lookup!$B$3:$E$222,4,FALSE)=$H$5,B197<>$J$4),F197,NA()) ->  | N197: =IF(AND(VLOOKUP($B197,Lookup!$B$3:$E$222,4,FALSE)=$H$5,B197<>$J$4),G197,NA()) ->  | O197: =IF(ISNUMBER(MATCH($B197,Lookup!$P$3:$P$260,0)),F197,NA()) ->  | P197: =IF(ISNUMBER(MATCH($B197,Lookup!$P$3:$P$260,0)),G197,NA()) -> 
A198: 190 | B198: 07K | C198: NHS West Suffolk CCG | E198: 3215 | F198: 3177.935702 | G198: 0.01166301051 | I198: 3177.935702 | J198: 0.01166301051 | M198: =IF(AND(VLOOKUP($B198,Lookup!$B$3:$E$222,4,FALSE)=$H$5,B198<>$J$4),F198,NA()) ->  | N198: =IF(AND(VLOOKUP($B198,Lookup!$B$3:$E$222,4,FALSE)=$H$5,B198<>$J$4),G198,NA()) ->  | O198: =IF(ISNUMBER(MATCH($B198,Lookup!$P$3:$P$260,0)),F198,NA()) ->  | P198: =IF(ISNUMBER(MATCH($B198,Lookup!$P$3:$P$260,0)),G198,NA()) -> 
A199: 191 | B199: 02H | C199: NHS Wigan Borough CCG | E199: 5195 | F199: 4995.961637 | G199: 0.03983985023 | H199: high | I199: 4995.961637 | J199: 0.03983985023 | M199: =IF(AND(VLOOKUP($B199,Lookup!$B$3:$E$222,4,FALSE)=$H$5,B199<>$J$4),F199,NA()) ->  | N199: =IF(AND(VLOOKUP($B199,Lookup!$B$3:$E$222,4,FALSE)=$H$5,B199<>$J$4),G199,NA()) ->  | O199: =IF(ISNUMBER(MATCH($B199,Lookup!$P$3:$P$260,0)),F199,NA()) ->  | P199: =IF(ISNUMBER(MATCH($B199,Lookup!$P$3:$P$260,0)),G199,NA()) -> 
A200: 192 | B200: 99N | C200: NHS Wiltshire CCG | E200: 4680 | F200: 4787.772857 | G200: -0.02251001885 | I200: 4787.772857 | J200: -0.02251001885 | M200: =IF(AND(VLOOKUP($B200,Lookup!$B$3:$E$222,4,FALSE)=$H$5,B200<>$J$4),F200,NA()) ->  | N200: =IF(AND(VLOOKUP($B200,Lookup!$B$3:$E$222,4,FALSE)=$H$5,B200<>$J$4),G200,NA()) ->  | O200: =IF(ISNUMBER(MATCH($B200,Lookup!$P$3:$P$260,0)),F200,NA()) ->  | P200: =IF(ISNUMBER(MATCH($B200,Lookup!$P$3:$P$260,0)),G200,NA()) -> 
... 45 more rows

Sheet DATA (hidden)
D1: Ind1 | F1: 14/15 | K1: Ind2 | M1: 14/15 | R1: Ind3 | T1: 14/15 | Y1: Ind4 | AA1: 14/15 | AF1: Ind5 | AH1: 14/15 | AM1: Ind6 | AO1: 15/16 | AT1: Ind7 | AV1: 15/16 | BA1: Ind8 | BC1: 15/16 | BH1: Ind9 | BJ1: 15/16 | BO1: Ind10 | BQ1: 15/16 | BV1: Ind11 | BX1: 16/17 | CC1: Ind12 | CE1: 16/17 | CJ1: Ind13 | CL1: 16/17 | CQ1: Ind14 | CS1: 16/17 | CX1: Ind15 | CZ1: 16/17 | DE1: Ind16 | DG1: 17/18 | DL1: Ind17 | DN1: 17/18 | DS1: Ind18 | DU1: 17/18 | DZ1: Ind19 | EB1: 17/18 | EG1: Ind20 | EI1: 17/18
D2: Day Cases | K2: LOS All | R2: LOS Elective | Y2: LOS Emergency | AF2: Readmissions | AM2: Day Cases | AT2: LOS All | BA2: LOS Elective | BH2: LOS Emergency | BO2: Readmissions | BV2: Day Cases | CC2: LOS All | CJ2: LOS Elective | CQ2: LOS Emergency | CX2: Readmissions | DE2: Day Cases | DL2: LOS All | DS2: LOS Elective | DZ2: LOS Emergency | EG2: Readmissions
B3: CCG_RESPONSIBILITY | C3: CCGApr18NM | D3: Observed | E3: Expected | F3: Expected_Eng | G3: OE | H3: OE_Eng | I3: Sig_non_diab | J3: Sig_Eng | K3: Observed | L3: Expected | M3: Expected_Eng | N3: OE | O3: OE_Eng | P3: Sig_non_diab | Q3: Sig_Eng | R3: Observed | S3: Expected | T3: Expected_Eng | U3: OE | V3: OE_Eng | W3: Sig_non_diab | X3: Sig_Eng | Y3: Observed | Z3: Expected | AA3: Expected_Eng | AB3: OE | AC3: OE_Eng | AD3: Sig_non_diab | AE3: Sig_Eng | AF3: Observed | AG3: Expected | AH3: Expected_Eng | AI3: OE | AJ3: OE_Eng | AK3: Sig_non_diab | AL3: Sig_Eng | AM3: Observed | AN3: Expected | AO3: Expected_Eng | AP3: OE | AQ3: OE_Eng | AR3: Sig_non_diab | AS3: Sig_Eng | AT3: Observed | AU3: Expected | AV3: Expected_Eng | AW3: OE | AX3: OE_Eng | AY3: Sig_non_diab | AZ3: Sig_Eng | BA3: Observed | BB3: Expected | BC3: Expected_Eng | BD3: OE | BE3: OE_Eng | BF3: Sig_non_diab | BG3: Sig_Eng | BH3: Observed | BI3: Expected | BJ3: Expected_Eng | BK3: OE | BL3: OE_Eng | BM3: Sig_non_diab | BN3: Sig_Eng | BO3: Observed | BP3: Expected | BQ3: Expected_Eng | BR3: OE | BS3: OE_Eng | BT3: Sig_non_diab | BU3: Sig_Eng | BV3: Observed | BW3: Expected | BX3: Expected_Eng | BY3: OE | BZ3: OE_Eng | CA3: Sig_non_diab | CB3: Sig_Eng | CC3: Observed | CD3: Expected | CE3: Expected_Eng | CF3: OE | CG3: OE_Eng | CH3: Sig_non_diab | CI3: Sig_Eng | CJ3: Observed | CK3: Expected | CL3: Expected_Eng | CM3: OE | CN3: OE_Eng | CO3: Sig_non_diab | CP3: Sig_Eng | CQ3: Observed | CR3: Expected | CS3: Expected_Eng | CT3: OE | CU3: OE_Eng | CV3: Sig_non_diab | CW3: Sig_Eng | CX3: Observed | CY3: Expected | CZ3: Expected_Eng | DA3: OE | DB3: OE_Eng | DC3: Sig_non_diab | DD3: Sig_Eng | DE3: Observed | DF3: Expected | DG3: Expected_Eng | DH3: OE | DI3: OE_Eng | DJ3: Sig_non_diab | DK3: Sig_Eng | DL3: Observed | DM3: Expected | DN3: Expected_Eng | DO3: OE | DP3: OE_Eng | DQ3: Sig_non_diab | DR3: Sig_Eng | DS3: Observed | DT3: Expected | DU3: Expected_Eng | DV3: OE | DW3: OE_Eng | DX3: Sig_non_diab | DY3: Sig_Eng | DZ3: Observed | EA3: Expected | EB3: Expected_Eng | EC3: OE | ED3: OE_Eng | EE3: Sig_non_diab | EF3: Sig_Eng | EG3: Observed | EH3: Expected | EI3: Expected_Eng | EJ3: OE | EK3: OE_Eng | EL3: Sig_non_diab | EM3: Sig_Eng
A4: 1 | B4: 02N | C4: NHS Airedale, Wharfedale and Craven CCG | D4: 2580 | E4: 2596.469208 | F4: 2417.481338 | G4: 0.9936570756 | H4: 1.067226439 | J4: high | K4: 6405 | L4: 5894.021416 | M4: 6637.504103 | N4: 1.086694389 | O4: 0.9649711549 | P4: high | Q4: low | R4: 1740 | S4: 1406.197101 | T4: 1702.503826 | U4: 1.23737988 | V4: 1.022024135 | W4: high | Y4: 4420 | Z4: 4236.858034 | AA4: 4296.392054 | AB4: 1.043225892 | AC4: 1.028770174 | AD4: high | AF4: 400 | AG4: 270.6319925 | AH4: 526.4084103 | AI4: 1.478021857 | AJ4: 0.7598662791 | AK4: high | AL4: low | AM4: 2585 | AN4: 2623.11049 | AO4: 2472.646461 | AP4: 0.9854712599 | AQ4: 1.045438578 | AS4: high | AT4: 6840 | AU4: 5986.020501 | AV4: 7062.49025 | AW4: 1.142662308 | AX4: 0.9684969123 | AY4: high | AZ4: low | BA4: 1750 | BB4: 1446.090039 | BC4: 1859.735605 | BD4: 1.210159777 | BE4: 0.9409939751 | BF4: high | BG4: low | BH4: 4830 | BI4: 4464.914612 | BJ4: 4483.120836 | BK4: 1.081767608 | BL4: 1.077374485 | BM4: high | BN4: high | BO4: 380 | BP4: 250.9587586 | BQ4: 558.4268034 | BR4: 1.514193018 | BS4: 0.6804830959 | BT4: high | BU4: low | BV4: 2685 | BW4: 2744.959705 | BX4: 2620.436127 | BY4: 0.9781564354 | BZ4: 1.024638598 | CC4: 8220 | CD4: 7180.33252 | CE4: 7230.399771 | CF4: 1.144793779 | CG4: 1.136866599 | CH4: high | CI4: high | CJ4: 1875 | CK4: 1549.24366 | CL4: 1858.283885 | CM4: 1.210267983 | CN4: 1.008995458 | CO4: high | CQ4: 5950 | CR4: 5313.339853 | CS4: 4587.923051 | CT4: 1.119822967 | CU4: 1.296883129 | CV4: high | CW4: high | CX4: 465 | CY4: 262.7577246 | CZ4: 599.2919883 | DA4: 1.769691075 | DB4: 0.7759155955 | DC4: high | DD4: low | DE4: 2675 | DF4: 2724.695184 | DG4: 2572.592811 | DH4: 0.9817611949 | DI4: 1.039806995 | DK4: high | DL4: 8365 | DM4: 7537.93314 | DN4: 6772.252681 | DO4: 1.109720642 | DP4: 1.235187226 | DQ4: high | DR4: high | DS4: 1595 | DT4: 1526.025493 | DU4: 1621.501283 | DV4: 1.045198791 | DW4: 0.983656329 | DZ4: 6385 | EA4: 5923.120844 | EB4: 4514.087427 | EC4: 1.077979019 | ED4: 1.414460863 | EE4: high | EF4: high | EG4: 445 | EH4: 281.3421088 | EI4: 561.2387573 | EJ4: 1.581704218 | EK4: 0.7928889341 | EL4: high | EM4: low
A5: 2 | B5: 09C | C5: NHS Ashford CCG | D5: 840 | E5: 944.3080919 | F5: 903.9561943 | G5: 0.8895401905 | H5: 0.929248569 | I5: low | J5: low | K5: 5960 | L5: 4723.676348 | M5: 5724.861883 | N5: 1.26172912 | O5: 1.041073151 | P5: high | Q5: high | R5: 1080 | S5: 948.3676468 | T5: 1214.90167 | U5: 1.138798865 | V5: 0.8889608326 | W5: high | X5: low | Y5: 4710 | Z5: 3768.430479 | AA5: 3996.899609 | AB5: 1.249857209 | AC5: 1.178413386 | AD5: high | AE5: high | AF5: 330 | AG5: 195.7304617 | AH5: 274.1655938 | AI5: 1.685992037 | AJ5: 1.203652127 | AK5: high | AL5: high | AM5: 1035 | AN5: 1152.922452 | AO5: 1114.42535 | AP5: 0.8977186614 | AQ5: 0.9287297711 | AR5: low | AS5: low | AT5: 4400 | AU5: 3314.847352 | AV5: 4853.144119 | AW5: 1.327361273 | AX5: 0.9066287528 | AY5: high | AZ5: low | BA5: 860 | BB5: 891.2804042 | BC5: 1193.993761 | BD5: 0.9649039695 | BE5: 0.7202717702 | BG5: low | BH5: 3435 | BI5: 2375.304583 | BJ5: 3322.786771 | BK5: 1.44613033 | BL5: 1.033770818 | BM5: high | BO5: 400 | BP5: 217.5180576 | BQ5: 293.062723 | BR5: 1.838927786 | BS5: 1.364895528 | BT5: high | BU5: high | BV5: 1060 | BW5: 1163.292209 | BX5: 1129.733816 | BY5: 0.9112069964 | BZ5: 0.938274118 | CA5: low | CB5: low | CC5: 5170 | CD5: 3991.769111 | CE5: 4931.580556 | CF5: 1.29516509 | CG5: 1.048345443 | CH5: high | CI5: high | CJ5: 1130 | CK5: 938.5134652 | CL5: 1250.548907 | CM5: 1.204031739 | CN5: 0.9036032044 | CO5: high | CP5: low | CQ5: 3870 | CR5: 3053.279689 | CS5: 3324.767856 | CT5: 1.267489518 | CU5: 1.163991042 | CV5: high | CW5: high | CX5: 390 | CY5: 227.6393923 | CZ5: 302.1449118 | DA5: 1.713235992 | DB5: 1.290771364 | DC5: high | DD5: high | DE5: 1135 | DF5: 1232.850893 | DG5: 1206.475779 | DH5: 0.9206303911 | DI5: 0.9407565573 | DJ5: low | DK5: low | DL5: 4035 | DM5: 3131.687645 | DN5: 4500.42253 | DO5: 1.288442673 | DP5: 0.8965824816 | DQ5: high | DR5: low | DS5: 1210 | DT5: 1085.486218 | DU5: 1309.366366 | DV5: 1.114707843 | DW5: 0.9241111057 | DX5: high | DY5: low | DZ5: 2695 | EA5: 1949.892847 | EB5: 2899.43112 | EC5: 1.38212723 | ED5: 0.9294926793 | EE5: high | EF5: low | EG5: 385 | EH5: 230.2904738 | EI5: 339.3060474 | EJ5: 1.671801676 | EK5: 1.134668842 | EL5: high | EM5: high
A6: 3 | B6: 07L | C6: NHS Barking and Dagenham CCG | D6: 2215 | E6: 2277.747236 | F6: 2120.370224 | G6: 0.9724520634 | H6: 1.044628893 | J6: high | K6: 9595 | L6: 8729.728693 | M6: 8532.42073 | N6: 1.099117778 | O6: 1.124534327 | P6: high | Q6: high | R6: 1755 | S6: 1844.781921 | T6: 1875.992485 | U6: 0.9513319598 | V6: 0.9355048136 | W6: low | X6: low | Y6: 7570 | Z6: 6874.659341 | AA6: 5913.376958 | AB6: 1.101145471 | AC6: 1.280148391 | AD6: high | AE6: high | AF6: 545 | AG6: 429.7230215 | AH6: 577.1502489 | AI6: 1.268258792 | AJ6: 0.9442948366 | AK6: high | AM6: 2145 | AN6: 2252.346415 | AO6: 2073.889801 | AP6: 0.9523401844 | AQ6: 1.034288321 | AR6: low | AT6: 8550 | AU6: 7325.230656 | AV6: 8224.344961 | AW6: 1.167198741 | AX6: 1.039596471 | AY6: high | AZ6: high | BA6: 1665 | BB6: 1569.692847 | BC6: 1701.385924 | BD6: 1.060717072 | BE6: 0.9786139504 | BF6: high | BH6: 6735 | BI6: 5744.842528 | BJ6: 5905.978892 | BK6: 1.172355894 | BL6: 1.140369805 | BM6: high | BN6: high | BO6: 685 | BP6: 494.9972251 | BQ6: 593.7826646 | BR6: 1.383846142 | BS6: 1.153620745 | BT6: high | BU6: high | BV6: 2475 | BW6: 2563.779782 | BX6: 2423.162147 | BY6: 0.9653715257 | BZ6: 1.021392647 | CC6: 9450 | CD6: 7606.850315 | CE6: 8362.299509 | CF6: 1.242301295 | CG6: 1.130071936 | CH6: high | CI6: high | CJ6: 2050 | CK6: 1770.145153 | CL6: 1748.700726 | CM6: 1.158097118 | CN6: 1.172298936 | CO6: high | CP6: high | CQ6: 6945 | CR6: 5491.923492 | CS6: 5935.145694 | CT6: 1.264584259 | CU6: 1.170148191 | CV6: high | CW6: high | CX6: 785 | CY6: 463.0381965 | CZ6: 654.9022259 | DA6: 1.695324502 | DB6: 1.198652209 | DC6: high | DD6: high | DE6: 2755 | DF6: 2830.038301 | DG6: 2712.480709 | DH6: 0.973485058 | DI6: 1.015675426 | DL6: 6315 | DM6: 5610.446459 | DN6: 7735.714682 | DO6: 1.125578873 | DP6: 0.8163434485 | DQ6: high | DR6: low | DS6: 1840 | DT6: 1589.826536 | DU6: 1834.47623 | DV6: 1.157358969 | DW6: 1.003011088 | DX6: high | DZ6: 4140 | EA6: 3770.129451 | EB6: 5303.443838 | EC6: 1.09810553 | ED6: 0.7806248405 | EE6: high | EF6: low | EG6: 780 | EH6: 589.3998596 | EI6: 691.8872804 | EJ6: 1.323380023 | EK6: 1.127351264 | EL6: high | EM6: high
A7: 4 | B7: 07M | C7: NHS Barnet CCG | D7: 3430 | E7: 3509.731169 | F7: 3234.201367 | G7: 0.9772828274 | H7: 1.060540025 | J7: high | K7: 10690 | L7: 9667.771219 | M7: 12610.75333 | N7: 1.105735723 | O7: 0.8476892472 | P7: high | Q7: low | R7: 3175 | S7: 2671.874179 | T7: 2858.438395 | U7: 1.188304459 | V7: 1.110746345 | W7: high | X7: high | Y7: 6555 | Z7: 6243.558945 | AA7: 8455.443469 | AB7: 1.049881976 | AC7: 0.7752402371 | AD7: high | AE7: low | AF7: 865 | AG7: 588.3216409 | AH7: 885.6881601 | AI7: 1.470284178 | AJ7: 0.9766417109 | AK7: high | AM7: 3720 | AN7: 3843.780736 | AO7: 3557.103848 | AP7: 0.9677971391 | AQ7: 1.045794601 | AR7: low | AS7: high | AT7: 11890 | AU7: 10247.1363 | AV7: 12936.66739 | AW7: 1.160324178 | AX7: 0.9190929658 | AY7: high | AZ7: low | BA7: 3235 | BB7: 2583.86406 | BC7: 2973.369659 | BD7: 1.25200085 | BE7: 1.087991192 | BF7: high | BG7: high | BH7: 7825 | BI7: 6924.718852 | BJ7: 8692.761138 | BK7: 1.130009776 | BL7: 0.9001742801 | BM7: high | BN7: low | BO7: 840 | BP7: 584.1268331 | BQ7: 921.7435648 | BR7: 1.43804385 | BS7: 0.9113163705 | BT7: high | BU7: low | BV7: 5020 | BW7: 5129.362425 | BX7: 4762.664732 | BY7: 0.9786791386 | BZ7: 1.054031783 | CB7: high | CC7: 12610 | CD7: 10228.6168 | CE7: 12046.997 | CF7: 1.23281576 | CG7: 1.046733887 | CH7: high | CI7: high | CJ7: 3385 | CK7: 2933.831284 | CL7: 2926.421498 | CM7: 1.153781412 | CN7: 1.15670282 | CO7: high | CP7: high | CQ7: 8775 | CR7: 6775.653793 | CS7: 8101.023501 | CT7: 1.295077976 | CU7: 1.083196463 | CV7: high | CW7: high | CX7: 930 | CY7: 628.6719354 | CZ7: 1024.737059 | DA7: 1.479308917 | DB7: 0.9075498852 | DC7: high | DD7: low | DE7: 4800 | DF7: 4930.870273 | DG7: 4695.680099 | DH7: 0.9734589909 | DI7: 1.022216143 | DL7: 12560 | DM7: 11121.1887 | DN7: 13615.32639 | DO7: 1.129375675 | DP7: 0.9224898207 | DQ7: high | DR7: low | DS7: 3360 | DT7: 2949.803699 | DU7: 3106.253977 | DV7: 1.139058847 | DW7: 1.081688756 | DX7: high | DY7: high | DZ7: 8620 | EA7: 7456.321485 | EB7: 9484.526635 | EC7: 1.156066033 | ED7: 0.9088487314 | EE7: high | EF7: low | EG7: 1040 | EH7: 748.9920907 | EI7: 1131.294541 | EJ7: 1.388532687 | EK7: 0.9193008207 | EL7: high | EM7: low
